Workbook

Sheet Version control
C2: Version | D2: Comment/Changes
C3: 1 | D3: "Working" deterministic version
C4: 1.1 | D4: "Working" deterministic and PSA version
C5: 1.2 | D5: Reconciling large discrepancy in deterministic costs in updated version compared to the original model
C6: 1.3 | D6: Attempting to fix stillbirth overestimation
C7: 1.4 | D7: "Working" deterministic and PSA version with "fix" for stillbirth estimation
C8: 1.5 | D8: Adding graphical interface to select alternative options with respect to gestational age
C9: 1.6 | D9: Saving after crash and autorecover
C10: 1.7 | D10: Corrected error on <Kindinger smoothing> tab: Row 32, Columns M-R + fixes to Tornado macros
C11: 1.8 | D11: GC version 03.11.2023 - including 1 solution to exclude stillbirths
C12: 1.9 | D12: Changes reflecting comments from Timothy Watts and corrections to macros calculating treatment costs
C13: 1.1 | D13: NICU changes following Aung Soe's comments
C14: 1.11 | D14: Liem Modifier
C15: 1.12 | D15: Breakthrough on correcting Liem modifier problems
C16: 1.13 | D16: 1.12 created issues with most assumptions of birth by gestational issues - these were fixed in 1.11b
C17: 1.14 | D17: Removing not treated from Markov transitions
C18: 1.15 | D18: Ending treatment at 34 weeks
C19: 1.16 | D19: Logic checks added to cumulative birth rates after treatment - especially relevent to validation with extreme relative risks
C20: 1.17 | D20: Changed treatment from 400 mg progesterone to 200 mg progesterone
C21: 2 | D21: Post RAG changes
D22: snagging sheet deleted
D23: model user instructions added
D24: test sheet deleted
D25: Treatment cost calculations corrected
C26: 2.1 | D26: Precautionary save in case any minor changes from 2.1 whilst working on results
D27: Changed colour of intervention CEAC
D28: Tidying of obsolete superfluous content
C29: 3 | D29: Post consultation changes
D30: corrections to treatment costs (some double counting)

Sheet Format control
A2: Strat No | B2: Strategy Selection
A3: 1 | B3: No Screen/treatment | C3: TRUE | G3: Distribution Selection | H3: 1
A4: 2 | B4: Cervical length ≤ 25 mm | C4: TRUE
B6: Probabilistic | C6: 1
G7: Sheet Protect password | H7: TTPjacklin
B12: Dichorionic | C12: 24 | D12: 25 | E12: 26 | F12: 27 | G12: 28 | H12: 29 | I12: 30 | J12: 31 | K12: 32 | L12: 33 | M12: 34 | N12: 35 | O12: 36 | P12: 37 | R12: 24 | S12: 25 | T12: 26 | U12: 27 | V12: 28 | W12: 29 | X12: 30 | Y12: 31 | Z12: 32 | AA12: 33 | AB12: 34 | AC12: 35 | AD12: 36 | AE12: 37
B13: Specialist midwife follow-up | C13: TRUE | D13: FALSE | G13: TRUE | K13: TRUE | M13: TRUE | O13: TRUE | P13: FALSE | R13: =IF(C13=TRUE,1,0) -> 1 | S13: =IF(D13=TRUE,1,0) -> 0 | T13: 0 | U13: 0 | V13: 1 | W13: 0 | X13: 0 | Y13: 0 | Z13: 1 | AA13: 0 | AB13: 1 | AC13: 0 | AD13: 1 | AE13: 0
B14: Consultant obstetrician follow-up | C14: TRUE | K14: TRUE | L14: FALSE | N14: FALSE | R14: =IF(C14=TRUE,1,0) -> 1 | S14: =IF(D14=TRUE,1,0) -> 0 | T14: 0 | U14: 0 | V14: 0 | W14: 0 | X14: 0 | Y14: 0 | Z14: 1 | AA14: 0 | AB14: 0 | AC14: 0 | AD14: 0 | AE14: 0
B15: Scan | C15: TRUE | D15: FALSE | G15: TRUE | K15: TRUE | L15: FALSE | M15: FALSE | O15: TRUE | P15: FALSE | R15: =IF(C15=TRUE,1,0) -> 1 | S15: 0 | T15: 0 | U15: 0 | V15: 1 | W15: 0 | X15: 0 | Y15: 0 | Z15: 1 | AA15: 0 | AB15: 0 | AC15: 0 | AD15: 1 | AE15: 0
B18: Monochorionic | C18: 24 | D18: 25 | E18: 26 | F18: 27 | G18: 28 | H18: 29 | I18: 30 | J18: 31 | K18: 32 | L18: 33 | M18: 34 | N18: 35 | O18: 36 | P18: 37 | R18: 24 | S18: 25 | T18: 26 | U18: 27 | V18: 28 | W18: 29 | X18: 30 | Y18: 31 | Z18: 32 | AA18: 33 | AB18: 34 | AC18: 35 | AD18: 36 | AE18: 37
B19: Specialist midwife follow-up | C19: TRUE | E19: TRUE | G19: TRUE | I19: TRUE | K19: TRUE | M19: TRUE | O19: FALSE | P19: FALSE | R19: =IF(C19=TRUE,1,0) -> 1 | S19: 0 | T19: 1 | U19: 0 | V19: 1 | W19: 0 | X19: 1 | Y19: 0 | Z19: 1 | AA19: 0 | AB19: 1 | AC19: 0 | AD19: 0 | AE19: 0
B20: Consultant obstetrician follow-up | C20: TRUE | H20: FALSE | K20: TRUE | R20: 1 | S20: 0 | T20: 0 | U20: 0 | V20: 0 | W20: 0 | X20: 0 | Y20: 0 | Z20: 1 | AA20: 0 | AB20: 0 | AC20: 0 | AD20: 0 | AE20: 0
B21: Scan | C21: TRUE | E21: TRUE | G21: TRUE | I21: TRUE | K21: TRUE | M21: TRUE | O21: FALSE | P21: FALSE | R21: 1 | S21: 0 | T21: 1 | U21: 0 | V21: 1 | W21: 0 | X21: 1 | Y21: 0 | Z21: 1 | AA21: 0 | AB21: 1 | AC21: 0 | AD21: 0 | AE21: 0
B25: Dichorionic | C25: 24 | D25: 25 | E25: 26 | F25: 27 | G25: 28 | H25: 29 | I25: 30 | J25: 31 | K25: 32 | L25: 33 | M25: 34 | N25: 35 | O25: 36 | P25: 37
B26: Specialist midwife follow-up | C26: =IF(C13=TRUE,Cost_Midwife,0) -> 88 | D26: 0 | E26: 0 | F26: 0 | G26: 88 | H26: 0 | I26: 0 | J26: 0 | K26: 88 | L26: 0 | M26: 88 | N26: 0 | O26: 88 | P26: 0
B27: Consultant obstetrician follow-up | C27: =IF(C14=TRUE,Cost_consultant,0) -> 202 | D27: 0 | E27: 0 | F27: 0 | G27: 0 | H27: 0 | I27: 0 | J27: 0 | K27: 202 | L27: 0 | M27: 0 | N27: 0 | O27: 0 | P27: 0
B28: Scan | C28: =IF(C15=TRUE,Cost_scan+Cost_ObsReview,0) -> 260 | D28: 0 | E28: 0 | F28: 0 | G28: 260 | H28: 0 | I28: 0 | J28: 0 | K28: 260 | L28: 0 | M28: 0 | N28: 0 | O28: 260 | P28: 0
B30: Appointment cost | C30: =SUM(C26:C29) -> 550 | D30: =SUM(D26:D29) -> 0 | E30: 0 | F30: 0 | G30: 348 | H30: 0 | I30: 0 | J30: 0 | K30: 550 | L30: 0 | M30: 88 | N30: 0 | O30: 348 | P30: 0
B31: Weighted appointment cost | C31: =((Propn_MonoZyg*Propn_Dic_Monozyg)+(Propn_Dyz*Propn_Dic_Dyz))*C30 -> 413.875 | D31: 0 | E31: 0 | F31: 0 | G31: 261.87 | H31: 0 | I31: 0 | J31: 0 | K31: 413.875 | L31: 0 | M31: 66.22 | N31: 0 | O31: 261.87 | P31: 0
B33: Monochorionic | C33: 24 | D33: 25 | E33: 26 | F33: 27 | G33: 28 | H33: 29 | I33: 30 | J33: 31 | K33: 32 | L33: 33 | M33: 34 | N33: 35 | O33: 36 | P33: 37
B34: Specialist midwife follow-up | C34: =IF(C19=TRUE,Cost_Midwife,0) -> 88 | D34: 0 | E34: 88 | F34: 0 | G34: 88 | H34: 0 | I34: 88 | J34: 0 | K34: 88 | L34: 0 | M34: 88 | N34: 0 | O34: 0 | P34: 0
B35: Consultant obstetrician follow-up | C35: =IF(C20=TRUE,Cost_consultant,0) -> 202 | D35: 0 | E35: 0 | F35: 0 | G35: 0 | H35: 0 | I35: 0 | J35: 0 | K35: 202 | L35: 0 | M35: 0 | N35: 0 | O35: 0 | P35: 0
B36: Scan | C36: =IF(C21=TRUE,Cost_scan+Cost_ObsReview,0) -> 260 | D36: 0 | E36: 260 | F36: 0 | G36: 260 | H36: 0 | I36: 260 | J36: 0 | K36: 260 | L36: 0 | M36: 260 | N36: 0 | O36: 0 | P36: 0
B38: Appointment cost | C38: =SUM(C34:C37) -> 550 | D38: =SUM(D34:D37) -> 0 | E38: 348 | F38: 0 | G38: 348 | H38: 0 | I38: 348 | J38: 0 | K38: 550 | L38: 0 | M38: 348 | N38: 0 | O38: 0 | P38: 0
B39: Weighted appointment cost | C39: =((Propn_MonoZyg*Propn_Mono_Monozyg)+(Propn_Dyz*Propn_Mono_Dyz))*C38 -> 136.125 | D39: 0 | E39: 86.13 | F39: 0 | G39: 86.13 | H39: 0 | I39: 86.13 | J39: 0 | K39: 136.125 | L39: 0 | M39: 86.13 | N39: 0 | O39: 0 | P39: 0
B41: Overall weighted appoinment cost per week | C41: =C39+C31 -> 550 | D41: =D39+D31 -> 0 | E41: 86.13 | F41: 0 | G41: 348 | H41: 0 | I41: 86.13 | J41: 0 | K41: 550 | L41: 0 | M41: 152.35 | N41: 0 | O41: 261.87 | P41: 0
B44: Counselling for high preterm risk | C44: TRUE | D44: =IF(C44=TRUE,1,0) -> 1
A47: Births by Gestational Age
B48: 1 | C48: 2 | D48: 3 | E48: 4 | F48: 5 | J48: Birth by GA | K48: 1
A49: GA | B49: Kato | C49: Kindiger smooth | D49: Murray smooth | E49: Nicolaides smooth | F49: Liem Modifier | H49: Used in model
A50: 24 | B50: =IF('Estimates of twin births by GA'!B6<0,0,'Estimates of twin births by GA'!B6) -> 0.0022 | C50: =IF('Estimates of twin births by GA'!C6<0,0,'Estimates of twin births by GA'!C6) -> 0.01361947993 | D50: =IF('Estimates of twin births by GA'!D6<0,0,'Estimates of twin births by GA'!D6) -> 0.04430641822 | E50: =IF('Estimates of twin births by GA'!E6<0,0,'Estimates of twin births by GA'!E6) -> 0 | F50: 0.0004360547952 | H50: =HLOOKUP($K$48,$B$48:$F$63,3,FALSE) -> 0.0022
A51: 25 | B51: =IF('Estimates of twin births by GA'!B7-'Estimates of twin births by GA'!B6<0,0,'Estimates of twin births by GA'!B7-'Estimates of twin births by GA'!B6) -> 0.0036 | C51: =IF('Estimates of twin births by GA'!C7-'Estimates of twin births by GA'!C6<0,0,'Estimates of twin births by GA'!C7-'Estimates of twin births by GA'!C6) -> 0.02645442258 | D51: =IF('Estimates of twin births by GA'!D7-'Estimates of twin births by GA'!D6<0,0,'Estimates of twin births by GA'!D7-'Estimates of twin births by GA'!D6) -> 0.02667532085 | E51: =IF('Estimates of twin births by GA'!E7-'Estimates of twin births by GA'!E6<0,0,'Estimates of twin births by GA'!E7-'Estimates of twin births by GA'!E6) -> 0.009816166711 | F51: 0.0001980425415 | H51: =HLOOKUP($K$48,$B$48:$F$63,4,FALSE) -> 0.0036
A52: 26 | B52: =IF('Estimates of twin births by GA'!B8-'Estimates of twin births by GA'!B7<0,0,'Estimates of twin births by GA'!B8-'Estimates of twin births by GA'!B7) -> 0.0034 | C52: =IF('Estimates of twin births by GA'!C8-'Estimates of twin births by GA'!C7<0,0,'Estimates of twin births by GA'!C8-'Estimates of twin births by GA'!C7) -> 0.03544598386 | D52: =IF('Estimates of twin births by GA'!D8-'Estimates of twin births by GA'!D7<0,0,'Estimates of twin births by GA'!D8-'Estimates of twin births by GA'!D7) -> 0.01449515756 | E52: =IF('Estimates of twin births by GA'!E8-'Estimates of twin births by GA'!E7<0,0,'Estimates of twin births by GA'!E8-'Estimates of twin births by GA'!E7) -> 0.0150557828 | F52: 3.330704554e-06 | H52: =HLOOKUP($K$48,$B$48:$F$63,5,FALSE) -> 0.0034
A53: 27 | B53: =IF('Estimates of twin births by GA'!B9-'Estimates of twin births by GA'!B8<0,0,'Estimates of twin births by GA'!B9-'Estimates of twin births by GA'!B8) -> 0.005 | C53: =IF('Estimates of twin births by GA'!C9-'Estimates of twin births by GA'!C8<0,0,'Estimates of twin births by GA'!C9-'Estimates of twin births by GA'!C8) -> 0.04163346277 | D53: =IF('Estimates of twin births by GA'!D9-'Estimates of twin births by GA'!D8<0,0,'Estimates of twin births by GA'!D9-'Estimates of twin births by GA'!D8) -> 0.007765928357 | E53: =IF('Estimates of twin births by GA'!E9-'Estimates of twin births by GA'!E8<0,0,'Estimates of twin births by GA'!E9-'Estimates of twin births by GA'!E8) -> 0.01452041827 | F53: 0.000101627989 | H53: =HLOOKUP($K$48,$B$48:$F$63,6,FALSE) -> 0.005
A54: 28 | B54: =IF('Estimates of twin births by GA'!B10-'Estimates of twin births by GA'!B9<0,0,'Estimates of twin births by GA'!B10-'Estimates of twin births by GA'!B9) -> 0.0063 | C54: =IF('Estimates of twin births by GA'!C10-'Estimates of twin births by GA'!C9<0,0,'Estimates of twin births by GA'!C10-'Estimates of twin births by GA'!C9) -> 0.04605615836 | D54: =IF('Estimates of twin births by GA'!D10-'Estimates of twin births by GA'!D9<0,0,'Estimates of twin births by GA'!D10-'Estimates of twin births by GA'!D9) -> 0.006487633231 | E54: =IF('Estimates of twin births by GA'!E10-'Estimates of twin births by GA'!E9<0,0,'Estimates of twin births by GA'!E10-'Estimates of twin births by GA'!E9) -> 0.01117293674 | F54: 0.0002061997466 | H54: =HLOOKUP($K$48,$B$48:$F$63,7,FALSE) -> 0.0063
A55: 29 | B55: =IF('Estimates of twin births by GA'!B11-'Estimates of twin births by GA'!B10<0,0,'Estimates of twin births by GA'!B11-'Estimates of twin births by GA'!B10) -> 0.0064 | C55: =IF('Estimates of twin births by GA'!C11-'Estimates of twin births by GA'!C10<0,0,'Estimates of twin births by GA'!C11-'Estimates of twin births by GA'!C10) -> 0.04975336963 | D55: =IF('Estimates of twin births by GA'!D11-'Estimates of twin births by GA'!D10<0,0,'Estimates of twin births by GA'!D11-'Estimates of twin births by GA'!D10) -> 0.01066027219 | E55: =IF('Estimates of twin births by GA'!E11-'Estimates of twin births by GA'!E10<0,0,'Estimates of twin births by GA'!E11-'Estimates of twin births by GA'!E10) -> 0.007976201841 | F55: 1.321924203e-05 | H55: =HLOOKUP($K$48,$B$48:$F$63,8,FALSE) -> 0.0064
A56: 30 | B56: =IF('Estimates of twin births by GA'!B12-'Estimates of twin births by GA'!B11<0,0,'Estimates of twin births by GA'!B12-'Estimates of twin births by GA'!B11) -> 0.0093 | C56: =IF('Estimates of twin births by GA'!C12-'Estimates of twin births by GA'!C11<0,0,'Estimates of twin births by GA'!C12-'Estimates of twin births by GA'!C11) -> 0.05376439561 | D56: =IF('Estimates of twin births by GA'!D12-'Estimates of twin births by GA'!D11<0,0,'Estimates of twin births by GA'!D12-'Estimates of twin births by GA'!D11) -> 0.02028384522 | E56: =IF('Estimates of twin births by GA'!E12-'Estimates of twin births by GA'!E11<0,0,'Estimates of twin births by GA'!E12-'Estimates of twin births by GA'!E11) -> 0.007893077188 | F56: 0.0005272660317 | H56: =HLOOKUP($K$48,$B$48:$F$63,9,FALSE) -> 0.0093
A57: 31 | B57: =IF('Estimates of twin births by GA'!B13-'Estimates of twin births by GA'!B12<0,0,'Estimates of twin births by GA'!B13-'Estimates of twin births by GA'!B12) -> 0.0117 | C57: =IF('Estimates of twin births by GA'!C13-'Estimates of twin births by GA'!C12<0,0,'Estimates of twin births by GA'!C13-'Estimates of twin births by GA'!C12) -> 0.05912853532 | D57: =IF('Estimates of twin births by GA'!D13-'Estimates of twin births by GA'!D12<0,0,'Estimates of twin births by GA'!D13-'Estimates of twin births by GA'!D12) -> 0.03535835234 | E57: =IF('Estimates of twin births by GA'!E13-'Estimates of twin births by GA'!E12<0,0,'Estimates of twin births by GA'!E13-'Estimates of twin births by GA'!E12) -> 0.01388642641 | F57: 0.0005260233492 | H57: =HLOOKUP($K$48,$B$48:$F$63,10,FALSE) -> 0.0117
A58: 32 | B58: =IF('Estimates of twin births by GA'!B14-'Estimates of twin births by GA'!B13<0,0,'Estimates of twin births by GA'!B14-'Estimates of twin births by GA'!B13) -> 0.019 | C58: =IF('Estimates of twin births by GA'!C14-'Estimates of twin births by GA'!C13<0,0,'Estimates of twin births by GA'!C14-'Estimates of twin births by GA'!C13) -> 0.0668850878 | D58: =IF('Estimates of twin births by GA'!D14-'Estimates of twin births by GA'!D13<0,0,'Estimates of twin births by GA'!D14-'Estimates of twin births by GA'!D13) -> 0.05588379354 | E58: =IF('Estimates of twin births by GA'!E14-'Estimates of twin births by GA'!E13<0,0,'Estimates of twin births by GA'!E14-'Estimates of twin births by GA'!E13) -> 0.02891911312 | F58: 0.002095145244 | H58: =HLOOKUP($K$48,$B$48:$F$63,11,FALSE) -> 0.019
A59: 33 | B59: =IF('Estimates of twin births by GA'!B15-'Estimates of twin births by GA'!B14<0,0,'Estimates of twin births by GA'!B15-'Estimates of twin births by GA'!B14) -> 0.0272 | C59: =IF('Estimates of twin births by GA'!C15-'Estimates of twin births by GA'!C14<0,0,'Estimates of twin births by GA'!C15-'Estimates of twin births by GA'!C14) -> 0.07807335205 | D59: =IF('Estimates of twin births by GA'!D15-'Estimates of twin births by GA'!D14<0,0,'Estimates of twin births by GA'!D15-'Estimates of twin births by GA'!D14) -> 0.08186016882 | E59: =IF('Estimates of twin births by GA'!E15-'Estimates of twin births by GA'!E14<0,0,'Estimates of twin births by GA'!E15-'Estimates of twin births by GA'!E14) -> 0.05595400096 | F59: 0.002933126536 | H59: =HLOOKUP($K$48,$B$48:$F$63,12,FALSE) -> 0.0272
A60: 34 | B60: =IF('Estimates of twin births by GA'!B16-'Estimates of twin births by GA'!B15<0,0,'Estimates of twin births by GA'!B16-'Estimates of twin births by GA'!B15) -> 0.0423 | C60: =IF('Estimates of twin births by GA'!C16-'Estimates of twin births by GA'!C15<0,0,'Estimates of twin births by GA'!C16-'Estimates of twin births by GA'!C15) -> 0.0937326271 | D60: =IF('Estimates of twin births by GA'!D16-'Estimates of twin births by GA'!D15<0,0,'Estimates of twin births by GA'!D16-'Estimates of twin births by GA'!D15) -> 0.1132874782 | E60: =IF('Estimates of twin births by GA'!E16-'Estimates of twin births by GA'!E15<0,0,'Estimates of twin births by GA'!E16-'Estimates of twin births by GA'!E15) -> 0.09795395353 | F60: 0.02027989643 | H60: =HLOOKUP($K$48,$B$48:$F$63,13,FALSE) -> 0.0423
A61: 35 | B61: =IF('Estimates of twin births by GA'!B17-'Estimates of twin births by GA'!B16<0,0,'Estimates of twin births by GA'!B17-'Estimates of twin births by GA'!B16) -> 0.0688 | C61: =IF('Estimates of twin births by GA'!C17-'Estimates of twin births by GA'!C16<0,0,'Estimates of twin births by GA'!C17-'Estimates of twin births by GA'!C16) -> 0.114902212 | D61: =IF('Estimates of twin births by GA'!D17-'Estimates of twin births by GA'!D16<0,0,'Estimates of twin births by GA'!D17-'Estimates of twin births by GA'!D16) -> 0.1501657216 | E61: =IF('Estimates of twin births by GA'!E17-'Estimates of twin births by GA'!E16<0,0,'Estimates of twin births by GA'!E17-'Estimates of twin births by GA'!E16) -> 0.1578818345 | F61: 0.06466464067 | H61: =HLOOKUP($K$48,$B$48:$F$63,14,FALSE) -> 0.0688
A62: 36 | B62: =IF('Estimates of twin births by GA'!B18-'Estimates of twin births by GA'!B17<0,0,'Estimates of twin births by GA'!B18-'Estimates of twin births by GA'!B17) -> 0.1304 | C62: =IF('Estimates of twin births by GA'!C18-'Estimates of twin births by GA'!C17<0,0,'Estimates of twin births by GA'!C18-'Estimates of twin births by GA'!C17) -> 0.1426214057 | D62: =IF('Estimates of twin births by GA'!D18-'Estimates of twin births by GA'!D17<0,0,'Estimates of twin births by GA'!D18-'Estimates of twin births by GA'!D17) -> 0.1924948991 | E62: =IF('Estimates of twin births by GA'!E18-'Estimates of twin births by GA'!E17<0,0,'Estimates of twin births by GA'!E18-'Estimates of twin births by GA'!E17) -> 0.2387005074 | F62: 0.1255739968 | H62: =HLOOKUP($K$48,$B$48:$F$63,15,FALSE) -> 0.1304
A63: 37 | B63: =IF('Estimates of twin births by GA'!B19-'Estimates of twin births by GA'!B18<0,0,'Estimates of twin births by GA'!B19-'Estimates of twin births by GA'!B18) -> 0.6644 | C63: =IF('Estimates of twin births by GA'!C19-'Estimates of twin births by GA'!C18<0,0,'Estimates of twin births by GA'!C19-'Estimates of twin births by GA'!C18) -> 0.1779295073 | D63: =IF('Estimates of twin births by GA'!D19-'Estimates of twin births by GA'!D18<0,0,'Estimates of twin births by GA'!D19-'Estimates of twin births by GA'!D18) -> 0.2402750107 | E63: =IF('Estimates of twin births by GA'!E19-'Estimates of twin births by GA'!E18<0,0,'Estimates of twin births by GA'!E19-'Estimates of twin births by GA'!E18) -> 0.3438017704 | F63: 0.7824414299 | H63: =HLOOKUP($K$48,$B$48:$F$63,16,FALSE) -> 0.6644
B65: =SUM(B50:B64) -> 1 | C65: =SUM(C50:C64) -> 1 | D65: =SUM(D50:D64) -> 1 | E65: =SUM(E50:E64) -> 1.00353219 | F65: =SUM(F50:F63) -> 1
A67: Stillbirths by Gestational Age
B68: 1 | C68: 2 | D68: 3 | E68: 4 | F68: 5 | J68: Stillbirth by GA | K68: 5
A69: GA | B69: ONS 2013 | C69: ONS 2014 | D69: ONS 2021 | E69: NG137 | F69: OFF | H69: Used in model
A70: 24 | B70: 0.09698410154 | C70: 0.1553550558 | D70: 0.4254275881 | E70: 0.3564 | F70: 0 | H70: =HLOOKUP($K$68,$B$68:$F$83,3,FALSE) -> 0
A71: 25 | B71: 0.08409103056 | C71: 0.1228584442 | D71: 0.3206237242 | E71: 0.3187 | F71: 0 | H71: =HLOOKUP($K$68,$B$68:$F$83,4,FALSE) -> 0
A72: 26 | B72: 0.07189175087 | C72: 0.09511122208 | D72: 0.2410106947 | E72: 0.2381 | F72: 0 | H72: =HLOOKUP($K$68,$B$68:$F$83,5,FALSE) -> 0
A73: 27 | B73: 0.06045999864 | C73: 0.07194453219 | D73: 0.1814606705 | E73: 0.1677 | F73: 0 | H73: =HLOOKUP($K$68,$B$68:$F$83,6,FALSE) -> 0
A74: 28 | B74: 0.0498670227 | C74: 0.05311642867 | D74: 0.1374617366 | E74: 0.1414 | F74: 0 | H74: =HLOOKUP($K$68,$B$68:$F$83,7,FALSE) -> 0
A75: 29 | B75: 0.04018158456 | C75: 0.03831187715 | D75: 0.1051178918 | E75: 0.1086 | F75: 0 | H75: =HLOOKUP($K$68,$B$68:$F$83,8,FALSE) -> 0
A76: 30 | B76: 0.03146995838 | C76: 0.02714275473 | D76: 0.08114904912 | E76: 0.0623 | F76: 0 | H76: =HLOOKUP($K$68,$B$68:$F$83,9,FALSE) -> 0
A77: 31 | B77: 0.02379593101 | C77: 0.01914785001 | D77: 0.06289103527 | E77: 0.065 | F77: 0 | H77: =HLOOKUP($K$68,$B$68:$F$83,10,FALSE) -> 0
A78: 32 | B78: 0.01722080194 | C78: 0.01379286304 | D78: 0.04829559108 | E78: 0.0526 | F78: 0 | H78: =HLOOKUP($K$68,$B$68:$F$83,11,FALSE) -> 0
A79: 33 | B79: 0.01180338332 | C79: 0.01047040537 | D79: 0.03593037137 | E79: 0.0324 | F79: 0 | H79: =HLOOKUP($K$68,$B$68:$F$83,12,FALSE) -> 0
A80: 34 | B80: 0.0076 | C80: 0.0085 | D80: 0.02497894489 | E80: 0.0204 | F80: 0 | H80: =HLOOKUP($K$68,$B$68:$F$83,13,FALSE) -> 0
A81: 35 | B81: 0.004664489456 | C81: 0.007128081428 | D81: 0.01524079438 | E81: 0.0146 | F81: 0 | H81: =HLOOKUP($K$68,$B$68:$F$83,14,FALSE) -> 0
A82: 36 | B82: 0.003048201848 | C82: 0.005527995615 | D82: 0.007131316561 | E82: 0.0093 | F82: 0 | H82: =HLOOKUP($K$68,$B$68:$F$83,15,FALSE) -> 0
A83: 37 | B83: 0.0028 | C83: 0.0028 | D83: 0.001681822122 | E83: 0.0035 | F83: 0 | H83: =HLOOKUP($K$68,$B$68:$F$83,16,FALSE) -> 0
A85: Neonatal Deaths by Gestational Age
B86: 1 | C86: 2 | D86: 3 | J86: NND by GA | K86: 3
A87: GA | B87: NND rate 2017 | C87: NND rate 2017b | D87: NND rate 2020 | H87: Used in model
A88: 24 | B88: 0.1985 | C88: 0.1959060814 | D88: 0.4253571855 | H88: =HLOOKUP($K$86,$B$86:$D$101,3,FALSE) -> 0.4253571855
A89: 25 | B89: 0.1151 | C89: 0.1226356479 | D89: 0.2579921743 | H89: =HLOOKUP($K$86,$B$86:$D$101,4,FALSE) -> 0.2579921743
A90: 26 | B90: 0.082 | C90: 0.0787297775 | D90: 0.1564801637 | H90: =HLOOKUP($K$86,$B$86:$D$101,5,FALSE) -> 0.1564801637
A91: 27 | B91: 0.0596 | C91: 0.05340453448 | D91: 0.09491001691 | H91: =HLOOKUP($K$86,$B$86:$D$101,6,FALSE) -> 0.09491001691
A92: 28 | B92: 0.038 | C92: 0.03891147336 | D92: 0.05756583517 | H92: =HLOOKUP($K$86,$B$86:$D$101,7,FALSE) -> 0.05756583517
A93: 29 | B93: 0.0238 | C93: 0.03005658366 | D93: 0.03491544398 | H93: =HLOOKUP($K$86,$B$86:$D$101,8,FALSE) -> 0.03491544398
A94: 30 | B94: 0.0245 | C94: 0.02371923494 | D94: 0.02117728727 | H94: =HLOOKUP($K$86,$B$86:$D$101,9,FALSE) -> 0.02117728727
A95: 31 | B95: 0.0191 | C95: 0.01837112176 | D95: 0.01284467402 | H95: =HLOOKUP($K$86,$B$86:$D$101,10,FALSE) -> 0.01284467402
A96: 32 | B96: 0.0158 | C96: 0.01359520866 | D96: 0.007790688608 | H96: =HLOOKUP($K$86,$B$86:$D$101,11,FALSE) -> 0.007790688608
A97: 33 | B97: 0.0084 | C97: 0.009604675201 | D97: 0.004725291501 | H97: =HLOOKUP($K$86,$B$86:$D$101,12,FALSE) -> 0.004725291501
A98: 34 | B98: 0.0075 | C98: 0.006761860895 | D98: 0.002866034171 | H98: =HLOOKUP($K$86,$B$86:$D$101,13,FALSE) -> 0.002866034171
A99: 35 | B99: 0.0051 | C99: 0.00509721022 | D99: 0.001738337597 | H99: =HLOOKUP($K$86,$B$86:$D$101,14,FALSE) -> 0.001738337597
A100: 36 | B100: 0.0026 | C100: 0.003828217603 | D100: 0.001054355049 | H100: =HLOOKUP($K$86,$B$86:$D$101,15,FALSE) -> 0.001054355049
A101: 37 | B101: 0.0015 | C101: 0.0008783724015 | D101: 0.0006394986637 | H101: =HLOOKUP($K$86,$B$86:$D$101,16,FALSE) -> 0.0006394986637
A104: Post Neonatal Deaths by Gestational Age
B105: 1 | C105: 2 | D105: 3 | J105: PND by GA | K105: 3
A106: GA | B106: NG137 | C106: NG137 smoothed | D106: 2021 | H106: Used in model
A107: 24 | B107: 0.0462 | C107: 0.05015462185 | D107: 0.07367245639 | H107: =HLOOKUP($K$105,$B$105:$D$120,3,FALSE) -> 0.07367245639
A108: 25 | B108: 0.0425 | C108: 0.04046052036 | D108: 0.05243786806 | H108: =HLOOKUP($K$105,$B$105:$D$120,4,FALSE) -> 0.05243786806
A109: 26 | B109: 0.0367 | C109: 0.03212204266 | D109: 0.03732371828 | H109: =HLOOKUP($K$105,$B$105:$D$120,5,FALSE) -> 0.03732371828
A110: 27 | B110: 0.031 | C110: 0.02504203737 | D110: 0.026565915 | H110: =HLOOKUP($K$105,$B$105:$D$120,6,FALSE) -> 0.026565915
A111: 28 | B111: 0.0145 | C111: 0.01912335312 | D111: 0.0189088299 | H111: =HLOOKUP($K$105,$B$105:$D$120,7,FALSE) -> 0.0189088299
A112: 29 | B112: 0.0074 | C112: 0.01426883851 | D112: 0.01345874396 | H112: =HLOOKUP($K$105,$B$105:$D$120,8,FALSE) -> 0.01345874396
A113: 30 | B113: 0.0075 | C113: 0.01038134219 | D113: 0.009579534531 | H113: =HLOOKUP($K$105,$B$105:$D$120,9,FALSE) -> 0.009579534531
A114: 31 | B114: 0.0105 | C114: 0.007363712758 | D114: 0.006818428385 | H114: =HLOOKUP($K$105,$B$105:$D$120,10,FALSE) -> 0.006818428385
A115: 32 | B115: 0.007 | C115: 0.005118798848 | D115: 0.004853154972 | H115: =HLOOKUP($K$105,$B$105:$D$120,11,FALSE) -> 0.004853154972
A116: 33 | B116: 0.0046 | C116: 0.00354944908 | D116: 0.003454331681 | H116: =HLOOKUP($K$105,$B$105:$D$120,12,FALSE) -> 0.003454331681
A117: 34 | B117: 0.0027 | C117: 0.002558512076 | D117: 0.002458690776 | H117: =HLOOKUP($K$105,$B$105:$D$120,13,FALSE) -> 0.002458690776
A118: 35 | B118: 0.0027 | C118: 0.002048836458 | D118: 0.001750023127 | H118: =HLOOKUP($K$105,$B$105:$D$120,14,FALSE) -> 0.001750023127
A119: 36 | B119: 0.0015 | C119: 0.001923270847 | D119: 0.001245614526 | H119: =HLOOKUP($K$105,$B$105:$D$120,15,FALSE) -> 0.001245614526
A120: 37 | B120: 0.0014 | C120: 0.002084663866 | D120: 0.0008865914531 | H120: =HLOOKUP($K$105,$B$105:$D$120,16,FALSE) -> 0.0008865914531
A123: NICU admission rate by Gestational Age
J124: NICU by GA | K124: 3
B125: 1 | C125: 2 | D125: 3 | E125: 4 | F125: 5
A126: GA | B126: NDAU 2017 est | C126: Smoothed NDAU est | D126: GC estimate 1 | E126: GC estimate 2 | F126: GC estimate 3 | H126: Used in model
A127: 24 | B127: 1 | C127: 1 | D127: 1 | E127: 1 | F127: 0.95 | H127: =HLOOKUP($K$124,$B$125:$F$140,3,FALSE) -> 1
A128: 25 | B128: 1 | C128: 1 | D128: 1 | E128: 1 | F128: 0.95 | H128: =HLOOKUP($K$124,$B$125:$F$140,4,FALSE) -> 1
A129: 26 | B129: 1 | C129: 1 | D129: 1 | E129: 1 | F129: 0.95 | H129: =HLOOKUP($K$124,$B$125:$F$140,5,FALSE) -> 1
A130: 27 | B130: 1 | C130: 1 | D130: 1 | E130: 1 | F130: 0.95 | H130: =HLOOKUP($K$124,$B$125:$F$140,6,FALSE) -> 1
A131: 28 | B131: 1 | C131: 1 | D131: 1 | E131: 1 | F131: 0.95 | H131: =HLOOKUP($K$124,$B$125:$F$140,7,FALSE) -> 1
A132: 29 | B132: 0.885845662 | C132: 0.8830650552 | D132: 1 | E132: 0.95 | F132: 0.95 | H132: =HLOOKUP($K$124,$B$125:$F$140,8,FALSE) -> 1
A133: 30 | B133: 0.8498536406 | C133: 0.8677611855 | D133: 1 | E133: 0.95 | F133: 0.95 | H133: =HLOOKUP($K$124,$B$125:$F$140,9,FALSE) -> 1
A134: 31 | B134: 0.8624865153 | C134: 0.8296063858 | D134: 1 | E134: 0.95 | F134: 0.95 | H134: =HLOOKUP($K$124,$B$125:$F$140,10,FALSE) -> 1
A135: 32 | B135: 0.7375168289 | C135: 0.7686006562 | D135: 1 | E135: 0.95 | F135: 0.95 | H135: =HLOOKUP($K$124,$B$125:$F$140,11,FALSE) -> 1
A136: 33 | B136: 0.7176617665 | C136: 0.6847439966 | D136: 0.7631814326 | E136: 0.7471100041 | F136: 0.7471100041 | H136: =HLOOKUP($K$124,$B$125:$F$140,12,FALSE) -> 0.7631814326
A137: 34 | B137: 0.5406676722 | C137: 0.578036407 | D137: 0.5788326188 | E137: 0.5788326188 | F137: 0.5788326188 | H137: =HLOOKUP($K$124,$B$125:$F$140,13,FALSE) -> 0.5788326188
A138: 35 | B138: 0.4789152584 | C138: 0.4484778874 | D138: 0.4146216369 | E138: 0.4217644941 | F138: 0.4217644941 | H138: =HLOOKUP($K$124,$B$125:$F$140,14,FALSE) -> 0.4146216369
A139: 36 | B139: 0.2768751409 | C139: 0.2960684379 | D139: 0.2705484871 | E139: 0.27590563 | F139: 0.27590563 | H139: =HLOOKUP($K$124,$B$125:$F$140,15,FALSE) -> 0.2705484871
A140: 37 | B140: 0.1273455853 | C140: 0.1208080584 | D140: 0.1466131693 | E140: 0.1412560265 | F140: 0.1412560265 | H140: =HLOOKUP($K$124,$B$125:$F$140,16,FALSE) -> 0.1466131693
A142: CP rate by Gestational Age
J143: CP by GA | K143: 1
B144: 1 | C144: 2
A145: GA | B145: Oskui 2013 | C145: NG137 | H145: Used in model
A146: 24 | B146: 0.1181 | C146: 0.3591 | H146: =HLOOKUP($K$143,$B$144:$C$159,3,FALSE) -> 0.1181
A147: 25 | B147: 0.1026 | C147: 0.2383 | H147: =HLOOKUP($K$143,$B$144:$C$159,4,FALSE) -> 0.1026
A148: 26 | B148: 0.0883 | C148: 0.1581 | H148: =HLOOKUP($K$143,$B$144:$C$159,5,FALSE) -> 0.0883
A149: 27 | B149: 0.0752 | C149: 0.1049 | H149: =HLOOKUP($K$143,$B$144:$C$159,6,FALSE) -> 0.0752
A150: 28 | B150: 0.0633 | C150: 0.0696 | H150: =HLOOKUP($K$143,$B$144:$C$159,7,FALSE) -> 0.0633
A151: 29 | B151: 0.0526 | C151: 0.0462 | H151: =HLOOKUP($K$143,$B$144:$C$159,8,FALSE) -> 0.0526
A152: 30 | B152: 0.0431 | C152: 0.0307 | H152: =HLOOKUP($K$143,$B$144:$C$159,9,FALSE) -> 0.0431
A153: 31 | B153: 0.0348 | C153: 0.0204 | H153: =HLOOKUP($K$143,$B$144:$C$159,10,FALSE) -> 0.0348
A154: 32 | B154: 0.0277 | C154: 0.0135 | H154: =HLOOKUP($K$143,$B$144:$C$159,11,FALSE) -> 0.0277
A155: 33 | B155: 0.0218 | C155: 0.009 | H155: =HLOOKUP($K$143,$B$144:$C$159,12,FALSE) -> 0.0218
A156: 34 | B156: 0.0171 | C156: 0.006 | H156: =HLOOKUP($K$143,$B$144:$C$159,13,FALSE) -> 0.0171
A157: 35 | B157: 0.0136 | C157: 0.0039 | H157: =HLOOKUP($K$143,$B$144:$C$159,14,FALSE) -> 0.0136
A158: 36 | B158: 0.0113 | C158: 0.0026 | H158: =HLOOKUP($K$143,$B$144:$C$159,15,FALSE) -> 0.0113
A159: 37 | B159: 0.0102 | C159: 0.0017 | H159: =HLOOKUP($K$143,$B$144:$C$159,16,FALSE) -> 0.0102
A161: RDS rate by Gestational Age
J162: RDS by GA | K162: 3
B163: 1 | C163: 2 | D163: 3
A164: GA | B164: Ross 2021 | C164: Ross smoothed | D164: Yadav 2023 | H164: Used in model
A165: 24 | B165: 0.7 | C165: 0.7334611345 | D165: 0.98 | H165: =HLOOKUP($K$162,$B$163:$D$178,3,FALSE) -> 0.98
A166: 25 | B166: 0.9 | C166: 0.8655595507 | D166: 0.8341538462 | H166: =HLOOKUP($K$162,$B$163:$D$178,4,FALSE) -> 0.8341538462
A167: 26 | B167: 0.93 | C167: 0.8832207498 | D167: 0.7000512821 | H167: =HLOOKUP($K$162,$B$163:$D$178,5,FALSE) -> 0.7000512821
A168: 27 | B168: 0.84 | C168: 0.8247499559 | D168: 0.5776923077 | H168: =HLOOKUP($K$162,$B$163:$D$178,6,FALSE) -> 0.5776923077
A169: 28 | B169: 0.65 | C169: 0.7221972513 | D169: 0.4670769231 | H169: =HLOOKUP($K$162,$B$163:$D$178,7,FALSE) -> 0.4670769231
A170: 29 | B170: 0.53 | C170: 0.6013575762 | D170: 0.3682051282 | H170: =HLOOKUP($K$162,$B$163:$D$178,8,FALSE) -> 0.3682051282
A171: 30 | B171: 0.55 | C171: 0.4817707293 | D171: 0.2810769231 | H171: =HLOOKUP($K$162,$B$163:$D$178,9,FALSE) -> 0.2810769231
A172: 31 | B172: 0.37 | C172: 0.3767213669 | D172: 0.2056923077 | H172: =HLOOKUP($K$162,$B$163:$D$178,10,FALSE) -> 0.2056923077
A173: 32 | B173: 0.28 | C173: 0.2932390036 | D173: 0.1420512821 | H173: =HLOOKUP($K$162,$B$163:$D$178,11,FALSE) -> 0.1420512821
A174: 33 | B174: 0.34 | C174: 0.2320980123 | D174: 0.09015384615 | H174: =HLOOKUP($K$162,$B$163:$D$178,12,FALSE) -> 0.09015384615
A175: 34 | B175: 0.14 | C175: 0.1878176236 | D175: 0.05 | H175: =HLOOKUP($K$162,$B$163:$D$178,13,FALSE) -> 0.05
A176: 35 | B176: 0.12 | C176: 0.1486619263 | D176: 0.02158974359 | H176: =HLOOKUP($K$162,$B$163:$D$178,14,FALSE) -> 0.02158974359
A177: 36 | B177: 0.07 | C177: 0.09663986749 | D177: 0.004923076923 | H177: =HLOOKUP($K$162,$B$163:$D$178,15,FALSE) -> 0.004923076923
A178: 37 | B178: 0.035 | C178: 0.007505252101 | D178: 0 | H178: =HLOOKUP($K$162,$B$163:$D$178,16,FALSE) -> 0
A180: IVH rate by Gestational Age
J181: IVH by GA | K181: 2
B182: 1 | C182: 2
A183: GA | B183: Ross 2021 | C183: Ross smoothed | H183: Used in model
A184: 24 | B184: 0.25 | C184: 0.2423426573 | H184: =HLOOKUP($K$181,$B$182:$C$197,3,FALSE) -> 0.2423426573
A185: 25 | B185: 0.3 | C185: 0.3306293706 | H185: =HLOOKUP($K$181,$B$182:$C$197,4,FALSE) -> 0.3306293706
A186: 26 | B186: 0.3 | C186: 0.2637878788 | H186: =HLOOKUP($K$181,$B$182:$C$197,5,FALSE) -> 0.2637878788
A187: 27 | B187: 0.16 | C187: 0.1565034965 | H187: =HLOOKUP($K$181,$B$182:$C$197,6,FALSE) -> 0.1565034965
A188: 28 | B188: 0.04 | C188: 0.06965034965 | H188: =HLOOKUP($K$181,$B$182:$C$197,7,FALSE) -> 0.06965034965
A189: 29 | B189: 0.03 | C189: 0.02375291375 | H189: =HLOOKUP($K$181,$B$182:$C$197,8,FALSE) -> 0.02375291375
A190: 30 | B190: 0.02 | C190: 0.01244755245 | H190: =HLOOKUP($K$181,$B$182:$C$197,9,FALSE) -> 0.01244755245
A191: 31 | B191: 0.02 | C191: 0.01594405594 | H191: =HLOOKUP($K$181,$B$182:$C$197,10,FALSE) -> 0.01594405594
A192: 32 | B192: 0.01 | C192: 0.01448717949 | H192: =HLOOKUP($K$181,$B$182:$C$197,11,FALSE) -> 0.01448717949
A193: 33 | B193: 0 | C193: 0.001818181831 | H193: =HLOOKUP($K$181,$B$182:$C$197,12,FALSE) -> 0.001818181831
A194: 34 | B194: 0 | C194: 0 | H194: =HLOOKUP($K$181,$B$182:$C$197,13,FALSE) -> 0
A195: 35 | B195: 0 | C195: 0 | H195: =HLOOKUP($K$181,$B$182:$C$197,14,FALSE) -> 0
A196: 36 | B196: 0 | C196: 0 | H196: =HLOOKUP($K$181,$B$182:$C$197,15,FALSE) -> 0
A197: 37 | B197: 0 | C197: 0 | H197: =HLOOKUP($K$181,$B$182:$C$197,16,FALSE) -> 0
A199: NICU LOS rate by Gestational Age
J200: NICU LoS by age | K200: 2
B201: 1 | C201: 2
A202: GA | B202: NDAU 2017 | C202: NDAU smoothed | H202: Used in model
A203: 24 | B203: 92 | C203: 103 | H203: =HLOOKUP($K$200,$B$201:$C$216,3,FALSE) -> 103
A204: 25 | B204: 92 | C204: 91 | H204: =HLOOKUP($K$200,$B$201:$C$216,4,FALSE) -> 91
A205: 26 | B205: 92 | C205: 80 | H205: =HLOOKUP($K$200,$B$201:$C$216,5,FALSE) -> 80
A206: 27 | B206: 92 | C206: 69 | H206: =HLOOKUP($K$200,$B$201:$C$216,6,FALSE) -> 69
A207: 28 | B207: 44 | C207: 58 | H207: =HLOOKUP($K$200,$B$201:$C$216,7,FALSE) -> 58
A208: 29 | B208: 44 | C208: 48 | H208: =HLOOKUP($K$200,$B$201:$C$216,8,FALSE) -> 48
A209: 30 | B209: 44 | C209: 39 | H209: =HLOOKUP($K$200,$B$201:$C$216,9,FALSE) -> 39
A210: 31 | B210: 44 | C210: 31 | H210: =HLOOKUP($K$200,$B$201:$C$216,10,FALSE) -> 31
A211: 32 | B211: 12 | C211: 23 | H211: =HLOOKUP($K$200,$B$201:$C$216,11,FALSE) -> 23
A212: 33 | B212: 12 | C212: 17 | H212: =HLOOKUP($K$200,$B$201:$C$216,12,FALSE) -> 17
A213: 34 | B213: 12 | C213: 11 | H213: =HLOOKUP($K$200,$B$201:$C$216,13,FALSE) -> 11
A214: 35 | B214: 12 | C214: 7 | H214: =HLOOKUP($K$200,$B$201:$C$216,14,FALSE) -> 7
A215: 36 | B215: 12 | C215: 5 | H215: =HLOOKUP($K$200,$B$201:$C$216,15,FALSE) -> 5
A216: 37 | B216: 4 | C216: 3 | H216: =HLOOKUP($K$200,$B$201:$C$216,16,FALSE) -> 3
A218: Kindinger screening week
J219: Kindinger week | K219: 2
C221: 18 weeks
D222: 5 | E222: 10 | F222: 15 | G222: 20 | H222: 25
C223: 23 | D223: 0 | E223: 0 | F223: 0 | G223: 0 | H223: 0
C224: 26 | D224: 0.585 | E224: 0.518 | F224: 0.445 | G224: 0.366 | H224: 0.286
C225: 28 | D225: 0.341 | E225: 0.368 | F225: 0.385 | G225: 0.386 | H225: 0.367
C226: 34 | D226: 0.059 | E226: 0.085 | F226: 0.117 | G226: 0.156 | H226: 0.196
C227: 37 | D227: 0.015 | E227: 0.029 | F227: 0.053 | G227: 0.092 | H227: 0.152
C229: 20 weeks
D230: 5 | E230: 10 | F230: 15 | G230: 20 | H230: 25
C231: 23 | D231: 0 | E231: 0 | F231: 0 | G231: 0 | H231: 0
C232: 26 | D232: 0.532 | E232: 0.461 | F232: 0.386 | G232: 0.308 | H232: 0.232
C233: 28 | D233: 0.364 | E233: 0.385 | F233: 0.392 | G233: 0.381 | H233: 0.35
... 16 more rows

Sheet Front sheet

Sheet T&Cs
A1: NICE Clinical Guideline, Twin and triplet pregnancy. Draft for Consultation
A2: Developed by the National Institute for Health and Clinical Excellence
A3: Model: Modelling cost effectiveness of screening and progesterone treatment to prevent preterm birth in twins
A5: This model is confidential and is protected by intellectual property rights, which are owned by NICE.
A6: It has been sent to you for information only. It cannot be used for any other purpose than to inform your
A7: understanding of the guideline. Accordingly, neither the model nor its contents should be divulged to
A8: anyone other than those individuals within your organisation who need to see to them to enable you to
A9: prepare your response. Those to whom you do show the documents must be advised they are bound by the terms
A10: of the Confidentiality Acknowledgement and Undertaking Form which has been signed and returned to the
A11: Institute by your organisation prior to receiving this file.
A13: The model is made available subject to the following restrictions:
A15: * You may not make copies of the file.
A16: * You must delete the file from your records when the guideline process is complete.
A17: * You must confirm to us in writing that you have done so.
A18: * You may not publish it in whole or part, or use it to inform the development of other economic models.
A19: * The model(s) must not be re-run for purposes other than the testing of its reliability.
A21: The model should be reviewed in conjunction with the full technical report, which can be found in
A22: Appendix I of evidence review K: progesterone for preventing spontaneous preterm birth in twin and triplet pregnancy - draft for consultation
A24: Please note:
A25: * Using this model requires relevant technical expertise.
A26: * This workbook may not have been protected; care must be taken not to overtype formulae on which it relies.
A27: * Model inputs do not have data entry restrictions; be aware that it may be possible to enter values
A28: outside the range that will work in the model.

Sheet Menu

Sheet Population
D9: Population characteristics
F11: Variable | H11: Value
F13: Cohort | H13: 1
F15: Monozygotic Proportion | H15: 0.33
F17: Monochorionic|monozygotic | H17: 0.75
F19: Dichorionic|monozygotic | H19: 0.25
F21: Dyzygotic Proportion | H21: =1-Propn_MonoZyg -> 0.67
F23: Monochorionic|dyzygotic | H23: 0
F25: Dichorionic|dyzygotic | H25: 1
F27: Gestational Age at screening (weeks) | H27: 20

Sheet Unit Cost
C6: Antenatal appointment costs | K6: Long-term costs
D8: Variable | F8: Value | H8: SD | L8: Variable | N8: Value
D10: Specialist midwife follow up | F10: 88 | H10: 9.14 | L10: Cerebral palsy | N10: 94447
D12: Consultant obstetrician follow up | F12: 202 | H12: 11.52 | L12: Intraventricular haemorrhage | N12: 28334
D14: Scan | F14: 137 | H14: 24.35 | L14: RDS | N14: 4551
D16: Obstetrician review | F16: 123 | H16: 13.73
D19: Mortality costs | K19: Screening & Treatment
D21: Variable | F21: Value | L21: Variable | N21: Value | P21: SD
D23: Stillbirths | F23: 4795 | L23: Screening | N23: 142 | P23: 16.65
D25: Neonatal/post neonatal death | F25: 0 | L25: Treatment cost per day | N25: 0.6

Sheet QALY
B7: QALY losses
D10: Variable | F10: Value
D12: Stillbirth | F12: 25.35
D14: Neonatal death | F14: 25.35
D16: Post neonatal death | F16: 25.35
D18: Cerebral palsy | F18: 11.15
D20: Intraventricular haemorrhage | F20: 4.5
D22: Respiratory distress syndrome | F22: 1.5
D24: Cost-effectiveness threshold (cost per QALY) | F24: 20000

Sheet Post-discharge costs
D7: NHS Costs in the first 2 years after initial discharge by gestational age
E9: Gestational Age | G9: 0-6 months | I9: 6-12 months | K9: 12-24 months
E11: 24 weeks | G11: 1633 | I11: 977 | K11: 512
E13: 25 weeks | G13: 1633 | I13: 977 | K13: 512
E15: 26 weeks | G15: 1633 | I15: 977 | K15: 512
E17: 27 weeks | G17: 1633 | I17: 977 | K17: 512
E19: 28 weeks | G19: 1633 | I19: 977 | K19: 512
E21: 29 weeks | G21: 1633 | I21: 977 | K21: 512
E23: 30 weeks | G23: 1633 | I23: 977 | K23: 512
E25: 31 weeks | G25: 1633 | I25: 977 | K25: 512
E27: 32 weeks | G27: 1633 | I27: 977 | K27: 512
E29: 33 weeks | G29: 1633 | I29: 977 | K29: 512
E31: 34 weeks | G31: 1633 | I31: 977 | K31: 512
E33: 35 weeks | G33: 1633 | I33: 977 | K33: 512
E35: 36 weeks | G35: 1633 | I35: 977 | K35: 512
E37: 37 weeks | G37: 935 | I37: 824 | K37: 350

Sheet Treatment effectiveness
D10: Relative treatment effect
E12: Outcome | G12: Relative risk | I12: Low 95% CI | K12: High 95% CI
E14: Pre-term birth <28 weeks | G14: 0.41 | I14: 0.19 | K14: 0.91
E16: Pre-term birth <32 weeks | G16: 0.56 | I16: 0.33 | K16: 0.93
E18: Pre-term birth <36 weeks | G18: 0.89 | I18: 0.69 | K18: 1.15

Sheet Mono appt schedule
E8: Gestational age (weeks)
E9: 24 | F9: 25 | G9: 26 | H9: 27 | I9: 28 | J9: 29 | K9: 30 | L9: 31 | M9: 32 | N9: 33 | O9: 34 | P9: 35 | Q9: 36 | R9: 37
C11: Specialist midwife follow-up
C14: Consultant obstetrician follow-up
C17: Scan

Sheet Dic appt schedule
E8: Gestational age (weeks)
E9: 24 | F9: 25 | G9: 26 | H9: 27 | I9: 28 | J9: 29 | K9: 30 | L9: 31 | M9: 32 | N9: 33 | O9: 34 | P9: 35 | Q9: 36 | R9: 37
C11: Specialist midwife follow-up
C14: Consultant obstetrician follow-up
C17: Scan

Sheet NICU data
B7: Length of stay & proportion of NICU stay by level of care | O7: Neonatal care costs per bed-day
C9: Gestational Age | E9: Days | G9: Intensive care | I9: HDU | K9: Special Care | P9: Level of Care | S9: Value | U9: SD
C11: 24 weeks | E11: ='Format control'!H203 -> 103 | G11: 0.5 | I11: 0.1428571429 | K11: =1-(G11+I11) -> 0.3571428571 | P11: Neonatal Critical Care, Intensive Care | S11: 1811 | U11: 72
C13: 25 weeks | E13: ='Format control'!H204 -> 91 | G13: 0.4615384615 | I13: 0.1538461538 | K13: =1-(G13+I13) -> 0.3846153846 | P13: Neonatal Critical Care, High Dependency | S13: 1226 | U13: 39
C15: 26 weeks | E15: ='Format control'!H205 -> 80 | G15: 0.4166666667 | I15: 0.1666666667 | K15: =1-(G15+I15) -> 0.4166666667 | P15: Neonatal Critical Care, Special Care | S15: 873 | U15: 30
C17: 27 weeks | E17: ='Format control'!H206 -> 69 | G17: 0.3636363636 | I17: 0.1818181818 | K17: =1-(G17+I17) -> 0.4545454545
C19: 28 weeks | E19: ='Format control'!H207 -> 58 | G19: 0.3 | I19: 0.2 | K19: =1-(G19+I19) -> 0.5
C21: 29 weeks | E21: ='Format control'!H208 -> 48 | G21: 0.2222222222 | I21: 0.2222222222 | K21: =1-(G21+I21) -> 0.5555555556
C23: 30 weeks | E23: ='Format control'!H209 -> 39 | G23: 0.2222222222 | I23: 0.2222222222 | K23: =1-(G23+I23) -> 0.5555555556
C25: 31 weeks | E25: ='Format control'!H210 -> 31 | G25: 0.2222222222 | I25: 0.2222222222 | K25: =1-(G25+I25) -> 0.5555555556
C27: 32 weeks | E27: ='Format control'!H211 -> 23 | G27: 0.2222222222 | I27: 0.2222222222 | K27: =1-(G27+I27) -> 0.5555555556
C29: 33 weeks | E29: ='Format control'!H212 -> 17 | G29: 0.2222222222 | I29: 0.1111111111 | K29: =1-(G29+I29) -> 0.6666666667
C31: 34 weeks | E31: ='Format control'!H213 -> 11 | G31: 0.2222222222 | I31: 0.1111111111 | K31: =1-(G31+I31) -> 0.6666666667
C33: 35 weeks | E33: ='Format control'!H214 -> 7 | G33: 0.2222222222 | I33: 0.1111111111 | K33: =1-(G33+I33) -> 0.6666666667
C35: 36 weeks | E35: ='Format control'!H215 -> 5 | G35: 0.2222222222 | I35: 0.1111111111 | K35: =1-(G35+I35) -> 0.6666666667
C37: 37 weeks | E37: ='Format control'!H216 -> 3 | G37: 0.2222222222 | I37: 0.1111111111 | K37: =1-(G37+I37) -> 0.6666666667

Sheet Distribution Data
C7: Distribution of cervical length in women with a twin pregnancy at 23 weeks
F10: Source | G10: Liem | H10: Skentou | I10: Souka | J10: Other | K10: Used in model
F11: Distribution | G11: 1 | H11: 2 | I11: 3 | J11: 4
F12: CL
F13: 5 | G13: 0.001420454545 | H13: 0.006465517241 | I13: 0.004651162791 | J13: 0.001 | K13: =HLOOKUP('Format control'!$H$3,'Distribution Data'!$G$11:$J$20,3,FALSE) -> 0.001420454545
F14: 10 | G14: 0.001420454545 | H14: 0.01724137931 | I14: 0.03255813953 | J14: 0.001 | K14: =HLOOKUP('Format control'!$H$3,'Distribution Data'!$G$11:$J$20,4,FALSE) -> 0.001420454545
F15: 15 | G15: 0.001420454545 | H15: 0.02370689655 | I15: 0.01860465116 | J15: 0.001 | K15: =HLOOKUP('Format control'!$H$3,'Distribution Data'!$G$11:$J$20,5,FALSE) -> 0.001420454545
F16: 20 | G16: 0.001420454545 | H16: 0.03232758621 | I16: 0.03720930233 | J16: 0.001 | K16: =HLOOKUP('Format control'!$H$3,'Distribution Data'!$G$11:$J$20,6,FALSE) -> 0.001420454545
F17: 25 | G17: 0.004261363636 | H17: 0.05172413793 | I17: 0.03720930233 | J17: 0.001 | K17: =HLOOKUP('Format control'!$H$3,'Distribution Data'!$G$11:$J$20,7,FALSE) -> 0.004261363636
F18: 30+ | G18: 0.9900568182 | H18: 0.8685344828 | I18: 0.8697674419 | J18: =1-SUM(J13:J17) -> 0.995 | K18: =HLOOKUP('Format control'!$H$3,'Distribution Data'!$G$11:$J$20,8,FALSE) -> 0.9900568182
F19: Select

Sheet Model Set-up

Sheet Outcomes by GA
B6: Birth and neonatal outcomes by gestational age at birth
C8: Gestational Age | E8: Twin birth | G8: Stillbirth rate | I8: Neonatal death rate | K8: Post neonatal death rate | M8: NICU admission | O8: RDS rate | Q8: IVH rate | S8: RDS mortality rate | U8: IVH mortality rate | W8: CP rate
C10: 24 weeks | E10: ='Format control'!H50 -> 0.0022 | G10: ='Format control'!H70 -> 0 | I10: ='Format control'!H88 -> 0.4253571855 | K10: ='Format control'!H107 -> 0.07367245639 | M10: ='Format control'!H127 -> 1 | O10: ='Format control'!H165 -> 0.98 | Q10: ='Format control'!H184 -> 0.2423426573 | S10: 0.054 | U10: 0.3 | W10: ='Format control'!H146 -> 0.1181
C12: 25 weeks | E12: ='Format control'!H51 -> 0.0036 | G12: ='Format control'!H71 -> 0 | I12: ='Format control'!H89 -> 0.2579921743 | K12: ='Format control'!H108 -> 0.05243786806 | M12: ='Format control'!H128 -> 1 | O12: ='Format control'!H166 -> 0.8341538462 | Q12: ='Format control'!H185 -> 0.3306293706 | S12: 0.054 | U12: 0.3 | W12: ='Format control'!H147 -> 0.1026
C14: 26 weeks | E14: ='Format control'!H52 -> 0.0034 | G14: ='Format control'!H72 -> 0 | I14: ='Format control'!H90 -> 0.1564801637 | K14: ='Format control'!H109 -> 0.03732371828 | M14: ='Format control'!H129 -> 1 | O14: ='Format control'!H167 -> 0.7000512821 | Q14: ='Format control'!H186 -> 0.2637878788 | S14: 0.054 | U14: 0.3 | W14: ='Format control'!H148 -> 0.0883
W15: 0
C16: 27 weeks | E16: ='Format control'!H53 -> 0.005 | G16: ='Format control'!H73 -> 0 | I16: ='Format control'!H91 -> 0.09491001691 | K16: ='Format control'!H110 -> 0.026565915 | M16: ='Format control'!H130 -> 1 | O16: ='Format control'!H168 -> 0.5776923077 | Q16: ='Format control'!H187 -> 0.1565034965 | S16: 0.054 | U16: 0.3 | W16: ='Format control'!H149 -> 0.0752
W17: 0
C18: 28 weeks | E18: ='Format control'!H54 -> 0.0063 | G18: ='Format control'!H74 -> 0 | I18: ='Format control'!H92 -> 0.05756583517 | K18: ='Format control'!H111 -> 0.0189088299 | M18: ='Format control'!H131 -> 1 | O18: ='Format control'!H169 -> 0.4670769231 | Q18: ='Format control'!H188 -> 0.06965034965 | S18: 0.054 | U18: 0.3 | W18: ='Format control'!H150 -> 0.0633
C20: 29 weeks | E20: ='Format control'!H55 -> 0.0064 | G20: ='Format control'!H75 -> 0 | I20: ='Format control'!H93 -> 0.03491544398 | K20: ='Format control'!H112 -> 0.01345874396 | M20: ='Format control'!H132 -> 1 | O20: ='Format control'!H170 -> 0.3682051282 | Q20: ='Format control'!H189 -> 0.02375291375 | S20: 0.054 | U20: 0.3 | W20: ='Format control'!H151 -> 0.0526
C22: 30 weeks | E22: ='Format control'!H56 -> 0.0093 | G22: ='Format control'!H76 -> 0 | I22: ='Format control'!H94 -> 0.02117728727 | K22: ='Format control'!H113 -> 0.009579534531 | M22: ='Format control'!H133 -> 1 | O22: ='Format control'!H171 -> 0.2810769231 | Q22: ='Format control'!H190 -> 0.01244755245 | S22: 0.054 | U22: 0.3 | W22: ='Format control'!H152 -> 0.0431
C24: 31 weeks | E24: ='Format control'!H57 -> 0.0117 | G24: ='Format control'!H77 -> 0 | I24: ='Format control'!H95 -> 0.01284467402 | K24: ='Format control'!H114 -> 0.006818428385 | M24: ='Format control'!H134 -> 1 | O24: ='Format control'!H172 -> 0.2056923077 | Q24: ='Format control'!H191 -> 0.01594405594 | S24: 0.054 | U24: 0.3 | W24: ='Format control'!H153 -> 0.0348
C26: 32 weeks | E26: ='Format control'!H58 -> 0.019 | G26: ='Format control'!H78 -> 0 | I26: ='Format control'!H96 -> 0.007790688608 | K26: ='Format control'!H115 -> 0.004853154972 | M26: ='Format control'!H135 -> 1 | O26: ='Format control'!H173 -> 0.1420512821 | Q26: ='Format control'!H192 -> 0.01448717949 | S26: 0.054 | U26: 0.3 | W26: ='Format control'!H154 -> 0.0277
C28: 33 weeks | E28: ='Format control'!H59 -> 0.0272 | G28: ='Format control'!H79 -> 0 | I28: ='Format control'!H97 -> 0.004725291501 | K28: ='Format control'!H116 -> 0.003454331681 | M28: ='Format control'!H136 -> 0.7631814326 | O28: ='Format control'!H174 -> 0.09015384615 | Q28: ='Format control'!H193 -> 0.001818181831 | S28: 0.054 | U28: 0.3 | W28: ='Format control'!H155 -> 0.0218
C30: 34 weeks | E30: ='Format control'!H60 -> 0.0423 | G30: ='Format control'!H80 -> 0 | I30: ='Format control'!H98 -> 0.002866034171 | K30: ='Format control'!H117 -> 0.002458690776 | M30: ='Format control'!H137 -> 0.5788326188 | O30: ='Format control'!H175 -> 0.05 | Q30: ='Format control'!H194 -> 0 | S30: 0.054 | U30: 0.3 | W30: ='Format control'!H156 -> 0.0171
C32: 35 weeks | E32: ='Format control'!H61 -> 0.0688 | G32: ='Format control'!H81 -> 0 | I32: ='Format control'!H99 -> 0.001738337597 | K32: ='Format control'!H118 -> 0.001750023127 | M32: ='Format control'!H138 -> 0.4146216369 | O32: ='Format control'!H176 -> 0.02158974359 | Q32: ='Format control'!H195 -> 0 | S32: 0.054 | U32: 0.3 | W32: ='Format control'!H157 -> 0.0136
C34: 36 weeks | E34: ='Format control'!H62 -> 0.1304 | G34: ='Format control'!H82 -> 0 | I34: ='Format control'!H100 -> 0.001054355049 | K34: ='Format control'!H119 -> 0.001245614526 | M34: ='Format control'!H139 -> 0.2705484871 | O34: ='Format control'!H177 -> 0.004923076923 | Q34: ='Format control'!H196 -> 0 | S34: 0.054 | U34: 0.3 | W34: ='Format control'!H158 -> 0.0113
C36: 37 weeks | E36: ='Format control'!H63 -> 0.6644 | G36: ='Format control'!H83 -> 0 | I36: ='Format control'!H101 -> 0.0006394986637 | K36: ='Format control'!H120 -> 0.0008865914531 | M36: ='Format control'!H140 -> 0.1466131693 | O36: ='Format control'!H178 -> 0 | Q36: ='Format control'!H197 -> 0 | S36: 0.054 | U36: 0.3 | W36: ='Format control'!H159 -> 0.0102

Sheet Validation
B1: Variable | C1: Base value | D1: Changed value | E1: Base iNMB | F1: New iMB | G1: Expected | H1: Comment if not expected
B2: Cost of screening | C2: 142 | D2: 300 | E2: 2324 | F2: 2166 | G2: Yes
B3: Cost of treatment | C3: 0.86 | D3: 5 | E3: 2324 | F3: 2271 | G3: Yes
B4: Long term costs set to zero | E4: 2324 | F4: 2133 | G4: Yes
B5: NICU costs set to Zero | E5: 2324 | F5: 1454 | G5: Yes
B6: Relative Risk <28 weeks | C6: 0.41 | D6: 1 | E6: 2324 | F6: -34 | G6: No | H6: Lower QALY gain on treatment. The explanation is that a new best fit line is fitted for cumulative birth rates based on new relative risks, but that means that cumulative birth rates are different even where RR=1.00
B7: Reletive Risks < 32 weeks | C7: 0.56 | D7: 1 | E7: 2324 | F7: 2271 | G7: Yes
B8: Relative Risk <36 weeks | C8: 0.89 | D8: 1 | E8: 2324 | F8: 1873 | G8: Yes
B9: All Relative Risks set to 1.00 | E9: 2324 | F9: -196 | G9: Yes
B10: Counselling costs for high-risk | C10: On | D10: Off | E10: 2324 | F10: 2368 | G10: Yes

Sheet Det Results
B7: Cost-effectiveness
C9: Strategy | E9: Cost | G9: QALY | I9: ICER | K9: NMB
C11: Cervical length ≤ 25 mm | E11: 1178 | G11: 0.4468945552 | I11: N/A | K11: =G11*WTP-E11 -> 7759.891105
C13: No Screen/treatment | E13: 1694 | G13: 0.3967578667 | I13: Dominated | K13: =IF(E13="","",G13*WTP-E13) -> 6241.157333
K15: =IF(E15="","",G15*WTP-E15) -> 
C17: Incremental NMB | K17: =K11-K13 -> 1518.733771
K21: =IF(E21="","",G21*WTP-E21) -> 

Sheet Clinical Results
C9: Strategy | E9: Stillbirths | G9: Neonatal Deaths | I9: Post neonatal deaths | K9: CP | M9: IVH | O9: RDS | Q9: NICU admissions
C11: =IF('Det Results'!C11="","",'Det Results'!C11) -> Cervical length ≤ 25 mm | E11: =VLOOKUP($C11,'Clinical Lookup'!$C$10:$J$12,2,FALSE) -> 0 | G11: =VLOOKUP($C11,'Clinical Lookup'!$C$10:$J$12,3,FALSE) -> 0.001236071456 | I11: =VLOOKUP($C11,'Clinical Lookup'!$C$10:$J$12,4,FALSE) -> 0.0002993408635 | K11: =VLOOKUP($C11,'Clinical Lookup'!$C$10:$J$12,5,FALSE) -> 0.0008616002381 | M11: =VLOOKUP($C11,'Clinical Lookup'!$C$10:$J$12,6,FALSE) -> 0.0008351274948 | O11: =VLOOKUP($C11,'Clinical Lookup'!$C$10:$J$12,7,FALSE) -> 0.005425975045 | Q11: =VLOOKUP($C11,'Clinical Lookup'!$C$10:$J$12,8,FALSE) -> 0.01627973444
C13: =IF('Det Results'!C13="","",'Det Results'!C13) -> No Screen/treatment | E13: =VLOOKUP($C13,'Clinical Lookup'!$C$10:$J$12,2,FALSE) -> 0 | G13: =VLOOKUP($C13,'Clinical Lookup'!$C$10:$J$12,3,FALSE) -> 0.002329636513 | I13: =VLOOKUP($C13,'Clinical Lookup'!$C$10:$J$12,4,FALSE) -> 0.0005199036523 | K13: =VLOOKUP($C13,'Clinical Lookup'!$C$10:$J$12,5,FALSE) -> 0.001260715957 | M13: =VLOOKUP($C13,'Clinical Lookup'!$C$10:$J$12,6,FALSE) -> 0.001719653381 | O13: =VLOOKUP($C13,'Clinical Lookup'!$C$10:$J$12,7,FALSE) -> 0.008886790129 | Q13: =VLOOKUP($C13,'Clinical Lookup'!$C$10:$J$12,8,FALSE) -> 0.01789447416
C17: View Chart

Sheet Stillbirth Chart

Sheet NND chart

Sheet PND Chart

Sheet CP chart

Sheet IVH chart

Sheet RDS chart

Sheet NICU chart

Sheet CE plane data
B1: No Screen/treatment | D1: Cervical length ≤ 25 mm
A2: Simulations | B2: Cost | C2: QALY | D2: Cost | E2: QALY
A3: 1 | B3: 0 | C3: 0 | D3: -707.3898626 | E3: 0.07645514351
A4: 2 | B4: 0 | C4: 0 | D4: -266.7019456 | E4: 0.0361383265
A5: 3 | B5: 0 | C5: 0 | D5: -521.3422589 | E5: 0.05794465261
A6: 4 | B6: 0 | C6: 0 | D6: -636.9855922 | E6: 0.06289125421
A7: 5 | B7: 0 | C7: 0 | D7: -224.7763867 | E7: 0.03028509987
A8: 6 | B8: 0 | C8: 0 | D8: -416.573582 | E8: 0.04669584224
A9: 7 | B9: 0 | C9: 0 | D9: -1362.935219 | E9: 0.1189971351
A10: 8 | B10: 0 | C10: 0 | D10: -72.55955949 | E10: 0.004924853497
A11: 9 | B11: 0 | C11: 0 | D11: -203.024535 | E11: 0.0279223058
A12: 10 | B12: 0 | C12: 0 | D12: -142.5083108 | E12: 0.02619573884
A13: 11 | B13: 0 | C13: 0 | D13: -301.3726146 | E13: 0.03491753398
A14: 12 | B14: 0 | C14: 0 | D14: -368.2874898 | E14: 0.03942639388
A15: 13 | B15: 0 | C15: 0 | D15: -118.182188 | E15: 0.01955665445
A16: 14 | B16: 0 | C16: 0 | D16: -230.7290733 | E16: 0.03640571077
A17: 15 | B17: 0 | C17: 0 | D17: 30.96372955 | E17: -0.003124536466
A18: 16 | B18: 0 | C18: 0 | D18: -525.8015104 | E18: 0.05865477055
A19: 17 | B19: 0 | C19: 0 | D19: -57.09568047 | E19: 0.01264813967
A20: 18 | B20: 0 | C20: 0 | D20: -142.5057672 | E20: 0.01894441675
A21: 19 | B21: 0 | C21: 0 | D21: -18.88229928 | E21: 0.01122901165
A22: 20 | B22: 0 | C22: 0 | D22: -402.850836 | E22: 0.03837898351
A23: 21 | B23: 0 | C23: 0 | D23: -501.37912 | E23: 0.04833596789
A24: 22 | B24: 0 | C24: 0 | D24: -642.8857513 | E24: 0.06082954342
A25: 23 | B25: 0 | C25: 0 | D25: -611.4857149 | E25: 0.06525846963
A26: 24 | B26: 0 | C26: 0 | D26: -301.4859037 | E26: 0.03305919736
A27: 25 | B27: 0 | C27: 0 | D27: -199.1629402 | E27: 0.01908307922
A28: 26 | B28: 0 | C28: 0 | D28: -181.8912143 | E28: 0.02364217014
A29: 27 | B29: 0 | C29: 0 | D29: -110.1703658 | E29: 0.01810431403
A30: 28 | B30: 0 | C30: 0 | D30: -386.5986737 | E30: 0.04405117824
A31: 29 | B31: 0 | C31: 0 | D31: -288.6625909 | E31: 0.04266245675
A32: 30 | B32: 0 | C32: 0 | D32: -1148.453609 | E32: 0.1092681336
A33: 31 | B33: 0 | C33: 0 | D33: -213.0695518 | E33: 0.03194628568
A34: 32 | B34: 0 | C34: 0 | D34: -669.4262472 | E34: 0.06572724722
A35: 33 | B35: 0 | C35: 0 | D35: -182.0047179 | E35: 0.02901232272
A36: 34 | B36: 0 | C36: 0 | D36: -520.4054968 | E36: 0.0428900341
A37: 35 | B37: 0 | C37: 0 | D37: -396.4639771 | E37: 0.04017366474
A38: 36 | B38: 0 | C38: 0 | D38: -455.2521279 | E38: 0.05251361909
A39: 37 | B39: 0 | C39: 0 | D39: -284.8956264 | E39: 0.03265856991
A40: 38 | B40: 0 | C40: 0 | D40: -450.9164718 | E40: 0.03852933688
A41: 39 | B41: 0 | C41: 0 | D41: -274.4743123 | E41: 0.03548899902
A42: 40 | B42: 0 | C42: 0 | D42: -248.2852551 | E42: 0.03350657262
A43: 41 | B43: 0 | C43: 0 | D43: -537.7679688 | E43: 0.06030652286
A44: 42 | B44: 0 | C44: 0 | D44: -478.3426569 | E44: 0.04720993967
A45: 43 | B45: 0 | C45: 0 | D45: -2540.332507 | E45: 0.2036182295
A46: 44 | B46: 0 | C46: 0 | D46: -506.6114091 | E46: 0.05330280606
A47: 45 | B47: 0 | C47: 0 | D47: -717.0241375 | E47: 0.06005048602
A48: 46 | B48: 0 | C48: 0 | D48: -645.4664241 | E48: 0.08976413908
A49: 47 | B49: 0 | C49: 0 | D49: -209.0298232 | E49: 0.02829076737
A50: 48 | B50: 0 | C50: 0 | D50: -83.81350996 | E50: 0.01612985015
A51: 49 | B51: 0 | C51: 0 | D51: -662.9972311 | E51: 0.07104238627
A52: 50 | B52: 0 | C52: 0 | D52: -957.1928364 | E52: 0.0961758317
A53: 51 | B53: 0 | C53: 0 | D53: -333.74249 | E53: 0.03204760011
A54: 52 | B54: 0 | C54: 0 | D54: -210.1838759 | E54: 0.02725870992
A55: 53 | B55: 0 | C55: 0 | D55: -12.01027578 | E55: 0.0225781162
A56: 54 | B56: 0 | C56: 0 | D56: -388.492326 | E56: 0.03148494345
A57: 55 | B57: 0 | C57: 0 | D57: -440.6732034 | E57: 0.04306499677
A58: 56 | B58: 0 | C58: 0 | D58: -603.2867264 | E58: 0.0514179615
A59: 57 | B59: 0 | C59: 0 | D59: -937.7717106 | E59: 0.07814825668
A60: 58 | B60: 0 | C60: 0 | D60: -231.2799778 | E60: 0.02760845883
A61: 59 | B61: 0 | C61: 0 | D61: -241.3545234 | E61: 0.02642127503
A62: 60 | B62: 0 | C62: 0 | D62: -382.6471456 | E62: 0.04903388291
A63: 61 | B63: 0 | C63: 0 | D63: -494.2333039 | E63: 0.04494795797
A64: 62 | B64: 0 | C64: 0 | D64: -252.4507326 | E64: 0.03202286773
A65: 63 | B65: 0 | C65: 0 | D65: -941.1272993 | E65: 0.1032200215
A66: 64 | B66: 0 | C66: 0 | D66: -201.8235798 | E66: 0.03196541437
A67: 65 | B67: 0 | C67: 0 | D67: -39.06018144 | E67: 0.01252903441
A68: 66 | B68: 0 | C68: 0 | D68: -494.2290323 | E68: 0.04746885335
A69: 67 | B69: 0 | C69: 0 | D69: -220.0111793 | E69: 0.02888301357
A70: 68 | B70: 0 | C70: 0 | D70: -391.9730392 | E70: 0.04107632016
A71: 69 | B71: 0 | C71: 0 | D71: -721.1439788 | E71: 0.06784282814
A72: 70 | B72: 0 | C72: 0 | D72: -225.3934951 | E72: 0.02932220242
A73: 71 | B73: 0 | C73: 0 | D73: -711.2011152 | E73: 0.07540834982
A74: 72 | B74: 0 | C74: 0 | D74: -534.8408575 | E74: 0.0633657938
A75: 73 | B75: 0 | C75: 0 | D75: -393.4308295 | E75: 0.05644437526
A76: 74 | B76: 0 | C76: 0 | D76: -359.6835999 | E76: 0.03331809092
A77: 75 | B77: 0 | C77: 0 | D77: -983.7271656 | E77: 0.09148278821
A78: 76 | B78: 0 | C78: 0 | D78: -180.4440647 | E78: 0.02178967856
A79: 77 | B79: 0 | C79: 0 | D79: -33.70401315 | E79: 0.03010333659
A80: 78 | B80: 0 | C80: 0 | D80: -380.7081889 | E80: 0.04158080582
A81: 79 | B81: 0 | C81: 0 | D81: -495.7725238 | E81: 0.04350867607
A82: 80 | B82: 0 | C82: 0 | D82: -446.5994822 | E82: 0.04661377658
A83: 81 | B83: 0 | C83: 0 | D83: -987.653788 | E83: 0.08239498565
A84: 82 | B84: 0 | C84: 0 | D84: -164.0439101 | E84: 0.02209145092
A85: 83 | B85: 0 | C85: 0 | D85: -494.8179129 | E85: 0.04546420848
A86: 84 | B86: 0 | C86: 0 | D86: -287.4730819 | E86: 0.04357087793
A87: 85 | B87: 0 | C87: 0 | D87: -374.9038183 | E87: 0.05365118942
A88: 86 | B88: 0 | C88: 0 | D88: -610.3952563 | E88: 0.05376423804
A89: 87 | B89: 0 | C89: 0 | D89: -279.9272522 | E89: 0.02589718768
A90: 88 | B90: 0 | C90: 0 | D90: -577.550049 | E90: 0.06551800077
A91: 89 | B91: 0 | C91: 0 | D91: -889.8603272 | E91: 0.1049927654
A92: 90 | B92: 0 | C92: 0 | D92: -78.04281451 | E92: 0.008918761123
A93: 91 | B93: 0 | C93: 0 | D93: -186.3461677 | E93: 0.02651123493
A94: 92 | B94: 0 | C94: 0 | D94: -425.9804141 | E94: 0.04462949963
A95: 93 | B95: 0 | C95: 0 | D95: -402.9845748 | E95: 0.0404681542
A96: 94 | B96: 0 | C96: 0 | D96: -262.5738272 | E96: 0.03107336868
A97: 95 | B97: 0 | C97: 0 | D97: -978.8068997 | E97: 0.09877673639
A98: 96 | B98: 0 | C98: 0 | D98: -179.9567216 | E98: 0.03515827095
A99: 97 | B99: 0 | C99: 0 | D99: -148.4409225 | E99: 0.02060407941
A100: 98 | B100: 0 | C100: 0 | D100: -392.1620129 | E100: 0.04893022165
A101: 99 | B101: 0 | C101: 0 | D101: -933.4249346 | E101: 0.08396018339
A102: 100 | B102: 0 | C102: 0 | D102: -723.6750146 | E102: 0.07491776157
A103: 101 | B103: 0 | C103: 0 | D103: -280.1407921 | E103: 0.04461534748
A104: 102 | B104: 0 | C104: 0 | D104: -487.3032829 | E104: 0.05527803337
A105: 103 | B105: 0 | C105: 0 | D105: -645.9418435 | E105: 0.06493096351
A106: 104 | B106: 0 | C106: 0 | D106: -777.079024 | E106: 0.07285537386
A107: 105 | B107: 0 | C107: 0 | D107: -383.3376284 | E107: 0.05446517388
A108: 106 | B108: 0 | C108: 0 | D108: -824.3273847 | E108: 0.06357483704
A109: 107 | B109: 0 | C109: 0 | D109: -500.8561808 | E109: 0.04747729238
A110: 108 | B110: 0 | C110: 0 | D110: -528.3812814 | E110: 0.05782865682
A111: 109 | B111: 0 | C111: 0 | D111: -906.4030641 | E111: 0.08026550292
A112: 110 | B112: 0 | C112: 0 | D112: -387.5240696 | E112: 0.03228940815
A113: 111 | B113: 0 | C113: 0 | D113: -430.6853131 | E113: 0.04116568868
A114: 112 | B114: 0 | C114: 0 | D114: -106.6710172 | E114: 0.02036833197
A115: 113 | B115: 0 | C115: 0 | D115: -383.6519289 | E115: 0.05347480691
A116: 114 | B116: 0 | C116: 0 | D116: -459.9195455 | E116: 0.05287401346
A117: 115 | B117: 0 | C117: 0 | D117: -287.5106238 | E117: 0.0356426382
A118: 116 | B118: 0 | C118: 0 | D118: -264.5138963 | E118: 0.03197677347
A119: 117 | B119: 0 | C119: 0 | D119: -638.902025 | E119: 0.0655487231
A120: 118 | B120: 0 | C120: 0 | D120: -274.7261644 | E120: 0.02940938711
A121: 119 | B121: 0 | C121: 0 | D121: -871.7039603 | E121: 0.08106249535
A122: 120 | B122: 0 | C122: 0 | D122: -613.7974681 | E122: 0.06306637268
A123: 121 | B123: 0 | C123: 0 | D123: -669.9568038 | E123: 0.07337136645
A124: 122 | B124: 0 | C124: 0 | D124: -257.0394843 | E124: 0.0447069679
A125: 123 | B125: 0 | C125: 0 | D125: -1078.780848 | E125: 0.100725467
A126: 124 | B126: 0 | C126: 0 | D126: -280.3393894 | E126: 0.03276671878
A127: 125 | B127: 0 | C127: 0 | D127: -21.23150457 | E127: 0.01260638169
A128: 126 | B128: 0 | C128: 0 | D128: -532.9030618 | E128: 0.06665140205
A129: 127 | B129: 0 | C129: 0 | D129: -207.0625804 | E129: 0.02984026678
A130: 128 | B130: 0 | C130: 0 | D130: -312.6051482 | E130: 0.04431392407
A131: 129 | B131: 0 | C131: 0 | D131: -459.4999916 | E131: 0.04692435054
A132: 130 | B132: 0 | C132: 0 | D132: -210.07592 | E132: 0.02113941457
A133: 131 | B133: 0 | C133: 0 | D133: -421.9644609 | E133: 0.05106036552
A134: 132 | B134: 0 | C134: 0 | D134: -65.83970672 | E134: 0.01519707571
A135: 133 | B135: 0 | C135: 0 | D135: -240.9252721 | E135: 0.02217660012
A136: 134 | B136: 0 | C136: 0 | D136: -798.4234887 | E136: 0.06686444975
A137: 135 | B137: 0 | C137: 0 | D137: -413.8768848 | E137: 0.05866988124
A138: 136 | B138: 0 | C138: 0 | D138: -686.3270348 | E138: 0.07928657835
A139: 137 | B139: 0 | C139: 0 | D139: -151.9441595 | E139: 0.01945335816
A140: 138 | B140: 0 | C140: 0 | D140: -275.8018492 | E140: 0.05402073413
A141: 139 | B141: 0 | C141: 0 | D141: -730.5377735 | E141: 0.07455346685
A142: 140 | B142: 0 | C142: 0 | D142: -166.7846452 | E142: 0.03001300481
A143: 141 | B143: 0 | C143: 0 | D143: -456.6819283 | E143: 0.04417409111
A144: 142 | B144: 0 | C144: 0 | D144: -732.5129 | E144: 0.07947716024
A145: 143 | B145: 0 | C145: 0 | D145: -718.6451065 | E145: 0.06088466859
A146: 144 | B146: 0 | C146: 0 | D146: -549.7863755 | E146: 0.052614274
A147: 145 | B147: 0 | C147: 0 | D147: -816.7021008 | E147: 0.086936726
A148: 146 | B148: 0 | C148: 0 | D148: -742.3982146 | E148: 0.06491762801
A149: 147 | B149: 0 | C149: 0 | D149: -256.7393774 | E149: 0.02876458064
A150: 148 | B150: 0 | C150: 0 | D150: -701.2968846 | E150: 0.06954298237
A151: 149 | B151: 0 | C151: 0 | D151: -5.826014197 | E151: 0.01536692847
A152: 150 | B152: 0 | C152: 0 | D152: -356.8785494 | E152: 0.03477397594
A153: 151 | B153: 0 | C153: 0 | D153: -821.2381485 | E153: 0.08079059336
A154: 152 | B154: 0 | C154: 0 | D154: -1066.306876 | E154: 0.09303734498
A155: 153 | B155: 0 | C155: 0 | D155: -1117.517439 | E155: 0.08495089823
A156: 154 | B156: 0 | C156: 0 | D156: -115.2140433 | E156: 0.01494897602
A157: 155 | B157: 0 | C157: 0 | D157: -137.2010799 | E157: 0.02090222509
A158: 156 | B158: 0 | C158: 0 | D158: -712.6281411 | E158: 0.05896618269
A159: 157 | B159: 0 | C159: 0 | D159: -159.3445682 | E159: 0.02753950148
A160: 158 | B160: 0 | C160: 0 | D160: -552.9844801 | E160: 0.06303003095
A161: 159 | B161: 0 | C161: 0 | D161: -689.6492253 | E161: 0.07030182857
A162: 160 | B162: 0 | C162: 0 | D162: -298.8535921 | E162: 0.02980116564
A163: 161 | B163: 0 | C163: 0 | D163: -401.0585603 | E163: 0.03981126999
A164: 162 | B164: 0 | C164: 0 | D164: -316.6766377 | E164: 0.04420636234
A165: 163 | B165: 0 | C165: 0 | D165: -979.7840934 | E165: 0.08749936636
A166: 164 | B166: 0 | C166: 0 | D166: -248.7837982 | E166: 0.03104443244
A167: 165 | B167: 0 | C167: 0 | D167: 157.6699704 | E167: -0.02117591774
A168: 166 | B168: 0 | C168: 0 | D168: -385.8935385 | E168: 0.04233215672
A169: 167 | B169: 0 | C169: 0 | D169: -68.04428593 | E169: 0.01356407573
A170: 168 | B170: 0 | C170: 0 | D170: -380.2887706 | E170: 0.04564165879
A171: 169 | B171: 0 | C171: 0 | D171: -879.5748547 | E171: 0.08489696215
A172: 170 | B172: 0 | C172: 0 | D172: -336.8760413 | E172: 0.02958956008
A173: 171 | B173: 0 | C173: 0 | D173: -501.412975 | E173: 0.0561495876
A174: 172 | B174: 0 | C174: 0 | D174: -459.4197442 | E174: 0.05711777516
A175: 173 | B175: 0 | C175: 0 | D175: -778.9721941 | E175: 0.06834168215
A176: 174 | B176: 0 | C176: 0 | D176: -720.2121111 | E176: 0.07706543559
A177: 175 | B177: 0 | C177: 0 | D177: -1272.259621 | E177: 0.1082368247
A178: 176 | B178: 0 | C178: 0 | D178: -625.739257 | E178: 0.05865428453
A179: 177 | B179: 0 | C179: 0 | D179: -778.9503062 | E179: 0.0829234942
A180: 178 | B180: 0 | C180: 0 | D180: -324.6618557 | E180: 0.03036418916
A181: 179 | B181: 0 | C181: 0 | D181: -473.867336 | E181: 0.04889076061
A182: 180 | B182: 0 | C182: 0 | D182: -761.0123646 | E182: 0.07137319538
A183: 181 | B183: 0 | C183: 0 | D183: -382.1150738 | E183: 0.04650011933
A184: 182 | B184: 0 | C184: 0 | D184: -179.0200288 | E184: 0.03307952699
A185: 183 | B185: 0 | C185: 0 | D185: -1059.711759 | E185: 0.07534321486
A186: 184 | B186: 0 | C186: 0 | D186: -682.5542446 | E186: 0.06105712924
A187: 185 | B187: 0 | C187: 0 | D187: -1247.052153 | E187: 0.1141771436
A188: 186 | B188: 0 | C188: 0 | D188: -883.9897884 | E188: 0.08342761002
A189: 187 | B189: 0 | C189: 0 | D189: -185.910013 | E189: 0.03107856489
A190: 188 | B190: 0 | C190: 0 | D190: -328.3748009 | E190: 0.04250996924
A191: 189 | B191: 0 | C191: 0 | D191: -297.8325125 | E191: 0.0299818326
A192: 190 | B192: 0 | C192: 0 | D192: -662.5140927 | E192: 0.05371460932
A193: 191 | B193: 0 | C193: 0 | D193: 23.78893145 | E193: 0.01229380275
A194: 192 | B194: 0 | C194: 0 | D194: -540.8698597 | E194: 0.05057617907
A195: 193 | B195: 0 | C195: 0 | D195: -192.971024 | E195: 0.02821219412
A196: 194 | B196: 0 | C196: 0 | D196: -224.0785371 | E196: 0.02650034934
A197: 195 | B197: 0 | C197: 0 | D197: -262.2358723 | E197: 0.02384772777
A198: 196 | B198: 0 | C198: 0 | D198: -256.68555 | E198: 0.02715128957
A199: 197 | B199: 0 | C199: 0 | D199: -573.6850942 | E199: 0.06122547058
A200: 198 | B200: 0 | C200: 0 | D200: -746.9802621 | E200: 0.07582776372
... 802 more rows

Sheet Plane CE threshold
B2: QALYs | C2: Cost
B3: =MIN('CE plane data'!E3:E10002) -> -0.02117591774 | C3: =WTP*B3 -> -423.5183549
B4: 0 | C4: =WTP*B4 -> 0
B5: =MAX('CE plane data'!E3:E10002) -> 0.2036182295 | C5: =WTP*B5 -> 4072.36459

Sheet CE plane

Sheet CEAC output
A1: WTP | B1: No Screen/treatment | C1: Cervical length ≤ 25 mm
A2: 0 | B2: 0.011 | C2: 0.989
A3: 1000 | B3: 0.011 | C3: 0.989
A4: 2000 | B4: 0.009 | C4: 0.991
A5: 3000 | B5: 0.009 | C5: 0.991
A6: 4000 | B6: 0.008 | C6: 0.992
A7: 5000 | B7: 0.008 | C7: 0.992
A8: 6000 | B8: 0.007 | C8: 0.993
A9: 7000 | B9: 0.007 | C9: 0.993
A10: 8000 | B10: 0.007 | C10: 0.993
A11: 9000 | B11: 0.007 | C11: 0.993
A12: 10000 | B12: 0.007 | C12: 0.993
A13: 11000 | B13: 0.006 | C13: 0.994
A14: 12000 | B14: 0.006 | C14: 0.994
A15: 13000 | B15: 0.006 | C15: 0.994
A16: 14000 | B16: 0.006 | C16: 0.994
A17: 15000 | B17: 0.006 | C17: 0.994
A18: 16000 | B18: 0.006 | C18: 0.994
A19: 17000 | B19: 0.006 | C19: 0.994
A20: 18000 | B20: 0.006 | C20: 0.994
A21: 19000 | B21: 0.006 | C21: 0.994
A22: 20000 | B22: 0.006 | C22: 0.994
A23: 21000 | B23: 0.006 | C23: 0.994
A24: 22000 | B24: 0.006 | C24: 0.994
A25: 23000 | B25: 0.006 | C25: 0.994
A26: 24000 | B26: 0.006 | C26: 0.994
A27: 25000 | B27: 0.006 | C27: 0.994
A28: 26000 | B28: 0.006 | C28: 0.994
A29: 27000 | B29: 0.006 | C29: 0.994
A30: 28000 | B30: 0.006 | C30: 0.994
A31: 29000 | B31: 0.006 | C31: 0.994
A32: 30000 | B32: 0.006 | C32: 0.994
A33: 31000 | B33: 0.006 | C33: 0.994
A34: 32000 | B34: 0.006 | C34: 0.994
A35: 33000 | B35: 0.006 | C35: 0.994
A36: 34000 | B36: 0.006 | C36: 0.994
A37: 35000 | B37: 0.006 | C37: 0.994
A38: 36000 | B38: 0.006 | C38: 0.994
A39: 37000 | B39: 0.006 | C39: 0.994
A40: 38000 | B40: 0.006 | C40: 0.994
A41: 39000 | B41: 0.006 | C41: 0.994
A42: 40000 | B42: 0.006 | C42: 0.994
A43: 41000 | B43: 0.006 | C43: 0.994
A44: 42000 | B44: 0.006 | C44: 0.994
A45: 43000 | B45: 0.006 | C45: 0.994
A46: 44000 | B46: 0.006 | C46: 0.994
A47: 45000 | B47: 0.006 | C47: 0.994
A48: 46000 | B48: 0.006 | C48: 0.994
A49: 47000 | B49: 0.006 | C49: 0.994
A50: 48000 | B50: 0.006 | C50: 0.994
A51: 49000 | B51: 0.006 | C51: 0.994
A52: 50000 | B52: 0.006 | C52: 0.994
A53: 51000 | B53: 0.006 | C53: 0.994
A54: 52000 | B54: 0.006 | C54: 0.994
A55: 53000 | B55: 0.006 | C55: 0.994
A56: 54000 | B56: 0.006 | C56: 0.994
A57: 55000 | B57: 0.006 | C57: 0.994
A58: 56000 | B58: 0.006 | C58: 0.994
A59: 57000 | B59: 0.006 | C59: 0.994
A60: 58000 | B60: 0.006 | C60: 0.994
A61: 59000 | B61: 0.006 | C61: 0.994
A62: 60000 | B62: 0.006 | C62: 0.994
A63: 61000 | B63: 0.006 | C63: 0.994
A64: 62000 | B64: 0.006 | C64: 0.994
A65: 63000 | B65: 0.006 | C65: 0.994
A66: 64000 | B66: 0.006 | C66: 0.994
A67: 65000 | B67: 0.006 | C67: 0.994
A68: 66000 | B68: 0.006 | C68: 0.994
A69: 67000 | B69: 0.006 | C69: 0.994
A70: 68000 | B70: 0.006 | C70: 0.994
A71: 69000 | B71: 0.006 | C71: 0.994
A72: 70000 | B72: 0.006 | C72: 0.994
A73: 71000 | B73: 0.006 | C73: 0.994
A74: 72000 | B74: 0.006 | C74: 0.994
A75: 73000 | B75: 0.006 | C75: 0.994
A76: 74000 | B76: 0.006 | C76: 0.994
A77: 75000 | B77: 0.006 | C77: 0.994
A78: 76000 | B78: 0.006 | C78: 0.994
A79: 77000 | B79: 0.006 | C79: 0.994
A80: 78000 | B80: 0.006 | C80: 0.994
A81: 79000 | B81: 0.006 | C81: 0.994
A82: 80000 | B82: 0.006 | C82: 0.994
A83: 81000 | B83: 0.006 | C83: 0.994
A84: 82000 | B84: 0.006 | C84: 0.994
A85: 83000 | B85: 0.006 | C85: 0.994
A86: 84000 | B86: 0.006 | C86: 0.994
A87: 85000 | B87: 0.006 | C87: 0.994
A88: 86000 | B88: 0.006 | C88: 0.994
A89: 87000 | B89: 0.006 | C89: 0.994
A90: 88000 | B90: 0.006 | C90: 0.994
A91: 89000 | B91: 0.006 | C91: 0.994
A92: 90000 | B92: 0.006 | C92: 0.994
A93: 91000 | B93: 0.006 | C93: 0.994
A94: 92000 | B94: 0.006 | C94: 0.994
A95: 93000 | B95: 0.006 | C95: 0.994
A96: 94000 | B96: 0.006 | C96: 0.994
A97: 95000 | B97: 0.006 | C97: 0.994
A98: 96000 | B98: 0.006 | C98: 0.994
A99: 97000 | B99: 0.006 | C99: 0.994
A100: 98000 | B100: 0.006 | C100: 0.994
A101: 99000 | B101: 0.006 | C101: 0.994
A102: 100000 | B102: 0.006 | C102: 0.994

Sheet CEAC Chart

Sheet PSA Results
B7: Probabilistic analysis
C9: Strategy | E9: Incremental Costs | G9: Incremental QALYs | I9: Mean iNMB | K9: Probability Cost-effective
C11: No Screen/treatment | E11: 0 | G11: 0 | I11: £0 (£0 to £0) | K11: 0.006
C13: Cervical length ≤ 25 mm | E13: -480.997 | G13: 0.04960838779 | I13: £1472 (£1424 to £1520) | K13: 0.994
C28: Simulations | E28: 1000

Sheet Cost Data sources
B2: NICU
B4: Service Code | C4: Service Description | D4: Currency Code | E4: Currency Description | F4: Bed days | G4: National Average Unit Cost | H4: Total Costs | I4: No. Data Submissions | M4: National Average Unit Cost | N4: Std Error
B5: CCU13 | C5: Neonatal Intensive Care Unit (Neonatal critical care PATIENTS predominate) | D5: XA01Z | E5: Neonatal Critical Care, Intensive Care | F5: 122138 | G5: 1811.086993 | H5: 221202543.1 | I5: 116 | M5: =G5 -> 1811.086993 | N5: 71.75
B6: CCU13 | C6: Neonatal Intensive Care Unit (Neonatal critical care PATIENTS predominate) | D6: XA02Z | E6: Neonatal Critical Care, High Dependency | F6: 154214 | G6: 1226.321462 | H6: 189115937.9 | I6: 115 | M6: =G6 -> 1226.321462 | N6: 39.48
B7: CCU13 | C7: Neonatal Intensive Care Unit (Neonatal critical care PATIENTS predominate) | D7: XA03Z | E7: Neonatal Critical Care, Special Care, without External Carer | F7: 343462 | G7: 934.1904003 | H7: 320858903.3 | I7: 116 | M7: =G7 -> 934.1904003 | N7: 32.8
B8: CCU13 | C8: Neonatal Intensive Care Unit (Neonatal critical care PATIENTS predominate) | D8: XA04Z | E8: Neonatal Critical Care, Special Care, with External Carer | F8: 93933 | G8: 649.7134543 | H8: 61029533.9 | I8: 106 | M8: =G8 -> 649.7134543 | N8: 26.38
B9: CCU13 | C9: Neonatal Intensive Care Unit (Neonatal critical care PATIENTS predominate) | D9: XA05Z | E9: Neonatal Critical Care, Normal Care | F9: 68937 | G9: 684.2936269 | H9: 47173149.76 | I9: 111 | M9: =G9 -> 684.2936269 | N9: 27.44
E11: Weighted SCBU | G11: =SUMPRODUCT(F7:F8,G7:G8)/SUM(F7:F8) -> 873.0973997 | M11: =G11 -> 873.0973997 | N11: =F23 -> 29.77328463
E13: N | F13: Data | G13: Weight (w) | H13: Cost ( c ) | I13: SD | J13: Var | K13: Weighted Cost | L13: Var x (FCE-1)
B14: NICU LOS | E14: 1 | F14: =I7 -> 116 | G14: =I7/(I7+I8) -> 0.5225225225 | H14: =G7 -> 934.1904003 | I14: =N7 -> 32.8 | J14: =I14^2 -> 1075.84 | K14: =G14*H14 -> 488.1355245 | L14: =J14*(F14-1) -> 123721.6
B15: Statistics about neonatal care | Bliss | E15: 2 | F15: =I8 -> 106 | G15: =1-G14 -> 0.4774774775 | H15: =G8 -> 649.7134543 | I15: =N8 -> 26.38 | J15: =I15^2 -> 695.9044 | K15: =G15*H15 -> 310.2235412 | L15: =J15*(F15-1) -> 73069.962
F16: =SUM(F14:F15) -> 222 | G16: =SUM(G14:G15) -> 1 | K16: =SUM(K14:K15) -> 798.3590657 | L16: =SUM(L14:L15) -> 196791.562
E18: Pooled SD
E20: Numerator | F20: =L16 -> 196791.562
E21: Denominator | F21: =F16 -> 222
E23: SD | F23: =SQRT(F20/F21) -> 29.77328463
B26: Khan 2015 | H26: HCHS | J26: Inflation factor | M26: 2015/16 | N26: 2016/17
B27: Table S4. Mean economic costs of late and moderate preterm and term infants from initial hospital discharge to 24 months | H27: Year | I27: PPI | L27: Cerebral Palsy | M27: 83853 | N27: =M27*$J$36 -> 85349.36667
C28: moderate | D28: late | E28: late & moderate | F28: full term | H28: 2007/08 | I28: 257 | J28: =$I$37/I28 -> 1.176264591 | L28: IVH | M28: 25156 | N28: =M28*$J$36 -> 25604.91178
B29: NHS & PSS costs | C29: 32-33 weeks | D29: 34-36 weeks | E29: 32-36 weeks | F29: >=37 weeks | H29: 2008/09 | I29: 267 | J29: =$I$37/I29 -> 1.132209738 | L29: RDS | M29: 3935 | N29: =M29*$J$36 -> 4005.220539
C30: cost year 2011 | H30: 2009/10 | I30: 268.6 | J30: 1.125465376
B31: Post discharge to 6 months | C31: 1350.93 | D31: 1072.56 | E31: 1107.95 | F31: 773.32 | H31: 2010/11 | I31: 276.7 | J31: 1.092518974
B32: 6 to 12 months | C32: 808.64 | D32: 795.95 | E32: 797.72 | F32: 682.1 | H32: 2011/12 | I32: 282.5 | J32: 1.070088496
B33: 12 to 24 months | C33: 424.22 | D33: 885.81 | E33: 819.87 | F33: 289.08 | H33: 2012/13 | I33: 287.3 | J33: 1.052210233
C34: cost year 2016/17 | H34: 2013/14 | I34: 290.5 | J34: 1.040619621
B35: Post discharge to 6 months | C35: =C31*$J$31 -> 1475.916657 | D35: =D31*$J$31 -> 1171.79215 | E35: 1210.456397 | F35: 844.8667727 | H35: 2014/15 | I35: 293.1 | J35: 1.031388605
B36: 6 to 12 months | C36: 883.4545428 | D36: 869.5904771 | E36: 871.5242356 | F36: 745.2071919 | H36: 2015/16 | I36: 297 | J36: 1.017845118
B37: 12 to 24 months | C37: 463.468399 | D37: =D33*$J$31 -> 967.764232 | E37: 895.7235309 | F37: 315.8253849 | H37: 2016/17 | I37: 302.3 | J37: 1
B39: Updated from 2016/17 to 2021/22 using Khan Multiplier | H39: See Khan Multiplier
C41: 0-6mths | D41: 6-12mths | E41: 12-24mths
B42: Pre-term | C42: 1476 | D42: 883 | E42: 463
B43: Term | C43: 845 | D43: 745 | E43: 316 | H43: Proportion of 24-36 weeks who are 24-34 weeks
H44: Survive neonatal period
C45: 0-6mths | D45: 6-12mths | E45: 12-24mths | H45: % Births | I45: 24-34 | J45: 34-36
B46: Pre-term | C46: =C42*Multiplier_Khan -> 1633.34612 | D46: 977.1305041 | E46: 512.3572179 | H46: Survive neonatal period | I46: =SUM('Survival GA'!I6:S6)/SUM('Survival GA'!I6:U6) -> 0.3994439802 | J46: =1-I46 -> 0.6005560198
B47: Term | C47: 935.0795877 | D47: 824.4192815 | E47: 349.6865677 | H47: Survive 1-year | I47: =SUM('Survival GA'!I7:S7)/SUM('Survival GA'!I7:U7) -> 0.397755452 | J47: =1-I47 -> 0.602244548
B50: Assumptions
B51: All babies who survive neonatal period incur 0-6 month costs
B52: Only infants who survive to 1-year incur 6-12 month and 12-24 month costs
B54: National NHS Cost Collection 2021-22
B55: Currency Code | C55: Currency Description | D55: Service Code | E55: Service Description | F55: Procedures | G55: National Average Unit Cost | H55: Total Costs | I55: No. Data Submissions | M55: National Average Unit Cost | N55: Std Error
B56: MA36Z | C56: Transvaginal Ultrasound | D56: 501 | E56: Obstetrics Service | F56: 2648 | G56: 141.7006509 | H56: 375223.3236 | I56: 54 | M56: =G56 -> 141.7006509 | N56: 16.65
B57: MA36Z | C57: Transvaginal Ultrasound | D57: 502 | E57: Gynaecology Service | F57: 275570 | G57: 235.6032287 | H57: 64925181.74 | I57: 111 | M57: =G57 -> 235.6032287 | N57: 7.13
B58: MA36Z | C58: Transvaginal Ultrasound | D58: 812 | E58: DIAGNOSTIC IMAGING SERVICE | F58: 43571 | G58: 60.88272032 | H58: 2652721.007 | I58: 20 | M58: =G58 -> 60.88272032 | N58: 10.9
B60: Department Code | C60: Department Description | D60: Service Code | E60: Service Description | F60: Currency Code | G60: Currency Description | H60: Number of Attendances | I60: National Average Unit Cost | J60: No. Data Submissions | M60: National Average Unit Cost | N60: Std Dev
B61: CL | C61: Consultant Led | D61: 560 | E61: MIDWIFERY SERVICE | F61: WF01A | G61: Non-Admitted Face-to-Face Attendance, Follow-up | H61: 463416 | I61: 88.3222849 | J61: 60 | M61: =I61 -> 88.3222849 | N61: 9.14
B63: Department Code | C63: Department Description | D63: Service Code | E63: Service Description | F63: Currency Code | G63: Currency Description | H63: Number of Attendances | I63: National Average Unit Cost | J63: No. Data Submissions | M63: National Average Unit Cost | N63: Std Dev
B64: CL | C64: Consultant Led | D64: 501 | E64: Obstetrics Service | F64: WF01A | G64: Non-Admitted Face-to-Face Attendance, Follow-up | H64: 1361997 | I64: 202.4778243 | J64: 120 | M64: =I64 -> 202.4778243 | N64: 11.52
B66: Currency Code | C66: Currency Description | D66: Service Code | E66: Service Description | F66: Procedures | G66: National Average Unit Cost | H66: Total Costs | I66: No. Data Submissions | M66: National Average Unit Cost | N66: Std Dev
B67: NZ21Z | C67: Ante-Natal Standard Routine Ultrasound Scan | D67: 560 | E67: MIDWIFERY SERVICE | F67: 179266 | G67: 137.0146001 | H67: 24562059.3 | I67: 57 | M67: =G67 -> 137.0146001 | N67: 24.35
B69: Department Code | C69: Department Description | D69: Service Code | E69: Service Description | F69: Currency Code | G69: Currency Description | H69: Number of Attendances | I69: National Average Unit Cost | J69: No. Data Submissions | M69: National Average Unit Cost | N69: Std Dev
B70: NCL | C70: Non Consultant Led | D70: 501 | E70: Obstetrics Service | F70: WF01A | G70: Non-Admitted Face-to-Face Attendance, Follow-up | H70: 501813 | I70: 122.5591581 | J70: 80 | M70: =I70 -> 122.5591581 | N70: 13.73
E74: Treatment cost - accessed 07/12/2023
E75: Medicinal forms | Progesterone | Drugs | BNF | NICE
E77: Progesterone cost per day | F77: =8.95/15 -> 0.5966666667
B84: Cost of Neonatal death | C84: 3457
B86: Cerebral palsy
B88: Cerebral Palsy Care and Treatment Costs (cerebralpalsyguide.com) | F88: 1300000
B89: Lifetime costs of cerebral palsy - PubMed (nih.gov) | F89: 800000
B90: PReCePT – preventing Cerebral Palsy in preterm babies - Imperial College Health Partners
B92: Kruse updated
B93: Year | C93: Cost
B94: 2016/17 | C94: 85349
B95: 2021/22 | C95: =C94*Multiplier_Kruse -> 94447.46477
E98: Multiplier based on NHSCII pay and prices
E99: =1.0125*1.0162*1.0218*1.0247*1.0272 -> 1.106603062 | F99: Kruse
E100: =1.011*1.009*1.0039*1.0206*1.0125*1.0162*1.0218*1.0247*1.0272 -> 1.156592063 | F100: Marti
E101: =1.009*1.0039*1.0206*1.0125*1.0162*1.0218*1.0247*1.0272 -> 1.144007976 | F101: Campbell
E102: =1.0125*1.0162*1.0218*1.0247*1.0272 -> 1.106603062 | F102: Khan
B118: RDS
B120: Marti updated | C120: One-year resource utilisation, costs and quality of life in patients with acute respiratory distress syndrome (ARDS): secondary analysis of a randomised controlled trial (whiterose.ac.uk)
B122: Year | C122: Cost
B123: 2012 | C123: 3935
B124: 2021/22 | C124: =C123*Multiplier_Marti -> 4551.189769
B127: IVH assume 30% the cost of CP as per previous GL, NG25 and Twin birth costing report
B129: Year | C129: Cost
B130: 2021/22 | C130: =0.3*C95 -> 28334.23943
B133: Stillbirths | C133: Healthcare and wider societal implications of stillbirth: a population‐based cost‐of‐illness study - Campbell - 2018 - BJOG: An International Journal of Obstetrics & Gynaecology - Wiley Online Library
B135: Campbell updated
B137: Year | C137: Cost
B138: 2013/14 | C138: 4191
B139: 2021/22 | C139: =C138*Multiplier_Campbell -> 4794.537426
B141: In SA assume same cost for NND as Stillbirth
B145: Discharge Costs - Khan 2015 | C145: Economic costs associated with moderate and late preterm birth: a prospective population‐based study - Khan - 2015 - BJOG: An International Journal of Obstetrics & Gynaecology - Wiley Online Library
B147: Update from Twin Birth Costing Report
B148: 2015-16 Year

Sheet Estimates of twin births by GA
A5: GA | B5: Kato | C5: Kindiger smooth | D5: Murray smooth | E5: Nicolaides smooth | F5: Kato Smooth | G5: Franca 2018 | H5: Bun cheung 2001 | I5: Liem Modifier
A6: 24 | B6: 0.0022 | C6: 0.01361947993 | D6: =(($L$26*A6^3)+($M$26*A6^2)+($N$26*A6)+$O$26) -> 0.04430641822 | E6: -0.003532189819 | F6: 0.003411330043 | G6: 0 | H6: 0 | I6: 0.0004360547952
A7: 25 | B7: 0.0058 | C7: 0.04007390251 | D7: =(($L$26*A7^3)+($M$26*A7^2)+($N$26*A7)+$O$26) -> 0.07098173907 | E7: 0.006283976892 | F7: 0.005051241623 | G7: 0 | H7: 0 | I7: 0.0006340973367
A8: 26 | B8: 0.0092 | C8: 0.07551988636 | D8: 0.08547689663 | E8: 0.02133975969 | F8: 0.00747949967 | G8: 0 | H8: 0 | I8: 0.0006374280412
A9: 27 | B9: 0.0142 | C9: 0.1171533491 | D9: 0.09324282499 | E9: 0.03586017796 | F9: 0.01107508203 | G9: -2.273736754e-13 | H9: 0.0009259117421 | I9: 0.0007390560303
A10: 28 | B10: 0.0205 | C10: 0.1632095075 | D10: 0.09973045822 | E10: 0.04703311471 | F10: 0.01639915066 | G10: 0.02327540107 | H10: 0.03344016007 | I10: 0.0009452557768
A11: 29 | B11: 0.0269 | C11: 0.2129628771 | D11: 0.1103907304 | E11: 0.05500931655 | F11: 0.02428263209 | G11: 0.05699584076 | H11: 0.06404655414 | I11: 0.0009584750188
A12: 30 | B12: 0.0362 | C12: 0.2667272727 | D12: 0.1306745756 | E12: 0.06290239374 | F12: 0.03595590001 | G12: 0.09 | H12: 0.08306176748 | I12: 0.001485741051
A13: 31 | B13: 0.0479 | C13: 0.3258558081 | D13: 0.166032928 | E13: 0.07678882014 | F13: 0.05324079947 | G13: 0.1189197861 | H13: 0.08983804011 | I13: 0.0020117644
A14: 32 | B14: 0.0669 | C14: 0.3927408958 | D14: 0.2219167215 | E14: 0.1057079333 | F14: 0.07883498193 | G14: 0.1481803327 | H14: 0.09276317857 | I14: 0.004106909644
A15: 33 | B15: 0.0941 | C15: 0.4708142479 | D15: 0.3037768903 | E15: 0.1616619342 | F15: 0.1167329274 | G15: 0.19 | H15: 0.1092605559 | I15: 0.00704003618
A16: 34 | B16: 0.1364 | C16: 0.564546875 | D16: 0.4170643685 | E16: 0.2596158878 | F16: 0.172849362 | G16: 0.2643903743 | H16: 0.1657891115 | I16: 0.02731993261
A17: 35 | B17: 0.2052 | C17: 0.679449087 | D17: 0.5672300901 | E17: 0.4174977222 | F17: 0.2559423687 | G17: 0.3991562686 | H17: 0.2978433515 | I17: 0.09198457329
A18: 36 | B18: 0.3356 | C18: 0.8220704927 | D18: 0.7597249893 | E18: 0.6561982296 | F18: 0.3789802598 | G18: 0.6298957219 | H18: 0.5499533484 | I18: 0.2175585701
A19: 37 | B19: 1 | C19: 1 | D19: 1 | E19: 1 | F19: 1 | G19: 1 | H19: 0.9756847412 | I19: 1
B22: Gestational age at delivery of twins and perinatal outcomes: a cohort study in Aberdeen, Scotland. - PMC (nih.gov)
B24: Murray 2016
B26: GA | E26: GA | I26: GA | L26: =LINEST(J27:J30,I27:I30^{1,2,3}) -> 0.0009084890135 | M26: -0.07422675766 | N26: 2.027597733 | O26: -18.42237888
B27: 24-32 | C27: 740 | E27: 24-32 | F27: 740 | G27: =F27/$C$32 -> 0.09973045822 | I27: 23 | J27: 0
B28: 33-36 | C28: 2875 | E28: 33-36 | F28: 2875 | G28: =F28/$C$32 -> 0.3874663073 | I28: 28 | J28: 0.09973045822
B29: 37-38 | C29: 2363 | E29: 37 | F29: =C29+C30 -> 3805 | G29: =F29/$C$32 -> 0.5128032345 | I29: 34.5 | J29: =G28+J28 -> 0.4871967655
B30: 39 | C30: 1442 | I30: 37 | J30: =G29+J29 -> 1
C32: =SUM(C27:C31) -> 7420
B43: Nicolaides 2016 | D43: Cervical pessary placement for prevention of preterm birth in unselected twin pregnancies: a randomized controlled trial (fetalmedicine.org)
O45: Using control group
B46: GA
B47: 24 | C47: =(($P$61*B47^4)+($Q$61*B47^3)+($R$61*B47^2)+($S$61*B47)+$T$61) -> -0.003532189819
B48: 25 | C48: =(($P$61*B48^4)+($Q$61*B48^3)+($R$61*B48^2)+($S$61*B48)+$T$61) -> 0.006283976892 | O48: 23 | P48: 0
B49: 26 | C49: 0.02133975969 | O49: 26 | P49: 0.025
B50: 27 | C50: 0.03586017796 | O50: 29 | P50: 0.044
B51: 28 | C51: 0.04703311471 | O51: 31 | P51: 0.09
B52: 29 | C52: 0.05500931655 | O52: 33 | P52: 0.156
B53: 30 | C53: 0.06290239374 | O53: 37 | P53: 1
B54: 31 | C54: 0.07678882014
B55: 32 | C55: 0.1057079333
B56: 33 | C56: 0.1616619342
B57: 34 | C57: 0.2596158878
B58: 35 | C58: 0.4174977222
B59: 36 | C59: 0.6561982296
B60: 37 | C60: 0.9995710656
P61: =LINEST(P48:P53,O48:O53^{1,2,3,4}) -> 0.000123452651 | Q61: -0.01355466717 | R61: 0.5561489519 | S61: -10.09459196 | T61: 68.34597084
B64: Graph uncertain
B66: GA | O66: From graph
B67: 24 | O67: 23 | P67: 0
B68: 25 | O68: 23.5 | P68: 0.04
B69: 26 | O69: 29.5 | P69: 0.1
B70: 27 | O70: 33.5 | P70: 0.35
B71: 28 | O71: 36 | P71: 0.48
B72: 29 | O72: 37 | P72: 1
B73: 30
B74: 31
B75: 32
B76: 33
B77: 34
B78: 35
B79: 36
B80: 37
C88: Kato Smoothed
C90: GA | D90: Kato
C91: 24 | D91: 0.0022 | E91: =$J$105*EXP($J$106*C91) -> 0.003411330043
C92: 25 | D92: 0.0058 | E92: =$J$105*EXP($J$106*C92) -> 0.005051241623
C93: 26 | D93: 0.0092 | E93: 0.00747949967
C94: 27 | D94: 0.0142 | E94: 0.01107508203
C95: 28 | D95: 0.0205 | E95: 0.01639915066
C96: 29 | D96: 0.0269 | E96: 0.02428263209
C97: 30 | D97: 0.0362 | E97: 0.03595590001
C98: 31 | D98: 0.0479 | E98: 0.05324079947
C99: 32 | D99: 0.0669 | E99: 0.07883498193
C100: 33 | D100: 0.0941 | E100: 0.1167329274
C101: 34 | D101: 0.1364 | E101: 0.172849362
C102: 35 | D102: 0.2052 | E102: 0.2559423687
C103: 36 | D103: 0.3356 | E103: 0.3789802598
C104: 37 | D104: 1 | E104: 0.5611655391
J105: 2.764e-07
J106: 0.3925318218 | L106: =EXP(J106*C91) -> 12342.0045 | M106: =L106*J105 -> 0.003411330043
C111: Franca 2018 | F111: Preterm Birth in Twins | IntechOpen
C113: 24 | D113: 0
C114: 25 | D114: 0 | L114: GA | M114: Cum
C115: 26 | D115: 0 | L115: 27 | M115: 0
C116: 27 | D116: =(($N$131*C116^4)+($O$131*C116^3)+($P$131*C116^2)+($Q$131*C116)+$R$131) -> -2.273736754e-13 | L116: 30 | M116: 0.09
C117: 28 | D117: 0.02327540107 | L117: 33 | M117: 0.19
C118: 29 | D118: 0.05699584076 | L118: 35.5 | M118: 0.5
C119: 30 | D119: 0.09 | L119: 37 | M119: 1
C120: 31 | D120: 0.1189197861
C121: 32 | D121: 0.1481803327
C122: 33 | D122: 0.19
C123: 34 | D123: 0.2643903743
C124: 35 | D124: 0.3991562686
C125: 36 | D125: 0.6298957219
C126: 37 | D126: 1
N131: =LINEST(M115:M119,L115:L119^{1,2,3,4}) -> 0.0003247177659 | O131: -0.03887804516 | P131: 1.743181224 | Q131: -34.65879635 | R131: 257.6766176
C133: Bun cheung 2001
C135: 24 | D135: 0
C136: 25 | D136: 0 | O136: 25 | P136: 0
C137: 26 | D137: 0 | O137: 26 | P137: 0.01
C138: 27 | D138: =(($O$153*C138^4)+($P$153*C138^3)+($Q$153*C138^2)+($R$153*C138)+$S$153) -> 0.0009259117421 | O138: 28 | P138: 0.03
C139: 28 | D139: =(($O$153*C139^4)+($P$153*C139^3)+($Q$153*C139^2)+($R$153*C139)+$S$153) -> 0.03344016007 | O139: 30 | P139: 0.06
C140: 29 | D140: 0.06404655414 | O140: 32 | P140: 0.1
C141: 30 | D141: 0.08306176748 | O141: 34 | P141: 0.2
C142: 31 | D142: 0.08983804011 | O142: 36 | P142: 0.5
C143: 32 | D143: 0.09276317857 | O143: 37 | P143: 1
C144: 33 | D144: 0.1092605559
C145: 34 | D145: 0.1657891115
C146: 35 | D146: 0.2978433515
C147: 36 | D147: 0.5499533484
C148: 37 | D148: 0.9756847412
O153: =LINEST(P136:P143,O136:O143^{1,2,3,4}) -> 0.0003764819374 | P153: -0.0445328286 | Q153: 1.96845616 | R153: -38.51653088 | S153: 281.4044471
C167: GA | D167: Birth | E167: Continuing pregnancy
C168: 23 | D168: 0 | E168: =1-D168 -> 1
C169: 24 | D169: 0.0022 | E169: =1-D169 -> 0.9978
C170: 25 | D170: 0.0058 | E170: 0.9942
C171: 26 | D171: 0.0092 | E171: 0.9908
C172: 27 | D172: 0.0142 | E172: 0.9858
C173: 28 | D173: 0.0205 | E173: 0.9795
C174: 29 | D174: 0.0269 | E174: 0.9731
C175: 30 | D175: 0.0362 | E175: 0.9638
C176: 31 | D176: 0.0479 | E176: 0.9521
C177: 32 | D177: 0.0669 | E177: 0.9331
C178: 33 | D178: 0.0941 | E178: 0.9059
C179: 34 | D179: 0.1364 | E179: 0.8636
C180: 35 | D180: 0.2052 | E180: 0.7948
C181: 36 | D181: 0.3356 | E181: 0.6644
C182: 37 | D182: 1 | E182: 0
C187: Liem Modifier
F191: Kato and Souka distributions and modified Kindinger
C192: GA | D192: Kato | G192: 5 | H192: 10 | I192: 15 | J192: 20 | K192: 25 | L192: >25 | N192: Souka | P192: GA | Q192: Liem Modifier | T192: 23 | U192: 0
C193: 24 | D193: 0.0022 | F193: 24 | G193: 0.0001083624073 | H193: 0.0007222168983 | I193: 0.0003207868772 | J193: 0.0004696571801 | K193: 0.0003223538477 | L193: 0.0002566227895 | N193: =SUM(G193:L193) -> 0.0022 | P193: 24 | Q193: =(G193*$J$211)+(H193*$J$212)+(I193*$J$213)+(J193*$J$214)+(K193*$J$215)+(L193*$J$216) -> 0.0004360547952 | T193: 24 | U193: =Q193 -> 0.0004360547952
C194: 25 | D194: 0.0058 | F194: 25 | G194: 0.000170601401 | H194: 0.001149215354 | I194: 0.0005315222254 | J194: 0.0008163885681 | K194: 0.0005871353187 | L194: 0.0003451371326 | N194: =SUM(G194:L194) -> 0.0036 | P194: 25 | Q194: =(G194*$J$211)+(H194*$J$212)+(I194*$J$213)+(J194*$J$214)+(K194*$J$215)+(L194*$J$216) -> 0.0006340973367 | T194: 25 | U194: =Q194-Q193 -> 0.0001980425415
C195: 26 | D195: 0.0092 | F195: 26 | G195: 0.000170601401 | H195: 0.001149215354 | I195: 0.0005315222254 | J195: 0.0008224783522 | K195: 0.0006141883799 | L195: 0.0003451371326 | N195: 0.003633142845 | P195: 26 | Q195: 0.0006374280412 | T195: 26 | U195: =Q195-Q194 -> 3.330704554e-06
C196: 27 | D196: 0.0142 | F196: 27 | G196: 0.0002213050744 | H196: 0.00151340594 | I196: 0.0007452769417 | J196: 0.001227653268 | K196: 0.0009469028566 | L196: 0.0003454559195 | N196: 0.005 | P196: 27 | Q196: 0.0007390560303 | T196: 27 | U196: 0.000101627989
C197: 28 | D197: 0.0205 | F197: 28 | G197: 0.0002675226996 | H197: 0.001838445433 | I197: 0.0009280333326 | J197: 0.001570703713 | K197: 0.001247561714 | L197: 0.0004477331074 | N197: 0.0063 | P197: 28 | Q197: 0.0009452557768 | T197: 28 | U197: 0.0002061997466
C198: 29 | D198: 0.0269 | F198: 29 | G198: 0.0002675226996 | H198: 0.001838445433 | I198: 0.0009418542484 | J198: 0.001632600954 | K198: 0.001333142909 | L198: 0.0004477331074 | N198: 0.006461299351 | P198: 29 | Q198: 0.0009584750188 | T198: 29 | U198: 1.321924203e-05
C199: 30 | D199: 0.0362 | F199: 30 | G199: 0.0003661703291 | H199: 0.002530292519 | I199: 0.001329664019 | J199: 0.002355111848 | K199: 0.001975696151 | L199: 0.0007430651334 | N199: 0.0093 | P199: 30 | Q199: 0.001485741051 | T199: 30 | U199: 0.0005272660317
C200: 31 | D200: 0.0479 | F200: 31 | G200: 0.0004422293883 | H200: 0.003059109723 | I200: 0.001634244802 | J200: 0.002953037992 | K200: 0.002544592582 | L200: 0.001066785513 | N200: 0.0117 | P200: 31 | Q200: 0.0020117644 | T200: 31 | U200: 0.0005260233492
C201: 32 | D201: 0.0669 | F201: 32 | G201: 0.0006675010734 | H201: 0.004618840214 | I201: 0.002503629004 | J201: 0.004610312827 | K201: 0.004081032856 | L201: 0.002518684027 | N201: 0.019 | P201: 32 | Q201: 0.004106909644 | T201: 32 | U201: 0.002095145244
C202: 33 | D202: 0.0941 | F202: 33 | G202: 0.0008888480534 | H202: 0.006150337928 | I202: 0.003377062515 | J202: 0.006332531337 | K202: 0.005759024943 | L202: 0.004692195224 | N202: 0.0272 | P202: 33 | Q202: 0.00704003618 | T202: 33 | U202: 0.002933126536
C203: 34 | D203: 0.1364 | F203: 34 | G203: 0.004539534884 | H203: 0.03141860465 | I203: 0.01745116279 | J203: 0.03330232558 | K203: 0.03110697674 | L203: 0.0161614927 | N203: 0.1339800973 | P203: 34 | Q203: 0.02731993261 | T203: 34 | U203: 0.02027989643
C204: 35 | D204: 0.2052 | F204: 35 | G204: 0.004572198732 | H204: 0.03168598611 | I204: 0.01778252578 | J204: 0.03451126548 | K204: 0.03307413384 | L204: 0.07268984857 | N204: 0.1943159585 | P204: 35 | Q204: 0.09198457329 | T204: 35 | U204: 0.06466464067
C205: 36 | D205: 0.3356 | F205: 36 | G205: 0.004601140139 | H205: 0.0319948807 | I205: 0.01812517582 | J205: 0.03573802477 | K205: 0.03505742762 | L205: 0.1827236587 | N205: 0.3082403078 | P205: 36 | Q205: 0.2175585701 | T205: 36 | U205: 0.1255739968
C206: 37 | D206: 1 | F206: 37 | G206: 0.004651162791 | H206: 0.03255813953 | I206: 0.01860465116 | J206: 0.03720930233 | K206: 0.03720930233 | L206: 0.8697674419 | N206: 1 | P206: 37 | Q206: 1 | T206: 37 | U206: 0.7824414299
U208: =SUM(U192:U207) -> 1
G210: Liem | H210: Souka | J210: Liem multiplier
F211: CL5 | G211: =CL5_weight -> 0.001420454545 | H211: 0.004651162791 | J211: =G211/H211 -> 0.3053977273
F212: CL10 | G212: =CL10_weight -> 0.001420454545 | H212: 0.03255813953 | J212: =G212/H212 -> 0.04362824675
F213: CL15 | G213: =CL15_weight -> 0.001420454545 | H213: 0.01860465116 | J213: 0.07634943182
F214: CL20 | G214: =CL20_weight -> 0.001420454545 | H214: 0.03720930233 | J214: 0.03817471591
F215: CL25 | G215: =CL25_weight -> 0.004261363636 | H215: 0.03720930233 | J215: 0.1145241477
F216: CL30 | G216: =CL30_weight -> 0.9900568182 | H216: 0.8697674419 | J216: 1.13830062

Sheet Still birth data
A1: Worksheet 14: Maternities with multiple births by whether live births or stillbirths, multiplicity, age of mother and sex, England and Wales, 2021 [note 21]
A2: This worksheet contains one table.
A3: Some cells refer to notes which can be found on the notes worksheet.
A4: Notes
A5: Source: Office for National Statistics
A6: Age of mother at birth | B6: Multiplicity | C6: Maternities Total | D6: Live births Total | E6: Live births Male | F6: Live births Female | G6: Stillbirths Total | H6: Stillbirths Male | I6: Stillbirths Female
A7: All ages | B7: Twins | C7: 8367 | D7: 16614 | E7: 8339 | F7: 8275 | G7: 120 | H7: 58 | I7: 62
A10: Overall stillbirth rate | B10: =G7/(D7+G7) -> 0.007171029043
A14: Worksheet 8: Births by gestational age at birth and ethnicity of live births, England and Wales, 2021 [note 17] [note 18]
A16: Gestational age at birth (weeks) | B16: Total live births | C16: Total stillbirths
A17: All gestational ages | B17: 624162 | C17: 2579
A18: Under 22 weeks and birthweight less than 1,000 grams | B18: 423 | C18: 0 | E18: Baseline births based on smoothed weighted Kindinger data
A19: 22 weeks | B19: 185 | C19: 0
A20: 23 weeks | B20: 267 | C20: 0 | F20: Raw data | G20: Smoothed | H20: Baseline births | I20: Stillbirths
A21: 24 weeks | B21: 344 | C21: 246 | E21: 24 | F21: =C21/(B21+C21) -> 0.4169491525 | G21: =($K$36*E21^4)+($L$36*E21^3)+($M$36*E21^2)+($N$36*E21)+$O$36 -> 0.4254275881 | H21: 0.01361947993 | I21: =G21*H21 -> 0.005794102497
A22: 25 weeks | B22: 393 | C22: 205 | E22: 25 | F22: =C22/(B22+C22) -> 0.3428093645 | G22: =($K$36*E22^4)+($L$36*E22^3)+($M$36*E22^2)+($N$36*E22)+$O$36 -> 0.3206237242 | H22: 0.02645442258 | I22: =G22*H22 -> 0.008481915489
A23: 26 weeks | B23: 587 | C23: 184 | E23: 26 | F23: 0.2386511025 | G23: 0.2410106947 | H23: 0.03544598386 | I23: 0.008542861192
A24: 27 weeks | B24: 675 | C24: 115 | E24: 27 | F24: 0.1455696203 | G24: 0.1814606705 | H24: 0.04163346277 | I24: 0.007554836069
A25: 28 weeks | B25: 817 | C25: 159 | E25: 28 | F25: 0.1629098361 | G25: 0.1374617366 | H25: 0.04605615836 | I25: 0.006330959508
A26: 29 weeks | B26: 946 | C26: 120 | E26: 29 | F26: 0.1125703565 | G26: 0.1051178918 | H26: 0.04975336963 | I26: 0.005229969327
A27: 30 weeks | B27: 1285 | C27: 96 | E27: 30 | F27: 0.06951484432 | G27: 0.08114904912 | H27: 0.05376439561 | I27: 0.00436292958
A28: 31 weeks | B28: 1650 | C28: 121 | E28: 31 | F28: 0.06832298137 | G28: 0.06289103527 | H28: 0.05912853532 | I28: 0.0037186548
A29: 32 weeks | B29: 2514 | C29: 125 | E29: 32 | F29: 0.04736642668 | G29: 0.04829559108 | H29: 0.0668850878 | I29: 0.00323025485
A30: 33 weeks | B30: 3367 | C30: 119 | E30: 33 | F30: 0.03413654618 | G30: 0.03593037137 | H30: 0.07807335205 | I30: 0.002805204533
A31: 34 weeks | B31: 5823 | C31: 151 | E31: 34 | F31: 0.02527619685 | G31: 0.02497894489 | H31: 0.0937326271 | I31: 0.002341342127
A32: 35 weeks | B32: 8566 | C32: 125 | E32: 35 | F32: 0.01438269474 | G32: 0.01524079438 | H32: 0.114902212 | I32: 0.001751200987
A33: 36 weeks | B33: 19307 | C33: 172 | E33: 36 | F33: 0.008830022075 | G33: 0.007131316561 | H33: 0.1426214057 | I33: 0.001017078392
A34: 37 weeks | B34: 54700 | C34: 169 | E34: 37 | F34: =SUM(C34:C39)/(SUM(B34:B39)+SUM(C34:C39)) -> 0.001112086117 | G34: 0.001681822122 | H34: 0.1779295073 | I34: 0.0002992457815
A35: 38 weeks | B35: 96852 | C35: 150 | K35: x4 | L35: x3 | M35: x2 | N35: x1 | O35: constant
A36: 39 weeks | B36: 187254 | C36: 130 | H36: =SUM(H21:H35) -> 1 | I36: =SUM(I21:I35) -> 0.06146055513 | K36: =LINEST(F21:F34,E21:E34^{1,2,3,4}) -> 2.566308231e-05 | L36: -0.003472272572 | M36: 0.1767536384 | N36: -4.022415973 | O36: 34.63961648
A37: 40 weeks | B37: 145019 | C37: 117
A38: 41 weeks | B38: 79552 | C38: 58 | E38: Rate of stillbirths for multiple births, by grouped week gestation, England and Wales, 2013 and 2014
A39: 42 weeks and above | B39: 11478 | C39: 16
F40: Weeks gestation | H40: 2013 | I40: 2014
F41: 24–27 | H41: 77.9 | I41: 108.4
B42: =SUM(B34:B39) -> 574855 | C42: =C17/B17 -> 0.004131940105 | F42: 28–31 | H42: 35.7 | I42: 32.3
F43: 32–36 | H43: 7.6 | I43: 8.5
F44: 37+ | H44: 2.8 | I44: 2.8
F45: N/S | H45: 0 | I45: 22
E46: Figures are birth registrations that have been linked to a birth notification record (known as the NN4B linked dataset). These figures will not, therefore, match births reported in other ONS outputs.
K50: x4 | L50: x3 | M50: x2 | N50: x1 | O50: constant
F51: 25.5 | G51: 0.1084 | K51: =LINEST(G51:G54,F51:F54^{1,2,3,4}) -> -3.04535519e-06 | L51: 0.0002824833435 | M51: -0.007388428688 | N51: 0 | O51: 1.516416003
F52: 29.5 | G52: 0.0323
F53: 34 | G53: 0.0085
F54: 37 | G54: 0.0028
J55: MBRRACE-UK_Twin_Pregnancies_Confidential_Enquiry.pdf (ox.ac.uk)
E57: Based on smoothed ONS 2014 Stillbirth data
F59: Smoothed | G59: Baseline births | H59: Stillbirths
E60: 24 | F60: =($K$51*E60^4)+($L$51*E60^3)+($M$51*E60^2)+($N$51*E60)+$O$51 -> 0.1553550558 | G60: 0.01361947993 | H60: =F60*G60 -> 0.002115855063
E61: 25 | F61: =($K$51*E61^4)+($L$51*E61^3)+($M$51*E61^2)+($N$51*E61)+$O$51 -> 0.1228584442 | G61: 0.02645442258 | H61: =F61*G61 -> 0.0032501492
E62: 26 | F62: 0.09511122208 | G62: 0.03544598386 | H62: 0.003371310842
E63: 27 | F63: 0.07194453219 | G63: 0.04163346277 | H63: 0.002995300003
E64: 28 | F64: 0.05311642867 | G64: 0.04605615836 | H64: 0.00244633865
E65: 29 | F65: 0.03831187715 | G65: 0.04975336963 | H65: 0.001906144985
E66: 30 | F66: 0.02714275473 | G66: 0.05376439561 | H66: 0.001459313803
E67: 31 | F67: 0.01914785001 | G67: 0.05912853532 | H67: 0.001132184325
E68: 32 | F68: 0.01379286304 | G68: 0.0668850878 | H68: 0.0009225368553
E69: 33 | F69: 0.01047040537 | G69: 0.07807335205 | H69: 0.0008174596443
E70: 34 | F70: 0.0085 | G70: 0.0937326271 | H70: 0.0007967273304
E71: 35 | F71: 0.007128081428 | G71: 0.114902212 | H71: 0.0008190323233
E72: 36 | F72: 0.005527995615 | G72: 0.1426214057 | H72: 0.0007884105054
E73: 37 | F73: 0.0028 | G73: 0.1779295073 | H73: 0.0004982026205
G75: =SUM(G60:G74) -> 1 | H75: =SUM(H60:H74) -> 0.02331896615
E78: Estimated still births in Kindinger smoothed data CL = 40mm
F80: Raw data | G80: Smoothed | H80: Baseline births | I80: Stillbirths | K80: 40mm cum | L80: 40mm weekly
E81: 24 | F81: =C21/(B21+C21) -> 0.4169491525 | G81: =($K$36*E81^4)+($L$36*E81^3)+($M$36*E81^2)+($N$36*E81)+$O$36 -> 0.4254275881 | H81: 0.01057397959 | I81: =G81*H81 -> 0.004498462635 | K81: 0.01057397959 | L81: =K81 -> 0.01057397959
E82: 25 | F82: 0.3428093645 | G82: 0.3206237242 | H82: 0.02325301484 | I82: =G82*H82 -> 0.007455468217 | K82: 0.03382699443 | L82: =K82-K81 -> 0.02325301484
E83: 26 | F83: 0.2386511025 | G83: 0.2410106947 | H83: 0.03217300557 | I83: 0.007754038421 | K83: 0.066 | L83: =K83-K82 -> 0.03217300557
E84: 27 | F84: 0.1455696203 | G84: 0.1814606705 | H84: 0.03839935065 | I84: 0.006967971915 | K84: 0.1043993506 | L84: 0.03839935065
E85: 28 | F85: 0.1629098361 | G85: 0.1374617366 | H85: 0.04299744898 | I85: 0.005910504005 | K85: 0.1473967996 | L85: 0.04299744898
E86: 29 | F86: 0.1125703565 | G86: 0.1051178918 | H86: 0.04703269944 | I86: 0.004943978213 | K86: 0.1944294991 | L86: 0.04703269944
E87: 30 | F87: 0.06951484432 | G87: 0.08114904912 | H87: 0.05157050093 | I87: 0.004184897113 | K87: 0.246 | L87: 0.05157050093
E88: 31 | F88: 0.06832298137 | G88: 0.06289103527 | H88: 0.05767625232 | I88: 0.003627319219 | K88: 0.3036762523 | L88: 0.05767625232
E89: 32 | F89: 0.04736642668 | G89: 0.04829559108 | H89: 0.0664153525 | I89: 0.003207568706 | K89: 0.3700916048 | L89: 0.0664153525
E90: 33 | F90: 0.03413654618 | G90: 0.03593037137 | H90: 0.07885320037 | I90: 0.002833224773 | K90: 0.4489448052 | L90: 0.07885320037
E91: 34 | F91: 0.02527619685 | G91: 0.02497894489 | H91: 0.09605519481 | I91: 0.002399357417 | K91: 0.545 | L91: 0.09605519481
E92: 35 | F92: 0.01438269474 | G92: 0.01524079438 | H92: 0.1190867347 | I92: 0.001814976437 | K92: 0.6640867347 | L92: 0.1190867347
E93: 36 | F93: 0.008830022075 | G93: 0.007131316561 | H93: 0.1490132189 | I93: 0.001062660436 | K93: 0.8130999536 | L93: 0.1490132189
E94: 37 | F94: 0.003080063424 | G94: 0.001681822122 | H94: 0.1869000464 | I94: 0.0003143326326 | K94: 1 | L94: 0.1869000464
I96: =SUM(I81:I95) -> 0.05697476014 | L96: =SUM(L81:L95) -> 1
K99: x4 | L99: x3 | M99: x2 | N99: x1 | O99: constant
F100: 25.5 | G100: 0.0779 | K100: =LINEST(G100:G103,F100:F103^{1,2,3,4}) -> -1.036389681e-07 | L100: 2.286053708e-05 | M100: -0.0009788948697 | N100: 0 | O100: 0.3791884042
F101: 29.5 | G101: 0.0357
F102: 34 | G102: 0.0076
F103: 37 | G103: 0.0028
E106: Based on smoothed ONS 2013 Stillbirth data
F108: Smoothed | G108: Baseline births | H108: Stillbirths
E109: 24 | F109: =($K$100*E109^4)+($L$100*E109^3)+($M$100*E109^2)+($N$100*E109)+$O$100 -> 0.09698410154 | G109: 0.01361947993 | H109: =F109*G109 -> 0.001320873024 | J109: 0.1553550558 | K109: 0.4254275881
E110: 25 | F110: =($K$100*E110^4)+($L$100*E110^3)+($M$100*E110^2)+($N$100*E110)+$O$100 -> 0.08409103056 | G110: 0.02645442258 | H110: =F110*G110 -> 0.002224579658 | J110: 0.1228584442 | K110: 0.3206237242
E111: 26 | F111: 0.07189175087 | G111: 0.03544598386 | H111: 0.002548273841 | J111: 0.09511122208 | K111: 0.2410106947
E112: 27 | F112: 0.06045999864 | G112: 0.04163346277 | H112: 0.002517159102 | J112: 0.07194453219 | K112: 0.1814606705
E113: 28 | F113: 0.0498670227 | G113: 0.04605615836 | H113: 0.002296683494 | J113: 0.05311642867 | K113: 0.1374617366
E114: 29 | F114: 0.04018158456 | G114: 0.04975336963 | H114: 0.001999169229 | J114: 0.03831187715 | K114: 0.1051178918
E115: 30 | F115: 0.03146995838 | G115: 0.05376439561 | H115: 0.001691963292 | J115: 0.02714275473 | K115: 0.08114904912
E116: 31 | F116: 0.02379593101 | G116: 0.05912853532 | H116: 0.001407018547 | J116: 0.01914785001 | K116: 0.06289103527
E117: 32 | F117: 0.01722080194 | G117: 0.0668850878 | H117: 0.00115181485 | J117: 0.01379286304 | K117: 0.04829559108
E118: 33 | F118: 0.01180338332 | G118: 0.07807335205 | H118: 0.0009215297017 | J118: 0.01047040537 | K118: 0.03593037137
E119: 34 | F119: 0.0076 | G119: 0.0937326271 | H119: 0.000712367966 | J119: 0.0085 | K119: 0.02497894489
E120: 35 | F120: 0.004664489456 | G120: 0.114902212 | H120: 0.0005359601562 | J120: 0.007128081428 | K120: 0.01524079438
E121: 36 | F121: 0.003048201848 | G121: 0.1426214057 | H121: 0.0004347388325 | J121: 0.005527995615 | K121: 0.007131316561
E122: 37 | F122: 0.0028 | G122: 0.1779295073 | H122: 0.0004982026205 | J122: 0.0028 | K122: 0.001681822122
G124: =SUM(G109:G123) -> 1 | H124: =SUM(H109:H123) -> 0.02026033431
E126: Baseline births based on Kato and stillbirths ONS 2021
F128: Raw data | G128: Smoothed | H128: Baseline births | I128: Stillbirths
E129: 24 | F129: 0.4169491525 | G129: 0.4254275881 | H129: 0.0022 | I129: =G129*H129 -> 0.0009359406939
E130: 25 | F130: 0.3428093645 | G130: 0.3206237242 | H130: 0.0058 | I130: =G130*H130 -> 0.0018596176
E131: 26 | F131: 0.2386511025 | G131: 0.2410106947 | H131: 0.0092 | I131: 0.002217298391
E132: 27 | F132: 0.1455696203 | G132: 0.1814606705 | H132: 0.0142 | I132: 0.002576741521
E133: 28 | F133: 0.1629098361 | G133: 0.1374617366 | H133: 0.0205 | I133: 0.0028179656
E134: 29 | F134: 0.1125703565 | G134: 0.1051178918 | H134: 0.0269 | I134: 0.002827671291
E135: 30 | F135: 0.06951484432 | G135: 0.08114904912 | H135: 0.0362 | I135: 0.002937595578
E136: 31 | F136: 0.06832298137 | G136: 0.06289103527 | H136: 0.0479 | I136: 0.003012480589
E137: 32 | F137: 0.04736642668 | G137: 0.04829559108 | H137: 0.0669 | I137: 0.003230975044
E138: 33 | F138: 0.03413654618 | G138: 0.03593037137 | H138: 0.0941 | I138: 0.003381047946
E139: 34 | F139: 0.02527619685 | G139: 0.02497894489 | H139: 0.1364 | I139: 0.003407128083
E140: 35 | F140: 0.01438269474 | G140: 0.01524079438 | H140: 0.2052 | I140: 0.003127411007
E141: 36 | F141: 0.008830022075 | G141: 0.007131316561 | H141: 0.3356 | I141: 0.002393269838
E142: 37 | F142: 0.001112086117 | G142: 0.001681822122 | H142: 0.6644 | I142: 0.001117402618
I144: =SUM(I129:I143) -> 0.0358425458
E146: Baseline births based on Kato and stillbirths ONS 2013
F148: Smoothed | G148: Baseline births | H148: Stillbirths
E149: 24 | F149: =($K$100*E149^4)+($L$100*E149^3)+($M$100*E149^2)+($N$100*E149)+$O$100 -> 0.09698410154 | G149: 0.0022 | H149: =F149*G149 -> 0.0002133650234
E150: 25 | F150: =($K$100*E150^4)+($L$100*E150^3)+($M$100*E150^2)+($N$100*E150)+$O$100 -> 0.08409103056 | G150: 0.0058 | H150: =F150*G150 -> 0.0004877279773
E151: 26 | F151: 0.07189175087 | G151: 0.0092 | H151: 0.000661404108
E152: 27 | F152: 0.06045999864 | G152: 0.0142 | H152: 0.0008585319806
E153: 28 | F153: 0.0498670227 | G153: 0.0205 | H153: 0.001022273965
E154: 29 | F154: 0.04018158456 | G154: 0.0269 | H154: 0.001080884625
E155: 30 | F155: 0.03146995838 | G155: 0.0362 | H155: 0.001139212493
E156: 31 | F156: 0.02379593101 | G156: 0.0479 | H156: 0.001139825095
E157: 32 | F157: 0.01722080194 | G157: 0.0669 | H157: 0.00115207165
E158: 33 | F158: 0.01180338332 | G158: 0.0941 | H158: 0.001110698371
E159: 34 | F159: 0.0076 | G159: 0.1364 | H159: 0.00103664
E160: 35 | F160: 0.004664489456 | G160: 0.2052 | H160: 0.0009571532363
E161: 36 | F161: 0.003048201848 | G161: 0.3356 | H161: 0.00102297654
E162: 37 | F162: 0.0028 | G162: 0.6644 | H162: 0.00186032
H164: =SUM(H149:H163) -> 0.01374308507
B168: GA | C168: 2013 | D168: 2014 | E168: 2021 | F168: NG137
B169: 24 | C169: 0.09698410154 | D169: 0.1553550558 | E169: 0.4254275881 | F169: 0.3564
B170: 25 | C170: 0.08409103056 | D170: 0.1228584442 | E170: 0.3206237242 | F170: 0.3187
B171: 26 | C171: 0.07189175087 | D171: 0.09511122208 | E171: 0.2410106947 | F171: 0.2381
B172: 27 | C172: 0.06045999864 | D172: 0.07194453219 | E172: 0.1814606705 | F172: 0.1677
B173: 28 | C173: 0.0498670227 | D173: 0.05311642867 | E173: 0.1374617366 | F173: 0.1414
B174: 29 | C174: 0.04018158456 | D174: 0.03831187715 | E174: 0.1051178918 | F174: 0.1086
B175: 30 | C175: 0.03146995838 | D175: 0.02714275473 | E175: 0.08114904912 | F175: 0.0623
B176: 31 | C176: 0.02379593101 | D176: 0.01914785001 | E176: 0.06289103527 | F176: 0.065
B177: 32 | C177: 0.01722080194 | D177: 0.01379286304 | E177: 0.04829559108 | F177: 0.0526
B178: 33 | C178: 0.01180338332 | D178: 0.01047040537 | E178: 0.03593037137 | F178: 0.0324
B179: 34 | C179: 0.0076 | D179: 0.0085 | E179: 0.02497894489 | F179: 0.0204
B180: 35 | C180: 0.004664489456 | D180: 0.007128081428 | E180: 0.01524079438 | F180: 0.0146
B181: 36 | C181: 0.003048201848 | D181: 0.005527995615 | E181: 0.007131316561 | F181: 0.0093
B182: 37 | C182: 0.0028 | D182: 0.0028 | E182: 0.001681822122 | F182: 0.0035
C187: USE ONS stillbirth data as produces best match for twin stillbirth data
C188: Use Kindinger smoothing to estimate baseline distribution of birth by GA for cervical length less than 25 mm
C189: Use Kato smoothing to estimate distribution of births by GA for cervical length >25mm
C190: Merge 30mm CL, 35mm CL and 40mm CL into one category

Sheet NND data
C1: ONS 2017 | D1: ONS 2017 (smoothed) | E1: ONS 2020 Smoothed
B2: GA | C2: NND rate 2017 | D2: NND rate 2017b | E2: NND rate 2020
B3: 24 | C3: 0.1985 | D3: =($E$20*B3^5)+($F$20*B3^4)+($G$20*B3^3)+($H$20*B3^2)+($I$20*B3)+$J$20 -> 0.1959060814 | E3: =69228.92*EXP(-0.5*B3) -> 0.4253571855
B4: 25 | C4: 0.1151 | D4: =($E$20*B4^5)+($F$20*B4^4)+($G$20*B4^3)+($H$20*B4^2)+($I$20*B4)+$J$20 -> 0.1226356479 | E4: =69228.92*EXP(-0.5*B4) -> 0.2579921743
B5: 26 | C5: 0.082 | D5: 0.0787297775 | E5: 0.1564801637
B6: 27 | C6: 0.0596 | D6: 0.05340453448 | E6: 0.09491001691
B7: 28 | C7: 0.038 | D7: 0.03891147336 | E7: 0.05756583517
B8: 29 | C8: 0.0238 | D8: 0.03005658366 | E8: 0.03491544398
B9: 30 | C9: 0.0245 | D9: 0.02371923494 | E9: 0.02117728727
B10: 31 | C10: 0.0191 | D10: 0.01837112176 | E10: 0.01284467402
B11: 32 | C11: 0.0158 | D11: 0.01359520866 | E11: 0.007790688608
B12: 33 | C12: 0.0084 | D12: 0.009604675201 | E12: 0.004725291501
B13: 34 | C13: 0.0075 | D13: 0.006761860895 | E13: 0.002866034171
B14: 35 | C14: 0.0051 | D14: 0.00509721022 | E14: 0.001738337597
B15: 36 | C15: 0.0026 | D15: 0.003828217603 | E15: 0.001054355049
B16: 37 | C16: 0.0015 | D16: 0.0008783724015 | E16: 0.0006394986637
E19: x5 | F19: x4 | G19: x3 | H19: x2 | I19: x1 | J19: constant
E20: =LINEST(C3:C16,B3:B16^{1,2,3,4,5}) -> -4.008791776e-06 | F20: 0.000647621683 | G20: -0.04177754376 | H20: 1.345643945 | I20: -21.65250024 | J20: 139.352935
A22: Table 8: Live births, neonatal and infant deaths: plurality and gestational age at birth, numbers and rates, 2020[note 1][note 3][note 4][note 14][note 15][note 16][note 17]
A23: England and Wales
A24: This worksheet contains one table.
A25: Some cells refer to notes which can be found on the notes worksheet.
A26: Notes
A27: Some shorthand is used in this table, [x] not available, [u] low reliability, [z] not applicable.
A28: Some cells in this table are empty because the symbols used are not applicable.
A29: [note 3] refers to cells E10 to J10, [note 4] refers to cells E10 to J10, [note 14] refers to cell A19, [note 15] refers to cell A12, A24, A32, [note 16] refers to cell A21, [note 17] refers to cell A22.
A30: Source: Office for National Statistics.
A31: Gestational age (weeks) | B31: All Multiplicity | C31: Singleton | D31: Multiple | E31: All Multiplicity mortality rate | F31: All Multiplicity unreliable indicator | G31: Singleton mortality rate | H31: Singleton unreliable indicator | I31: Multiple mortality rate | J31: Multiple unreliable indicator
A32: All Live births | B32: 613231 | C32: 595822 | D32: 17409 | E32: [z] | G32: [z] | I32: [z]
A33: All Live births with known gestational age | B33: 610644 | C33: 593327 | D33: 17317 | E33: [z] | G33: [z] | I33: [z]
A34: Live births under 24 | B34: 815 | C34: 708 | D34: 107 | E34: [z] | G34: [z] | I34: [z]
A35: Live births 24-27 | B35: 1870 | C35: 1497 | D35: 373 | E35: [z] | G35: [z] | I35: [z]
A36: Live births 28-31 | B36: 4571 | C36: 3391 | D36: 1180 | E36: [z] | G36: [z] | I36: [z]
A37: Live births 32-36 | B37: 38240 | C37: 29352 | D37: 8888 | E37: [z] | G37: [z] | I37: [z]
A38: Live births 37-41 | B38: 553107 | C38: 546338 | D38: 6769 | E38: [z] | G38: [z] | I38: [z]
A39: Live births 42 and over | B39: 12041 | C39: 12041 | D39: 0 | E39: [z] | G39: [z] | I39: [z]
A40: Live births - low gestational age inconsistent with birthweight | B40: 16 | C40: 15 | D40: 1 | E40: [z] | G40: [z] | I40: [z]
A41: Live births - gestational age not stated | B41: 2571 | C41: 2480 | D41: 91 | E41: [z] | G41: [z] | I41: [z]
A42: Per cent of live births under 37 weeks | B42: 7.5 | C42: 5.9 | D42: 60.9 | E42: [z] | G42: [z] | I42: [z]
A43: Per cent of live births Small for Gestational Age (SGA) | B43: 6.2 | C43: 6 | D43: 12.7 | E43: [z] | G43: [z] | I43: [z]
A44: All Neonatal deaths | B44: 1448 | C44: 1263 | D44: 185 | E44: 2.4 | G44: 2.1 | I44: 10.6
A45: All neonatal deaths with known gestational age | B45: 1416 | C45: 1235 | D45: 181 | E45: 2.3 | G45: 2.1 | I45: 10.5
A46: Neonatal deaths under 24 | B46: 649 | C46: 568 | D46: 81 | E46: 796.3 | G46: 802.3 | I46: 757
A47: Neonatal deaths 24-27 | B47: 229 | C47: 177 | D47: 52 | E47: 122.5 | G47: 118.2 | I47: 139.4
A48: Neonatal deaths 28-31 | B48: 118 | C48: 96 | D48: 22 | E48: 25.8 | G48: 28.3 | I48: 18.6
A49: Neonatal deaths 32-36 | B49: 155 | C49: 135 | D49: 20 | E49: 4.1 | G49: 4.6 | I49: 2.3
A50: Neonatal deaths 37-41 | B50: 256 | C50: 250 | D50: 6 | E50: 0.5 | G50: 0.5 | I50: 0.9 | J50: [u]
A51: Neonatal deaths 42 and over | B51: 9 | C51: 9 | D51: 0 | E51: 0.7 | F51: [u] | G51: 0.7 | H51: [u] | I51: [x] | J51: [u]
B57: 25.5 | C57: =(D46+D47)/(D34+D35) -> 0.2770833333
B58: 29.5 | C58: =D48/D36 -> 0.0186440678
B59: 34 | C59: =D49/D37 -> 0.002250225023
B60: 37 | C60: =D50/D38 -> 0.0008863938543

Sheet PND data
B3: GA | C3: NG137 | D3: NG137 smoothed | E3: 2021
B4: 24 | C4: 0.0462 | D4: 0.05015462185 | E4: 0.07367245639
B5: 25 | C5: 0.0425 | D5: 0.04046052036 | E5: 0.05243786806
B6: 26 | C6: 0.0367 | D6: 0.03212204266 | E6: 0.03732371828
B7: 27 | C7: 0.031 | D7: 0.02504203737 | E7: 0.026565915
B8: 28 | C8: 0.0145 | D8: 0.01912335312 | E8: 0.0189088299
B9: 29 | C9: 0.0074 | D9: 0.01426883851 | E9: 0.01345874396
B10: 30 | C10: 0.0075 | D10: 0.01038134219 | E10: 0.009579534531
B11: 31 | C11: 0.0105 | D11: 0.007363712758 | E11: 0.006818428385
B12: 32 | C12: 0.007 | D12: 0.005118798848 | E12: 0.004853154972
B13: 33 | C13: 0.0046 | D13: 0.00354944908 | E13: 0.003454331681
B14: 34 | C14: 0.0027 | D14: 0.002558512076 | E14: 0.002458690776
B15: 35 | C15: 0.0027 | D15: 0.002048836458 | E15: 0.001750023127
B16: 36 | C16: 0.0015 | D16: 0.001923270847 | E16: 0.001245614526
B17: 37 | C17: 0.0014 | D17: 0.002084663866 | E17: 0.0008865914531
C19: 0.1985
C20: 0.1151
C21: 0.082
C22: 0.0596
C23: 0.038
C24: 0.0238
C25: 0.0245
C26: 0.0191
C27: 0.0158
C28: 0.0084
C29: 0.0075
C30: 0.0051
C31: 0.0026
C32: 0.0015
A39: GA | B39: NG137 | C39: NG137 smoothed | D39: ONS 2021
A40: 24 | B40: 0.0462 | C40: =($G$59*A40^3)+($H$59*A40^2)+($I$59*A40)+$J$59 -> 0.05015462185 | D40: =257.72*EXP(-0.34*B4) -> 0.07367245639
A41: 25 | B41: 0.0425 | C41: =($G$59*A41^3)+($H$59*A41^2)+($I$59*A41)+$J$59 -> 0.04046052036 | D41: =257.72*EXP(-0.34*B5) -> 0.05243786806
A42: 26 | B42: 0.0367 | C42: 0.03212204266 | D42: 0.03732371828
A43: 27 | B43: 0.031 | C43: 0.02504203737 | D43: 0.026565915
A44: 28 | B44: 0.0145 | C44: 0.01912335312 | D44: 0.0189088299
A45: 29 | B45: 0.0074 | C45: 0.01426883851 | D45: 0.01345874396
A46: 30 | B46: 0.0075 | C46: 0.01038134219 | D46: 0.009579534531
A47: 31 | B47: 0.0105 | C47: 0.007363712758 | D47: 0.006818428385
A48: 32 | B48: 0.007 | C48: 0.005118798848 | D48: 0.004853154972
A49: 33 | B49: 0.0046 | C49: 0.00354944908 | D49: 0.003454331681
A50: 34 | B50: 0.0027 | C50: 0.002558512076 | D50: 0.002458690776
A51: 35 | B51: 0.0027 | C51: 0.002048836458 | D51: 0.001750023127
A52: 36 | B52: 0.0015 | C52: 0.001923270847 | D52: 0.001245614526
A53: 37 | B53: 0.0014 | C53: 0.002084663866 | D53: 0.0008865914531
G58: x3 | H58: x2 | I58: x1 | J58: constant
G59: =LINEST(B40:B53,A40:A53^{1,2,3}) -> -1.619189634e-05 | H59: 0.001892204119 | I59: -0.07325049803 | J59: 0.9420937768
B61: Child mortality (death cohort) tables in England and Wales - Office for National Statistics (ons.gov.uk)
B64: Table 17: Live births, stillbirths and infant deaths: gestational age at birth, numbers and rates, 2021 [note 3][note 4][note 5][note 26][note 27][note 28][note 31][note 32]
B65: England and Wales
B66: This worksheet contains one table.
B67: Some cells refer to notes which can be found on the notes worksheet.
B68: Notes
B69: Some shorthand is used in this table, [u] low reliability, [z] not applicable, [x] not available.
B70: Some cells in this table are empty because the symbols used are not applicable.
B71: [note 3] refers to cell I10 to Q10, [note 4] refers to cells I10 [note 5] refers to cells J10, L10, N10 and P10, [note 27] refers to cell B10, [note 28] refers to cell A34, [note 31] refers to cell A36.
B72: Source: Office for National Statistics
C74: Gestational age (weeks) | D74: Live births | E74: Postneonatal deaths | F74: PND rate
C75: All | D75: 624162 | E75: 608
C76: Under 22 weeks & birthweight <1,000g | D76: 423 | E76: 0
C77: 22 weeks | D77: 185 | E77: 8
C78: 23 | D78: 267 | E78: 20 | H78: GA | I78: ONS 2021
C79: 24 | D79: 344 | E79: 28 | F79: =(E77+E78+E79)/(D79+D78+D77) -> 0.07035175879 | H79: 24 | I79: 0.07035175879
C80: 25 | D80: 393 | E80: 31 | F80: =E80/D80 -> 0.07888040712 | H80: 25 | I80: 0.07888040712
C81: 26 | D81: 587 | E81: 29 | F81: =E81/D81 -> 0.04940374787 | H81: 26 | I81: 0.04940374787
C82: 27 | D82: 675 | E82: 25 | F82: 0.03703703704 | H82: 27 | I82: 0.03703703704
C83: 28 | D83: 817 | E83: 14 | F83: 0.01713586291 | H83: 28 | I83: 0.01713586291
C84: 29 | D84: 946 | E84: 7 | F84: 0.007399577167 | H84: 29 | I84: 0.007399577167
C85: 30 | D85: 1285 | E85: 7 | F85: 0.005447470817 | H85: 30 | I85: 0.005447470817
C86: 31 | D86: 1650 | E86: 6 | F86: 0.003636363636 | H86: 31 | I86: 0.003636363636
C87: 32 | D87: 2514 | E87: 10 | F87: 0.003977724741 | H87: 32 | I87: 0.003977724741
C88: 33 | D88: 3367 | E88: 15 | F88: 0.004455004455 | H88: 33 | I88: 0.004455004455
C89: 34 | D89: 5823 | E89: 19 | F89: 0.003262922892 | H89: 34 | I89: 0.003262922892
C90: 35 | D90: 8566 | E90: 31 | F90: 0.003618958674 | H90: 35 | I90: 0.003618958674
C91: 36 | D91: 19307 | E91: 35 | F91: 0.001812814005 | H91: 36 | I91: 0.001812814005
C92: 37 | D92: 54700 | E92: 76 | F92: =SUM(E92:E96)/SUM(D92:D96) -> 0.0005254030605 | H92: 37 | I92: 0.0005254030605
C93: 38 | D93: 96852 | E93: 81
C94: 39 | D94: 187254 | E94: 79
C95: 40 | D95: 145019 | E95: 42
C96: 41 | D96: 79552 | E96: 18
C97: 42 weeks & over | D97: 11478 | E97: 2
C98: Low gestational age inconsistent with birthweight | D98: 20 | E98: 0
C99: Gestational age not stated | D99: 2138 | E99: 11
C100: Unlinked deaths | D100: [z] | E100: 14

Sheet NICU admissions
A3: GA | B3: NG137 | C3: Smoothed NG137
A4: 24 | B4: 1 | C4: 1
A5: 25 | B5: 1 | C5: 1
A6: 26 | B6: 0.8351 | C6: 0.6668257874
A7: 27 | B7: 0.6578 | C7: 0.6982220544
A8: 28 | B8: 0.7264 | C8: 0.8077194411
A9: 29 | B9: 0.8554 | C9: 0.8754841881
A10: 30 | B10: 0.9086 | C10: 0.8767155659
A11: 31 | B11: 0.9334 | C11: 0.8300430914
A12: 32 | B12: 0.9435 | C12: 0.761230276
A13: 33 | B13: 0.9055 | C13: 0.6821849031
A14: 34 | B14: 0.685 | C14: 0.5852758384
A15: 35 | B15: 0.6281 | C15: 0.4529563692
A16: 36 | B16: 0.4112 | C16: 0.2826940756
A17: 37 | B17: 0.0788 | C17: 0.1272072325
B20: Previous Guideline 2014 data
B31: Statistics about neonatal care | Bliss | F31: Includes Scottish births (n=47,786)
B33: 2016 data
K39: GA at birth | L39: Babies admitted | M39: Cumulative frequency
K40: ≤ 25 wks | L40: 1189 | M40: =L40/L44 -> 0.01181239258
K41: 26-32 weeks | L41: 10283 | M41: =(L40+L41)/L44 -> 0.1139712092
K42: 33-36 weeks | L42: 26427 | M42: =(L40+L41+L42)/L44 -> 0.376516288
K43: ≥ 37 weeks | L43: 62427 | M43: 1
K44: Total | L44: 100657
C46: Live Births | L46: =INT(L44*D52) -> 94192
D47: 2016
C48: Scotland | D48: 47786
C49: England and Wales | D49: 696271 | E49: Births in England and Wales - Office for National Statistics (ons.gov.uk)
C50: Total | D50: =D48+D49 -> 744057
C52: Eng & Wales as proportion | D52: =D49/D50 -> 0.9357764257
C53: est NICU England and Wales | D53: =INT(D52*L44) -> 94192
C55: GA at birth | D55: Babies admitted | F55: =D49/D50 -> 0.9357764257 | J55: GA | K55: Fitted cumulative
C56: 25 | D56: =M40 -> 0.01181239258 | J56: 22 | K56: =0.00001975*EXP(0.26475079*J56) -> 0.006685330126
C57: 32 | D57: =M41 -> 0.1139712092 | J57: 23 | K57: =0.00001975*EXP(0.26475079*J57) -> 0.008711695057
C58: 36 | D58: =M42 -> 0.376516288 | J58: 24 | K58: 0.01135226374
C59: 42 | D59: =M43 -> 1 | J59: 25 | K59: 0.01479320513
J60: 26 | K60: 0.01927711715
J61: 27 | K61: 0.02512013064
J62: 28 | K62: 0.03273419769
C63: Est Live birth by GA 2016 | D63: Est cumulative NICU | E63: NICU/per GA | F63: NICU admission rate | J63: 29 | K63: 0.04265613558
B64: 22 weeks | C64: =INT(('Still birth data'!B19/'Still birth data'!$B$17)*'NICU admissions'!$D$49) -> 206 | D64: =INT(K56*$D$53) -> 629 | E64: =D64 -> 629 | F64: =IF(E64>C64,1,E64/C64) -> 1 | J64: 30 | K64: 0.05558547424
B65: 23 weeks | C65: =INT(('Still birth data'!B20/'Still birth data'!$B$17)*'NICU admissions'!$D$49) -> 297 | D65: =INT(K57*$D$53) -> 820 | E65: =D65-D64 -> 191 | F65: =IF(E65>C65,1,E65/C65) -> 0.6430976431 | J65: 31 | K65: 0.07243377545
B66: 24 weeks | C66: =INT(('Still birth data'!B21/'Still birth data'!$B$17)*'NICU admissions'!$D$49) -> 383 | D66: 1069 | E66: =D66-D65 -> 249 | F66: 0.6501305483 | J66: 32 | K66: 0.09438890103
B67: 25 weeks | C67: =INT(('Still birth data'!B22/'Still birth data'!$B$17)*'NICU admissions'!$D$49) -> 438 | D67: 1393 | E67: 324 | F67: 0.7397260274 | J67: 33 | K67: 0.122998761
B68: 26 weeks | C68: =INT(('Still birth data'!B23/'Still birth data'!$B$17)*'NICU admissions'!$D$49) -> 654 | D68: 1815 | E68: 422 | F68: 0.6452599388 | J68: 34 | K68: 0.1602804466
B69: 27 weeks | C69: =INT(('Still birth data'!B24/'Still birth data'!$B$17)*'NICU admissions'!$D$49) -> 752 | D69: 2366 | E69: 551 | F69: 0.732712766 | J69: 35 | K69: 0.2088624419
B70: 28 weeks | C70: =INT(('Still birth data'!B25/'Still birth data'!$B$17)*'NICU admissions'!$D$49) -> 911 | D70: 3083 | E70: 717 | F70: 0.7870472009 | J70: 36 | K70: 0.2721699405
B71: 29 weeks | C71: =INT(('Still birth data'!B26/'Still birth data'!$B$17)*'NICU admissions'!$D$49) -> 1055 | D71: 4017 | E71: 934 | F71: 0.8853080569 | J71: 37 | K71: 0.3546663337
B72: 30 weeks | C72: =INT(('Still birth data'!B27/'Still birth data'!$B$17)*'NICU admissions'!$D$49) -> 1433 | D72: 5235 | E72: 1218 | F72: 0.8499651082 | J72: 38 | K72: 0.4621678942 | P72: GA | Q72: Cumulative frequency | R72: Proportion of NICU admissions | S72: Estimated NICU admissions
B73: 31 weeks | C73: =INT(('Still birth data'!B28/'Still birth data'!$B$17)*'NICU admissions'!$D$49) -> 1840 | D73: 6822 | E73: 1587 | F73: 0.8625 | J73: 39 | K73: 0.6022538429 | P73: 28 | Q73: =0.00001975*EXP(0.26475079*P73) -> 0.03273419769
B74: 32 weeks | C74: =INT(('Still birth data'!B29/'Still birth data'!$B$17)*'NICU admissions'!$D$49) -> 2804 | D74: 8890 | E74: 2068 | F74: 0.7375178317 | J74: 40 | K74: 0.7848007095 | P74: 29 | Q74: 0.04265613558 | R74: =Q74-Q73 -> 0.009921937886 | S74: =R74*$L$46 -> 934.5671734
B75: 33 weeks | C75: =INT(('Still birth data'!B30/'Still birth data'!$B$17)*'NICU admissions'!$D$49) -> 3755 | D75: 11585 | E75: 2695 | F75: 0.7177097204 | J75: 41 | K75: 1.022678661 | P75: 30 | Q75: 0.05558547424 | R75: =Q75-Q74 -> 0.01292933866 | S75: =R75*$L$46 -> 1217.840267
B76: 34 weeks | C76: =INT(('Still birth data'!B31/'Still birth data'!$B$17)*'NICU admissions'!$D$49) -> 6495 | D76: 15097 | E76: 3512 | F76: 0.5407236336 | J76: 42 | K76: 1.332658892 | P76: 31 | Q76: 0.07243377545 | R76: 0.01684830122 | S76: 1586.975188
B77: 35 weeks | C77: =INT(('Still birth data'!B32/'Still birth data'!$B$17)*'NICU admissions'!$D$49) -> 9555 | D77: 19673 | E77: 4576 | F77: 0.4789115646 | P77: 32 | Q77: 0.09438890103 | R77: 0.02195512558 | S77: 2067.997188
B78: 36 weeks | C78: =INT(('Still birth data'!B33/'Still birth data'!$B$17)*'NICU admissions'!$D$49) -> 21537 | D78: 25636 | E78: 5963 | F78: 0.2768723592 | P78: 33 | Q78: 0.122998761 | R78: 0.02860986 | S78: 2694.819933
B79: 37 weeks | C79: =INT(('Still birth data'!B34/'Still birth data'!$B$17)*'NICU admissions'!$D$49) -> 61019 | D79: 33406 | E79: 7770 | F79: 0.1273373867 | P79: 34 | Q79: 0.1602804466 | R79: 0.03728168561 | S79: 3511.636531
B80: 38 weeks | C80: =INT(('Still birth data'!B35/'Still birth data'!$B$17)*'NICU admissions'!$D$49) -> 108041 | P80: 35 | Q80: 0.2088624419 | R80: 0.04858199523 | S80: 4576.035294
B81: 39 weeks | C81: =INT(('Still birth data'!B36/'Still birth data'!$B$17)*'NICU admissions'!$D$49) -> 208887 | P81: 36 | Q81: 0.2721699405 | R81: 0.06330749861 | S81: 5963.059909
B82: 40 weeks | C82: =INT(('Still birth data'!B37/'Still birth data'!$B$17)*'NICU admissions'!$D$49) -> 161772 | P82: 37 | Q82: 0.3546663337 | R82: 0.0824963932 | S82: 7770.500269
B83: 41 weeks | C83: =INT(('Still birth data'!B38/'Still birth data'!$B$17)*'NICU admissions'!$D$49) -> 88742
B84: 42 weeks and above | C84: =INT(('Still birth data'!B39/'Still birth data'!$B$17)*'NICU admissions'!$D$49) -> 12804
P85: GA | Q85: Live births | R85: Estimated NICU admissions | S85: NICU admission rate
C86: =SUM(C64:C85) -> 693380 | P86: 28 weeks | Q86: =C70 -> 911
P87: 29 weeks | Q87: =C71 -> 1055 | R87: 934.5671734 | S87: =R87/Q87 -> 0.885845662
P88: 30 weeks | Q88: 1433 | R88: 1217.840267 | S88: =R88/Q88 -> 0.8498536406
P89: 31 weeks | Q89: 1840 | R89: 1586.975188 | S89: 0.8624865153
P90: 32 weeks | Q90: 2804 | R90: 2067.997188 | S90: 0.7375168289
P91: 33 weeks | Q91: 3755 | R91: 2694.819933 | S91: 0.7176617665
P92: 34 weeks | Q92: 6495 | R92: 3511.636531 | S92: 0.5406676722
B93: 25 | C93: 1 | D93: =($D$109*B93^6)+($E$109*B93^5)+($F$109*B93^4)+($G$109*B93^3)+($H$109*B93^2)+($I$109*B93)+$J$109 -> 0.9953067438 | P93: 35 weeks | Q93: 9555 | R93: 4576.035294 | S93: 0.4789152584
B94: 26 | C94: 0.6452599388 | D94: =($D$109*B94^6)+($E$109*B94^5)+($F$109*B94^4)+($G$109*B94^3)+($H$109*B94^2)+($I$109*B94)+$J$109 -> 0.6668257874 | P94: 36 weeks | Q94: 21537 | R94: 5963.059909 | S94: 0.2768751409
B95: 27 | C95: 0.732712766 | D95: 0.6982220544 | P95: 37 weeks | Q95: 61019 | R95: 7770.500269 | S95: 0.1273455853
B96: 28 | C96: 0.7870472009 | D96: 0.8077194411
B97: 29 | C97: 0.8853080569 | D97: 0.8754841881
B98: 30 | C98: 0.8499651082 | D98: 0.8767155659 | P98: 29 | Q98: 0.885845662
B99: 31 | C99: 0.8625 | D99: 0.8300430914 | P99: 30 | Q99: 0.8498536406
B100: 32 | C100: 0.7375178317 | D100: 0.761230276 | P100: 31 | Q100: 0.8624865153
B101: 33 | C101: 0.7177097204 | D101: 0.6821849031 | P101: 32 | Q101: 0.7375168289
B102: 34 | C102: 0.5407236336 | D102: 0.5852758384 | P102: 33 | Q102: 0.7176617665
B103: 35 | C103: 0.4789115646 | D103: 0.4529563692 | P103: 34 | Q103: 0.5406676722
B104: 36 | C104: 0.2768723592 | D104: 0.2826940756 | P104: 35 | Q104: 0.4789152584
B105: 37 | C105: 0.1273373867 | D105: 0.1272072325 | P105: 36 | Q105: 0.2768751409
P106: 37 | Q106: 0.1273455853
D108: x6 | E108: x5 | F108: x4 | G108: x3 | H108: x2 | I108: x1 | J108: constant
D109: =LINEST(C93:C105,B93:B105^{1,2,3,4,5,6}) -> 2.125907064e-05 | E109: -0.004065324274 | F109: 0.3229921419 | G109: -13.64614383 | H109: 323.3110599 | I109: -4072.263147 | J109: 21300.583
R114: x2 | S114: x1 | T114: constant
R115: =LINEST(Q98:Q106,P98:P106^{1,2}) -> -0.01142546498 | S115: 0.6587985643 | T115: -8.613277258
Q117: Raw data | R117: Smoothed
P118: 24 | Q118: 1 | R118: 1
P119: 25 | Q119: 1 | R119: 1
P120: 26 | Q120: 1 | R120: 1
P121: 27 | Q121: 1 | R121: 1
P122: 28 | Q122: 1 | R122: 1
P123: 29 | Q123: 0.885845662 | R123: =($R$115*P123^2)+($S$115*P123)+$T$115 -> 0.8830650552
P124: 30 | Q124: 0.8498536406 | R124: =($R$115*P124^2)+($S$115*P124)+$T$115 -> 0.8677611855
P125: 31 | Q125: 0.8624865153 | R125: 0.8296063858
P126: 32 | Q126: 0.7375168289 | R126: 0.7686006562
C127: GA | D127: LOS | P127: 33 | Q127: 0.7176617665 | R127: 0.6847439966
C128: 25 | D128: 92 | P128: 34 | Q128: 0.5406676722 | R128: 0.578036407
C129: 29.5 | D129: 44 | P129: 35 | Q129: 0.4789152584 | R129: 0.4484778874
C130: 34 | D130: 12 | P130: 36 | Q130: 0.2768751409 | R130: 0.2960684379
C131: 37 | D131: 4 | P131: 37 | Q131: 0.1273455853 | R131: 0.1208080584
G137: x3 | H137: x2 | I137: x1 | J137: constant
G138: =LINEST(D128:D131,C128:C131^{1,2,3}) -> 0.01646090535 | H138: -1.061728395 | I138: 10.44444444 | J138: 237.2674897
B141: GA | C141: NDAU 2017 | D141: NDAU smoothed
B142: 24 | C142: 92 | D142: =INT(($G$138*B142^3)+($H$138*B142^2)+($I$138*B142)+$J$138) -> 103
B143: 25 | C143: 92 | D143: =INT(($G$138*B143^3)+($H$138*B143^2)+($I$138*B143)+$J$138) -> 91
B144: 26 | C144: 92 | D144: 80
B145: 27 | C145: 92 | D145: 69
B146: 28 | C146: 44 | D146: 58
B147: 29 | C147: 44 | D147: 48
B148: 30 | C148: 44 | D148: 39
B149: 31 | C149: 44 | D149: 31
B150: 32 | C150: 12 | D150: 23
B151: 33 | C151: 12 | D151: 17
B152: 34 | C152: 12 | D152: 11
B153: 35 | C153: 12 | D153: 7
B154: 36 | C154: 12 | D154: 5
B155: 37 | C155: 4 | D155: 3
B159: To incorprate expert GC opinion on limitations of calculated proportions
B163: NDAU 2016 est | C163: Smoothed NDAU est | D163: GC estimate 1 | E163: GC estimate 2 | F163: GC estimate 3
B164: 1 | C164: 1 | D164: 1 | E164: 1 | F164: 0.95
B165: 1 | C165: 1 | D165: 1 | E165: 1 | F165: 0.95
B166: 1 | C166: 1 | D166: 1 | E166: 1 | F166: 0.95
B167: 1 | C167: 1 | D167: 1 | E167: 1 | F167: 0.95
B168: 1 | C168: 1 | D168: 1 | E168: 1 | F168: 0.95
B169: 0.885845662 | C169: 0.8830650552 | D169: 1 | E169: 0.95 | F169: 0.95
B170: 0.8498536406 | C170: 0.8677611855 | D170: 1 | E170: 0.95 | F170: 0.95
B171: 0.8624865153 | C171: 0.8296063858 | D171: 1 | E171: 0.95 | F171: 0.95
B172: 0.7375168289 | C172: 0.7686006562 | D172: 1 | E172: 0.95 | F172: 0.95
B173: 0.7176617665 | C173: 0.6847439966 | D173: 0.7631814326 | E173: 0.7471100041 | F173: 0.7471100041
B174: 0.5406676722 | C174: 0.578036407 | D174: 0.5788326188 | E174: 0.5788326188 | F174: 0.5788326188
B175: 0.4789152584 | C175: 0.4484778874 | D175: 0.4146216369 | E175: 0.4217644941 | F175: 0.4217644941 | P175: x2 | Q175: x1 | R175: constant
B176: 0.2768751409 | C176: 0.2960684379 | D176: 0.2705484871 | E176: 0.27590563 | F176: 0.27590563 | P176: =LINEST(D182:D187,C182:C187^{1,2}) -> 0.01006891601 | Q176: -0.8589661865 | R176: 18.14401605
B177: 0.1273455853 | C177: 0.1208080584 | D177: 0.1466131693 | E177: 0.1412560265 | F177: 0.1412560265 | P177: =LINEST(E182:E187,C182:C187^{1,2}) -> 0.005604630295 | Q177: -0.5437876151 | R177: 12.58865891
C181: GA | D181: GC estimate 1 | E181: GC estimate 2
C182: 32 | D182: 1 | E182: 0.95
C183: 33 | D183: 0.7176617665 | E183: 0.7176617665
C184: 34 | D184: 0.5406676722 | E184: 0.5406676722
C185: 35 | D185: 0.4789152584 | E185: 0.4789152584
C186: 36 | D186: 0.2768751409 | E186: 0.2768751409
C187: 37 | D187: 0.1273455853 | E187: 0.1273455853
C191: GA | D191: GC estimate 1 | E191: GC estimate 2
C192: 33 | D192: =($P$176*C192^2)+($Q$176*C192)+$R$176 -> 0.7631814326 | E192: =($P$177*C192^2)+($Q$177*C192)+$R$177 -> 0.7471100041
C193: 34 | D193: =($P$176*C193^2)+($Q$176*C193)+$R$176 -> 0.5788326188 | E193: =($P$177*C193^2)+($Q$177*C193)+$R$177 -> 0.5788326188
C194: 35 | D194: 0.4146216369 | E194: 0.4217644941
C195: 36 | D195: 0.2705484871 | E195: 0.27590563
C196: 37 | D196: 0.1466131693 | E196: 0.1412560265
C201: GA | D201: LOS | E201: Intensive Care | F201: HDU | G201: Special Care | H201: Normal | I201: Cost
C202: 24 | D202: 103 | E202: =7/14 -> 0.5 | F202: =2/14 -> 0.1428571429 | G202: =5/14 -> 0.3571428571 | I202: =(D202*E202*Cost_CritCare2)+(D202*F202*Cost_HDU)+(D202*G202*Cost_SCBU)+(D202*H202*Cost_CritCare1) -> 
C203: 25 | D203: 91 | E203: =6/13 -> 0.4615384615 | F203: =2/13 -> 0.1538461538 | G203: =5/13 -> 0.3846153846
C204: 26 | D204: 80 | E204: =5/12 -> 0.4166666667 | F204: =2/12 -> 0.1666666667 | G204: =5/12 -> 0.4166666667
C205: 27 | D205: 69 | E205: =4/11 -> 0.3636363636 | F205: =2/11 -> 0.1818181818 | G205: =5/11 -> 0.4545454545 | L205: =Cost_CritCare2 -> 1811 | N205: =L205*E202*D202 -> 93266.5
C206: 28 | D206: 58 | E206: =3/10 -> 0.3 | F206: =2/10 -> 0.2 | G206: =5/10 -> 0.5 | L206: =Cost_HDU -> 1226
C207: 29 | D207: 48 | E207: =2/9 -> 0.2222222222 | F207: =2/9 -> 0.2222222222 | G207: =5/9 -> 0.5555555556 | L207: =Cost_SCBU -> 873
C208: 30 | D208: 39 | E208: =1/8 -> 0.125 | F208: =2/8 -> 0.25 | G208: =5/8 -> 0.625 | L208: =Cost_CritCare1 -> 
C209: 31 | D209: 31 | E209: =2/9 -> 0.2222222222 | F209: =2/9 -> 0.2222222222 | G209: =5/9 -> 0.5555555556
C210: 32 | D210: 23 | E210: =2/9 -> 0.2222222222 | F210: =2/9 -> 0.2222222222 | G210: =5/9 -> 0.5555555556
C211: 33 | D211: 17 | E211: =2/6 -> 0.3333333333 | G211: =4/6 -> 0.6666666667
C212: 34 | D212: 11 | E212: =2/6 -> 0.3333333333 | G212: =4/6 -> 0.6666666667
C213: 35 | D213: 7 | E213: 0.3333333333 | G213: 0.6666666667
C214: 36 | D214: 5 | E214: 0.3333333333 | G214: 0.6666666667
C215: 37 | D215: 3 | H215: 1

Sheet CP data
B2: An update on the prevalence of cerebral palsy: a systematic review and meta‐analysis - Oskoui - 2013 - Developmental Medicine & Child Neurology - Wiley Online Library
O5: GA | P5: Oskui 2013 | Q5: NG137
C6: GA | D6: CP | O6: 24 | P6: =(0.0006*O6^2)-(0.0449*O6)+0.8501 -> 0.1181 | Q6: 0.3591
C7: 26 | D7: 0.0825 | O7: 25 | P7: =(0.0006*O7^2)-(0.0449*O7)+0.8501 -> 0.1026 | Q7: 0.2383
C8: 29.5 | D8: 0.04315 | O8: 26 | P8: 0.0883 | Q8: 0.1581
C9: 34 | D9: 0.00675 | O9: 27 | P9: 0.0752 | Q9: 0.1049
C10: 37 | D10: 0.00135 | O10: 28 | P10: 0.0633 | Q10: 0.0696
O11: 29 | P11: 0.0526 | Q11: 0.0462
O12: 30 | P12: 0.0431 | Q12: 0.0307
O13: 31 | P13: 0.0348 | Q13: 0.0204
O14: 32 | P14: 0.0277 | Q14: 0.0135
O15: 33 | P15: 0.0218 | Q15: 0.009
O16: 34 | P16: 0.0171 | Q16: 0.006
O17: 35 | P17: 0.0136 | Q17: 0.0039
O18: 36 | P18: 0.0113 | Q18: 0.0026
O19: 37 | P19: 0.0102 | Q19: 0.0017

Sheet RDS & IVH by GA
C3: Ross | D3: Medscape Registration
Y8: RDS
J10: GA | K10: RDS | L10: IVH | Y10: x4 | Z10: x3 | AA10: x2 | AB10: x1 | AC10: constant
J11: 24 | K11: 0.7 | L11: 0.25 | Y11: =LINEST(K11:K24,J11:J24^{1,2,3,4}) -> -0.0002606309132 | Z11: 0.03296855718 | AA11: -1.552233842 | AB11: 32.15305378 | AC11: -246.1393895
J12: 25 | K12: 0.9 | L12: 0.3
J13: 26 | K13: 0.93 | L13: 0.3 | Y13: IVH
J14: 27 | K14: 0.84 | L14: 0.16
J15: 28 | K15: 0.65 | L15: 0.04 | Y15: x5 | Z15: x4 | AA15: x3 | AB15: x2 | AC15: x1 | AD15: constant
J16: 29 | K16: 0.53 | L16: 0.03 | Y16: =LINEST(L11:L21,J11:J21^{1,2,3,4,5}) -> 0.0001121794872 | Z16: -0.0168254662 | AA16: 1.005584207 | AB16: -29.92612325 | AC16: 443.3133012 | AD16: -2613.983181
J17: 30 | K17: 0.55 | L17: 0.02
J18: 31 | K18: 0.37 | L18: 0.02
J19: 32 | K19: 0.28 | L19: 0.01
J20: 33 | K20: 0.34 | L20: 0
J21: 34 | K21: 0.14 | L21: 0
J22: 35 | K22: 0.12
J23: 36 | K23: 0.07
J24: 37 | K24: 0.035
E42: Neonatal Respiratory Distress Syndrome - StatPearls - NCBI Bookshelf (nih.gov)
E44: GA | F44: RDS
E45: 24 | F45: 0.98
E46: 34 | F46: 0.05
E47: 37 | F47: 0
B63: RDS
L64: x2 | M64: x1 | N64: constant
B65: GA | C65: Ross 2021 | D65: Ross smoothed | E65: Yadav 2023 | L65: =LINEST(F45:F47,E45:E47^{1,2}) -> 0.005871794872 | M65: -0.4335641026 | N65: 8.003384615
B66: 24 | C66: 0.7 | D66: =($Y$11*B66^4)+($Z$11*B66^3)+($AA$11*B66^2)+($AB$11*B66)+$AC$11 -> 0.7334611345 | E66: =($L$65*B66^2)+($M$65*B66)+$N$65 -> 0.98
B67: 25 | C67: 0.9 | D67: =($Y$11*B67^4)+($Z$11*B67^3)+($AA$11*B67^2)+($AB$11*B67)+$AC$11 -> 0.8655595507 | E67: =($L$65*B67^2)+($M$65*B67)+$N$65 -> 0.8341538462
B68: 26 | C68: 0.93 | D68: 0.8832207498 | E68: 0.7000512821
B69: 27 | C69: 0.84 | D69: 0.8247499559 | E69: 0.5776923077
B70: 28 | C70: 0.65 | D70: 0.7221972513 | E70: 0.4670769231
B71: 29 | C71: 0.53 | D71: 0.6013575762 | E71: 0.3682051282
B72: 30 | C72: 0.55 | D72: 0.4817707293 | E72: 0.2810769231
B73: 31 | C73: 0.37 | D73: 0.3767213669 | E73: 0.2056923077
B74: 32 | C74: 0.28 | D74: 0.2932390036 | E74: 0.1420512821
B75: 33 | C75: 0.34 | D75: 0.2320980123 | E75: 0.09015384615
B76: 34 | C76: 0.14 | D76: 0.1878176236 | E76: 0.05
B77: 35 | C77: 0.12 | D77: =($Y$11*B77^4)+($Z$11*B77^3)+($AA$11*B77^2)+($AB$11*B77)+$AC$11 -> 0.1486619263 | E77: =($L$65*B77^2)+($M$65*B77)+$N$65 -> 0.02158974359
B78: 36 | C78: 0.07 | D78: =($Y$11*B78^4)+($Z$11*B78^3)+($AA$11*B78^2)+($AB$11*B78)+$AC$11 -> 0.09663986749 | E78: =($L$65*B78^2)+($M$65*B78)+$N$65 -> 0.004923076923
B79: 37 | C79: 0.035 | D79: =($Y$11*B79^4)+($Z$11*B79^3)+($AA$11*B79^2)+($AB$11*B79)+$AC$11 -> 0.007505252101 | E79: =($L$65*B79^2)+($M$65*B79)+$N$65 -> 0
B82: IVH
B84: GA | C84: Ross 2021 | D84: Ross smoothed
B85: 24 | C85: 0.25 | D85: =($Y$16*B85^5)+($Z$16*B85^4)+($AA$16*B85^3)+($AB$16*B85^2)+($AC$16*B85)+$AD$16 -> 0.2423426573
B86: 25 | C86: 0.3 | D86: =($Y$16*B86^5)+($Z$16*B86^4)+($AA$16*B86^3)+($AB$16*B86^2)+($AC$16*B86)+$AD$16 -> 0.3306293706
B87: 26 | C87: 0.3 | D87: 0.2637878788
B88: 27 | C88: 0.16 | D88: 0.1565034965
B89: 28 | C89: 0.04 | D89: 0.06965034965
B90: 29 | C90: 0.03 | D90: 0.02375291375
B91: 30 | C91: 0.02 | D91: 0.01244755245
B92: 31 | C92: 0.02 | D92: 0.01594405594
B93: 32 | C93: 0.01 | D93: 0.01448717949
B94: 33 | C94: 0 | D94: 0.001818181831
B95: 34 | C95: 0 | D95: 0
B96: 35 | C96: 0 | D96: 0
B97: 36 | C97: 0 | D97: 0
B98: 37 | C98: 0 | D98: 0

Sheet QALY data sources
C3: QALY loss
B4: Stillbirth | C4: =G59 -> 25.34908856
B5: NND | C5: =G59 -> 25.34908856
B6: Post neo-natal death | C6: =G59 -> 25.34908856
B7: CP | C7: =C33 -> 11.14908856 | E7: See below
B8: IVH | C8: 4.5 | E8: see NG25
B9: RDS | C9: =C4-H171 -> 1.496515817 | E9: Cost-effectiveness of a trial of labor after previous cesarean - PubMed (nih.gov) | N9: but also see NG25 and QALY loss = 3.85
B11: Kind 1999 Table A
B12: Mean HSU | C12: 0.86
B13: Count | C13: 3392
B14: SD | C14: 0.23
B15: SE
B17: Life Expectancy | C17: Proportion
A18: Males | B18: 79.46 | C18: =I25/H25 -> 0.5124797538
A19: Females | B19: 83.1 | C19: =1-C18 -> 0.4875202462
A20: All | B20: =(B18*C18)+(B19*C19) -> 81.2345737
B22: ONS life tables 2018-20 | H22: England and Wales
G24: Year | H24: Total | I24: Males | J24: Females
G25: 2021 | H25: 692722 | I25: 355006 | J25: 337716
B29: Cahill (2011) - see preterm labour guideline
B30: CP Life expectancy | C30: 60 | E30: NOT Updating
B31: HSU | C31: 0.55 | E31: NOT Updating
B32: Lifetime QALY | C32: 14.2
B33: Loss | C33: =C4-C32 -> 11.14908856
B36: QALY from life lived in full life expectancy (using a discount rate of 3.5%)
B38: National Life Tables, United Kingdom, period expectation of life, based on data for the years 2018-2020
B39: This worksheet contains two tables, presented horizontally with one blank column in between the tables.
B40: This worksheet uses notation in the column headers, please see the notation worksheet for explanations.
B41: =HYPERLINK("#'Contents'!A1", "Back to contents") -> Back to contents
B42: National life tables, Males | I42: National life tables, Females
B43: age | C43: mx | D43: qx | E43: lx | F43: dx | G43: ex | I43: age | J43: mx | K43: qx | L43: lx | M43: dx | N43: ex
B44: 0 | C44: 0.004233 | D44: 0.004224 | E44: 100000 | F44: 422.4 | G44: 79.04 | I44: 0 | J44: 0.003509 | K44: 0.003503 | L44: 100000 | M44: 350.3 | N44: 82.86
B56: Discounted QALYs
B58: Year | C58: QALYs | D58: Discounted QALYs | E58: Cum QALY | H58: Weighted lifetime discounted QALY
G59: =(E138*I25/H25)+(E142*J25/H25) -> 25.34908856
B60: 1 | C60: 0.94 | D60: 0.94 | E60: 0.94
B61: 2 | C61: 0.94 | D61: 0.9082125604 | E61: 1.84821256
B62: 3 | C62: 0.94 | D62: 0.8775000583 | E62: 2.725712619
B63: 4 | C63: 0.94 | D63: 0.8478261433 | E63: 3.573538762
B64: 5 | C64: 0.94 | D64: 0.819155694 | E64: 4.392694456
B65: 6 | C65: 0.94 | D65: 0.7914547768 | E65: 5.184149233
B66: 7 | C66: 0.94 | D66: 0.7646906056 | E66: 5.948839839
B67: 8 | C67: 0.94 | D67: 0.738831503 | E67: 6.687671342
B68: 9 | C68: 0.94 | D68: 0.7138468628 | E68: 7.401518204
B69: 10 | C69: 0.94 | D69: 0.6897071139 | E69: 8.091225318
B70: 11 | C70: 0.94 | D70: 0.6663836849 | E70: 8.757609003
B71: 12 | C71: 0.94 | D71: 0.6438489709 | E71: 9.401457974
B72: 13 | C72: 0.94 | D72: 0.6220763004 | E72: 10.02353427
B73: 14 | C73: 0.94 | D73: 0.6010399038 | E73: 10.62457418
B74: 15 | C74: 0.94 | D74: 0.5807148829 | E74: 11.20528906
B75: 16 | C75: 0.94 | D75: 0.5610771815 | E75: 11.76636624
B76: 17 | C76: 0.94 | D76: 0.542103557 | E76: 12.3084698
B77: 18 | C77: 0.94 | D77: 0.5237715527 | E77: 12.83224135
B78: 19 | C78: 0.94 | D78: 0.5060594712 | E78: 13.33830082
B79: 20 | C79: 0.94 | D79: 0.488946349 | E79: 13.82724717
B80: 21 | C80: 0.94 | D80: 0.4724119314 | E80: 14.2996591
B81: 22 | C81: 0.94 | D81: 0.4564366487 | E81: 14.75609575
B82: 23 | C82: 0.94 | D82: 0.4410015929 | E82: 15.19709735
B83: 24 | C83: 0.94 | D83: 0.4260884956 | E83: 15.62318584
B84: 25 | C84: 0.93 | D84: 0.4073001345 | E84: 16.03048598
B85: 26 | C85: 0.93 | D85: 0.3935267 | E85: 16.42401268
B86: 27 | C86: 0.93 | D86: 0.3802190338 | E86: 16.80423171
B87: 28 | C87: 0.93 | D87: 0.3673613853 | E87: 17.17159309
B88: 29 | C88: 0.93 | D88: 0.3549385366 | E88: 17.52653163
B89: 30 | C89: 0.93 | D89: 0.3429357841 | E89: 17.86946742
B90: 31 | C90: 0.93 | D90: 0.3313389219 | E90: 18.20080634
B91: 32 | C91: 0.93 | D91: 0.320134224 | E91: 18.52094056
B92: 33 | C92: 0.93 | D92: 0.309308429 | E92: 18.83024899
B93: 34 | C93: 0.93 | D93: 0.2988487237 | E93: 19.12909771
B94: 35 | C94: 0.91 | D94: 0.2825332072 | E94: 19.41163092
B95: 36 | C95: 0.91 | D95: 0.2729789441 | E95: 19.68460987
B96: 37 | C96: 0.91 | D96: 0.2637477721 | E96: 19.94835764
B97: 38 | C97: 0.91 | D97: 0.2548287653 | E97: 20.2031864
B98: 39 | C98: 0.91 | D98: 0.2462113674 | E98: 20.44939777
B99: 40 | C99: 0.91 | D99: 0.2378853792 | E99: 20.68728315
B100: 41 | C100: 0.91 | D100: 0.2298409461 | E100: 20.9171241
B101: 42 | C101: 0.91 | D101: 0.2220685469 | E101: 21.13919264
B102: 43 | C102: 0.91 | D102: 0.2145589825 | E102: 21.35375162
B103: 44 | C103: 0.91 | D103: 0.2073033648 | E103: 21.56105499
B104: 45 | C104: 0.85 | D104: 0.1870869672 | E104: 21.74814196
B105: 46 | C105: 0.85 | D105: 0.1807603548 | E105: 21.92890231
B106: 47 | C106: 0.85 | D106: 0.1746476858 | E106: 22.10355
B107: 48 | C107: 0.85 | D107: 0.1687417254 | E107: 22.27229172
B108: 49 | C108: 0.85 | D108: 0.1630354835 | E108: 22.43532721
B109: 50 | C109: 0.85 | D109: 0.1575222062 | E109: 22.59284941
B110: 51 | C110: 0.85 | D110: 0.1521953683 | E110: 22.74504478
B111: 52 | C111: 0.85 | D111: 0.1470486651 | E111: 22.89209345
B112: 53 | C112: 0.85 | D112: 0.1420760049 | E112: 23.03416945
B113: 54 | C113: 0.85 | D113: 0.1372715023 | E113: 23.17144095
B114: 55 | C114: 0.81 | D114: 0.126388084 | E114: 23.29782904
B115: 56 | C115: 0.81 | D115: 0.1221140908 | E115: 23.41994313
B116: 57 | C116: 0.81 | D116: 0.1179846288 | E116: 23.53792776
B117: 58 | C117: 0.81 | D117: 0.1139948104 | E117: 23.65192257
B118: 59 | C118: 0.81 | D118: 0.1101399135 | E118: 23.76206248
B119: 60 | C119: 0.81 | D119: 0.1064153753 | E119: 23.86847786
B120: 61 | C120: 0.81 | D120: 0.1028167877 | E120: 23.97129464
B121: 62 | C121: 0.81 | D121: 0.09933989154 | E121: 24.07063453
B122: 63 | C122: 0.81 | D122: 0.09598057154 | E122: 24.16661511
B123: 64 | C123: 0.81 | D123: 0.09273485173 | E123: 24.25934996
B124: 65 | C124: 0.78 | D124: 0.08628041313 | E124: 24.34563037
B125: 66 | C125: 0.78 | D125: 0.083362718 | E125: 24.42899309
B126: 67 | C126: 0.78 | D126: 0.08054368889 | E126: 24.50953678
B127: 68 | C127: 0.78 | D127: 0.07781998927 | E127: 24.58735677
B128: 69 | C128: 0.78 | D128: 0.07518839543 | E128: 24.66254516
B129: 70 | C129: 0.78 | D129: 0.07264579268 | E129: 24.73519096
B130: 71 | C130: 0.78 | D130: 0.07018917167 | E130: 24.80538013
B131: 72 | C131: 0.78 | D131: 0.06781562481 | E131: 24.87319575
B132: 73 | C132: 0.78 | D132: 0.06552234281 | E132: 24.93871809
B133: 74 | C133: 0.78 | D133: 0.06330661141 | E133: 25.00202471
B134: 75 | C134: 0.71 | D134: 0.05567656893 | E134: 25.05770128
B135: 76 | C135: 0.71 | D135: 0.05379378641 | E135: 25.11149506
B136: 77 | C136: 0.71 | D136: 0.05197467286 | E136: 25.16346973
B137: 78 | C137: 0.71 | D137: 0.05021707523 | E137: 25.21368681
B138: 79 | C138: 0.71 | D138: 0.04851891326 | E138: 25.26220572 | F138: Males
B139: 80 | C139: 0.71 | D139: 0.04687817706 | E139: 25.3090839
B140: 81 | C140: 0.71 | D140: 0.0452929247 | E140: 25.35437682
B141: 82 | C141: 0.71 | D141: 0.0437612799 | E141: 25.3981381
B142: 83 | C142: 0.71 | D142: 0.04228142986 | E142: 25.44041953 | F142: Females
B143: 84 | C143: 0.71 | D143: 0.04085162305 | E143: 25.48127116
O148: Survival and mortality in cerebral palsy: observations to the sixth decade from a data linkage study of a total population register and National Death Index | BMC Neurology (springer.com)
B165: RDS QALYs | C165: Using a weight of 0.87 (for when lower than population values) but then using population values and assuming normal life expectancy
B167: Year | C167: QALYs | D167: Discounted QALYs | E167: Cum QALY
B169: 1 | C169: 0.87 | D169: 0.87 | E169: 0.87
B170: 2 | C170: 0.87 | D170: 0.8405797101 | E170: 1.71057971 | H170: Weighted lifetime discounted QALY
B171: 3 | C171: 0.87 | D171: 0.8121543093 | E171: 2.522734019 | H171: =(E247*I25/H25)+(E251*J25/H25) -> 23.85257275
B172: 4 | C172: 0.87 | D172: 0.7846901539 | E172: 3.307424173
B173: 5 | C173: 0.87 | D173: 0.7581547381 | E173: 4.065578911
B174: 6 | C174: 0.87 | D174: 0.7325166552 | E174: 4.798095567
B175: 7 | C175: 0.87 | D175: 0.7077455605 | E175: 5.505841127
B176: 8 | C176: 0.87 | D176: 0.6838121358 | E176: 6.189653263
B177: 9 | C177: 0.87 | D177: 0.6606880539 | E177: 6.850341317
B178: 10 | C178: 0.87 | D178: 0.6383459458 | E178: 7.488687263
B179: 11 | C179: 0.87 | D179: 0.6167593679 | E179: 8.105446631
B180: 12 | C180: 0.87 | D180: 0.5959027709 | E180: 8.701349402
B181: 13 | C181: 0.87 | D181: 0.5757514695 | E181: 9.277100871
B182: 14 | C182: 0.87 | D182: 0.5562816131 | E182: 9.833382484
B183: 15 | C183: 0.87 | D183: 0.5374701575 | E183: 10.37085264
B184: 16 | C184: 0.87 | D184: 0.5192948382 | E184: 10.89014748
B185: 17 | C185: 0.87 | D185: 0.5017341432 | E185: 11.39188162
B186: 18 | C186: 0.87 | D186: 0.4847672881 | E186: 11.87664891
B187: 19 | C187: 0.87 | D187: 0.4683741914 | E187: 12.3450231
B188: 20 | C188: 0.87 | D188: 0.4525354506 | E188: 12.79755855
B189: 21 | C189: 0.87 | D189: 0.4372323195 | E189: 13.23479087
B190: 22 | C190: 0.87 | D190: 0.4224466855 | E190: 13.65723756
B191: 23 | C191: 0.87 | D191: 0.4081610488 | E191: 14.06539861
B192: 24 | C192: 0.87 | D192: 0.3943585012 | E192: 14.45975711
B193: 25 | C193: 0.87 | D193: 0.3810227065 | E193: 14.84077981
B194: 26 | C194: 0.87 | D194: 0.3681378807 | E194: 15.2089177
B195: 27 | C195: 0.87 | D195: 0.3556887736 | E195: 15.56460647
B196: 28 | C196: 0.87 | D196: 0.3436606508 | E196: 15.90826712
B197: 29 | C197: 0.87 | D197: 0.3320392761 | E197: 16.2403064
B198: 30 | C198: 0.87 | D198: 0.3208108948 | E198: 16.56111729
B199: 31 | C199: 0.87 | D199: 0.3099622172 | E199: 16.87107951
B200: 32 | C200: 0.87 | D200: 0.2994804031 | E200: 17.17055991
B201: 33 | C201: 0.87 | D201: 0.2893530465 | E201: 17.45991296
B202: 34 | C202: 0.87 | D202: 0.2795681609 | E202: 17.73948112
B203: 35 | C203: 0.87 | D203: 0.2701141651 | E203: 18.00959528
B204: 36 | C204: 0.87 | D204: 0.2609798696 | E204: 18.27057515
B205: 37 | C205: 0.87 | D205: 0.2521544634 | E205: 18.52272962
B206: 38 | C206: 0.87 | D206: 0.2436275009 | E206: 18.76635712
B207: 39 | C207: 0.87 | D207: 0.2353888898 | E207: 19.00174601
B208: 40 | C208: 0.87 | D208: 0.227428879 | E208: 19.22917489
B209: 41 | C209: 0.87 | D209: 0.2197380473 | E209: 19.44891293
B210: 42 | C210: 0.87 | D210: 0.2123072921 | E210: 19.66122023
B211: 43 | C211: 0.87 | D211: 0.2051278185 | E211: 19.86634804
B212: 44 | C212: 0.87 | D212: 0.1981911289 | E212: 20.06453917
B213: 45 | C213: 0.85 | D213: 0.1870869672 | E213: 20.25162614
B214: 46 | C214: 0.85 | D214: 0.1807603548 | E214: 20.43238649
B215: 47 | C215: 0.85 | D215: 0.1746476858 | E215: 20.60703418
B216: 48 | C216: 0.85 | D216: 0.1687417254 | E216: 20.77577591
B217: 49 | C217: 0.85 | D217: 0.1630354835 | E217: 20.93881139
B218: 50 | C218: 0.85 | D218: 0.1575222062 | E218: 21.0963336
B219: 51 | C219: 0.85 | D219: 0.1521953683 | E219: 21.24852896
B220: 52 | C220: 0.85 | D220: 0.1470486651 | E220: 21.39557763
B221: 53 | C221: 0.85 | D221: 0.1420760049 | E221: 21.53765363
B222: 54 | C222: 0.85 | D222: 0.1372715023 | E222: 21.67492514
B223: 55 | C223: 0.81 | D223: 0.126388084 | E223: 21.80131322
B224: 56 | C224: 0.81 | D224: 0.1221140908 | E224: 21.92342731
B225: 57 | C225: 0.81 | D225: 0.1179846288 | E225: 22.04141194
B226: 58 | C226: 0.81 | D226: 0.1139948104 | E226: 22.15540675
B227: 59 | C227: 0.81 | D227: 0.1101399135 | E227: 22.26554666
B228: 60 | C228: 0.81 | D228: 0.1064153753 | E228: 22.37196204
B229: 61 | C229: 0.81 | D229: 0.1028167877 | E229: 22.47477883
B230: 62 | C230: 0.81 | D230: 0.09933989154 | E230: 22.57411872
B231: 63 | C231: 0.81 | D231: 0.09598057154 | E231: 22.67009929
B232: 64 | C232: 0.81 | D232: 0.09273485173 | E232: 22.76283414
B233: 65 | C233: 0.78 | D233: 0.08628041313 | E233: 22.84911455
B234: 66 | C234: 0.78 | D234: 0.083362718 | E234: 22.93247727
B235: 67 | C235: 0.78 | D235: 0.08054368889 | E235: 23.01302096
B236: 68 | C236: 0.78 | D236: 0.07781998927 | E236: 23.09084095
B237: 69 | C237: 0.78 | D237: 0.07518839543 | E237: 23.16602935
B238: 70 | C238: 0.78 | D238: 0.07264579268 | E238: 23.23867514
B239: 71 | C239: 0.78 | D239: 0.07018917167 | E239: 23.30886431
B240: 72 | C240: 0.78 | D240: 0.06781562481 | E240: 23.37667994
B241: 73 | C241: 0.78 | D241: 0.06552234281 | E241: 23.44220228
B242: 74 | C242: 0.78 | D242: 0.06330661141 | E242: 23.50550889
B243: 75 | C243: 0.71 | D243: 0.05567656893 | E243: 23.56118546
B244: 76 | C244: 0.71 | D244: 0.05379378641 | E244: 23.61497925
B245: 77 | C245: 0.71 | D245: 0.05197467286 | E245: 23.66695392
B246: 78 | C246: 0.71 | D246: 0.05021707523 | E246: 23.71717099
... 22 more rows

Sheet Cost calcs
B1: Per woman | N1: Cohort
A2: Strategy | B2: Screening Cost | C2: Treatment cost | D2: Antenatal appointments | E2: Stillbirths | F2: Neonatal death | G2: Post neonatal death | H2: CP costs | I2: IVH costs | J2: RDS Costs | K2: NICU admissions | L2: Post Neonatal discharge | N2: Total
A3: Baseline (No Screen/No Treat) | B3: 0 | C3: 0 | D3: ='Markov Transitions'!X238 -> 8.481371417 | E3: ='Markov Transitions'!W6*Cost_stillbirth -> 0 | F3: ='Markov Transitions'!W7*Cost_NND -> 0 | G3: ='Markov Transitions'!W9*Cost_NND -> 0 | H3: ='Markov Transitions'!W14*Cost_CP -> 119.07084 | I3: ='Markov Transitions'!W13*Cost_IVH -> 48.72465889 | J3: ='Markov Transitions'!W12*Cost_RDS -> 40.44378188 | K3: ='Markov Transitions'!X249 -> 1423.70381 | L3: ='Markov Transitions'!X264 -> 53.23394507 | N3: =SUM(B3:M3)*Cohort -> 1693.658408
A4: Cervical length ≤ 25mm | B4: =Cost_screening -> 142 | C4: ='Markov Transitions'!X350+'Markov Transitions'!IX339+'Markov Transitions'!X328+'Markov Transitions'!X317+'Markov Transitions'!X306 -> 2.294318182 | D4: ='Markov Transitions'!X243 -> 11.31113599 | E4: ='Markov Transitions'!W164*Cost_stillbirth -> 0 | F4: ='Markov Transitions'!W165*Cost_NND -> 0 | G4: ='Markov Transitions'!W167*Cost_NND -> 0 | H4: ='Markov Transitions'!W172*Cost_CP -> 81.37555768 | I4: ='Markov Transitions'!W171*Cost_IVH -> 23.66250244 | J4: ='Markov Transitions'!W170*Cost_RDS -> 24.69361243 | K4: ='Markov Transitions'!X254 -> 887.23607 | L4: ='Markov Transitions'!X294 -> 57.39690088 | N4: =SUM(B4:M4)*Cohort -> 1229.970098
K7: =K3-K4 -> 536.4677405

Sheet QALY calcs
B1: QALY losses | H1: Total | J1: Total QALYs
A2: Strategy | B2: Stillbirths | C2: Neonatal deaths | D2: Post-Neonatal Deaths | E2: Cerebral Palsy | F2: Intraventricular haemorrhage | G2: Respiratory distress syndrome
A3: No Screen/treatment | B3: ='Clinical calcs'!B3*QALY_stillbirth -> 0 | C3: ='Clinical calcs'!C3*QALY_NND -> 0.0590562856 | D3: ='Clinical calcs'!D3*QALY_PND -> 0.01317955758 | E3: ='Clinical calcs'!E3*QALY_CP -> 0.01405698292 | F3: ='Clinical calcs'!F3*QALY_IVH -> 0.007738440213 | G3: ='Clinical calcs'!G3*QALY_RDS -> 0.01333018519 | H3: =Cohort*SUM(B3:G3) -> 0.1073614515 | J3: =Cohort*(2*(QALY_stillbirth*SUM('Distribution Data'!$K$13:$K$17))-H3) -> 0.3967578667
A4: Cervical length ≤ 25mm | B4: ='Clinical calcs'!B4*QALY_stillbirth -> 0 | C4: ='Clinical calcs'!C4*QALY_NND -> 0.03133441142 | D4: ='Clinical calcs'!D4*QALY_PND -> 0.009281122241 | E4: ='Clinical calcs'!E4*QALY_CP -> 0.009606842654 | F4: ='Clinical calcs'!F4*QALY_IVH -> 0.003758073726 | G4: ='Clinical calcs'!G4*QALY_RDS -> 0.008138962568 | H4: =Cohort*SUM(B4:G4) -> 0.06211941261 | J4: =Cohort*(2*(QALY_stillbirth*SUM('Distribution Data'!$K$13:$K$17))-H4) -> 0.4419999056
H6: =H3-H4 -> 0.04524203891
H8: =144/H6 -> 3182.880424

Sheet Markov Transitions
I2: Baseline
J3: 24 | K3: 25 | L3: 26 | M3: 27 | N3: 28 | O3: 29 | P3: 30 | Q3: 31 | R3: 32 | S3: 33 | T3: 34 | U3: 35 | V3: 36 | W3: 37 | X3: 28 days | Y3: 1-year
I4: On-going Pregnancy | J4: =SUM('Distribution Data'!$K$13:$K$17)-J5 -> 0.008829291143 | K4: =SUM('Distribution Data'!$K$13:$K$17)-K5 -> 0.007684276965 | L4: =SUM('Distribution Data'!$K$13:$K$17)-L5 -> 0.006558238636 | M4: =SUM('Distribution Data'!$K$13:$K$17)-M5 -> 0.005491532615 | N4: =SUM('Distribution Data'!$K$13:$K$17)-N5 -> 0.004514772464 | O4: =SUM('Distribution Data'!$K$13:$K$17)-O5 -> 0.00364882885 | P4: =SUM('Distribution Data'!$K$13:$K$17)-P5 -> 0.002904829545 | Q4: =SUM('Distribution Data'!$K$13:$K$17)-Q5 -> 0.002284159428 | R4: =SUM('Distribution Data'!$K$13:$K$17)-R5 -> 0.00177846048 | S4: =SUM('Distribution Data'!$K$13:$K$17)-S5 -> 0.001369631789 | T4: =SUM('Distribution Data'!$K$13:$K$17)-T5 -> 0.001029829545 | U4: =SUM('Distribution Data'!$K$13:$K$17)-U5 -> 0.0007214670476 | V4: =SUM('Distribution Data'!$K$13:$K$17)-V5 -> 0.0003972146968 | W4: =SUM('Distribution Data'!$K$13:$K$17)-W5 -> 0
I5: Twin birth (pregnancies) | J5: ='Kindinger Smoothing and Tx'!V31 -> 0.001113890675 | K5: ='Kindinger Smoothing and Tx'!V32 -> 0.002258904853 | L5: ='Kindinger Smoothing and Tx'!V33 -> 0.003384943182 | M5: ='Kindinger Smoothing and Tx'!V34 -> 0.004451649203 | N5: ='Kindinger Smoothing and Tx'!V35 -> 0.005428409354 | O5: ='Kindinger Smoothing and Tx'!V36 -> 0.006294352968 | P5: ='Kindinger Smoothing and Tx'!V37 -> 0.007038352273 | Q5: ='Kindinger Smoothing and Tx'!V38 -> 0.00765902239 | R5: ='Kindinger Smoothing and Tx'!V39 -> 0.008164721338 | S5: ='Kindinger Smoothing and Tx'!V40 -> 0.00857355003 | T5: ='Kindinger Smoothing and Tx'!V41 -> 0.008913352273 | U5: ='Kindinger Smoothing and Tx'!V42 -> 0.009221714771 | V5: ='Kindinger Smoothing and Tx'!V43 -> 0.009545967121 | W5: ='Kindinger Smoothing and Tx'!V44 -> 0.009943181818
I6: Stillbirths | J6: =2*(J5*Stillbirth24) -> 0 | K6: =J6+(2*(K5-J5)*Stillbirth25) -> 0 | L6: =K6+(2*(L5-K5)*Stillbirth26) -> 0 | M6: =L6+(2*(M5-L5)*Stillbirth27) -> 0 | N6: =M6+(2*(N5-M5)*Stillbirth28) -> 0 | O6: =N6+(2*(O5-N5)*Stillbirth29) -> 0 | P6: =O6+(2*(P5-O5)*Stillbirth30) -> 0 | Q6: =P6+(2*(Q5-P5)*Stillbirth31) -> 0 | R6: =Q6+(2*(R5-Q5)*Stillbirth32) -> 0 | S6: =R6+(2*(S5-R5)*Stillbirth33) -> 0 | T6: =S6+(2*(T5-S5)*Stillbirth34) -> 0 | U6: =T6+(2*(U5-T5)*Stillbirth35) -> 0 | V6: =U6+(2*(V5-U5)*Stillbirth36) -> 0 | W6: =V6+(2*(W5-V5)*Stillbirth37) -> 0
I7: NND | J7: =((2*J5)-J6)*NND_24 -> 0.0009476028049 | K7: =J7+((2*(K5-J5))-(K6-J6))*NND_25 -> 0.0015384122 | L7: =K7+((2*(L5-K5))-(L6-K6))*NND_26 -> 0.001890817524 | M7: =L7+((2*(M5-L5))-(M6-L6))*NND_27 -> 0.002093299697 | N7: =M7+((2*(N5-M5))-(N6-M6))*NND_28 -> 0.002205755725 | O7: =N7+((2*(O5-N5))-(O6-N6))*NND_29 -> 0.002266225336 | P7: =O7+((2*(P5-O5))-(P6-O6))*NND_30 -> 0.00229773711 | Q7: =P7+((2*(Q5-P5))-(Q6-P6))*NND_31 -> 0.002313681721 | R7: =Q7+((2*(R5-Q5))-(R6-Q6))*NND_32 -> 0.002321561207 | S7: =R7+((2*(S5-R5))-(S6-R6))*NND_33 -> 0.002325424876 | T7: =S7+((2*(T5-S5))-(T6-S6))*NND_34 -> 0.002327372646 | U7: =T7+((2*(U5-T5))-(U6-T6))*NND_35 -> 0.002328444722 | V7: =U7+((2*(V5-U5))-(V6-U6))*NND_36 -> 0.002329128476 | W7: =V7+((2*(W5-V5))-(W6-V6))*NND_37 -> 0.002329636513
I8: NICU admission | J8: =J20*NICU24 -> 0.00222778135 | K8: =J8+(K20*NICU25) -> 0.004517809707 | L8: =K8+(L20*NICU26) -> 0.006769886364 | M8: =L8+(M20*NICU27) -> 0.008903298406 | N8: =M8+(N20*NICU28) -> 0.01085681871 | O8: =N8+(O20*NICU29) -> 0.01258870594 | P8: =O8+(P20*NICU30) -> 0.01407670455 | Q8: =P8+(Q20*NICU31) -> 0.01531804478 | R8: =Q8+(R20*NICU32) -> 0.01632944268 | S8: =R8+(S20*NICU33) -> 0.01695346361 | T8: =S8+(T20*NICU34) -> 0.01734684085 | U8: =T8+(U20*NICU35) -> 0.01760254838 | V8: =U8+(V20*NICU36) -> 0.01777800035 | W8: =V8+(W20*NICU37) -> 0.01789447416
I9: PND | J9: =J20*PND_24 -> 0.0001641261244 | K9: =J9+(K20*PND_25) -> 0.0002842103292 | L9: =K9+(L20*PND_26) -> 0.0003682662039 | M9: =L9+(M20*PND_27) -> 0.0004249422468 | N9: =M9+(N20*PND_28) -> 0.0004618810299 | O9: =N9+(O20*PND_29) -> 0.0004851900567 | P9: =O9+(P20*PND_30) -> 0.0004994443908 | Q9: =P9+(Q20*PND_31) -> 0.0005079083803 | R9: =Q9+(R20*PND_32) -> 0.000512816851 | S9: =R9+(S20*PND_33) -> 0.0005156413108 | T9: =S9+(T20*PND_34) -> 0.0005173122481 | U9: =T9+(U20*PND_35) -> 0.0005183915311 | V9: =U9+(V20*PND_36) -> 0.0005191993179 | W9: =V9+(W20*PND_37) -> 0.0005199036523
I10: RDS | J10: =J20*RDS_24 -> 0.002183225723 | K10: =J10+(K20*RDS_25) -> 0.004093461684 | L10: =K10+(L20*RDS_26) -> 0.005670030836 | M10: =L10+(M20*RDS_27) -> 0.006902486562 | N10: =M10+(N20*RDS_28) -> 0.007814930814 | O10: =N10+(O20*RDS_29) -> 0.008452620573 | P10: =O10+(P20*RDS_30) -> 0.008870862643 | Q10: =P10+(Q20*RDS_31) -> 0.00912619678 | R10: =Q10+(R20*RDS_32) -> 0.009269867148 | S10: =R10+(S20*RDS_33) -> 0.009343582106 | T10: =S10+(T20*RDS_34) -> 0.009377562331 | U10: =T10+(U20*RDS_35) -> 0.009390877265 | V10: =U10+(V20*RDS_36) -> 0.009394069904 | W10: =V10+(W20*RDS_37) -> 0.009394069904
I11: IVH | J11: =J20*IVH_24 -> 0.0005398864524 | K11: =J11+(K20*IVH_25) -> 0.001297037087 | L11: =K11+(L20*IVH_26) -> 0.001891107611 | M11: =L11+(M20*IVH_27) -> 0.002224994055 | N11: =M11+(N20*IVH_28) -> 0.002361057427 | O11: =N11+(O20*IVH_29) -> 0.002402194795 | P11: =O11+(P20*IVH_30) -> 0.002420716736 | Q11: =P11+(Q20*IVH_31) -> 0.002440508734 | R11: =Q11+(R20*IVH_32) -> 0.002455161037 | S11: =R11+(S20*IVH_33) -> 0.002456647687 | T11: =S11+(T20*IVH_34) -> 0.002456647687 | U11: =T11+(U20*IVH_35) -> 0.002456647687 | V11: =U11+(V20*IVH_36) -> 0.002456647687 | W11: =V11+(W20*IVH_37) -> 0.002456647687
I12: RDS Survive | J12: =J25*(1-RDSmort24) -> 0.002065331534 | K12: =J12+(K25*(1-RDSmort25)) -> 0.003872414753 | L12: =K12+(L25*(1-RDSmort26)) -> 0.00536384917 | M12: =L12+(M25*(1-RDSmort27)) -> 0.006529752287 | N12: =M12+(N25*(1-RDSmort28)) -> 0.00739292455 | O12: =N12+(O25*(1-RDSmort29)) -> 0.007996179062 | P12: =O12+(P25*(1-RDSmort30)) -> 0.00839183606 | Q12: =P12+(Q25*(1-RDSmort31)) -> 0.008633382154 | R12: =Q12+(R25*(1-RDSmort32)) -> 0.008769294322 | S12: =R12+(S25*(1-RDSmort33)) -> 0.008839028672 | T12: =S12+(T25*(1-RDSmort34)) -> 0.008871173965 | U12: =T12+(U25*(1-RDSmort35)) -> 0.008883769893 | V12: =U12+(V25*(1-RDSmort36)) -> 0.008886790129 | W12: =V12+(W25*(1-RDSmort37)) -> 0.008886790129
I13: IVH survive | J13: =J26*(1-IVHmort24) -> 0.0003779205167 | K13: =J13+(K26*(1-IVHmort25)) -> 0.0009079259606 | L13: =K13+(L26*(1-IVHmort26)) -> 0.001323775328 | M13: =L13+(M26*(1-IVHmort27)) -> 0.001557495838 | N13: =M13+(N26*(1-IVHmort28)) -> 0.001652740199 | O13: =N13+(O26*(1-IVHmort29)) -> 0.001681536357 | P13: =O13+(P26*(1-IVHmort30)) -> 0.001694501715 | Q13: =P13+(Q26*(1-IVHmort31)) -> 0.001708356114 | R13: =Q13+(R26*(1-IVHmort32)) -> 0.001718612726 | S13: =R13+(S26*(1-IVHmort33)) -> 0.001719653381 | T13: =S13+(T26*(1-IVHmort34)) -> 0.001719653381 | U13: =T13+(U26*(1-IVHmort35)) -> 0.001719653381 | V13: =U13+(V26*(1-IVHmort36)) -> 0.001719653381 | W13: =V13+(W26*(1-IVHmort37)) -> 0.001719653381
I14: CP | J14: =J20*CPrate24 -> 0.0002631009775 | K14: =J14+(K20*CPrate25) -> 0.0004980578868 | L14: =K14+(L20*CPrate26) -> 0.0006969162556 | M14: =L14+(M20*CPrate27) -> 0.0008573488412 | N14: =M14+(N20*CPrate28) -> 0.0009810066764 | O14: =N14+(O20*CPrate29) -> 0.001072103945 | P14: =O14+(P20*CPrate30) -> 0.001136236685 | Q14: =P14+(Q20*CPrate31) -> 0.001179435325 | R14: =Q14+(R20*CPrate32) -> 0.001207451046 | S14: =R14+(S20*CPrate33) -> 0.001225275977 | T14: =S14+(T20*CPrate34) -> 0.001236897214 | U14: =T14+(U20*CPrate35) -> 0.001245284674 | V14: =U14+(V20*CPrate36) -> 0.001252612777 | W14: =V14+(W20*CPrate37) -> 0.001260715957
J16: 0.03170049402 | K16: 0.07587689951 | L16: 0.1282604651 | M16: 0.1855561764 | N16: 0.2454427557 | O16: 0.3065726626 | P16: 0.368572093 | Q16: 0.4320409803 | R16: 0.4985529943 | S16: 0.5706555421 | T16: 0.6518697674 | U16: 0.746690551 | V16: 0.8605865103 | W16: 1
I19: Stillbirths per GA | J19: =J6 -> 0 | K19: =K6-J6 -> 0 | L19: =L6-K6 -> 0 | M19: 0 | N19: 0 | O19: 0 | P19: 0 | Q19: 0 | R19: 0 | S19: 0 | T19: 0 | U19: 0 | V19: 0 | W19: 0
I20: Live births per GA | J20: =(2*J5)-J19 -> 0.00222778135 | K20: =2*(K5-J5)-K19 -> 0.002290028356 | L20: =2*(L5-K5)-L19 -> 0.002252076657 | M20: =2*(M5-L5)-M19 -> 0.002133412043 | N20: 0.001953520303 | O20: 0.001731887228 | P20: 0.001487998609 | Q20: 0.001241340234 | R20: 0.001011397896 | S20: 0.0008176573832 | T20: 0.0006796044864 | U20: 0.0006167249958 | V20: 0.0006485047015 | W20: =2*(W5-V5)-W19 -> 0.0007944293937
I21: NND per GA | J21: =J20*NND_24 -> 0.0009476028049 | K21: =K20*NND_25 -> 0.0005908093949 | L21: =L20*NND_26 -> 0.0003524053239 | M21: =M20*NND_27 -> 0.000202482173 | N21: =N20*NND_28 -> 0.0001124560278 | O21: =O20*NND_29 -> 6.04696115e-05 | P21: =P20*NND_30 -> 3.1511774e-05 | Q21: =Q20*NND_31 -> 1.594461066e-05 | R21: =R20*NND_32 -> 7.879486066e-06 | S21: =S20*NND_33 -> 3.863669484e-06 | T21: =T20*NND_34 -> 1.947769681e-06 | U21: =U20*NND_35 -> 1.072076247e-06 | V21: =V20*NND_36 -> 6.837542065e-07 | W21: =W20*NND_37 -> 5.080365356e-07
I22: NICU admission per GA | J22: =J20*NICU24 -> 0.00222778135 | K22: =K20*NICU25 -> 0.002290028356 | L22: =L20*NICU26 -> 0.002252076657 | M22: =M20*NICU27 -> 0.002133412043 | N22: =N20*NICU28 -> 0.001953520303 | O22: =O20*NICU29 -> 0.001731887228 | P22: =P20*NICU30 -> 0.001487998609 | Q22: =Q20*NICU31 -> 0.001241340234 | R22: =R20*NICU32 -> 0.001011397896 | S22: =S20*NICU33 -> 0.0006240209331 | T22: =T20*NICU34 -> 0.0003933772446 | U22: =U20*NICU35 -> 0.0002557075273 | V22: =V20*NICU36 -> 0.0001754519659 | W22: =W20*NICU37 -> 0.0001164738112
I23: PND per GA | J23: =J20*PND_24 -> 0.0001641261244 | K23: =K20*PND_25 -> 0.0001200842048 | L23: =L20*PND_26 -> 8.405587468e-05 | M23: =M20*PND_27 -> 5.667604299e-05 | N23: =N20*PND_28 -> 3.69387831e-05 | O23: =O20*PND_29 -> 2.330902677e-05 | P23: =P20*PND_30 -> 1.425433405e-05 | Q23: =Q20*PND_31 -> 8.46398949e-06 | R23: =R20*PND_32 -> 4.908470728e-06 | S23: =S20*PND_33 -> 2.824459803e-06 | T23: =T20*PND_34 -> 1.670937282e-06 | U23: =U20*PND_35 -> 1.079283006e-06 | V23: =V20*PND_36 -> 8.077868763e-07 | W23: =W20*PND_37 -> 7.043343105e-07
I24: Surviving Babies | X24: =(W5*2)-(W6+W7) -> 0.01755672712 | Y24: =X24-W9 -> 0.01703682347
I25: RDS per GA | J25: =J20*RDS_24 -> 0.002183225723 | K25: =K20*RDS_25 -> 0.001910235961 | L25: =L20*RDS_26 -> 0.001576569151 | M25: =M20*RDS_27 -> 0.001232455726 | N25: =N20*RDS_28 -> 0.0009124442522 | O25: =O20*RDS_29 -> 0.0006376897588 | P25: =P20*RDS_30 -> 0.0004182420704 | Q25: =Q20*RDS_31 -> 0.0002553341375 | R25: =R20*RDS_32 -> 0.0001436703678 | S25: =S20*RDS_33 -> 7.371495793e-05 | T25: =T20*RDS_34 -> 3.398022432e-05 | U25: =U20*RDS_35 -> 1.331493452e-05 | V25: =V20*RDS_36 -> 3.19263853e-06 | W25: =W20*RDS_37 -> 0
I26: IVH per GA | J26: =J20*IVH_24 -> 0.0005398864524 | K26: =K20*IVH_25 -> 0.0007571506342 | L26: =L20*IVH_26 -> 0.0005940705242 | M26: =M20*IVH_27 -> 0.0003338864441 | N26: =N20*IVH_28 -> 0.0001360633721 | O26: =O20*IVH_29 -> 4.113736796e-05 | P26: =P20*IVH_30 -> 1.852194072e-05 | Q26: =Q20*IVH_31 -> 1.979199814e-05 | R26: =R20*IVH_32 -> 1.465230285e-05 | S26: =S20*IVH_33 -> 1.486649798e-06 | T26: =T20*IVH_34 -> 0 | U26: =U20*IVH_35 -> 0 | V26: =V20*IVH_36 -> 0 | W26: =W20*IVH_37 -> 0
I27: RDS Survive per GA | J27: =J25*(1-RDSmort24) -> 0.002065331534 | K27: =K25*(1-RDSmort25) -> 0.001807083219 | L27: =L25*(1-RDSmort26) -> 0.001491434417 | M27: =M25*(1-RDSmort27) -> 0.001165903117 | N27: =N25*(1-RDSmort28) -> 0.0008631722626 | O27: =O25*(1-RDSmort29) -> 0.0006032545119 | P27: =P25*(1-RDSmort30) -> 0.0003956569986 | Q27: =Q25*(1-RDSmort31) -> 0.000241546094 | R27: =R25*(1-RDSmort32) -> 0.0001359121679 | S27: =S25*(1-RDSmort33) -> 6.97343502e-05 | T27: =T25*(1-RDSmort34) -> 3.214529221e-05 | U27: =U25*(1-RDSmort35) -> 1.259592806e-05 | V27: =V25*(1-RDSmort36) -> 3.02023605e-06 | W27: =W25*(1-RDSmort37) -> 0
I28: IVH survive per GA | J28: =J26*(1-IVHmort24) -> 0.0003779205167 | K28: =K26*(1-IVHmort25) -> 0.0005300054439 | L28: =L26*(1-IVHmort26) -> 0.000415849367 | M28: =M26*(1-IVHmort27) -> 0.0002337205109 | N28: =N26*(1-IVHmort28) -> 9.52443605e-05 | O28: =O26*(1-IVHmort29) -> 2.879615757e-05 | P28: =P26*(1-IVHmort30) -> 1.29653585e-05 | Q28: =Q26*(1-IVHmort31) -> 1.38543987e-05 | R28: =R26*(1-IVHmort32) -> 1.0256612e-05 | S28: =S26*(1-IVHmort33) -> 1.040654859e-06 | T28: =T26*(1-IVHmort34) -> 0 | U28: =U26*(1-IVHmort35) -> 0 | V28: =V26*(1-IVHmort36) -> 0 | W28: =W26*(1-IVHmort37) -> 0
I29: CP per GA | J29: =J20*CPrate24 -> 0.0002631009775 | K29: =K20*CPrate25 -> 0.0002349569094 | L29: =L20*CPrate26 -> 0.0001988583688 | M29: =M20*CPrate27 -> 0.0001604325856 | N29: =N20*CPrate28 -> 0.0001236578352 | O29: =O20*CPrate29 -> 9.109726819e-05 | P29: =P20*CPrate30 -> 6.413274003e-05 | Q29: =Q20*CPrate31 -> 4.319864016e-05 | R29: =R20*CPrate32 -> 2.801572172e-05 | S29: =S20*CPrate33 -> 1.782493095e-05 | T29: =T20*CPrate34 -> 1.162123672e-05 | U29: =U20*CPrate35 -> 8.387459943e-06 | V29: =V20*CPrate36 -> 7.328103127e-06 | W29: =W20*CPrate37 -> 8.103179815e-06
I36: Screening threshold: CL = 5mm
I38: On-going Pregnancy | J38: =SUM('Distribution Data'!$K$13:$K$17)-J39 -> 0.008965436256 | K38: =SUM('Distribution Data'!$K$13:$K$17)-K39 -> 0.007963134021 | L38: =SUM('Distribution Data'!$K$13:$K$17)-L39 -> 0.006965515926 | M38: =SUM('Distribution Data'!$K$13:$K$17)-M39 -> 0.0059971637 | N38: =SUM('Distribution Data'!$K$13:$K$17)-N39 -> 0.005077999988 | O38: =SUM('Distribution Data'!$K$13:$K$17)-O39 -> 0.004223288352 | P38: =SUM('Distribution Data'!$K$13:$K$17)-P39 -> 0.003443633273 | Q38: =SUM('Distribution Data'!$K$13:$K$17)-Q39 -> 0.002744980144 | R38: =SUM('Distribution Data'!$K$13:$K$17)-R39 -> 0.002128615278 | S38: =SUM('Distribution Data'!$K$13:$K$17)-S39 -> 0.001591165906 | T38: =SUM('Distribution Data'!$K$13:$K$17)-T39 -> 0.001124600171 | U38: =SUM('Distribution Data'!$K$13:$K$17)-U39 -> 0.0007162271359 | V38: =SUM('Distribution Data'!$K$13:$K$17)-V39 -> 0.0003807730672 | W38: =SUM('Distribution Data'!$K$13:$K$17)-W39 -> 0
I39: Twin birth (pregnancies) | J39: ='Markov Transitions 1.7'!G4 -> 0.0009777455624 | K39: ='Markov Transitions 1.7'!G5 -> 0.001980047797 | L39: ='Markov Transitions 1.7'!G6 -> 0.002977665892 | M39: ='Markov Transitions 1.7'!G7 -> 0.003946018118 | N39: ='Markov Transitions 1.7'!G8 -> 0.00486518183 | O39: ='Markov Transitions 1.7'!G9 -> 0.005719893466 | P39: ='Markov Transitions 1.7'!G10 -> 0.006499548546 | Q39: ='Markov Transitions 1.7'!G11 -> 0.007198201674 | R39: ='Markov Transitions 1.7'!G12 -> 0.00781456654 | S39: ='Markov Transitions 1.7'!G13 -> 0.008352015913 | T39: ='Markov Transitions 1.7'!G14 -> 0.008818581648 | U39: ='Markov Transitions 1.7'!G15 -> 0.009226954682 | V39: ='Markov Transitions 1.7'!G16 -> 0.009562408751 | W39: ='Markov Transitions 1.7'!G17 -> 0.009943181818
I40: Stillbirths | J40: =2*(J39*Stillbirth24) -> 0 | K40: =J40+(2*(K39-J39)*Stillbirth25) -> 0 | L40: =K40+(2*(L39-K39)*Stillbirth26) -> 0 | M40: =L40+(2*(M39-L39)*Stillbirth27) -> 0 | N40: =M40+(2*(N39-M39)*Stillbirth28) -> 0 | O40: =N40+(2*(O39-N39)*Stillbirth29) -> 0 | P40: =O40+(2*(P39-O39)*Stillbirth30) -> 0 | Q40: =P40+(2*(Q39-P39)*Stillbirth31) -> 0 | R40: =Q40+(2*(R39-Q39)*Stillbirth32) -> 0 | S40: =R40+(2*(S39-R39)*Stillbirth33) -> 0 | T40: =S40+(2*(T39-S39)*Stillbirth34) -> 0 | U40: =T40+(2*(U39-T39)*Stillbirth35) -> 0 | V40: =U40+(2*(V39-U39)*Stillbirth36) -> 0 | W40: =V40+(2*(W39-V39)*Stillbirth37) -> 0
I41: NND | J41: =((2*J39)-J40)*NND_24 -> 0.0008317822011 | K41: =J41+((2*(K39-J39))-(K40-J40))*NND_25 -> 0.001348954467 | L41: =K41+((2*(L39-K39))-(L40-K40))*NND_26 -> 0.001661169352 | M41: =L41+((2*(M39-L39))-(M40-L40))*NND_27 -> 0.001844982005 | N41: =M41+((2*(N39-M39))-(N40-M40))*NND_28 -> 0.001950806858 | O41: =N41+((2*(O39-N39))-(O40-N40))*NND_29 -> 0.002010492131 | P41: =O41+((2*(P39-O39))-(P40-O40))*NND_30 -> 0.00204351409 | Q41: =P41+((2*(Q39-P39))-(Q40-P40))*NND_31 -> 0.002061462033 | R41: =Q41+((2*(R39-Q39))-(R40-Q40))*NND_32 -> 0.002071065847 | S41: =R41+((2*(S39-R39))-(S40-R40))*NND_33 -> 0.002076145057 | T41: =S41+((2*(T39-S39))-(T40-S40))*NND_34 -> 0.002078819443 | U41: =T41+((2*(U39-T39))-(U40-T40))*NND_35 -> 0.002080239224 | V41: =U41+((2*(V39-U39))-(V40-U40))*NND_36 -> 0.002080946599 | W41: =V41+((2*(W39-V39))-(W40-V40))*NND_37 -> 0.002081433607
I42: NICU admission | J42: =J54*NICU24 -> 0.001955491125 | K42: =J42+(K54*NICU25) -> 0.003960095594 | L42: =K42+(L54*NICU26) -> 0.005955331784 | M42: =L42+(M54*NICU27) -> 0.007892036237 | N42: =M42+(N54*NICU28) -> 0.009730363661 | O42: =N42+(O54*NICU29) -> 0.01143978693 | P42: =O42+(P54*NICU30) -> 0.01299909709 | Q42: =P42+(Q54*NICU31) -> 0.01439640335 | R42: =Q42+(R54*NICU32) -> 0.01562913308 | S42: =R42+(S54*NICU33) -> 0.01644947584 | T42: =S42+(T54*NICU34) -> 0.01698960278 | U42: =T42+(U54*NICU35) -> 0.01732824337 | V42: =U42+(V54*NICU36) -> 0.01750975655 | W42: =V42+(W54*NICU37) -> 0.01762140924
I43: PND | J43: =J54*PND_24 -> 0.0001440658346 | K43: =J43+(K54*PND_25) -> 0.0002491830193 | L43: =K43+(L54*PND_26) -> 0.0003236526528 | M43: =L43+(M54*PND_27) -> 0.0003751029786 | N43: =M43+(N54*PND_28) -> 0.0004098635992 | O43: =N43+(O54*PND_29) -> 0.0004328702893 | P43: =O43+(P54*PND_30) -> 0.0004478077548 | Q43: =P43+(Q54*PND_31) -> 0.0004573351875 | R43: =Q43+(R54*PND_32) -> 0.0004633178159 | S43: =R43+(S54*PND_33) -> 0.0004670308727 | T43: =S43+(T54*PND_34) -> 0.0004693251544 | U43: =T43+(U54*PND_35) -> 0.0004707544789 | V43: =U43+(V54*PND_36) -> 0.0004715901718 | W43: =V43+(W54*PND_37) -> 0.0004722653521
I44: RDS | J44: =J54*RDS_24 -> 0.001916381302 | K44: =J44+(K54*RDS_25) -> 0.003588529831 | L44: =K44+(L54*RDS_26) -> 0.004985297484 | M44: =L44+(M54*RDS_27) -> 0.006104116748 | N44: =M44+(N54*RDS_28) -> 0.006962757065 | O44: =N44+(O54*RDS_29) -> 0.007592175479 | P44: =O44+(P54*RDS_30) -> 0.008030461581 | Q44: =P44+(Q54*RDS_31) -> 0.00831787673 | R44: =Q44+(R54*RDS_32) -> 0.008492987568 | S44: =R44+(S54*RDS_33) -> 0.008589893825 | T44: =S44+(T54*RDS_34) -> 0.008636550398 | U44: =T44+(U54*RDS_35) -> 0.008654183736 | V44: =U44+(V54*RDS_36) -> 0.008657486669 | W44: =V44+(W54*RDS_37) -> 0.008657486669
I45: IVH | J45: =J54*IVH_24 -> 0.0004738989156 | K45: =J45+(K54*IVH_25) -> 0.00113668003 | L45: =K45+(L54*IVH_26) -> 0.001662999152 | M45: =L45+(M54*IVH_27) -> 0.00196610017 | N45: =M45+(N54*IVH_28) -> 0.002094140318 | O45: =N45+(O54*IVH_29) -> 0.002134744102 | P45: =O45+(P54*IVH_30) -> 0.002154153697 | Q45: =P45+(Q54*IVH_31) -> 0.002176432426 | R45: =Q45+(R54*IVH_32) -> 0.002194291203 | S45: =R45+(S54*IVH_33) -> 0.002196245564 | T45: =S45+(T54*IVH_34) -> 0.002196245564 | U45: =T45+(U54*IVH_35) -> 0.002196245564 | V45: =U45+(V54*IVH_36) -> 0.002196245564 | W45: =V45+(W54*IVH_37) -> 0.002196245564
I46: RDS Survive | J46: =J59*(1-RDSmort24) -> 0.001812896712 | K46: =J46+(K59*(1-RDSmort25)) -> 0.00339474922 | L46: =K46+(L59*(1-RDSmort26)) -> 0.004716091419 | M46: =L46+(M59*(1-RDSmort27)) -> 0.005774494444 | N46: =M46+(N59*(1-RDSmort28)) -> 0.006586768183 | O46: =N46+(O59*(1-RDSmort29)) -> 0.007182198003 | P46: =O46+(P59*(1-RDSmort30)) -> 0.007596816656 | Q46: =P46+(Q59*(1-RDSmort31)) -> 0.007868711386 | R46: =Q46+(R59*(1-RDSmort32)) -> 0.00803436624 | S46: =R46+(S59*(1-RDSmort33)) -> 0.008126039558 | T46: =S46+(T59*(1-RDSmort34)) -> 0.008170176677 | U46: =T46+(U59*(1-RDSmort35)) -> 0.008186857815 | V46: =U46+(V59*(1-RDSmort36)) -> 0.008189982389 | W46: =V46+(W59*(1-RDSmort37)) -> 0.008189982389
I47: IVH survive | J47: =J60*(1-IVHmort24) -> 0.0003317292409 | K47: =J47+(K60*(1-IVHmort25)) -> 0.0007956760208 | L47: =K47+(L60*(1-IVHmort26)) -> 0.001164099406 | M47: =L47+(M60*(1-IVHmort27)) -> 0.001376270119 | N47: =M47+(N60*(1-IVHmort28)) -> 0.001465898223 | O47: =N47+(O60*(1-IVHmort29)) -> 0.001494320871 | P47: =O47+(P60*(1-IVHmort30)) -> 0.001507907588 | Q47: =P47+(Q60*(1-IVHmort31)) -> 0.001523502698 | R47: =Q47+(R60*(1-IVHmort32)) -> 0.001536003842 | S47: =R47+(S60*(1-IVHmort33)) -> 0.001537371895 | T47: =S47+(T60*(1-IVHmort34)) -> 0.001537371895 | U47: =T47+(U60*(1-IVHmort35)) -> 0.001537371895 | V47: =U47+(V60*(1-IVHmort36)) -> 0.001537371895 | W47: =V47+(W60*(1-IVHmort37)) -> 0.001537371895
I48: CP | J48: =J54*CPrate24 -> 0.0002309435018 | K48: =J48+(K54*CPrate25) -> 0.0004366159204 | L48: =K48+(L54*CPrate26) -> 0.000612795276 | M48: =L48+(M54*CPrate27) -> 0.0007584354508 | N48: =M48+(N54*CPrate28) -> 0.0008748015768 | O48: =N48+(O54*CPrate29) -> 0.0009647172408 | P48: =O48+(P54*CPrate30) -> 0.001031923509 | Q48: =P48+(Q54*CPrate31) -> 0.001080549766 | R48: =Q48+(R54*CPrate32) -> 0.00111469638 | S48: =R48+(S54*CPrate33) -> 0.001138129173 | T48: =S48+(T54*CPrate34) -> 0.001154085721 | U48: =T48+(U54*CPrate35) -> 0.001165193467 | V48: =U48+(V54*CPrate36) -> 0.001172774729 | W48: =V48+(W54*CPrate37) -> 0.0011805425
I53: Stillbirths per GA | J53: =J40 -> 0 | K53: =K40-J40 -> 0 | L53: 0 | M53: 0 | N53: 0 | O53: 0 | P53: 0 | Q53: 0 | R53: 0 | S53: 0 | T53: 0 | U53: 0 | V53: 0 | W53: 0
I54: Live births per GA | J54: =(2*J39)-J53 -> 0.001955491125 | K54: =2*(K39-J39)-K53 -> 0.00200460447 | L54: 0.00199523619 | M54: 0.001936704453 | N54: 0.001838327424 | O54: 0.001709423271 | P54: 0.00155931016 | Q54: 0.001397306257 | R54: 0.001232729731 | S54: 0.001074898746 | T54: 0.00093313147 | U54: 0.0008167460694 | V54: 0.0006709081372 | W54: 0.0007615461345
I55: NND per GA | J55: =J54*NND_24 -> 0.0008317822011 | K55: =K54*NND_25 -> 0.0005171722658 | L55: =L54*NND_26 -> 0.0003122148856 | M55: =M54*NND_27 -> 0.0001838126523 | N55: =N54*NND_28 -> 0.0001058248535 | O55: =O54*NND_29 -> 5.968527245e-05 | P55: =P54*NND_30 -> 3.30219592e-05 | Q55: =Q54*NND_31 -> 1.794794338e-05 | R55: =R54*NND_32 -> 9.603813469e-06 | S55: =S54*NND_33 -> 5.079209909e-06 | T55: =T54*NND_34 -> 2.674386679e-06 | U55: =U54*NND_35 -> 1.419780399e-06 | V55: =V54*NND_36 -> 7.073753822e-07 | W55: =W54*NND_37 -> 4.870077353e-07
I56: NICU admission per GA | J56: =J54*NICU24 -> 0.001955491125 | K56: =K54*NICU25 -> 0.00200460447 | L56: =L54*NICU26 -> 0.00199523619 | M56: =M54*NICU27 -> 0.001936704453 | N56: =N54*NICU28 -> 0.001838327424 | O56: =O54*NICU29 -> 0.001709423271 | P56: =P54*NICU30 -> 0.00155931016 | Q56: =Q54*NICU31 -> 0.001397306257 | R56: =R54*NICU32 -> 0.001232729731 | S56: =S54*NICU33 -> 0.0008203427649 | T56: =T54*NICU34 -> 0.0005401269324 | U56: =U54*NICU35 -> 0.0003386405922 | V56: =V54*NICU36 -> 0.0001815131815 | W56: =W54*NICU37 -> 0.0001116526924
I57: PND per GA | J57: =J54*PND_24 -> 0.0001440658346 | K57: =K54*PND_25 -> 0.0001051171847 | L57: =L54*PND_26 -> 7.446963345e-05 | M57: =M54*PND_27 -> 5.145032587e-05 | N57: =N54*PND_28 -> 3.476062055e-05 | O57: =O54*PND_29 -> 2.300669012e-05 | P57: =P54*PND_30 -> 1.493746552e-05 | Q57: =Q54*PND_31 -> 9.527432649e-06 | R57: =R54*PND_32 -> 5.982628422e-06 | S57: =S54*PND_33 -> 3.713056792e-06 | T57: =T54*PND_34 -> 2.294281738e-06 | U57: =U54*PND_35 -> 1.42932451e-06 | V57: =V54*PND_36 -> 8.356929213e-07 | W57: =W54*PND_37 -> 6.75180294e-07
I58: Surviving Babies | X58: =(W39*2)-(W40+W41) -> 0.01780493003 | Y58: =X58-W43 -> 0.01733266468
I59: RDS per GA | J59: =J54*RDS_24 -> 0.001916381302 | K59: =K54*RDS_25 -> 0.001672148528 | L59: =L54*RDS_26 -> 0.001396767653 | M59: =M54*RDS_27 -> 0.001118819264 | N59: =N54*RDS_28 -> 0.0008586403168 | O59: =O54*RDS_29 -> 0.0006294184146 | P59: =P54*RDS_30 -> 0.0004382861018 | Q59: =Q54*RDS_31 -> 0.0002874151486 | R59: =R54*RDS_32 -> 0.0001751108387 | S59: =S54*RDS_33 -> 9.690625617e-05 | T59: =T54*RDS_34 -> 4.66565735e-05 | U59: =U54*RDS_35 -> 1.763333822e-05 | V59: =V54*RDS_36 -> 3.302932368e-06 | W59: =W54*RDS_37 -> 0
I60: IVH per GA | J60: =J54*IVH_24 -> 0.0004738989156 | K60: =K54*IVH_25 -> 0.0006627811141 | L60: =L54*IVH_26 -> 0.0005263191222 | M60: =M54*IVH_27 -> 0.0003031010185 | N60: =N54*IVH_28 -> 0.0001280401479 | O60: =O54*IVH_29 -> 4.060378352e-05 | P60: =P54*IVH_30 -> 1.940959499e-05 | Q60: =Q54*IVH_31 -> 2.227872914e-05 | R60: =R54*IVH_32 -> 1.785877687e-05 | S60: =S54*IVH_33 -> 1.95436137e-06 | T60: =T54*IVH_34 -> 0 | U60: =U54*IVH_35 -> 0 | V60: =V54*IVH_36 -> 0 | W60: =W54*IVH_37 -> 0
I61: RDS Survive per GA | J61: =J59*(1-RDSmort24) -> 0.001812896712 | K61: =K59*(1-RDSmort25) -> 0.001581852508 | L61: =L59*(1-RDSmort26) -> 0.0013213422 | M61: =M59*(1-RDSmort27) -> 0.001058403024 | N61: =N59*(1-RDSmort28) -> 0.0008122737396 | O61: =O59*(1-RDSmort29) -> 0.0005954298202 | P61: =P59*(1-RDSmort30) -> 0.0004146186523 | Q61: =Q59*(1-RDSmort31) -> 0.0002718947306 | R61: =R59*(1-RDSmort32) -> 0.0001656548534 | S61: =S59*(1-RDSmort33) -> 9.167331834e-05 | T61: =T59*(1-RDSmort34) -> 4.413711853e-05 | U61: =U59*(1-RDSmort35) -> 1.668113795e-05 | V61: =V59*(1-RDSmort36) -> 3.12457402e-06 | W61: =W59*(1-RDSmort37) -> 0
I62: IVH survive per GA | J62: =J60*(1-IVHmort24) -> 0.0003317292409 | K62: =K60*(1-IVHmort25) -> 0.0004639467799 | L62: =L60*(1-IVHmort26) -> 0.0003684233856 | M62: =M60*(1-IVHmort27) -> 0.000212170713 | N62: =N60*(1-IVHmort28) -> 8.96281035e-05 | O62: =O60*(1-IVHmort29) -> 2.842264846e-05 | P62: =P60*(1-IVHmort30) -> 1.358671649e-05 | Q62: =Q60*(1-IVHmort31) -> 1.559511039e-05 | R62: =R60*(1-IVHmort32) -> 1.250114381e-05 | S62: =S60*(1-IVHmort33) -> 1.368052959e-06 | T62: =T60*(1-IVHmort34) -> 0 | U62: =U60*(1-IVHmort35) -> 0 | V62: =V60*(1-IVHmort36) -> 0 | W62: =W60*(1-IVHmort37) -> 0
I63: CP per GA | J63: =J54*CPrate24 -> 0.0002309435018 | K63: =K54*CPrate25 -> 0.0002056724186 | L63: =L54*CPrate26 -> 0.0001761793556 | M63: =M54*CPrate27 -> 0.0001456401748 | N63: =N54*CPrate28 -> 0.0001163661259 | O63: =O54*CPrate29 -> 8.991566404e-05 | P63: =P54*CPrate30 -> 6.720626788e-05 | Q63: =Q54*CPrate31 -> 4.862625776e-05 | R63: =R54*CPrate32 -> 3.414661354e-05 | S63: =S54*CPrate33 -> 2.343279266e-05 | T63: =T54*CPrate34 -> 1.595654814e-05 | U63: =U54*CPrate35 -> 1.110774654e-05 | V63: =V54*CPrate36 -> 7.581261951e-06 | W63: =W54*CPrate37 -> 7.767770572e-06
I67: Screening threshold: CL = 10mm
I69: On-going Pregnancy | J69: =SUM('Distribution Data'!$K$13:$K$17)-J70 -> 0.009071175943 | K69: =SUM('Distribution Data'!$K$13:$K$17)-K70 -> 0.008194509233 | L69: =SUM('Distribution Data'!$K$13:$K$17)-L70 -> 0.00731843854 | M69: =SUM('Distribution Data'!$K$13:$K$17)-M70 -> 0.006448995482 | N69: =SUM('Distribution Data'!$K$13:$K$17)-N70 -> 0.005592986446 | O69: =SUM('Distribution Data'!$K$13:$K$17)-O70 -> 0.004757992587 | P69: =SUM('Distribution Data'!$K$13:$K$17)-P70 -> 0.003952369827 | Q69: =SUM('Distribution Data'!$K$13:$K$17)-Q70 -> 0.003185248856 | R69: =SUM('Distribution Data'!$K$13:$K$17)-R70 -> 0.002466535132 | S69: =SUM('Distribution Data'!$K$13:$K$17)-S70 -> 0.001806908882 | T69: =SUM('Distribution Data'!$K$13:$K$17)-T70 -> 0.001217825097 | U69: =SUM('Distribution Data'!$K$13:$K$17)-U70 -> 0.0007115135414 | V69: =SUM('Distribution Data'!$K$13:$K$17)-V70 -> 0.0003561990718 | W69: =SUM('Distribution Data'!$K$13:$K$17)-W70 -> 0
I70: Twin birth (pregnancies) | J70: ='Markov Transitions 1.7'!L4 -> 0.0008720058756 | K70: ='Markov Transitions 1.7'!L5 -> 0.001748672585 | L70: ='Markov Transitions 1.7'!L6 -> 0.002624743279 | M70: ='Markov Transitions 1.7'!L7 -> 0.003494186336 | N70: ='Markov Transitions 1.7'!L8 -> 0.004350195372 | O70: ='Markov Transitions 1.7'!L9 -> 0.005185189231 | P70: ='Markov Transitions 1.7'!L10 -> 0.005990811991 | Q70: ='Markov Transitions 1.7'!L11 -> 0.006757932962 | R70: ='Markov Transitions 1.7'!L12 -> 0.007476646686 | S70: ='Markov Transitions 1.7'!L13 -> 0.008136272937 | T70: ='Markov Transitions 1.7'!L14 -> 0.008725356721 | U70: ='Markov Transitions 1.7'!L15 -> 0.009231668277 | V70: ='Markov Transitions 1.7'!L16 -> 0.009586982746 | W70: ='Markov Transitions 1.7'!L17 -> 0.009943181818
I71: Stillbirths | J71: =2*(J70*Stillbirth24) -> 0 | K71: =J71+(2*(K70-J70)*Stillbirth25) -> 0 | L71: =K71+(2*(L70-K70)*Stillbirth26) -> 0 | M71: =L71+(2*(M70-L70)*Stillbirth27) -> 0 | N71: =M71+(2*(N70-M70)*Stillbirth28) -> 0 | O71: =N71+(2*(O70-N70)*Stillbirth29) -> 0 | P71: =O71+(2*(P70-O70)*Stillbirth30) -> 0 | Q71: =P71+(2*(Q70-P70)*Stillbirth31) -> 0 | R71: =Q71+(2*(R70-Q70)*Stillbirth32) -> 0 | S71: =R71+(2*(S70-R70)*Stillbirth33) -> 0 | T71: =S71+(2*(T70-S70)*Stillbirth34) -> 0 | U71: =T71+(2*(U70-T70)*Stillbirth35) -> 0 | V71: =U71+(2*(V70-U70)*Stillbirth36) -> 0 | W71: =V71+(2*(W70-V70)*Stillbirth37) -> 0
I72: NND | J72: =((2*J70)-J71)*NND_24 -> 0.0007418279299 | K72: =J72+((2*(K70-J70))-(K71-J71))*NND_25 -> 0.001194174231 | L72: =K72+((2*(L70-K70))-(L71-K71))*NND_26 -> 0.001468349602 | M72: =L72+((2*(M70-L70))-(M71-L71))*NND_27 -> 0.001633387313 | N72: =M72+((2*(N70-M70))-(N71-M71))*NND_28 -> 0.001731941063 | O72: =N72+((2*(O70-N70))-(O71-N71))*NND_29 -> 0.001790249425 | P72: =O72+((2*(P70-O70))-(P71-O71))*NND_30 -> 0.001824371235 | Q72: =P72+((2*(Q70-P70))-(Q71-P71))*NND_31 -> 0.001844078072 | R72: =Q72+((2*(R70-Q70))-(R71-Q71))*NND_32 -> 0.001855276622 | S72: =R72+((2*(S70-R70))-(S71-R71))*NND_33 -> 0.001861510475 | T72: =S72+((2*(T70-S70))-(T71-S71))*NND_34 -> 0.001864887143 | U72: =T72+((2*(U70-T70))-(U71-T71))*NND_35 -> 0.001866647424 | V72: =U72+((2*(V70-U70))-(V71-U71))*NND_36 -> 0.001867396679 | W72: =V72+((2*(W70-V70))-(W71-V71))*NND_37 -> 0.001867852257
I73: NICU admission | J73: =J85*NICU24 -> 0.001744011751 | K73: =J73+(K85*NICU25) -> 0.003497345171 | L73: =K73+(L85*NICU26) -> 0.005249486557 | M73: =L73+(M85*NICU27) -> 0.006988372672 | N73: =M73+(N85*NICU28) -> 0.008700390743 | O73: =N73+(O85*NICU29) -> 0.01037037846 | P73: =O73+(P85*NICU30) -> 0.01198162398 | Q73: =P73+(Q85*NICU31) -> 0.01351586592 | R73: =Q73+(R85*NICU32) -> 0.01495329337 | S73: =R73+(S85*NICU33) -> 0.01596012239 | T73: =S73+(T85*NICU34) -> 0.0166420842 | U73: =T73+(U85*NICU35) -> 0.01706193966 | V73: =U73+(V85*NICU36) -> 0.01725419924 | W73: =V73+(W85*NICU37) -> 0.01735864619
I74: PND | J74: =J85*PND_24 -> 0.0001284856297 | K74: =J74+(K85*PND_25) -> 0.0002204266962 | L74: =K74+(L85*PND_26) -> 0.0002858231277 | M74: =L74+(M85*PND_27) -> 0.0003320182284 | N74: =M74+(N85*PND_28) -> 0.0003643904869 | O74: =N74+(O85*PND_29) -> 0.000386866424 | P74: =O74+(P85*PND_30) -> 0.0004023014061 | Q74: =P74+(Q85*PND_31) -> 0.0004127625249 | R74: =Q74+(R85*PND_32) -> 0.0004197385831 | S74: =R74+(S85*PND_33) -> 0.0004242957188 | T74: =S74+(T85*PND_34) -> 0.0004271924685 | U74: =T74+(U85*PND_35) -> 0.0004289645824 | V74: =U74+(V85*PND_36) -> 0.0004298497521 | W74: =V74+(W85*PND_37) -> 0.0004304813582
I75: RDS | J75: =J85*RDS_24 -> 0.001709131516 | K75: =J75+(K85*RDS_25) -> 0.003171681332 | L75: =K75+(L85*RDS_26) -> 0.004398270155 | M75: =L75+(M85*RDS_27) -> 0.005402811288 | N75: =M75+(N85*RDS_28) -> 0.006202455421 | O75: =N75+(O85*RDS_29) -> 0.006817353463 | P75: =O75+(P85*RDS_30) -> 0.007270237396 | Q75: =P75+(Q85*RDS_31) -> 0.007585819162 | R75: =Q75+(R85*RDS_32) -> 0.007790007574 | S75: =R75+(S85*RDS_33) -> 0.007908943261 | T75: =S75+(T85*RDS_34) -> 0.007967851639 | U75: =T75+(U85*RDS_35) -> 0.007989713912 | V75: =U75+(V85*RDS_36) -> 0.007993212393 | W75: =V75+(W85*RDS_37) -> 0.007993212393
I76: IVH | J76: =J85*IVH_24 -> 0.0004226484422 | K76: =J76+(K85*IVH_25) -> 0.001002351967 | L76: =K76+(L85*IVH_26) -> 0.001464545627 | M76: =L76+(M85*IVH_27) -> 0.001736687384 | N76: =M76+(N85*IVH_28) -> 0.001855930041 | O76: =N76+(O85*IVH_29) -> 0.001895597115 | P76: =O76+(P85*IVH_30) -> 0.001915653179 | Q76: =P76+(Q85*IVH_31) -> 0.001940115218 | R76: =Q76+(R85*IVH_32) -> 0.001960939487 | S76: =R76+(S85*IVH_33) -> 0.001963338128 | T76: =S76+(T85*IVH_34) -> 0.001963338128 | U76: =T76+(U85*IVH_35) -> 0.001963338128 | V76: =U76+(V85*IVH_36) -> 0.001963338128 | W76: =V76+(W85*IVH_37) -> 0.001963338128
I77: RDS Survive | J77: =J90*(1-RDSmort24) -> 0.001616838414 | K77: =J77+(K90*(1-RDSmort25)) -> 0.00300041054 | L77: =K77+(L90*(1-RDSmort26)) -> 0.004160763567 | M77: =L77+(M90*(1-RDSmort27)) -> 0.005111059479 | N77: =M77+(N90*(1-RDSmort28)) -> 0.005867522828 | O77: =N77+(O90*(1-RDSmort29)) -> 0.006449216376 | P77: =O77+(P90*(1-RDSmort30)) -> 0.006877644577 | Q77: =P77+(Q90*(1-RDSmort31)) -> 0.007176184927 | R77: =Q77+(R90*(1-RDSmort32)) -> 0.007369347165 | S77: =R77+(S90*(1-RDSmort33)) -> 0.007481860325 | T77: =S77+(T90*(1-RDSmort34)) -> 0.007537587651 | U77: =T77+(U90*(1-RDSmort35)) -> 0.007558269361 | V77: =U77+(V90*(1-RDSmort36)) -> 0.007561578924 | W77: =V77+(W90*(1-RDSmort37)) -> 0.007561578924
I78: IVH survive | J78: =J91*(1-IVHmort24) -> 0.0002958539095 | K78: =J78+(K91*(1-IVHmort25)) -> 0.0007016463771 | L78: =K78+(L91*(1-IVHmort26)) -> 0.001025181939 | M78: =L78+(M91*(1-IVHmort27)) -> 0.001215681169 | N78: =M78+(N91*(1-IVHmort28)) -> 0.001299151029 | O78: =N78+(O91*(1-IVHmort29)) -> 0.001326917981 | P78: =O78+(P91*(1-IVHmort30)) -> 0.001340957225 | Q78: =P78+(Q91*(1-IVHmort31)) -> 0.001358080653 | R78: =Q78+(R91*(1-IVHmort32)) -> 0.001372657641 | S78: =R78+(S91*(1-IVHmort33)) -> 0.00137433669 | T78: =S78+(T91*(1-IVHmort34)) -> 0.00137433669 | U78: =T78+(U91*(1-IVHmort35)) -> 0.00137433669 | V78: =U78+(V91*(1-IVHmort36)) -> 0.00137433669 | W78: =V78+(W91*(1-IVHmort37)) -> 0.00137433669
I79: CP | J79: =J85*CPrate24 -> 0.0002059677878 | K79: =J79+(K85*CPrate25) -> 0.0003858597967 | L79: =K79+(L85*CPrate26) -> 0.0005405738811 | M79: =L79+(M85*CPrate27) -> 0.0006713381169 | N79: =M79+(N85*CPrate28) -> 0.0007797088608 | O79: =N79+(O85*CPrate29) -> 0.0008675502148 | P79: =O79+(P85*CPrate30) -> 0.0009369948967 | Q79: =P79+(Q85*CPrate31) -> 0.0009903865163 | R79: =Q79+(R85*CPrate32) -> 0.001030203257 | S79: =R79+(S85*CPrate33) -> 0.001058962961 | T79: =S79+(T85*CPrate34) -> 0.001079109627 | U79: =T79+(U85*CPrate35) -> 0.001092881301 | V79: =U79+(V85*CPrate36) -> 0.001100911408 | W79: =V79+(W85*CPrate37) -> 0.001108177869
I84: Stillbirths per GA | J84: =J71 -> 0 | K84: =K71-J71 -> 0 | L84: 0 | M84: 0 | N84: 0 | O84: 0 | P84: 0 | Q84: 0 | R84: 0 | S84: 0 | T84: 0 | U84: 0 | V84: 0 | W84: 0
I85: Live births per GA | J85: =(2*J70)-J84 -> 0.001744011751 | K85: =2*(K70-J70)-K84 -> 0.00175333342 | L85: 0.001752141386 | M85: 0.001738886115 | N85: 0.001712018071 | O85: 0.001669987718 | P85: 0.00161124552 | Q85: 0.001534241942 | R85: 0.001437427448 | S85: 0.001319252502 | T85: 0.001178167568 | U85: 0.001012623112 | V85: 0.0007106289392 | W85: 0.0007123981437
I86: NND per GA | J86: =J85*NND_24 -> 0.0007418279299 | K86: =K85*NND_25 -> 0.0004523463012 | L86: =L85*NND_26 -> 0.0002741753709 | M86: =M85*NND_27 -> 0.0001650377106 | N86: =N85*NND_28 -> 9.855375009e-05 | O86: =O85*NND_29 -> 5.830836262e-05 | P86: =P85*NND_30 -> 3.412180925e-05 | Q86: =Q85*NND_31 -> 1.970683761e-05 | R86: =R85*NND_32 -> 1.119854964e-05 | S86: =S85*NND_33 -> 6.233852634e-06 | T86: =T85*NND_34 -> 3.376668511e-06 | U86: =U85*NND_35 -> 1.760280827e-06 | V86: =V85*NND_36 -> 7.492552103e-07 | W86: =W85*NND_37 -> 4.555776609e-07
I87: NICU admission per GA | J87: =J85*NICU24 -> 0.001744011751 | K87: =K85*NICU25 -> 0.00175333342 | L87: =L85*NICU26 -> 0.001752141386 | M87: =M85*NICU27 -> 0.001738886115 | N87: =N85*NICU28 -> 0.001712018071 | O87: =O85*NICU29 -> 0.001669987718 | P87: =P85*NICU30 -> 0.00161124552 | Q87: =Q85*NICU31 -> 0.001534241942 | R87: =R85*NICU32 -> 0.001437427448 | S87: =S85*NICU33 -> 0.001006829014 | T87: =T85*NICU34 -> 0.000681961819 | U87: =U85*NICU35 -> 0.0004198554522 | V87: =V85*NICU36 -> 0.0001922595844 | W87: =W85*NICU37 -> 0.0001044469497
I88: PND per GA | J88: =J85*PND_24 -> 0.0001284856297 | K88: =K85*PND_25 -> 9.194106653e-05 | L88: =L85*PND_26 -> 6.539643148e-05 | M88: =M85*PND_27 -> 4.619510074e-05 | N88: =N85*PND_28 -> 3.237225849e-05 | O88: =O85*PND_29 -> 2.247593711e-05 | P88: =P85*PND_30 -> 1.54349821e-05 | Q88: =Q85*PND_31 -> 1.046111881e-05 | R88: =R85*PND_32 -> 6.976058166e-06 | S88: =S85*PND_33 -> 4.557135713e-06 | T88: =T85*PND_34 -> 2.896749733e-06 | U88: =U85*PND_35 -> 1.772113865e-06 | V88: =V85*PND_36 -> 8.851697292e-07 | W88: =W85*PND_37 -> 6.316061054e-07
I89: Surviving Babies | X89: =(W70*2)-(W71+W72) -> 0.01801851138 | Y89: =X89-W74 -> 0.01758803002
I90: RDS per GA | J90: =J85*RDS_24 -> 0.001709131516 | K90: =K85*RDS_25 -> 0.001462549816 | L90: =L85*RDS_26 -> 0.001226588824 | M90: =M85*RDS_27 -> 0.001004541133 | N90: =N85*RDS_28 -> 0.0007996441329 | O90: =O85*RDS_29 -> 0.0006148980418 | P90: =P85*RDS_30 -> 0.0004528839331 | Q90: =Q85*RDS_31 -> 0.0003155817656 | R90: =R85*RDS_32 -> 0.0002041884118 | S90: =S85*RDS_33 -> 0.0001189356871 | T90: =T85*RDS_34 -> 5.890837842e-05 | U90: =U85*RDS_35 -> 2.186227334e-05 | V90: =V85*RDS_36 -> 3.498480931e-06 | W90: =W85*RDS_37 -> 0
I91: IVH per GA | J91: =J85*IVH_24 -> 0.0004226484422 | K91: =K85*IVH_25 -> 0.000579703525 | L91: =L85*IVH_26 -> 0.0004621936596 | M91: =M85*IVH_27 -> 0.0002721417571 | N91: =N85*IVH_28 -> 0.0001192426573 | O91: =O85*IVH_29 -> 3.966707423e-05 | P91: =P85*IVH_30 -> 2.005606311e-05 | Q91: =Q85*IVH_31 -> 2.446203935e-05 | R91: =R85*IVH_32 -> 2.082426944e-05 | S91: =S85*IVH_33 -> 2.39864093e-06 | T91: =T85*IVH_34 -> 0 | U91: =U85*IVH_35 -> 0 | V91: =V85*IVH_36 -> 0 | W91: =W85*IVH_37 -> 0
I92: RDS Survive per GA | J92: =J90*(1-RDSmort24) -> 0.001616838414 | K92: =K90*(1-RDSmort25) -> 0.001383572126 | L92: =L90*(1-RDSmort26) -> 0.001160353027 | M92: =M90*(1-RDSmort27) -> 0.0009502959116 | N92: =N90*(1-RDSmort28) -> 0.0007564633497 | O92: =O90*(1-RDSmort29) -> 0.0005816935475 | P92: =P90*(1-RDSmort30) -> 0.0004284282007 | Q92: =Q90*(1-RDSmort31) -> 0.0002985403503 | R92: =R90*(1-RDSmort32) -> 0.0001931622376 | S92: =S90*(1-RDSmort33) -> 0.00011251316 | T92: =T90*(1-RDSmort34) -> 5.572732599e-05 | U92: =U90*(1-RDSmort35) -> 2.068171058e-05 | V92: =V90*(1-RDSmort36) -> 3.309562961e-06 | W92: =W90*(1-RDSmort37) -> 0
I93: IVH survive per GA | J93: =J91*(1-IVHmort24) -> 0.0002958539095 | K93: =K91*(1-IVHmort25) -> 0.0004057924675 | L93: =L91*(1-IVHmort26) -> 0.0003235355617 | M93: =M91*(1-IVHmort27) -> 0.0001904992299 | N93: =N91*(1-IVHmort28) -> 8.346986009e-05 | O93: =O91*(1-IVHmort29) -> 2.776695196e-05 | P93: =P91*(1-IVHmort30) -> 1.403924418e-05 | Q93: =Q91*(1-IVHmort31) -> 1.712342755e-05 | R93: =R91*(1-IVHmort32) -> 1.457698861e-05 | S93: =S91*(1-IVHmort33) -> 1.679048651e-06 | T93: =T91*(1-IVHmort34) -> 0 | U93: =U91*(1-IVHmort35) -> 0 | V93: =V91*(1-IVHmort36) -> 0 | W93: =W91*(1-IVHmort37) -> 0
I94: CP per GA | J94: =J85*CPrate24 -> 0.0002059677878 | K94: =K85*CPrate25 -> 0.0001798920089 | L94: =L85*CPrate26 -> 0.0001547140844 | M94: =M85*CPrate27 -> 0.0001307642359 | N94: =N85*CPrate28 -> 0.0001083707439 | O94: =O85*CPrate29 -> 8.784135397e-05 | P94: =P85*CPrate30 -> 6.944468192e-05 | Q94: =Q85*CPrate31 -> 5.339161958e-05 | R94: =R85*CPrate32 -> 3.98167403e-05 | S94: =S85*CPrate33 -> 2.875970454e-05 | T94: =T85*CPrate34 -> 2.014666542e-05 | U94: =U85*CPrate35 -> 1.377167432e-05 | V94: =V85*CPrate36 -> 8.030107013e-06 | W94: =W85*CPrate37 -> 7.266461065e-06
I98: Screening threshold: CL = 15mm
I100: On-going Pregnancy | J100: =SUM('Distribution Data'!$K$13:$K$17)-J101 -> 0.009147680993 | K100: =SUM('Distribution Data'!$K$13:$K$17)-K101 -> 0.008378132184 | L100: =SUM('Distribution Data'!$K$13:$K$17)-L101 -> 0.007613944242 | M100: =SUM('Distribution Data'!$K$13:$K$17)-M101 -> 0.006840847071 | N100: =SUM('Distribution Data'!$K$13:$K$17)-N101 -> 0.006050891629 | O100: =SUM('Distribution Data'!$K$13:$K$17)-O101 -> 0.005242449926 | P100: =SUM('Distribution Data'!$K$13:$K$17)-P101 -> 0.004420215028 | Q100: =SUM('Distribution Data'!$K$13:$K$17)-Q101 -> 0.003595201053 | R100: =SUM('Distribution Data'!$K$13:$K$17)-R101 -> 0.002784743173 | S100: =SUM('Distribution Data'!$K$13:$K$17)-S101 -> 0.002012497615 | T100: =SUM('Distribution Data'!$K$13:$K$17)-T101 -> 0.001308441658 | U100: =SUM('Distribution Data'!$K$13:$K$17)-U101 -> 0.0007088736365 | V100: =SUM('Distribution Data'!$K$13:$K$17)-V101 -> 0.0003195914019 | W100: =SUM('Distribution Data'!$K$13:$K$17)-W101 -> 0
I101: Twin birth (pregnancies) | J101: ='Markov Transitions 1.7'!Q4 -> 0.0007955008256 | K101: ='Markov Transitions 1.7'!Q5 -> 0.001565049634 | L101: ='Markov Transitions 1.7'!Q6 -> 0.002329237576 | M101: ='Markov Transitions 1.7'!Q7 -> 0.003102334747 | N101: ='Markov Transitions 1.7'!Q8 -> 0.003892290189 | O101: ='Markov Transitions 1.7'!Q9 -> 0.004700731892 | P101: ='Markov Transitions 1.7'!Q10 -> 0.00552296679 | Q101: ='Markov Transitions 1.7'!Q11 -> 0.006347980765 | R101: ='Markov Transitions 1.7'!Q12 -> 0.007158438645 | S101: ='Markov Transitions 1.7'!Q13 -> 0.007930684203 | T101: ='Markov Transitions 1.7'!Q14 -> 0.00863474016 | U101: ='Markov Transitions 1.7'!Q15 -> 0.009234308182 | V101: ='Markov Transitions 1.7'!Q16 -> 0.009623590416 | W101: ='Markov Transitions 1.7'!Q17 -> 0.009943181818
I102: Stillbirths | J102: =2*(J101*Stillbirth24) -> 0 | K102: =J102+(2*(K101-J101)*Stillbirth25) -> 0 | L102: =K102+(2*(L101-K101)*Stillbirth26) -> 0 | M102: =L102+(2*(M101-L101)*Stillbirth27) -> 0 | N102: =M102+(2*(N101-M101)*Stillbirth28) -> 0 | O102: =N102+(2*(O101-N101)*Stillbirth29) -> 0 | P102: =O102+(2*(P101-O101)*Stillbirth30) -> 0 | Q102: =P102+(2*(Q101-P101)*Stillbirth31) -> 0 | R102: =Q102+(2*(R101-Q101)*Stillbirth32) -> 0 | S102: =R102+(2*(S101-R101)*Stillbirth33) -> 0 | T102: =S102+(2*(T101-S101)*Stillbirth34) -> 0 | U102: =T102+(2*(U101-T101)*Stillbirth35) -> 0 | V102: =U102+(2*(V101-U101)*Stillbirth36) -> 0 | W102: =V102+(2*(W101-V101)*Stillbirth37) -> 0
I103: NND | J103: =((2*J101)-J102)*NND_24 -> 0.0006767439845 | K103: =J103+((2*(K101-J101))-(K102-J102))*NND_25 -> 0.001073819125 | L103: =K103+((2*(L101-K101))-(L102-K102))*NND_26 -> 0.001312979634 | M103: =L103+((2*(M101-L101))-(M102-L102))*NND_27 -> 0.001459728965 | N103: =M103+((2*(N101-M101))-(N102-M102))*NND_28 -> 0.001550677854 | O103: =N103+((2*(O101-N101))-(O102-N102))*NND_29 -> 0.001607132056 | P103: =O103+((2*(P101-O101))-(P102-O102))*NND_30 -> 0.001641957466 | Q103: =P103+((2*(Q101-P101))-(Q102-P102))*NND_31 -> 0.001663151537 | R103: =Q103+((2*(R101-Q101))-(R102-Q102))*NND_32 -> 0.001675779587 | S103: =R103+((2*(S101-R101))-(S102-R102))*NND_33 -> 0.001683077757 | T103: =S103+((2*(T101-S101))-(T102-S102))*NND_34 -> 0.001687113454 | U103: =T103+((2*(U101-T101))-(U102-T102))*NND_35 -> 0.001689197958 | V103: =U103+((2*(V101-U101))-(V102-U102))*NND_36 -> 0.001690018841 | W103: =V103+((2*(W101-V101))-(W102-V102))*NND_37 -> 0.001690427598
I104: NICU admission | J104: =J116*NICU24 -> 0.001591001651 | K104: =J104+(K116*NICU25) -> 0.003130099269 | L104: =K104+(L116*NICU26) -> 0.004658475152 | M104: =L104+(M116*NICU27) -> 0.006204669493 | N104: =M104+(N116*NICU28) -> 0.007784580378 | O104: =N104+(O116*NICU29) -> 0.009401463784 | P104: =O104+(P116*NICU30) -> 0.01104593358 | Q104: =P104+(Q116*NICU31) -> 0.01269596153 | R104: =Q104+(R116*NICU32) -> 0.01431687729 | S104: =R104+(S116*NICU33) -> 0.01549560423 | T104: =S104+(T116*NICU34) -> 0.01631066534 | U104: =T104+(U116*NICU35) -> 0.01680785309 | V104: =U104+(V116*NICU36) -> 0.01701849253 | W104: =V104+(W116*NICU37) -> 0.01711220514
I105: PND | J105: =J116*PND_24 -> 0.0001172129998 | K105: =J105+(K116*PND_25) -> 0.0001979199976 | L105: =K105+(L116*PND_26) -> 0.0002549646684 | M105: =L105+(M116*PND_27) -> 0.0002960407359 | N105: =M105+(N116*PND_28) -> 0.0003259150021 | O105: =N105+(O116*PND_29) -> 0.0003476762218 | P105: =O105+(P116*PND_30) -> 0.000363429477 | Q105: =P105+(Q116*PND_31) -> 0.0003746800745 | R105: =Q105+(R116*PND_32) -> 0.0003825466298 | S105: =R105+(S116*PND_33) -> 0.0003878818144 | T105: =S105+(T116*PND_34) -> 0.0003913439262 | U105: =T105+(U116*PND_35) -> 0.000393442442 | V105: =U105+(V116*PND_36) -> 0.0003944122332 | W105: =V105+(W116*PND_37) -> 0.0003949789272
I106: RDS | J106: =J116*RDS_24 -> 0.001559181618 | K106: =J106+(K116*RDS_25) -> 0.002843025815 | L106: =K106+(L116*RDS_26) -> 0.003912967312 | M106: =L106+(M116*RDS_27) -> 0.004806191889 | N106: =M106+(N116*RDS_28) -> 0.005544131804 | O106: =N106+(O116*RDS_29) -> 0.006139476566 | P106: =O106+(P116*RDS_30) -> 0.006601699076 | Q106: =P106+(Q116*RDS_31) -> 0.006941097133 | R106: =Q106+(R116*RDS_32) -> 0.007171350295 | S106: =R106+(S116*RDS_33) -> 0.007310592109 | T106: =S106+(T116*RDS_34) -> 0.007380997705 | U106: =T106+(U116*RDS_35) -> 0.007406886745 | V106: =U106+(V116*RDS_36) -> 0.007410719677 | W106: =V106+(W116*RDS_37) -> 0.007410719677
I107: IVH | J107: =J116*IVH_24 -> 0.000385567568 | K107: =J107+(K116*IVH_25) -> 0.0008944384446 | L107: =K107+(L116*IVH_26) -> 0.001297605477 | M107: =L107+(M116*IVH_27) -> 0.001539590298 | N107: =M107+(N116*IVH_28) -> 0.001649631643 | O107: =N107+(O116*IVH_29) -> 0.001688037335 | P107: =O107+(P116*IVH_30) -> 0.001708506959 | Q107: =P107+(Q116*IVH_31) -> 0.001734815097 | R107: =Q107+(R116*IVH_32) -> 0.001758297595 | S107: =R107+(S116*IVH_33) -> 0.00176110576 | T107: =S107+(T116*IVH_34) -> 0.00176110576 | U107: =T107+(U116*IVH_35) -> 0.00176110576 | V107: =U107+(V116*IVH_36) -> 0.00176110576 | W107: =V107+(W116*IVH_37) -> 0.00176110576
I108: RDS Survive | J108: =J121*(1-RDSmort24) -> 0.001474985811 | K108: =J108+(K121*(1-RDSmort25)) -> 0.002689502421 | L108: =K108+(L121*(1-RDSmort26)) -> 0.003701667077 | M108: =L108+(M121*(1-RDSmort27)) -> 0.004546657527 | N108: =M108+(N121*(1-RDSmort28)) -> 0.005244748687 | O108: =N108+(O121*(1-RDSmort29)) -> 0.005807944831 | P108: =O108+(P121*(1-RDSmort30)) -> 0.006245207326 | Q108: =P108+(Q121*(1-RDSmort31)) -> 0.006566277888 | R108: =Q108+(R121*(1-RDSmort32)) -> 0.006784097379 | S108: =R108+(S121*(1-RDSmort33)) -> 0.006915820135 | T108: =S108+(T121*(1-RDSmort34)) -> 0.006982423829 | U108: =T108+(U121*(1-RDSmort35)) -> 0.00700691486 | V108: =U108+(V121*(1-RDSmort36)) -> 0.007010540815 | W108: =V108+(W121*(1-RDSmort37)) -> 0.007010540815
I109: IVH survive | J109: =J122*(1-IVHmort24) -> 0.0002698972976 | K109: =J109+(K122*(1-IVHmort25)) -> 0.0006261069112 | L109: =K109+(L122*(1-IVHmort26)) -> 0.0009083238337 | M109: =L109+(M122*(1-IVHmort27)) -> 0.001077713208 | N109: =M109+(N122*(1-IVHmort28)) -> 0.00115474215 | O109: =N109+(O122*(1-IVHmort29)) -> 0.001181626135 | P109: =O109+(P122*(1-IVHmort30)) -> 0.001195954871 | Q109: =P109+(Q122*(1-IVHmort31)) -> 0.001214370568 | R109: =Q109+(R122*(1-IVHmort32)) -> 0.001230808316 | S109: =R109+(S122*(1-IVHmort33)) -> 0.001232774032 | T109: =S109+(T122*(1-IVHmort34)) -> 0.001232774032 | U109: =T109+(U122*(1-IVHmort35)) -> 0.001232774032 | V109: =U109+(V122*(1-IVHmort36)) -> 0.001232774032 | W109: =V109+(W122*(1-IVHmort37)) -> 0.001232774032
I110: CP | J110: =J116*CPrate24 -> 0.000187897295 | K110: =J110+(K116*CPrate25) -> 0.0003458087106 | L110: =K110+(L116*CPrate26) -> 0.000480764301 | M110: =L110+(M116*CPrate27) -> 0.0005970381155 | N110: =M110+(N116*CPrate28) -> 0.0006970464745 | O110: =N110+(O116*CPrate29) -> 0.0007820945417 | P110: =O110+(P116*CPrate30) -> 0.0008529711899 | Q110: =P110+(Q116*CPrate31) -> 0.0009103921626 | R110: =Q110+(R116*CPrate32) -> 0.0009552915291 | S110: =R110+(S116*CPrate33) -> 0.0009889614354 | T110: =S110+(T116*CPrate34) -> 0.001013040149 | U110: =T110+(U116*CPrate35) -> 0.001029348399 | V110: =U110+(V116*CPrate36) -> 0.001038146178 | W110: =V110+(W116*CPrate37) -> 0.001044665842
I115: Stillbirths per GA | J115: =J102 -> 0 | K115: =K102-J102 -> 0 | L115: 0 | M115: 0 | N115: 0 | O115: 0 | P115: 0 | Q115: 0 | R115: 0 | S115: 0 | T115: 0 | U115: 0 | V115: 0 | W115: 0
I116: Live births per GA | J116: =(2*J101)-J115 -> 0.001591001651 | K116: =2*(K101-J101)-K115 -> 0.001539097617 | L116: 0.001528375883 | M116: 0.001546194342 | N116: 0.001579910885 | O116: 0.001616883406 | P116: 0.001644469797 | Q116: 0.00165002795 | R116: 0.001620915759 | S116: 0.001544491116 | T116: 0.001408111913 | U116: 0.001199136044 | V116: 0.0007785644692 | W116: 0.0006391828038
I117: NND per GA | J117: =J116*NND_24 -> 0.0006767439845 | K117: =K116*NND_25 -> 0.0003970751408 | L117: =L116*NND_26 -> 0.0002391605084 | M117: =M116*NND_27 -> 0.0001467493311 | N117: =N116*NND_28 -> 9.094888958e-05 | O117: =O116*NND_29 -> 5.645420198e-05 | P117: =P116*NND_30 -> 3.48254093e-05 | Q117: =Q116*NND_31 -> 2.119407115e-05 | R117: =R116*NND_32 -> 1.262804994e-05 | S117: =S116*NND_33 -> 7.298170744e-06 | T117: =T116*NND_34 -> 4.035696861e-06 | U117: =U116*NND_35 -> 2.084503268e-06 | V117: =V116*NND_36 -> 8.208833794e-07 | W117: =W116*NND_37 -> 4.087565489e-07
I118: NICU admission per GA | J118: =J116*NICU24 -> 0.001591001651 | K118: =K116*NICU25 -> 0.001539097617 | L118: =L116*NICU26 -> 0.001528375883 | M118: =M116*NICU27 -> 0.001546194342 | N118: =N116*NICU28 -> 0.001579910885 | O118: =O116*NICU29 -> 0.001616883406 | P118: =P116*NICU30 -> 0.001644469797 | Q118: =Q116*NICU31 -> 0.00165002795 | R118: =R116*NICU32 -> 0.001620915759 | S118: =S116*NICU33 -> 0.001178726943 | T118: =T116*NICU34 -> 0.0008150611063 | U118: =U116*NICU35 -> 0.0004971877493 | V118: =V116*NICU36 -> 0.0002106394393 | W118: =W116*NICU37 -> 9.371261665e-05
I119: PND per GA | J119: =J116*PND_24 -> 0.0001172129998 | K119: =K116*PND_25 -> 8.070699779e-05 | L119: =L116*PND_26 -> 5.704467088e-05 | M119: =M116*PND_27 -> 4.107606746e-05 | N119: =N116*PND_28 -> 2.987426617e-05 | O119: =O116*PND_29 -> 2.176121977e-05 | P119: =P116*PND_30 -> 1.57532552e-05 | Q119: =Q116*PND_31 -> 1.125059741e-05 | R119: =R116*PND_32 -> 7.866555377e-06 | S119: =S116*PND_33 -> 5.335184594e-06 | T119: =T116*PND_34 -> 3.462111773e-06 | U119: =U116*PND_35 -> 2.098515809e-06 | V119: =V116*PND_36 -> 9.697912122e-07 | W119: =W116*PND_37 -> 5.666940109e-07
I120: Surviving Babies | X120: =(W101*2)-(W102+W103) -> 0.01819593604 | Y120: =X120-W105 -> 0.01780095711
I121: RDS per GA | J121: =J116*RDS_24 -> 0.001559181618 | K121: =K116*RDS_25 -> 0.001283844197 | L121: =L116*RDS_26 -> 0.001069941497 | M121: =M116*RDS_27 -> 0.0008932245773 | N121: =N116*RDS_28 -> 0.0007379399148 | O121: =O116*RDS_29 -> 0.0005953447617 | P121: =P116*RDS_30 -> 0.0004622225105 | Q121: =Q116*RDS_31 -> 0.0003393980569 | R121: =R116*RDS_32 -> 0.0002302531617 | S121: =S116*RDS_33 -> 0.0001392418145 | T121: =T116*RDS_34 -> 7.040559567e-05 | U121: =U116*RDS_35 -> 2.588903971e-05 | V121: =V116*RDS_36 -> 3.832932772e-06 | W121: =W116*RDS_37 -> 0
I122: IVH per GA | J122: =J116*IVH_24 -> 0.000385567568 | K122: =K116*IVH_25 -> 0.0005088708765 | L122: =L116*IVH_26 -> 0.0004031670322 | M122: =M116*IVH_27 -> 0.0002419848207 | N122: =N116*IVH_28 -> 0.0001100413456 | O122: =O116*IVH_29 -> 3.840569208e-05 | P122: =P116*IVH_30 -> 2.046962404e-05 | Q122: =Q116*IVH_31 -> 2.630813794e-05 | R122: =R116*IVH_32 -> 2.348249754e-05 | S122: =S116*IVH_33 -> 2.808165686e-06 | T122: =T116*IVH_34 -> 0 | U122: =U116*IVH_35 -> 0 | V122: =V116*IVH_36 -> 0 | W122: =W116*IVH_37 -> 0
I123: RDS Survive per GA | J123: =J121*(1-RDSmort24) -> 0.001474985811 | K123: =K121*(1-RDSmort25) -> 0.00121451661 | L123: =L121*(1-RDSmort26) -> 0.001012164656 | M123: =M121*(1-RDSmort27) -> 0.0008449904501 | N123: =N121*(1-RDSmort28) -> 0.0006980911594 | O123: =O121*(1-RDSmort29) -> 0.0005631961445 | P123: =P121*(1-RDSmort30) -> 0.000437262495 | Q123: =Q121*(1-RDSmort31) -> 0.0003210705618 | R123: =R121*(1-RDSmort32) -> 0.000217819491 | S123: =S121*(1-RDSmort33) -> 0.0001317227565 | T123: =T121*(1-RDSmort34) -> 6.66036935e-05 | U123: =U121*(1-RDSmort35) -> 2.449103157e-05 | V123: =V121*(1-RDSmort36) -> 3.625954402e-06 | W123: =W121*(1-RDSmort37) -> 0
I124: IVH survive per GA | J124: =J122*(1-IVHmort24) -> 0.0002698972976 | K124: =K122*(1-IVHmort25) -> 0.0003562096136 | L124: =L122*(1-IVHmort26) -> 0.0002822169226 | M124: =M122*(1-IVHmort27) -> 0.0001693893745 | N124: =N122*(1-IVHmort28) -> 7.702894189e-05 | O124: =O122*(1-IVHmort29) -> 2.688398446e-05 | P124: =P122*(1-IVHmort30) -> 1.432873683e-05 | Q124: =Q122*(1-IVHmort31) -> 1.841569656e-05 | R124: =R122*(1-IVHmort32) -> 1.643774828e-05 | S124: =S122*(1-IVHmort33) -> 1.96571598e-06 | T124: =T122*(1-IVHmort34) -> 0 | U124: =U122*(1-IVHmort35) -> 0 | V124: =V122*(1-IVHmort36) -> 0 | W124: =W122*(1-IVHmort37) -> 0
I125: CP per GA | J125: =J116*CPrate24 -> 0.000187897295 | K125: =K116*CPrate25 -> 0.0001579114155 | L125: =L116*CPrate26 -> 0.0001349555905 | M125: =M116*CPrate27 -> 0.0001162738145 | N125: =N116*CPrate28 -> 0.000100008359 | O125: =O116*CPrate29 -> 8.504806714e-05 | P125: =P116*CPrate30 -> 7.087664824e-05 | Q125: =Q116*CPrate31 -> 5.742097267e-05 | R125: =R116*CPrate32 -> 4.489936653e-05 | S125: =S116*CPrate33 -> 3.366990633e-05 | T125: =T116*CPrate34 -> 2.407871372e-05 | U125: =U116*CPrate35 -> 1.630825019e-05 | V125: =V116*CPrate36 -> 8.797778502e-06 | W125: =W116*CPrate37 -> 6.519664599e-06
I129: Screening threshold: CL = 20mm
I131: On-going Pregnancy | J131: =SUM('Distribution Data'!$K$13:$K$17)-J132 -> 0.009197214583 | K131: =SUM('Distribution Data'!$K$13:$K$17)-K132 -> 0.008514957554 | L131: =SUM('Distribution Data'!$K$13:$K$17)-L132 -> 0.007849736357 | M131: =SUM('Distribution Data'!$K$13:$K$17)-M132 -> 0.007166557138 | N131: =SUM('Distribution Data'!$K$13:$K$17)-N132 -> 0.006442106567 | O131: =SUM('Distribution Data'!$K$13:$K$17)-O132 -> 0.005664751836 | P131: =SUM('Distribution Data'!$K$13:$K$17)-P132 -> 0.004834540662 | Q131: =SUM('Distribution Data'!$K$13:$K$17)-Q132 -> 0.003963201283 | R131: =SUM('Distribution Data'!$K$13:$K$17)-R132 -> 0.003074142462 | S131: =SUM('Distribution Data'!$K$13:$K$17)-S132 -> 0.002202453483 | T131: =SUM('Distribution Data'!$K$13:$K$17)-T132 -> 0.001394904155 | U131: =SUM('Distribution Data'!$K$13:$K$17)-U132 -> 0.0007099448087 | V131: =SUM('Distribution Data'!$K$13:$K$17)-V132 -> 0.0002808847631 | W131: =SUM('Distribution Data'!$K$13:$K$17)-W132 -> 6.071532166e-17
I132: Twin birth (pregnancies) | J132: ='Markov Transitions 1.7'!L22 -> 0.0007459672356 | K132: ='Markov Transitions 1.7'!L23 -> 0.001428224264 | L132: ='Markov Transitions 1.7'!L24 -> 0.002093445461 | M132: ='Markov Transitions 1.7'!L25 -> 0.00277662468 | N132: ='Markov Transitions 1.7'!L26 -> 0.003501075251 | O132: ='Markov Transitions 1.7'!L27 -> 0.004278429982 | P132: ='Markov Transitions 1.7'!L28 -> 0.005108641156 | Q132: ='Markov Transitions 1.7'!L29 -> 0.005979980535 | R132: ='Markov Transitions 1.7'!L30 -> 0.006869039356 | S132: ='Markov Transitions 1.7'!L31 -> 0.007740728335 | T132: ='Markov Transitions 1.7'!L32 -> 0.008548277663 | U132: ='Markov Transitions 1.7'!L33 -> 0.009233237009 | V132: ='Markov Transitions 1.7'!L34 -> 0.009662297055 | W132: ='Markov Transitions 1.7'!L35 -> 0.009943181818
I133: Stillbirths | J133: =2*(J132*Stillbirth24) -> 0 | K133: =J133+(2*(K132-J132)*Stillbirth25) -> 0 | L133: =K133+(2*(L132-K132)*Stillbirth26) -> 0 | M133: =L133+(2*(M132-L132)*Stillbirth27) -> 0 | N133: =M133+(2*(N132-M132)*Stillbirth28) -> 0 | O133: =N133+(2*(O132-N132)*Stillbirth29) -> 0 | P133: =O133+(2*(P132-O132)*Stillbirth30) -> 0 | Q133: =P133+(2*(Q132-P132)*Stillbirth31) -> 0 | R133: =Q133+(2*(R132-Q132)*Stillbirth32) -> 0 | S133: =R133+(2*(S132-R132)*Stillbirth33) -> 0 | T133: =S133+(2*(T132-S132)*Stillbirth34) -> 0 | U133: =T133+(2*(U132-T132)*Stillbirth35) -> 0 | V133: =U133+(2*(V132-U132)*Stillbirth36) -> 0 | W133: =V133+(2*(W132-V132)*Stillbirth37) -> 0
I134: NND | J134: =((2*J132)-J133)*NND_24 -> 0.0006346050475 | K134: =J134+((2*(K132-J132))-(K133-J133))*NND_25 -> 0.0009866389959 | L134: =K134+((2*(L132-K132))-(L133-K133))*NND_26 -> 0.001194826839 | M134: =L134+((2*(M132-L132))-(M133-L133))*NND_27 -> 0.001324507942 | N134: =M134+((2*(N132-M132))-(N133-M133))*NND_28 -> 0.001407915146 | O134: =N134+((2*(O132-N132))-(O133-N133))*NND_29 -> 0.001462198517 | P134: =O134+((2*(P132-O132))-(P133-O133))*NND_30 -> 0.001497361759 | Q134: =P134+((2*(Q132-P132))-(Q133-P133))*NND_31 -> 0.001519745899 | R134: =Q134+((2*(R132-Q132))-(R133-Q133))*NND_32 -> 0.00153359866 | S134: =R134+((2*(S132-R132))-(S133-R133))*NND_33 -> 0.001541836629 | T134: =S134+((2*(T132-S132))-(T133-S133))*NND_34 -> 0.001546465557 | U134: =T134+((2*(U132-T132))-(U133-T133))*NND_35 -> 0.001548846938 | V134: =U134+((2*(V132-U132))-(V133-U133))*NND_36 -> 0.001549751701 | W134: =V134+((2*(W132-V132))-(W133-V133))*NND_37 -> 0.001550110952
I135: NICU admission | J135: =J147*NICU24 -> 0.001491934471 | K135: =J135+(K147*NICU25) -> 0.002856448528 | L135: =K135+(L147*NICU26) -> 0.004186890922 | M135: =L135+(M147*NICU27) -> 0.00555324936 | N135: =M135+(N147*NICU28) -> 0.007002150503 | O135: =N135+(O147*NICU29) -> 0.008556859964 | P135: =O135+(P147*NICU30) -> 0.01021728231 | Q135: =P135+(Q147*NICU31) -> 0.01195996107 | R135: =Q135+(R147*NICU32) -> 0.01373807871 | S135: =R135+(S147*NICU33) -> 0.0150685924 | T135: =S135+(T147*NICU34) -> 0.01600346418 | U135: =T135+(U147*NICU35) -> 0.01657146212 | V135: =U135+(V147*NICU36) -> 0.01680362521 | W135: =V135+(W147*NICU37) -> 0.01688598802
I136: PND | J136: =J147*PND_24 -> 0.0001099144773 | K136: =J136+(K147*PND_25) -> 0.0001814666853 | L136: =K136+(L147*PND_26) -> 0.0002311237424 | M136: =L136+(M147*PND_27) -> 0.0002674223046 | N136: =M136+(N147*PND_28) -> 0.0002948193298 | O136: =N136+(O147*PND_29) -> 0.0003157437664 | P136: =O136+(P147*PND_30) -> 0.0003316498396 | Q136: =P136+(Q147*PND_31) -> 0.0003435321699 | R136: =Q136+(R147*PND_32) -> 0.0003521616504 | S136: =R136+(S147*PND_33) -> 0.0003581838561 | T136: =S136+(T147*PND_34) -> 0.0003621548843 | U136: =T136+(U147*PND_35) -> 0.0003645522737 | V136: =U136+(V147*PND_36) -> 0.0003656211605 | W136: =V136+(W147*PND_37) -> 0.0003661192206
I137: RDS | J137: =J147*RDS_24 -> 0.001462095782 | K137: =J137+(K147*RDS_25) -> 0.00260031043 | L137: =K137+(L147*RDS_26) -> 0.003531688334 | M137: =L137+(M147*RDS_27) -> 0.004321023093 | N137: =M137+(N147*RDS_28) -> 0.004997771381 | O137: =N137+(O147*RDS_29) -> 0.005570223377 | P137: =O137+(P147*RDS_30) -> 0.006036929782 | Q137: =P137+(Q147*RDS_31) -> 0.006395385397 | R137: =Q137+(R147*RDS_32) -> 0.006647969288 | S137: =R137+(S147*RDS_33) -> 0.006805141516 | T137: =S137+(T147*RDS_34) -> 0.006885896449 | U137: =T137+(U147*RDS_35) -> 0.006915472642 | V137: =U137+(V147*RDS_36) -> 0.006919697233 | W137: =V137+(W147*RDS_37) -> 0.006919697233
I138: IVH | J138: =J147*IVH_24 -> 0.0003615593643 | K138: =J138+(K147*IVH_25) -> 0.000812707788 | L138: =K138+(L147*IVH_26) -> 0.001163662365 | M138: =L138+(M147*IVH_27) -> 0.001377502238 | N138: =M138+(N147*IVH_28) -> 0.001478418709 | O138: =N138+(O147*IVH_29) -> 0.001515347589 | P138: =O138+(P147*IVH_30) -> 0.001536015783 | Q138: =P138+(Q147*IVH_31) -> 0.001563801151 | R138: =Q138+(R147*IVH_32) -> 0.00158956106 | S138: =R138+(S147*IVH_33) -> 0.001592730838 | T138: =S138+(T147*IVH_34) -> 0.001592730838 | U138: =T138+(U147*IVH_35) -> 0.001592730838 | V138: =U138+(V147*IVH_36) -> 0.001592730838 | W138: =V138+(W147*IVH_37) -> 0.001592730838
I139: RDS Survive | J139: =J152*(1-RDSmort24) -> 0.001383142609 | K139: =J139+(K152*(1-RDSmort25)) -> 0.002459893667 | L139: =K139+(L152*(1-RDSmort26)) -> 0.003340977164 | M139: =L139+(M152*(1-RDSmort27)) -> 0.004087687846 | N139: =M139+(N152*(1-RDSmort28)) -> 0.004727891726 | O139: =N139+(O152*(1-RDSmort29)) -> 0.005269431315 | P139: =O139+(P152*(1-RDSmort30)) -> 0.005710935574 | Q139: =P139+(Q152*(1-RDSmort31)) -> 0.006050034586 | R139: =Q139+(R152*(1-RDSmort32)) -> 0.006288978946 | S139: =R139+(S152*(1-RDSmort33)) -> 0.006437663874 | T139: =S139+(T152*(1-RDSmort34)) -> 0.006514058041 | U139: =T139+(U152*(1-RDSmort35)) -> 0.00654203712 | V139: =U139+(V152*(1-RDSmort36)) -> 0.006546033583 | W139: =V139+(W152*(1-RDSmort37)) -> 0.006546033583
I140: IVH survive | J140: =J153*(1-IVHmort24) -> 0.000253091555 | K140: =J140+(K153*(1-IVHmort25)) -> 0.0005688954516 | L140: =K140+(L153*(1-IVHmort26)) -> 0.0008145636555 | M140: =L140+(M153*(1-IVHmort27)) -> 0.0009642515667 | N140: =M140+(N153*(1-IVHmort28)) -> 0.001034893097 | O140: =N140+(O153*(1-IVHmort29)) -> 0.001060743312 | P140: =O140+(P153*(1-IVHmort30)) -> 0.001075211048 | Q140: =P140+(Q153*(1-IVHmort31)) -> 0.001094660806 | R140: =Q140+(R153*(1-IVHmort32)) -> 0.001112692742 | S140: =R140+(S153*(1-IVHmort33)) -> 0.001114911587 | T140: =S140+(T153*(1-IVHmort34)) -> 0.001114911587 | U140: =T140+(U153*(1-IVHmort35)) -> 0.001114911587 | V140: =U140+(V153*(1-IVHmort36)) -> 0.001114911587 | W140: =V140+(W153*(1-IVHmort37)) -> 0.001114911587
I141: CP | J141: =J147*CPrate24 -> 0.000176197461 | K141: =J141+(K147*CPrate25) -> 0.0003161966032 | L141: =K141+(L147*CPrate26) -> 0.0004336746666 | M141: =L141+(M147*CPrate27) -> 0.0005364248212 | N141: =M141+(N147*CPrate28) -> 0.0006281402635 | O141: =N141+(O147*CPrate29) -> 0.0007099179812 | P141: =O141+(P147*CPrate30) -> 0.0007814821844 | Q141: =P141+(Q147*CPrate31) -> 0.0008421274052 | R141: =Q141+(R147*CPrate32) -> 0.0008913812639 | S141: =R141+(S147*CPrate33) -> 0.0009293869033 | T141: =S141+(T147*CPrate34) -> 0.0009570050904 | U141: =T141+(U147*CPrate35) -> 0.0009756359846 | V141: =U141+(V147*CPrate36) -> 0.0009853327416 | W141: =V141+(W147*CPrate37) -> 0.0009910627908
I146: Stillbirths per GA | J146: =J133 -> 0 | K146: =K133-J133 -> 0 | L146: 0 | M146: 0 | N146: 0 | O146: 0 | P146: 0 | Q146: 0 | R146: 0 | S146: 0 | T146: 0 | U146: 0 | V146: 0 | W146: 0
I147: Live births per GA | J147: =(2*J132)-J146 -> 0.001491934471 | K147: =2*(K132-J132)-K146 -> 0.001364514056 | L147: 0.001330442394 | M147: 0.001366358438 | N147: 0.001448901143 | O147: 0.001554709461 | P147: 0.001660422348 | Q147: 0.001742678757 | R147: 0.001778117642 | S147: 0.001743377957 | T147: 0.001615098656 | U147: 0.001369918693 | V147: 0.0008581200913 | W147: 0.0005617695262
I148: NND per GA | J148: =J147*NND_24 -> 0.0006346050475 | K148: =K147*NND_25 -> 0.0003520339483 | L148: =L147*NND_26 -> 0.0002081878436 | M148: =M147*NND_27 -> 0.0001296811025 | N148: =N147*NND_28 -> 8.340720437e-05 | O148: =O147*NND_29 -> 5.428337111e-05 | P148: =P147*NND_30 -> 3.516324107e-05 | Q148: =Q147*NND_31 -> 2.238414056e-05 | R148: =R147*NND_32 -> 1.385276086e-05 | S148: =S147*NND_33 -> 8.237969045e-06 | T148: =T147*NND_34 -> 4.628927939e-06 | U148: =U147*NND_35 -> 2.381381169e-06 | V148: =V147*NND_36 -> 9.047632512e-07 | W148: =W147*NND_37 -> 3.592508613e-07
I149: NICU admission per GA | J149: =J147*NICU24 -> 0.001491934471 | K149: =K147*NICU25 -> 0.001364514056 | L149: =L147*NICU26 -> 0.001330442394 | M149: =M147*NICU27 -> 0.001366358438 | N149: =N147*NICU28 -> 0.001448901143 | O149: =O147*NICU29 -> 0.001554709461 | P149: =P147*NICU30 -> 0.001660422348 | Q149: =Q147*NICU31 -> 0.001742678757 | R149: =R147*NICU32 -> 0.001778117642 | S149: =S147*NICU33 -> 0.001330513687 | T149: =T147*NICU34 -> 0.0009348717848 | U149: =U147*NICU35 -> 0.000567997931 | V149: =V147*NICU36 -> 0.0002321630925 | W149: =W147*NICU37 -> 8.236281067e-05
I150: PND per GA | J150: =J147*PND_24 -> 0.0001099144773 | K150: =K147*PND_25 -> 7.155220806e-05 | L150: =L147*PND_26 -> 4.96570571e-05 | M150: =M147*PND_27 -> 3.629856214e-05 | N150: =N147*PND_28 -> 2.739702525e-05 | O150: =O147*PND_29 -> 2.092443657e-05 | P150: =P147*PND_30 -> 1.590607322e-05 | Q150: =Q147*PND_31 -> 1.188233031e-05 | R150: =R147*PND_32 -> 8.629480477e-06 | S150: =S147*PND_33 -> 6.02220571e-06 | T150: =T147*PND_34 -> 3.971028168e-06 | U150: =U147*PND_35 -> 2.397389395e-06 | V150: =V147*PND_36 -> 1.068886851e-06 | W150: =W147*PND_37 -> 4.980600605e-07
I151: Surviving Babies | X151: =(W132*2)-(W133+W134) -> 0.01833625268 | Y151: =X151-W136 -> 0.01797013346
I152: RDS per GA | J152: =J147*RDS_24 -> 0.001462095782 | K152: =K147*RDS_25 -> 0.001138214648 | L152: =L147*RDS_26 -> 0.0009313779038 | M152: =M147*RDS_27 -> 0.0007893347594 | N152: =N147*RDS_28 -> 0.0006767482876 | O152: =O147*RDS_29 -> 0.0005724519966 | P152: =P147*RDS_30 -> 0.0004667064047 | Q152: =Q147*RDS_31 -> 0.0003584556152 | R152: =R147*RDS_32 -> 0.0002525838907 | S152: =S147*RDS_33 -> 0.0001571722282 | T152: =T147*RDS_34 -> 8.075493281e-05 | U152: =U147*RDS_35 -> 2.957619332e-05 | V152: =V147*RDS_36 -> 4.224591219e-06 | W152: =W147*RDS_37 -> 0
I153: IVH per GA | J153: =J147*IVH_24 -> 0.0003615593643 | K153: =K147*IVH_25 -> 0.0004511484237 | L153: =L147*IVH_26 -> 0.000350954577 | M153: =M147*IVH_27 -> 0.0002138398731 | N153: =N147*IVH_28 -> 0.0001009164712 | O153: =O147*IVH_29 -> 3.692887975e-05 | P153: =P147*IVH_30 -> 2.066819426e-05 | Q153: =Q147*IVH_31 -> 2.778536759e-05 | R153: =R147*IVH_32 -> 2.575990944e-05 | S153: =S147*IVH_33 -> 3.169778127e-06 | T153: =T147*IVH_34 -> 0 | U153: =U147*IVH_35 -> 0 | V153: =V147*IVH_36 -> 0 | W153: =W147*IVH_37 -> 0
I154: RDS Survive per GA | J154: =J152*(1-RDSmort24) -> 0.001383142609 | K154: =K152*(1-RDSmort25) -> 0.001076751057 | L154: =L152*(1-RDSmort26) -> 0.000881083497 | M154: =M152*(1-RDSmort27) -> 0.0007467106824 | N154: =N152*(1-RDSmort28) -> 0.0006402038801 | O154: =O152*(1-RDSmort29) -> 0.0005415395888 | P154: =P152*(1-RDSmort30) -> 0.0004415042588 | Q154: =Q152*(1-RDSmort31) -> 0.0003390990119 | R154: =R152*(1-RDSmort32) -> 0.0002389443606 | S154: =S152*(1-RDSmort33) -> 0.0001486849278 | T154: =T152*(1-RDSmort34) -> 7.639416644e-05 | U154: =U152*(1-RDSmort35) -> 2.797907888e-05 | V154: =V152*(1-RDSmort36) -> 3.996463293e-06 | W154: =W152*(1-RDSmort37) -> 0
I155: IVH survive per GA | J155: =J153*(1-IVHmort24) -> 0.000253091555 | K155: =K153*(1-IVHmort25) -> 0.0003158038966 | L155: =L153*(1-IVHmort26) -> 0.0002456682039 | M155: =M153*(1-IVHmort27) -> 0.0001496879112 | N155: =N153*(1-IVHmort28) -> 7.064152985e-05 | O155: =O153*(1-IVHmort29) -> 2.585021582e-05 | P155: =P153*(1-IVHmort30) -> 1.446773598e-05 | Q155: =Q153*(1-IVHmort31) -> 1.944975732e-05 | R155: =R153*(1-IVHmort32) -> 1.803193661e-05 | S155: =S153*(1-IVHmort33) -> 2.218844689e-06 | T155: =T153*(1-IVHmort34) -> 0 | U155: =U153*(1-IVHmort35) -> 0 | V155: =V153*(1-IVHmort36) -> 0 | W155: =W153*(1-IVHmort37) -> 0
I156: CP per GA | J156: =J147*CPrate24 -> 0.000176197461 | K156: =K147*CPrate25 -> 0.0001399991422 | L156: =L147*CPrate26 -> 0.0001174780634 | M156: =M147*CPrate27 -> 0.0001027501546 | N156: =N147*CPrate28 -> 9.171544234e-05 | O156: =O147*CPrate29 -> 8.177771767e-05 | P156: =P147*CPrate30 -> 7.156420321e-05 | Q156: =Q147*CPrate31 -> 6.064522075e-05 | R156: =R147*CPrate32 -> 4.925385869e-05 | S156: =S147*CPrate33 -> 3.800563947e-05 | T156: =T147*CPrate34 -> 2.761818702e-05 | U156: =U147*CPrate35 -> 1.863089422e-05 | V156: =V147*CPrate36 -> 9.696757032e-06 | W156: =W147*CPrate37 -> 5.730049167e-06
I160: Screening threshold: CL = 25mm
I162: On-going Pregnancy | J162: =SUM('Distribution Data'!$K$13:$K$17)-J163 -> 0.009278206466 | K162: =SUM('Distribution Data'!$K$13:$K$17)-K163 -> 0.008798026511 | L162: =SUM('Distribution Data'!$K$13:$K$17)-L163 -> 0.008382565293 | M162: =SUM('Distribution Data'!$K$13:$K$17)-M163 -> 0.007937977913 | N162: =SUM('Distribution Data'!$K$13:$K$17)-N163 -> 0.007396651241 | O162: =SUM('Distribution Data'!$K$13:$K$17)-O163 -> 0.00671720391 | P162: =SUM('Distribution Data'!$K$13:$K$17)-P163 -> 0.005884486317 | Q162: =SUM('Distribution Data'!$K$13:$K$17)-Q163 -> 0.004909580628 | R162: =SUM('Distribution Data'!$K$13:$K$17)-R163 -> 0.003829800769 | S162: =SUM('Distribution Data'!$K$13:$K$17)-S163 -> 0.002708692435 | T162: =SUM('Distribution Data'!$K$13:$K$17)-T163 -> 0.001636033085 | U162: =SUM('Distribution Data'!$K$13:$K$17)-U163 -> 0.0007278319423 | V162: =SUM('Distribution Data'!$K$13:$K$17)-V163 -> 0.0001895084611 | W162: =SUM('Distribution Data'!$K$13:$K$17)-W163 -> 1.82145965e-16
I163: Twin birth | J163: ='Markov Transitions 1.7'!Q22 -> 0.0006649753526 | K163: ='Markov Transitions 1.7'!Q23 -> 0.001145155307 | L163: ='Markov Transitions 1.7'!Q24 -> 0.001560616526 | M163: ='Markov Transitions 1.7'!Q25 -> 0.002005203905 | N163: ='Markov Transitions 1.7'!Q26 -> 0.002546530577 | O163: ='Markov Transitions 1.7'!Q27 -> 0.003225977908 | P163: ='Markov Transitions 1.7'!Q28 -> 0.004058695501 | Q163: ='Markov Transitions 1.7'!Q29 -> 0.00503360119 | R163: ='Markov Transitions 1.7'!Q30 -> 0.006113381049 | S163: ='Markov Transitions 1.7'!Q31 -> 0.007234489383 | T163: ='Markov Transitions 1.7'!Q32 -> 0.008307148733 | U163: ='Markov Transitions 1.7'!Q33 -> 0.009215349876 | V163: ='Markov Transitions 1.7'!Q34 -> 0.009753673357 | W163: ='Markov Transitions 1.7'!Q35 -> 0.009943181818
I164: Stillbirths | J164: =2*(J163*Stillbirth24) -> 0 | K164: =J164+(2*(K163-J163)*Stillbirth25) -> 0 | L164: =K164+(2*(L163-K163)*Stillbirth26) -> 0 | M164: =L164+(2*(M163-L163)*Stillbirth27) -> 0 | N164: =M164+(2*(N163-M163)*Stillbirth28) -> 0 | O164: =N164+(2*(O163-N163)*Stillbirth29) -> 0 | P164: =O164+(2*(P163-O163)*Stillbirth30) -> 0 | Q164: =P164+(2*(Q163-P163)*Stillbirth31) -> 0 | R164: =Q164+(2*(R163-Q163)*Stillbirth32) -> 0 | S164: =R164+(2*(S163-R163)*Stillbirth33) -> 0 | T164: =S164+(2*(T163-S163)*Stillbirth34) -> 0 | U164: =T164+(2*(U163-T163)*Stillbirth35) -> 0 | V164: =U164+(2*(V163-U163)*Stillbirth36) -> 0 | W164: =V164+(2*(W163-V163)*Stillbirth37) -> 0
I165: NND | J165: =((2*J163)-J164)*NND_24 -> 0.0005657040888 | K165: =J165+((2*(K163-J163))-(K164-J164))*NND_25 -> 0.0008134694298 | L165: =K165+((2*(L163-K163))-(L164-K164))*NND_26 -> 0.0009434923088 | M165: =L165+((2*(M163-L163))-(M164-L164))*NND_27 -> 0.0010278839 | N165: =M165+((2*(N163-M163))-(N164-M164))*NND_28 -> 0.001090207744 | O165: =N165+((2*(O163-N163))-(O164-N164))*NND_29 -> 0.001137654155 | P165: =O165+((2*(P163-O163))-(P164-O164))*NND_30 -> 0.001172923554 | Q165: =P165+((2*(Q163-P163))-(Q164-P164))*NND_31 -> 0.001197968246 | R165: =Q165+((2*(R163-Q163))-(R164-Q164))*NND_32 -> 0.001214792703 | S165: =R165+((2*(S163-R163))-(S164-R164))*NND_33 -> 0.00122538783 | T165: =S165+((2*(T163-S163))-(T164-S164))*NND_34 -> 0.001231536387 | U165: =T165+((2*(U163-T163))-(U164-T164))*NND_35 -> 0.001234693907 | V165: =U165+((2*(V163-U163))-(V164-U164))*NND_36 -> 0.001235829075 | W165: =V165+((2*(W163-V163))-(W164-V164))*NND_37 -> 0.001236071456
I166: NICU admission | J166: =J178*NICU24 -> 0.001329950705 | K166: =J166+(K178*NICU25) -> 0.002290310614 | L166: =K166+(L178*NICU26) -> 0.003121233051 | M166: =L166+(M178*NICU27) -> 0.00401040781 | N166: =M166+(N178*NICU28) -> 0.005093061154 | O166: =N166+(O178*NICU29) -> 0.006451955817 | P166: =O166+(P178*NICU30) -> 0.008117391001 | Q166: =P166+(Q178*NICU31) -> 0.01006720238 | R166: =Q166+(R178*NICU32) -> 0.0122267621 | S166: =R166+(S178*NICU33) -> 0.01393798023 | T166: =S166+(T178*NICU34) -> 0.01517976067 | U166: =T166+(U178*NICU35) -> 0.01593288036 | V166: =U166+(V178*NICU36) -> 0.01622416556 | W166: =V166+(W178*NICU37) -> 0.01627973444
I167: PND | J167: =J178*PND_24 -> 9.798073532e-05 | K167: =J167+(K178*PND_25) -> 0.0001483399615 | L167: =K167+(L178*PND_26) -> 0.0001793530765 | M167: =L167+(M178*PND_27) -> 0.0002029748175 | N167: =M167+(N178*PND_28) -> 0.0002234465255 | O167: =N167+(O178*PND_29) -> 0.0002417355408 | P167: =O167+(P178*PND_30) -> 0.0002576896347 | Q167: =P167+(Q178*PND_31) -> 0.0002709842839 | R167: =Q167+(R178*PND_32) -> 0.0002814649619 | S167: =R167+(S178*PND_33) -> 0.000289210322 | T167: =S167+(T178*PND_34) -> 0.0002944849973 | U167: =T167+(U178*PND_35) -> 0.0002976637433 | V167: =U167+(V178*PND_36) -> 0.0002990048304 | W167: =V167+(W178*PND_37) -> 0.0002993408635
I168: RDS | J168: =J178*RDS_24 -> 0.001303351691 | K168: =J168+(K178*RDS_25) -> 0.002104439603 | L168: =K168+(L178*RDS_26) -> 0.00268612792 | M168: =L168+(M178*RDS_27) -> 0.003199797339 | N168: =M168+(N178*RDS_28) -> 0.003705479731 | O168: =N168+(O178*RDS_29) -> 0.004205831715 | P168: =O168+(P178*RDS_30) -> 0.004673947112 | Q168: =P168+(Q178*RDS_31) -> 0.005075008314 | R168: =Q168+(R178*RDS_32) -> 0.005381776541 | S168: =R168+(S178*RDS_33) -> 0.005583920997 | T168: =S168+(T178*RDS_34) -> 0.005691186932 | U168: =T168+(U178*RDS_35) -> 0.005730402592 | V168: =U168+(V178*RDS_36) -> 0.005735703008 | W168: =V168+(W178*RDS_37) -> 0.005735703008
I169: IVH | J169: =J178*IVH_24 -> 0.000322303788 | K169: =J169+(K178*IVH_25) -> 0.0006398269803 | L169: =K169+(L178*IVH_26) -> 0.0008590142475 | M169: =L169+(M178*IVH_27) -> 0.0009981732062 | N169: =M169+(N178*IVH_28) -> 0.00107358039 | O169: =N169+(O178*IVH_29) -> 0.001105858098 | P169: =O169+(P178*IVH_30) -> 0.00112658869 | Q169: =P169+(Q178*IVH_31) -> 0.001157676591 | R169: =Q169+(R178*IVH_32) -> 0.001188962521 | S169: =R169+(S178*IVH_33) -> 0.001193039278 | T169: =S169+(T178*IVH_34) -> 0.001193039278 | U169: =T169+(U178*IVH_35) -> 0.001193039278 | V169: =U169+(V178*IVH_36) -> 0.001193039278 | W169: =V169+(W178*IVH_37) -> 0.001193039278
I170: RDS Survive | J170: =J183*(1-RDSmort24) -> 0.0012329707 | K170: =J170+(K183*(1-RDSmort25)) -> 0.001990799864 | L170: =K170+(L183*(1-RDSmort26)) -> 0.002541077013 | M170: =L170+(M183*(1-RDSmort27)) -> 0.003027008282 | N170: =M170+(N183*(1-RDSmort28)) -> 0.003505383826 | O170: =N170+(O183*(1-RDSmort29)) -> 0.003978716802 | P170: =O170+(P183*(1-RDSmort30)) -> 0.004421553968 | Q170: =P170+(Q183*(1-RDSmort31)) -> 0.004800957865 | R170: =Q170+(R183*(1-RDSmort32)) -> 0.005091160608 | S170: =R170+(S183*(1-RDSmort33)) -> 0.005282389263 | T170: =S170+(T183*(1-RDSmort34)) -> 0.005383862838 | U170: =T170+(U183*(1-RDSmort35)) -> 0.005420960852 | V170: =U170+(V183*(1-RDSmort36)) -> 0.005425975045 | W170: =V170+(W183*(1-RDSmort37)) -> 0.005425975045
I171: IVH survive | J171: =J184*(1-IVHmort24) -> 0.0002256126516 | K171: =J171+(K184*(1-IVHmort25)) -> 0.0004478788862 | L171: =K171+(L184*(1-IVHmort26)) -> 0.0006013099732 | M171: =L171+(M184*(1-IVHmort27)) -> 0.0006987212443 | N171: =M171+(N184*(1-IVHmort28)) -> 0.0007515062731 | O171: =N171+(O184*(1-IVHmort29)) -> 0.0007741006685 | P171: =O171+(P184*(1-IVHmort30)) -> 0.0007886120828 | Q171: =P171+(Q184*(1-IVHmort31)) -> 0.000810373614 | R171: =Q171+(R184*(1-IVHmort32)) -> 0.0008322737645 | S171: =R171+(S184*(1-IVHmort33)) -> 0.0008351274948 | T171: =S171+(T184*(1-IVHmort34)) -> 0.0008351274948 | U171: =T171+(U184*(1-IVHmort35)) -> 0.0008351274948 | V171: =U171+(V184*(1-IVHmort36)) -> 0.0008351274948 | W171: =V171+(W184*(1-IVHmort37)) -> 0.0008351274948
I172: CP | J172: =J178*CPrate24 -> 0.0001570671783 | K172: =J172+(K178*CPrate25) -> 0.000255600105 | L172: =K172+(L178*CPrate26) -> 0.0003289705561 | M172: =L172+(M178*CPrate27) -> 0.000395836498 | N172: =M172+(N178*CPrate28) -> 0.0004643684547 | O172: =N172+(O178*CPrate29) -> 0.0005358463139 | P172: =O172+(P178*CPrate30) -> 0.0006076265704 | Q172: =P172+(Q178*CPrate31) -> 0.0006754800064 | R172: =Q172+(R178*CPrate32) -> 0.0007352998106 | S172: =R172+(S178*CPrate33) -> 0.0007841801339 | T172: =S172+(T178*CPrate34) -> 0.0008208650837 | U172: =T172+(U178*CPrate35) -> 0.0008455681548 | V172: =U172+(V178*CPrate36) -> 0.0008577342655 | W172: =V172+(W178*CPrate37) -> 0.0008616002381
I177: Stillbirths per GA | J177: =J164 -> 0 | K177: =K164-J164 -> 0 | L177: 0 | M177: 0 | N177: 0 | O177: 0 | P177: 0 | Q177: 0 | R177: 0 | S177: 0 | T177: 0 | U177: 0 | V177: 0 | W177: 0
I178: Live births per GA | J178: =(2*J163)-J177 -> 0.001329950705 | K178: =2*(K163-J163)-K177 -> 0.0009603599091 | L178: 0.0008309224371 | M178: 0.0008891747588 | N178: 0.001082653344 | O178: 0.001358894663 | P178: 0.001665435185 | Q178: 0.001949811379 | R178: 0.002159559717 | S178: 0.002242216668 | T178: 0.0021453187 | U178: 0.001816402286 | V178: 0.001076646962 | W178: 0.0003790169222
I179: NND per GA | J179: =J178*NND_24 -> 0.0005657040888 | K179: =K178*NND_25 -> 0.0002477653411 | L179: =L178*NND_26 -> 0.000130022879 | M179: =M178*NND_27 -> 8.439159139e-05 | N179: =N178*NND_28 -> 6.232384395e-05 | O179: =O178*NND_29 -> 4.744641048e-05 | P179: =P178*NND_30 -> 3.526939934e-05 | Q179: =Q178*NND_31 -> 2.504469157e-05 | R179: =R178*NND_32 -> 1.682445729e-05 | S179: =S178*NND_33 -> 1.059512736e-05 | T179: =T178*NND_34 -> 6.148556704e-06 | U179: =U178*NND_35 -> 3.157520384e-06 | V179: =V178*NND_36 -> 1.135168161e-06 | W179: =W178*NND_37 -> 2.423808152e-07
I180: NICU admission per GA | J180: =J178*NICU24 -> 0.001329950705 | K180: =K178*NICU25 -> 0.0009603599091 | L180: =L178*NICU26 -> 0.0008309224371 | M180: =M178*NICU27 -> 0.0008891747588 | N180: =N178*NICU28 -> 0.001082653344 | O180: =O178*NICU29 -> 0.001358894663 | P180: =P178*NICU30 -> 0.001665435185 | Q180: =Q178*NICU31 -> 0.001949811379 | R180: =R178*NICU32 -> 0.002159559717 | S180: =S178*NICU33 -> 0.001711218129 | T180: =T178*NICU34 -> 0.001241780441 | U180: =U178*NICU35 -> 0.000753119689 | V180: =V178*NICU36 -> 0.0002912852069 | W180: =W178*NICU37 -> 5.556887219e-05
I181: PND per GA | J181: =J178*PND_24 -> 9.798073532e-05 | K181: =K178*PND_25 -> 5.035922621e-05 | L181: =L178*PND_26 -> 3.101311495e-05 | M181: =M178*PND_27 -> 2.362174106e-05 | N181: =N178*PND_28 -> 2.047170792e-05 | O181: =O178*PND_29 -> 1.828901533e-05 | P181: =P178*PND_30 -> 1.595409386e-05 | Q181: =Q178*PND_31 -> 1.329464926e-05 | R181: =R178*PND_32 -> 1.048067798e-05 | S181: =S178*PND_33 -> 7.745360071e-06 | T181: =T178*PND_34 -> 5.2746753e-06 | U181: =U178*PND_35 -> 3.178746008e-06 | V181: =V178*PND_36 -> 1.341087096e-06 | W181: =W178*PND_37 -> 3.360331638e-07
I182: Surviving Babies | X182: =(W163*2)-(W164+W165) -> 0.01865029218 | Y182: =X182-W167 -> 0.01835095132
I183: RDS per GA | J183: =J178*RDS_24 -> 0.001303351691 | K183: =K178*RDS_25 -> 0.0008010879119 | L183: =L178*RDS_26 -> 0.0005816883173 | M183: =M178*RDS_27 -> 0.0005136694183 | N183: =N178*RDS_28 -> 0.0005056823927 | O183: =O178*RDS_29 -> 0.0005003519835 | P183: =P178*RDS_30 -> 0.0004681153973 | Q183: =Q178*RDS_31 -> 0.0004010612022 | R183: =R178*RDS_32 -> 0.0003067682265 | S183: =S178*RDS_33 -> 0.0002021444565 | T183: =T178*RDS_34 -> 0.000107265935 | U183: =U178*RDS_35 -> 3.92156596e-05 | V183: =V178*RDS_36 -> 5.300415815e-06 | W183: =W178*RDS_37 -> 0
I184: IVH per GA | J184: =J178*IVH_24 -> 0.000322303788 | K184: =K178*IVH_25 -> 0.0003175231923 | L184: =L178*IVH_26 -> 0.0002191872671 | M184: =M178*IVH_27 -> 0.0001391589587 | N184: =N178*IVH_28 -> 7.540718397e-05 | O184: =O178*IVH_29 -> 3.227770772e-05 | P184: =P178*IVH_30 -> 2.07305918e-05 | Q184: =Q178*IVH_31 -> 3.108790171e-05 | R184: =R178*IVH_32 -> 3.128592924e-05 | S184: =S178*IVH_33 -> 4.076757607e-06 | T184: =T178*IVH_34 -> 0 | U184: =U178*IVH_35 -> 0 | V184: =V178*IVH_36 -> 0 | W184: =W178*IVH_37 -> 0
I185: RDS Survive per GA | J185: =J183*(1-RDSmort24) -> 0.0012329707 | K185: =K183*(1-RDSmort25) -> 0.0007578291647 | L185: =L183*(1-RDSmort26) -> 0.0005502771482 | M185: =M183*(1-RDSmort27) -> 0.0004859312697 | N185: =N183*(1-RDSmort28) -> 0.0004783755435 | O185: =O183*(1-RDSmort29) -> 0.0004733329764 | P185: =P183*(1-RDSmort30) -> 0.0004428371658 | Q185: =Q183*(1-RDSmort31) -> 0.0003794038973 | R185: =R183*(1-RDSmort32) -> 0.0002902027423 | S185: =S183*(1-RDSmort33) -> 0.0001912286558 | T185: =T183*(1-RDSmort34) -> 0.0001014735745 | U185: =U183*(1-RDSmort35) -> 3.709801398e-05 | V185: =V183*(1-RDSmort36) -> 5.014193361e-06 | W185: =W183*(1-RDSmort37) -> 0
I186: IVH survive per GA | J186: =J184*(1-IVHmort24) -> 0.0002256126516 | K186: =K184*(1-IVHmort25) -> 0.0002222662346 | L186: =L184*(1-IVHmort26) -> 0.000153431087 | M186: =M184*(1-IVHmort27) -> 9.741127112e-05 | N186: =N184*(1-IVHmort28) -> 5.278502878e-05 | O186: =O184*(1-IVHmort29) -> 2.259439541e-05 | P186: =P184*(1-IVHmort30) -> 1.451141426e-05 | Q186: =Q184*(1-IVHmort31) -> 2.17615312e-05 | R186: =R184*(1-IVHmort32) -> 2.190015047e-05 | S186: =S184*(1-IVHmort33) -> 2.853730325e-06 | T186: =T184*(1-IVHmort34) -> 0 | U186: =U184*(1-IVHmort35) -> 0 | V186: =V184*(1-IVHmort36) -> 0 | W186: =W184*(1-IVHmort37) -> 0
I187: CP per GA | J187: =J178*CPrate24 -> 0.0001570671783 | K187: =K178*CPrate25 -> 9.853292668e-05 | L187: =L178*CPrate26 -> 7.337045119e-05 | M187: =M178*CPrate27 -> 6.686594186e-05 | N187: =N178*CPrate28 -> 6.853195668e-05 | O187: =O178*CPrate29 -> 7.147785926e-05 | P187: =P178*CPrate30 -> 7.178025646e-05 | Q187: =Q178*CPrate31 -> 6.785343601e-05 | R187: =R178*CPrate32 -> 5.981980417e-05 | S187: =S178*CPrate33 -> 4.888032335e-05 | T187: =T178*CPrate34 -> 3.668494978e-05 | U187: =U178*CPrate35 -> 2.470307108e-05 | V187: =V178*CPrate36 -> 1.216611068e-05 | W187: =W178*CPrate37 -> 3.865972606e-06
C189: Treatment Costs (obsolete in v1.63)
C190: See below
I191: CL 5 mm
I193: On-going Pregnancy | J193: =1-J194 -> 1 | K193: 1 | L193: 1 | M193: 1 | N193: 1 | O193: 1 | P193: 1 | Q193: 1 | R193: 1 | S193: 1 | T193: 1 | U193: 1 | V193: 1 | W193: 1
I194: Twin birth | J194: =($D$45-$C$45)*Kind_24 -> 0 | K194: =($D$45-$C$45)*Kind_25+J194 -> 0 | L194: =($D$45-$C$45)*Kind_26+K194 -> 0 | M194: =($D$45-$C$45)*Kind_27+L194 -> 0 | N194: =M194+(Kind_28*($E$45-$D$45)) -> 0 | O194: =N194+(Kind_29*($E$45-$D$45)) -> 0 | P194: =O194+(Kind_30*($E$45-$D$45)) -> 0 | Q194: =P194+(Kind_31*($E$45-$D$45)) -> 0 | R194: =Q194+(Kind_32*($F$45-$E$45)) -> 0 | S194: =R194+(Kind_33*($F$45-$E$45)) -> 0 | T194: =S194+(Kind_34*($F$45-$E$45)) -> 0 | U194: =T194+(Kind_35*($F$45-$E$45)) -> 0 | V194: =U194+(Kind_36*($F$45-$E$45)) -> 0 | W194: =V194+(Kind_37*($G$45-$F$45)) -> 0
G195: Treated | I195: =1 -> 1
G196: Treat cost | I196: =I195*Cost_treat*7 -> 4.2 | J196: =J193*Cost_treat*7 -> 4.2 | K196: 4.2 | L196: 4.2 | M196: 4.2 | N196: 4.2 | O196: 4.2 | P196: 4.2 | Q196: 4.2 | R196: 4.2 | S196: 4.2 | T196: 4.2 | U196: 4.2 | V196: 4.2 | W196: 4.2 | Y196: =SUM(I196:X196) -> 63
I200: CL = 10 mm
I202: On-going Pregnancy | J202: =1-J203 -> 1 | K202: 1 | L202: 1 | M202: 1 | N202: 1 | O202: 1 | P202: 1 | Q202: 1 | R202: 1 | S202: 1 | T202: 1 | U202: 1 | V202: 1 | W202: 1
I203: Twin birth | J203: =($D$57-$C$57)*Kind_24 -> 0 | K203: =($D$57-$C$57)*Kind_25+J203 -> 0 | L203: =($D$57-$C$57)*Kind_26+K203 -> 0 | M203: =($D$57-$C$57)*Kind_27+L203 -> 0 | N203: =M203+(Kind_28*($E$57-$D$57)) -> 0 | O203: =N203+(Kind_29*($E$57-$D$57)) -> 0 | P203: =O203+(Kind_30*($E$57-$D$57)) -> 0 | Q203: =P203+(Kind_31*($E$57-$D$57)) -> 0 | R203: =Q203+(Kind_32*($F$57-$E$57)) -> 0 | S203: =R203+(Kind_33*($F$57-$E$57)) -> 0 | T203: =S203+(Kind_34*($F$57-$E$57)) -> 0 | U203: =T203+(Kind_35*($F$57-$E$57)) -> 0 | V203: =U203+(Kind_36*($F$57-$E$57)) -> 0 | W203: =V203+(Kind_37*($G$57-$F$57)) -> 0
G204: Treated | I204: =1 -> 1
G205: Treat cost | I205: =I204*Cost_treat*7 -> 4.2 | J205: =J202*Cost_treat*7 -> 4.2 | K205: 4.2 | L205: 4.2 | M205: 4.2 | N205: 4.2 | O205: 4.2 | P205: 4.2 | Q205: 4.2 | R205: 4.2 | S205: 4.2 | T205: 4.2 | U205: 4.2 | V205: 4.2 | W205: 4.2 | Y205: =SUM(I205:X205) -> 63
I209: CL = 15 mm
I211: On-going Pregnancy | J211: =1-J212 -> 1 | K211: 1 | L211: 1 | M211: 1 | N211: 1 | O211: 1 | P211: 1 | Q211: 1 | R211: 1 | S211: 1 | T211: 1 | U211: 1 | V211: 1 | W211: 1
I212: Twin birth | J212: =($D$69-$C$69)*Kind_24 -> 0 | K212: =($D$69-$C$69)*Kind_25+J212 -> 0 | L212: =($D$69-$C$69)*Kind_26+K212 -> 0 | M212: =($D$69-$C$69)*Kind_27+L212 -> 0 | N212: =M212+(Kind_28*($E$69-$D$69)) -> 0 | O212: =N212+(Kind_29*($E$69-$D$69)) -> 0 | P212: =O212+(Kind_30*($E$69-$D$69)) -> 0 | Q212: =P212+(Kind_31*($E$69-$D$69)) -> 0 | R212: =Q212+(Kind_32*($F$69-$E$69)) -> 0 | S212: =R212+(Kind_33*($F$69-$E$69)) -> 0 | T212: =S212+(Kind_34*($F$69-$E$69)) -> 0 | U212: =T212+(Kind_35*($F$69-$E$69)) -> 0 | V212: =U212+(Kind_36*($F$69-$E$69)) -> 0 | W212: =V212+(Kind_37*($G$69-$F$69)) -> 0
G213: Treated | I213: =1 -> 1
G214: Treat cost | I214: =I213*Cost_treat*7 -> 4.2 | J214: =J211*Cost_treat*7 -> 4.2 | K214: 4.2 | L214: 4.2 | M214: 4.2 | N214: 4.2 | O214: 4.2 | P214: 4.2 | Q214: 4.2 | R214: 4.2 | S214: 4.2 | T214: 4.2 | U214: 4.2 | V214: 4.2 | W214: 4.2 | Y214: =SUM(I214:X214) -> 63
I218: CL = 20 mm
I220: On-going Pregnancy | J220: =1-J221 -> 1 | K220: 1 | L220: 1 | M220: 1 | N220: 1 | O220: 1 | P220: 1 | Q220: 1 | R220: 1 | S220: 1 | T220: 1 | U220: 1 | V220: 1 | W220: 1
I221: Twin birth | J221: =($D$81-$C$81)*Kind_24 -> 0 | K221: =($D$81-$C$81)*Kind_25+J221 -> 0 | L221: =($D$81-$C$81)*Kind_26+K221 -> 0 | M221: =($D$81-$C$81)*Kind_27+L221 -> 0 | N221: =M221+(Kind_28*($E$81-$D$81)) -> 0 | O221: =N221+(Kind_29*($E$81-$D$81)) -> 0 | P221: =O221+(Kind_30*($E$81-$D$81)) -> 0 | Q221: =P221+(Kind_31*($E$81-$D$81)) -> 0 | R221: =Q221+(Kind_32*($F$81-$E$81)) -> 0 | S221: =R221+(Kind_33*($F$81-$E$81)) -> 0 | T221: =S221+(Kind_34*($F$81-$E$81)) -> 0 | U221: =T221+(Kind_35*($F$81-$E$81)) -> 0 | V221: =U221+(Kind_36*($F$81-$E$81)) -> 0 | W221: =V221+(Kind_37*($G$81-$F$81)) -> 0
G222: Treated | I222: =1 -> 1
G223: Treat cost | I223: =I222*Cost_treat*7 -> 4.2 | J223: =J220*Cost_treat*7 -> 4.2 | K223: 4.2 | L223: 4.2 | M223: 4.2 | N223: 4.2 | O223: 4.2 | P223: 4.2 | Q223: 4.2 | R223: 4.2 | S223: 4.2 | T223: 4.2 | U223: 4.2 | V223: 4.2 | W223: 4.2 | Y223: =SUM(I223:X223) -> 63
I227: CL = 25 mm
I229: On-going Pregnancy | J229: =1-J230 -> 1 | K229: 1 | L229: 1 | M229: 1 | N229: 1 | O229: 1 | P229: 1 | Q229: 1 | R229: 1 | S229: 1 | T229: 1 | U229: 1 | V229: 1 | W229: 1
I230: Twin birth | J230: =($D$93-$C$93)*Kind_24 -> 0 | K230: =($D$93-$C$93)*Kind_25+J230 -> 0 | L230: =($D$93-$C$93)*Kind_26+K230 -> 0 | M230: =($D$93-$C$93)*Kind_27+L230 -> 0 | N230: =M230+(Kind_28*($E$93-$D$93)) -> 0 | O230: =N230+(Kind_29*($E$93-$D$93)) -> 0 | P230: =O230+(Kind_30*($E$93-$D$93)) -> 0 | Q230: =P230+(Kind_31*($E$93-$D$93)) -> 0 | R230: =Q230+(Kind_32*($F$93-$E$93)) -> 0 | S230: =R230+(Kind_33*($F$93-$E$93)) -> 0 | T230: =S230+(Kind_34*($F$93-$E$93)) -> 0 | U230: =T230+(Kind_35*($F$93-$E$93)) -> 0 | V230: =U230+(Kind_36*($F$93-$E$93)) -> 0 | W230: =V230+(Kind_37*($G$93-$F$93)) -> 0
G231: Treated | I231: =1 -> 1
G232: Treat cost | I232: =I231*Cost_treat*7 -> 4.2 | J232: =J229*Cost_treat*7 -> 4.2 | K232: 4.2 | L232: 4.2 | M232: 4.2 | N232: 4.2 | O232: 4.2 | P232: 4.2 | Q232: 4.2 | R232: 4.2 | S232: 4.2 | T232: 4.2 | U232: 4.2 | V232: 4.2 | W232: 4.2 | Y232: =SUM(I232:X232) -> 63
C234: Appointment costs
I236: Appointment cost
I238: Baseline | J238: ='Format control'!C$41*J4 -> 4.856110129 | K238: ='Format control'!D$41*'Markov Transitions'!K4 -> 0 | L238: ='Format control'!E$41*'Markov Transitions'!L4 -> 0.5648610938 | M238: ='Format control'!F$41*'Markov Transitions'!M4 -> 0 | N238: ='Format control'!G$41*'Markov Transitions'!N4 -> 1.571140817 | O238: ='Format control'!H$41*'Markov Transitions'!O4 -> 0 | P238: ='Format control'!I$41*'Markov Transitions'!P4 -> 0.2501929688 | Q238: ='Format control'!J$41*'Markov Transitions'!Q4 -> 0 | R238: ='Format control'!K$41*'Markov Transitions'!R4 -> 0.9781532641 | S238: ='Format control'!L$41*'Markov Transitions'!S4 -> 0 | T238: ='Format control'!M$41*'Markov Transitions'!T4 -> 0.1568945312 | U238: ='Format control'!N$41*'Markov Transitions'!U4 -> 0 | V238: ='Format control'!O$41*'Markov Transitions'!V4 -> 0.1040186127 | W238: ='Format control'!P$41*'Markov Transitions'!W4 -> 0 | X238: =SUM(J238:W238) -> 8.481371417
I239: Cervical length ≤ 5 mm | J239: ='Format control'!C$41*J38 -> 4.930989941 | K239: ='Format control'!D$41*K38 -> 0 | L239: ='Format control'!E$41*L38 -> 0.5999398867 | M239: ='Format control'!F$41*M38 -> 0 | N239: ='Format control'!G$41*N38 -> 1.767143996 | O239: ='Format control'!H$41*O38 -> 0 | P239: ='Format control'!I$41*P38 -> 0.2966001338 | Q239: ='Format control'!J$41*Q38 -> 0 | R239: ='Format control'!K$41*R38 -> 1.170738403 | S239: ='Format control'!L$41*S38 -> 0 | T239: ='Format control'!M$41*T38 -> 0.171332836 | U239: ='Format control'!N$41*U38 -> 0 | V239: ='Format control'!O$41*V38 -> 0.09971304312 | W239: ='Format control'!P$41*W38 -> 0 | X239: =SUM(J239:W239) -> 9.036458239
I240: Cervical length ≤ 10 mm | J240: ='Format control'!C$41*J69 -> 4.989146768 | K240: ='Format control'!D$41*K69 -> 0 | L240: ='Format control'!E$41*L69 -> 0.6303371114 | M240: ='Format control'!F$41*M69 -> 0 | N240: ='Format control'!G$41*N69 -> 1.946359283 | O240: ='Format control'!H$41*O69 -> 0 | P240: ='Format control'!I$41*P69 -> 0.3404176132 | Q240: ='Format control'!J$41*Q69 -> 0 | R240: ='Format control'!K$41*R69 -> 1.356594323 | S240: ='Format control'!L$41*S69 -> 0 | T240: ='Format control'!M$41*T69 -> 0.1855356536 | U240: ='Format control'!N$41*U69 -> 0 | V240: ='Format control'!O$41*V69 -> 0.09327785094 | W240: ='Format control'!P$41*W69 -> 0 | X240: 9.541668604
I241: Cervical length ≤ 15 mm | J241: ='Format control'!C$41*J100 -> 5.031224546 | K241: ='Format control'!D$41*K100 -> 0 | L241: ='Format control'!E$41*L100 -> 0.6557890176 | M241: ='Format control'!F$41*M100 -> 0 | N241: ='Format control'!G$41*N100 -> 2.105710287 | O241: ='Format control'!H$41*O100 -> 0 | P241: ='Format control'!I$41*P100 -> 0.3807131204 | Q241: ='Format control'!J$41*Q100 -> 0 | R241: ='Format control'!K$41*R100 -> 1.531608745 | S241: ='Format control'!L$41*S100 -> 0 | T241: ='Format control'!M$41*T100 -> 0.1993410866 | U241: ='Format control'!N$41*U100 -> 0 | V241: ='Format control'!O$41*V100 -> 0.08369140042 | W241: ='Format control'!P$41*W100 -> 0 | X241: 9.988078203
I242: Cervical length ≤ 20 mm | J242: ='Format control'!C$41*J131 -> 5.05846802 | K242: ='Format control'!D$41*K131 -> 0 | L242: ='Format control'!E$41*L131 -> 0.6760977925 | M242: ='Format control'!F$41*M131 -> 0 | N242: ='Format control'!G$41*N131 -> 2.241853085 | O242: ='Format control'!H$41*O131 -> 0 | P242: ='Format control'!I$41*P131 -> 0.4163989872 | Q242: ='Format control'!J$41*Q131 -> 0 | R242: ='Format control'!K$41*R131 -> 1.690778354 | S242: ='Format control'!L$41*S131 -> 0 | T242: ='Format control'!M$41*T131 -> 0.212513648 | U242: ='Format control'!N$41*U131 -> 0 | V242: ='Format control'!O$41*V131 -> 0.07355529291 | W242: ='Format control'!P$41*W131 -> 0 | X242: 10.36966518
I243: Cervical length ≤ 25 mm | J243: ='Format control'!C$41*J162 -> 5.103013556 | K243: ='Format control'!D$41*K162 -> 0 | L243: ='Format control'!E$41*L162 -> 0.7219903486 | M243: ='Format control'!F$41*M162 -> 0 | N243: ='Format control'!G$41*N162 -> 2.574034632 | O243: ='Format control'!H$41*O162 -> 0 | P243: ='Format control'!I$41*P162 -> 0.5068308065 | Q243: ='Format control'!J$41*Q162 -> 0 | R243: ='Format control'!K$41*R162 -> 2.106390423 | S243: ='Format control'!L$41*S162 -> 0 | T243: ='Format control'!M$41*T162 -> 0.2492496405 | U243: ='Format control'!N$41*U162 -> 0 | V243: ='Format control'!O$41*V162 -> 0.0496265807 | W243: ='Format control'!P$41*W162 -> 0 | X243: 11.31113599
C245: NICU Costs
I247: NICU costs | J247: 24 | K247: 25 | L247: 26 | M247: 27 | N247: 28 | O247: 29 | P247: 30 | Q247: 31 | R247: 32 | S247: 33 | T247: 34 | U247: 35 | V247: 36 | W247: 37
I249: Baseline | J249: =J22*J256 -> 319.5087195 | K249: =K22*K256 -> 283.462 | L249: 238.299738 | M249: 188.1686877 | N249: 138.7976175 | O249: 96.42224412 | P249: 67.31060906 | Q249: 44.6343191 | R249: 26.98151118 | S249: 11.8884308 | T249: 4.84929242 | U249: 2.005940316 | V249: 0.9831158488 | W249: 0.3915849533 | X249: =SUM(J249:W249) -> 1423.70381
I250: Cervical length ≤ 5 mm | J250: =J56*J256 -> 280.4568165 | K250: 248.1319459 | L250: 211.122592 | M250: 170.8189173 | N250: 130.6131635 | O250: 95.17157079 | P250: 70.53643461 | Q250: 50.24232007 | R250: 32.8860789 | S250: 15.62862346 | T250: 6.658324738 | U250: 2.656522566 | V250: 1.017078861 | W250: 0.3753763518 | X250: =SUM(J250:W250) -> 1316.315766
I251: Cervical length ≤ 10 mm | J251: =J87*J256 -> 250.1264145 | K251: 217.029364 | L251: 185.3999206 | M251: 153.3711781 | N251: 121.638884 | O251: 92.97600954 | P251: 72.88576527 | Q251: 55.16605562 | R251: 38.34689088 | S251: 19.18143516 | T251: 8.406770663 | U251: 3.293626071 | V251: 1.077294538 | W251: 0.3511506448 | X251: 1219.250759
I252: Cervical length ≤ 15 mm | J252: =J118*J256 -> 228.1816841 | K252: 190.5110422 | L252: 161.7225468 | M252: 136.375606 | N252: 112.2526684 | O252: 90.01944465 | P252: 74.38868756 | Q252: 59.32932166 | R252: 43.24189012 | S252: 22.45631989 | T252: 10.04752994 | U252: 3.900272164 | V252: 1.180282991 | W252: 0.3150618172 | X252: 1133.922358
I253: Cervical length ≤ 20 mm | J253: =J149*J256 -> 213.973455 | K253: 168.9009144 | L253: 140.7785445 | M253: 120.5139322 | N253: 102.9444262 | O253: 86.55793103 | P253: 75.11031187 | Q253: 62.66072555 | R253: 47.43563462 | S253: 25.34805976 | T253: 11.52447611 | U253: 4.455754436 | V253: 1.300887195 | W253: 0.2769037695 | X253: 1061.781957
I254: Cervical length ≤ 25 mm | J254: =J180*J256 -> 190.7417201 | K254: =K180*K256 -> 118.8743099 | L254: 87.92267281 | M254: 78.42594123 | N254: 76.92252009 | O254: 75.65600738 | P254: 75.33707086 | Q254: 70.10850119 | R254: 57.61153438 | S254: 32.60098697 | T254: 15.30784143 | U254: 5.90797292 | V254: 1.632168109 | W254: 0.1868225483 | X254: 887.23607
I256: NICU Cost by GA | J256: =((SCBU_24*Cost_SCBU)+(ICU_24*Cost_CritCare2)+(HDU_24*Cost_HDU))*LOS_NICU24 -> 143420.1429 | K256: =((SCBU_25*Cost_SCBU)+(ICU_25*Cost_CritCare2)+(HDU_25*Cost_HDU))*LOS_NICU25 -> 123781 | L256: =((SCBU_26*Cost_SCBU)+(ICU_26*Cost_CritCare2)+(HDU_26*Cost_HDU))*LOS_NICU26 -> 105813.3333 | M256: =((SCBU_27*Cost_SCBU)+(ICU_27*Cost_CritCare2)+(HDU_27*Cost_HDU))*LOS_NICU27 -> 88200.81818 | N256: =((SCBU_28*Cost_SCBU)+(ICU_28*Cost_CritCare2)+(HDU_28*Cost_HDU))*LOS_NICU28 -> 71050 | O256: =((SCBU_29*Cost_SCBU)+(ICU_29*Cost_CritCare2)+(HDU_29*Cost_HDU))*LOS_NICU29 -> 55674.66667 | P256: =((SCBU_30*Cost_SCBU)+(ICU_30*Cost_CritCare2)+(HDU_30*Cost_HDU))*LOS_NICU30 -> 45235.66667 | Q256: =((SCBU_31*Cost_SCBU)+(ICU_31*Cost_CritCare2)+(HDU_31*Cost_HDU))*LOS_NICU31 -> 35956.55556 | R256: =((SCBU_32*Cost_SCBU)+(ICU_32*Cost_CritCare2)+(HDU_32*Cost_HDU))*LOS_NICU32 -> 26677.44444 | S256: =((SCBU_33*Cost_SCBU)+(ICU_33*Cost_CritCare2)+(HDU_33*Cost_HDU))*LOS_NICU33 -> 19051.33333 | T256: =((SCBU_34*Cost_SCBU)+(ICU_34*Cost_CritCare2)+(HDU_34*Cost_HDU))*LOS_NICU34 -> 12327.33333 | U256: =((SCBU_35*Cost_SCBU)+(ICU_35*Cost_CritCare2)+(HDU_35*Cost_HDU))*LOS_NICU35 -> 7844.666667 | V256: =((SCBU_36*Cost_SCBU)+(ICU_36*Cost_CritCare2)+(HDU_36*Cost_HDU))*LOS_NICU36 -> 5603.333333 | W256: =((SCBU_37*Cost_SCBU)+(ICU_37*Cost_CritCare2)+(HDU_37*Cost_HDU))*LOS_NICU37 -> 3362
C258: Post-discharge costs
I260: Baseline | J260: 24 | K260: 25 | L260: 26 | M260: 27 | N260: 28 | O260: 29 | P260: 30 | Q260: 31 | R260: 32 | S260: 33 | T260: 34 | U260: 35 | V260: 36 | W260: 37
I262: Survive Neonatal Period | J262: =J20-(J19+J21) -> 0.001280178545 | K262: =K20-(K19+K21) -> 0.001699218961 | L262: 0.001899671333 | M262: 0.001930929869 | N262: 0.001841064275 | O262: 0.001671417617 | P262: 0.001456486835 | Q262: 0.001225395624 | R262: 0.00100351841 | S262: 0.0008137937137 | T262: 0.0006776567167 | U262: 0.0006156529195 | V262: 0.0006478209473 | W262: 0.0007939213571
I263: Survive 1-year | J263: =J262-J23 -> 0.001116052421 | K263: =K262-K23 -> 0.001579134757 | L263: 0.001815615458 | M263: 0.001874253826 | N263: 0.001804125492 | O263: 0.00164810859 | P263: 0.0014422325 | Q263: 0.001216931634 | R263: 0.0009986099391 | S263: 0.0008109692539 | T263: 0.0006759857795 | U263: 0.0006145736365 | V263: 0.0006470131604 | W263: 0.0007932170228
I264: Post-discharge cost | J264: =(J262*Discharge6_24)+(J263*Discharge12_24)+(J263*Discharge24_24) -> 3.752333619 | K264: =(K262*Discharge6_25)+(K263*Discharge12_25)+(K263*Discharge24_25) -> 5.126156217 | L264: =(L262*Discharge6_26)+(L263*Discharge12_26)+(L263*Discharge24_26) -> 5.805614705 | M264: =(M262*Discharge6_27)+(M263*Discharge12_27)+(M263*Discharge24_27) -> 5.943972424 | N264: =(N262*Discharge6_28)+(N263*Discharge12_28)+(N263*Discharge24_28) -> 5.692800818 | O264: =(O262*Discharge6_29)+(O263*Discharge12_29)+(O263*Discharge24_29) -> 5.183458658 | P264: =(P262*Discharge6_30)+(P263*Discharge12_30)+(P263*Discharge24_30) -> 4.525927194 | Q264: =(Q262*Discharge6_31)+(Q263*Discharge12_31)+(Q263*Discharge24_31) -> 3.813082257 | R264: =(R262*Discharge6_32)+(R263*Discharge12_32)+(R263*Discharge24_32) -> 3.125675763 | S264: =(S262*Discharge6_33)+(S263*Discharge12_33)+(S263*Discharge24_33) -> 2.536458354 | T264: =(T262*Discharge6_34)+(T263*Discharge12_34)+(T263*Discharge24_34) -> 2.113156244 | U264: =(U262*Discharge6_35)+(U263*Discharge12_35)+(U263*Discharge24_35) -> 1.920461362 | V264: =(V262*Discharge6_36)+(V263*Discharge12_36)+(V263*Discharge24_36) -> 2.021294203 | W264: =(W262*Discharge6_37)+(W263*Discharge12_37)+(W263*Discharge24_37) -> 1.673553254 | X264: =SUM(J264:W264) -> 53.23394507
I266: Cervical length ≤ 5 mm
I268: Survive Neonatal Period | J268: =J54-(J53+J55) -> 0.001123708924 | K268: 0.001487432204 | L268: 0.001683021304 | M268: 0.0017528918 | N268: 0.00173250257 | O268: 0.001649737998 | P268: 0.0015262882 | Q268: 0.001379358314 | R268: 0.001223125917 | S268: 0.001069819536 | T268: 0.0009304570833 | U268: 0.000815326289 | V268: 0.0006702007619 | W268: 0.0007610591267
I269: Survive 1-year | J269: =J268-J57 -> 0.0009796430892 | K269: 0.001382315019 | L269: 0.001608551671 | M269: 0.001701441474 | N269: 0.00169774195 | O269: 0.001626731308 | P269: 0.001511350735 | Q269: 0.001369830881 | R269: 0.001217143289 | S269: 0.001066106479 | T269: 0.0009281628015 | U269: 0.0008138969644 | V269: 0.0006693650689 | W269: 0.0007603839464
I270: Post-discharge cost | J270: =(J268*Discharge6_24)+(J269*Discharge12_24)+(J269*Discharge24_24) -> 3.293705232 | K270: =(K268*Discharge6_25)+(K269*Discharge12_25)+(K269*Discharge24_25) -> 4.487243852 | L270: =(L268*Discharge6_26)+(L269*Discharge12_26)+(L269*Discharge24_26) -> 5.143507228 | M270: =(M268*Discharge6_27)+(M269*Discharge12_27)+(M269*Discharge24_27) -> 5.395918665 | N270: =(N268*Discharge6_28)+(N269*Discharge12_28)+(N269*Discharge24_28) -> 5.357114461 | O270: =(O268*Discharge6_29)+(O269*Discharge12_29)+(O269*Discharge24_29) -> 5.116225069 | P270: =(P268*Discharge6_30)+(P269*Discharge12_30)+(P269*Discharge24_30) -> 4.742829876 | Q270: =(Q268*Discharge6_31)+(Q269*Discharge12_31)+(Q269*Discharge24_31) -> 4.292170309 | R270: =(R268*Discharge6_32)+(R269*Discharge12_32)+(R269*Discharge24_32) -> 3.80969098 | S270: =(S268*Discharge6_33)+(S269*Discharge12_33)+(S269*Discharge24_33) -> 3.33444785 | T270: =(T268*Discharge6_34)+(T269*Discharge12_34)+(T269*Discharge24_34) -> 2.901470828 | U270: =(U268*Discharge6_35)+(U269*Discharge12_35)+(U269*Discharge24_35) -> 2.54332041 | V270: =(V268*Discharge6_36)+(V269*Discharge12_36)+(V269*Discharge24_36) -> 2.091122432 | W270: =(W268*Discharge6_37)+(W269*Discharge12_37)+(W269*Discharge24_37) -> 1.604281037 | X270: =SUM(J270:W270) -> 54.11304823
I272: Cervical length ≤ 10 mm
I274: Survive Neonatal Period | J274: =J85-(J84+J86) -> 0.001002183821 | K274: 0.001300987118 | L274: 0.001477966015 | M274: 0.001573848405 | N274: 0.001613464321 | O274: 0.001611679355 | P274: 0.001577123711 | Q274: 0.001514535104 | R274: 0.001426228898 | S274: 0.001313018649 | T274: 0.0011747909 | U274: 0.001010862831 | V274: 0.000709879684 | W274: 0.000711942566
I275: Survive 1-year | J275: =J274-J88 -> 0.0008736981916 | K275: 0.001209046052 | L275: 0.001412569584 | M275: 0.001527653304 | N275: 0.001581092063 | O275: 0.001589203418 | P275: 0.001561688729 | Q275: 0.001504073986 | R275: 0.00141925284 | S275: 0.001308461513 | T275: 0.00117189415 | U275: 0.001009090717 | V275: 0.0007089945143 | W275: 0.0007113109599
I276: Post-discharge cost | J276: =(J274*Discharge6_24)+(J275*Discharge12_24)+(J275*Discharge24_24) -> 2.937502787 | K276: =(K274*Discharge6_25)+(K275*Discharge12_25)+(K275*Discharge24_25) -> 3.924781536 | L276: =(L274*Discharge6_26)+(L275*Discharge12_26)+(L275*Discharge24_26) -> 4.516834613 | M276: =(M274*Discharge6_27)+(M275*Discharge12_27)+(M275*Discharge24_27) -> 4.844770214 | N276: =(N274*Discharge6_28)+(N275*Discharge12_28)+(N275*Discharge24_28) -> 4.989033317 | O276: =(O274*Discharge6_29)+(O275*Discharge12_29)+(O275*Discharge24_29) -> 4.998196277 | P276: =(P274*Discharge6_30)+(P275*Discharge12_30)+(P275*Discharge24_30) -> 4.900797537 | Q276: =(Q274*Discharge6_31)+(Q275*Discharge12_31)+(Q275*Discharge24_31) -> 4.71280199 | R276: =(R274*Discharge6_32)+(R275*Discharge12_32)+(R275*Discharge24_32) -> 4.442299269 | S276: =(S274*Discharge6_33)+(S275*Discharge12_33)+(S275*Discharge24_33) -> 4.092458648 | T276: =(T274*Discharge6_34)+(T275*Discharge12_34)+(T275*Discharge24_34) -> 3.663383929 | U276: =(U274*Discharge6_35)+(U275*Discharge12_35)+(U275*Discharge24_35) -> 3.153275081 | V276: =(V274*Discharge6_36)+(V275*Discharge12_36)+(V275*Discharge24_36) -> 2.214926356 | W276: =(W274*Discharge6_37)+(W275*Discharge12_37)+(W275*Discharge24_37) -> 1.500745366 | X276: =SUM(J276:W276) -> 54.89180692
I278: Cervical length ≤ 15 mm
I280: Survive Neonatal Period | J280: =J116-(J115+J117) -> 0.0009142576668 | K280: 0.001142022477 | L280: 0.001289215375 | M280: 0.00139944501 | N280: 0.001488961995 | O280: 0.001560429204 | P280: 0.001609644387 | Q280: 0.001628833879 | R280: 0.001608287709 | S280: 0.001537192945 | T280: 0.001404076217 | U280: 0.00119705154 | V280: 0.0007777435858 | W280: 0.0006387740473
I281: Survive 1-year | J281: =J280-J119 -> 0.000797044667 | K281: 0.001061315479 | L281: 0.001232170704 | M281: 0.001358368943 | N281: 0.001459087729 | O281: 0.001538667984 | P281: 0.001593891132 | Q281: 0.001617583282 | R281: 0.001600421154 | S281: 0.001531857761 | T281: 0.001400614105 | U281: 0.001194953025 | V281: 0.0007767737946 | W281: 0.0006382073532
... 41 more rows

Sheet Clinical Lookup
D4: QALY losses
C5: Strategy | D5: Stillbirths | E5: Neonatal Deaths | F5: Post neonatal deaths | G5: CP | H5: IVH | I5: RDS | J5: NICU admissions
C6: No Screen/treatment | D6: ='QALY calcs'!B3*Cohort -> 0 | E6: ='QALY calcs'!C3*Cohort -> 0.0590562856 | F6: ='QALY calcs'!D3*Cohort -> 0.01317955758 | G6: ='QALY calcs'!E3*Cohort -> 0.01405698292 | H6: ='QALY calcs'!F3*Cohort -> 0.007738440213 | I6: ='QALY calcs'!G3*Cohort -> 0.01333018519 | J6: ='Markov Transitions'!W8*Cohort -> 0.01789447416
C7: Cervical length ≤ 25 mm | D7: ='QALY calcs'!B4*Cohort -> 0 | E7: ='QALY calcs'!C4*Cohort -> 0.03133441142 | F7: ='QALY calcs'!D4*Cohort -> 0.009281122241 | G7: ='QALY calcs'!E4*Cohort -> 0.009606842654 | H7: ='QALY calcs'!F4*Cohort -> 0.003758073726 | I7: ='QALY calcs'!G4*Cohort -> 0.008138962568 | J7: ='Markov Transitions'!W166*Cohort -> 0.01627973444
D9: Cases
C10: Strategy | D10: Stillbirths | E10: Neonatal Deaths | F10: Post neonatal deaths | G10: CP | H10: IVH | I10: RDS | J10: NICU admissions
C11: No Screen/treatment | D11: ='Markov Transitions'!W6*Cohort -> 0 | E11: ='Markov Transitions'!W7*Cohort -> 0.002329636513 | F11: ='Markov Transitions'!W9*Cohort -> 0.0005199036523 | G11: ='Markov Transitions'!W14*Cohort -> 0.001260715957 | H11: ='Markov Transitions'!W13*Cohort -> 0.001719653381 | I11: ='Markov Transitions'!W12*Cohort -> 0.008886790129 | J11: =J6 -> 0.01789447416
C12: Cervical length ≤ 25 mm | D12: ='Markov Transitions'!W164*Cohort -> 0 | E12: ='Markov Transitions'!W165*Cohort -> 0.001236071456 | F12: ='Markov Transitions'!W167*Cohort -> 0.0002993408635 | G12: ='Markov Transitions'!W172*Cohort -> 0.0008616002381 | H12: ='Markov Transitions'!W171*Cohort -> 0.0008351274948 | I12: ='Markov Transitions'!W170*Cohort -> 0.005425975045 | J12: =J7 -> 0.01627973444

Sheet Kindinger22
C2: Kindinger data for GA = 22 weeks
C4: CL | D4: <28 | E4: 28-32 | F4: 32-36 | G4: >36 | H4: check
C5: 5 | D5: 0.475 | E5: 0.382 | F5: 0.119 | G5: 0.023 | H5: =SUM(D5:G5) -> 0.999
C6: 10 | D6: 0.461 | E6: 0.385 | F6: 0.119 | G6: 0.035 | H6: =SUM(D6:G6) -> 1
C7: 15 | D7: 0.386 | E7: 0.392 | F7: 0.16 | G7: 0.062 | H7: 1
C8: 20 | D8: 0.308 | E8: 0.381 | F8: 0.206 | G8: 0.105 | H8: 1
C9: 25 | D9: 0.232 | E9: 0.35 | F9: 0.26 | G9: 0.168 | H9: 1.01
C10: 30 | D10: 0.164 | E10: 0.301 | F10: 0.285 | G10: 0.251 | H10: 1.001
C11: 35 | D11: 0.108 | E11: 0.241 | F11: 0.302 | G11: 0.35 | H11: 1.001
C12: 40 | D12: 0.066 | E12: 0.18 | F12: 0.299 | G12: 0.454 | H12: 0.999
C14: Adjustment to make check = 1
C16: Kindinger data for GA = 22 weeks
C18: CL | D18: <28 | E18: 28-32 | F18: 32-36 | G18: >36 | H18: check
C19: 5 | D19: =IF($H5=1,D5,IF($H5<1,D5+((1-$H5)/4),D5-(($H5-1)/4))) -> 0.47525 | E19: 0.38225 | F19: 0.11925 | G19: 0.02325 | H19: =SUM(D19:G19) -> 1
C20: 10 | D20: 0.461 | E20: 0.385 | F20: 0.119 | G20: 0.035 | H20: =SUM(D20:G20) -> 1
C21: 15 | D21: 0.386 | E21: 0.392 | F21: 0.16 | G21: 0.062 | H21: 1
C22: 20 | D22: 0.308 | E22: 0.381 | F22: 0.206 | G22: 0.105 | H22: 1
C23: 25 | D23: 0.2295 | E23: 0.3475 | F23: 0.2575 | G23: 0.1655 | H23: 1
C24: 30 | D24: 0.16375 | E24: 0.30075 | F24: 0.28475 | G24: 0.25075 | H24: 1
C25: 35 | D25: 0.10775 | E25: 0.24075 | F25: 0.30175 | G25: 0.34975 | H25: 1
C26: 40 | D26: 0.06625 | E26: 0.18025 | F26: 0.29925 | G26: 0.45425 | H26: 1
C29: Start | D29: 22-28 | E29: 28-32 | F29: 32-36 | G29: 36-42
C30: 1 | D30: 0.52475 | E30: 0.1425 | F30: 0.02325 | G30: 0
C31: 0 | D31: 0.47525 | E31: 0.8575 | F31: 0.97675 | G31: 1
E33: =E31-D31 -> 0.38225 | F33: =F31-E31 -> 0.11925
D35: =D19 -> 0.47525 | E35: =E19+D19 -> 0.8575 | F35: =E35+F19 -> 0.97675 | G35: =G19+F35 -> 1
D36: =D26 -> 0.06625 | E36: =D36+E26 -> 0.2465 | F36: =F26+E36 -> 0.54575 | G36: =G26+F36 -> 1

Sheet Published distributions
C2: Liem | D2: Skentou | E2: Souka | O2: Souka
B3: Distribution | C3: 1 | D3: 2 | E3: 3 | O3: 3
B4: CL | C4: Probability | D4: Probability | E4: Probability | I4: CL | J4: Liem | K4: Skentou | L4: Souka | M4: Dummy
B5: 5 | C5: =E18 -> 0.001420454545 | D5: =L18 -> 0.006465517241 | E5: =SUM(C42:C46)/C83 -> 0.004651162791 | I5: 5 | J5: =INT(C5*$D$34) -> 1 | K5: =INT(D5*$K$32) -> 3 | L5: =INT(E5*$C$83) -> 1 | M5: ='Distribution Data'!J13*10000 -> 10
B6: 10 | C6: =E19 -> 0.001420454545 | D6: =L19 -> 0.01724137931 | E6: =SUM(C47:C51)/C83 -> 0.03255813953 | I6: 10 | J6: 1 | K6: 8 | L6: 7 | M6: ='Distribution Data'!J14*10000 -> 10
B7: 15 | C7: =E20 -> 0.001420454545 | D7: =L20 -> 0.02370689655 | E7: =SUM(C52:C56)/C83 -> 0.01860465116 | I7: 15 | J7: 1 | K7: 11 | L7: 4 | M7: ='Distribution Data'!J15*10000 -> 10
B8: 20 | C8: =E21 -> 0.001420454545 | D8: =L21 -> 0.03232758621 | E8: =SUM(C57:C61)/C83 -> 0.03720930233 | I8: 20 | J8: 1 | K8: 15 | L8: 8 | M8: ='Distribution Data'!J16*10000 -> 10
B9: 25 | C9: =E22 -> 0.004261363636 | D9: =L22 -> 0.05172413793 | E9: =SUM(C62:C66)/C83 -> 0.03720930233 | I9: 25 | J9: 3 | K9: 24 | L9: 8 | M9: ='Distribution Data'!J17*10000 -> 10
B10: 30+ | C10: =SUM(E23:E32) -> 0.9900568182 | D10: =SUM(L23:L30) -> 0.8685344828 | E10: =SUM(C67:C81)/C83 -> 0.8697674419 | I10: 30+ | J10: 697 | K10: 403 | L10: 187 | M10: ='Distribution Data'!J18*10000 -> 9950
C14: =SUM(C5:C10) -> 1 | D14: =SUM(D5:D10) -> 1 | E14: =SUM(E5:E10) -> 1
B16: Liem data | I16: Skentou
B17: Cervical Length Range | C17: Measurement on chart (mm) | D17: Estimated Frequency | E17: Estimated probability | F17: Cumulative PDF | I17: Cervical Length Range | J17: Measurement on chart (mm) | K17: Estimated Frequency | L17: Estimated probability | M17: Cumulative PDF
B18: 0-5 | C18: 1 | D18: =ROUND(C18*$E$37,0) -> 1 | E18: =D18/$D$34 -> 0.001420454545 | F18: =E18 -> 0.001420454545 | I18: 0-5 | J18: 3 | K18: =ROUND(J18*$L$37,0) -> 3 | L18: =K18/$K$32 -> 0.006465517241 | M18: =L18 -> 0.006465517241
B19: 5-10 | C19: 1 | D19: =ROUND(C19*$E$37,0) -> 1 | E19: =D19/$D$34 -> 0.001420454545 | F19: =E19+F18 -> 0.002840909091 | I19: 6-10 | J19: 8 | K19: =ROUND(J19*$L$37,0) -> 8 | L19: =K19/$K$32 -> 0.01724137931 | M19: =M18+L19 -> 0.02370689655
B20: 10-15 | C20: 1 | D20: =ROUND(C20*$E$37,0) -> 1 | E20: 0.001420454545 | F20: =E20+F19 -> 0.004261363636 | I20: 11-15 | J20: 12 | K20: 11 | L20: 0.02370689655 | M20: =M19+L20 -> 0.0474137931
B21: 15-20 | C21: 1 | D21: 1 | E21: 0.001420454545 | F21: 0.005681818182 | I21: 16-20 | J21: 16 | K21: 15 | L21: 0.03232758621 | M21: 0.07974137931
B22: 20-25 | C22: 2 | D22: 3 | E22: 0.004261363636 | F22: 0.009943181818 | I22: 21-25 | J22: 25 | K22: 24 | L22: 0.05172413793 | M22: 0.1314655172
B23: 25-30 | C23: 15 | D23: 22 | E23: 0.03125 | F23: 0.04119318182 | I23: 26-30 | J23: 72 | K23: 69 | L23: 0.1487068966 | M23: 0.2801724138
B24: 30-35 | C24: 44 | D24: 64 | E24: 0.09090909091 | F24: 0.1321022727 | I24: 31-35 | J24: 86 | K24: 82 | L24: 0.1767241379 | M24: 0.4568965517
B25: 35-40 | C25: 103 | D25: 150 | E25: 0.2130681818 | F25: 0.3451704545 | I25: 36-40 | J25: 120 | K25: 114 | L25: 0.2456896552 | M25: 0.7025862069
B26: 40-45 | C26: 121 | D26: 176 | E26: 0.25 | F26: 0.5951704545 | I26: 41-45 | J26: 78 | K26: 74 | L26: 0.1594827586 | M26: 0.8620689655
B27: 45-50 | C27: 105 | D27: 153 | E27: 0.2173295455 | F27: 0.8125 | I27: 46-50 | J27: 43 | K27: 41 | L27: 0.08836206897 | M27: 0.9504310345
B28: 50-55 | C28: 51 | D28: 74 | E28: 0.1051136364 | F28: 0.9176136364 | I28: 51-55 | J28: 15 | K28: 14 | L28: 0.03017241379 | M28: 0.9806034483
B29: 55-60 | C29: 28 | D29: 41 | E29: 0.05823863636 | F29: 0.9758522727 | I29: 56-60 | J29: 4 | K29: 4 | L29: 0.008620689655 | M29: 0.9892241379
B30: 60-65 | C30: 9 | D30: 13 | E30: 0.01846590909 | F30: 0.9943181818 | I30: 61-65 | J30: 5 | K30: 5 | L30: 0.01077586207 | M30: 1
B31: 65-70 | C31: 1 | D31: 1 | E31: 0.001420454545 | F31: 0.9957386364
B32: 70-75 | C32: 2 | D32: 3 | E32: 0.004261363636 | F32: 1 | J32: =SUM(J18:J31) -> 487 | K32: =SUM(K18:K31) -> 464
D34: =SUM(D18:D33) -> 704 | E34: =SUM(E18:E33) -> 1
C36: mm | D36: Frequency | E36: 1mm | J36: mm | K36: Frequency | L36: 1mm
B37: Chart scale | C37: 103 | D37: 150 | E37: =D37/C37 -> 1.45631068 | I37: Chart scale | J37: 487 | K37: 464 | L37: =K37/J37 -> 0.9527720739
C41: Souka
B42: 1 | C42: 1
B43: 2 | C43: 0
B44: 3 | C44: 0
B45: 4 | C45: 0
B46: 5 | C46: 0
B47: 6 | C47: 1
B48: 7 | C48: 1
B49: 8 | C49: 2
B50: 9 | C50: 3
B51: 10 | C51: 0
B52: 11 | C52: 1
B53: 12 | C53: 0
B54: 13 | C54: 0
B55: 14 | C55: 1
B56: 15 | C56: 2
B57: 16 | C57: 0
B58: 17 | C58: 3
B59: 18 | C59: 1
B60: 19 | C60: 2
B61: 20 | C61: 2
B62: 21 | C62: 1
B63: 22 | C63: 0
B64: 23 | C64: 4
B65: 24 | C65: 0
B66: 25 | C66: 3
B67: 26 | C67: 4
B68: 27 | C68: 5
B69: 28 | C69: 5
B70: 29 | C70: 8
B71: 30 | C71: 12
B72: 31 | C72: 9
B73: 32 | C73: 9
B74: 33 | C74: 16
B75: 34 | C75: 9
B76: 35 | C76: 13
B77: 36 | C77: 12
B78: 37 | C78: 11
B79: 38 | C79: 20
B80: 39 | C80: 10
B81: 40+ | C81: =C83-SUM(C42:C80) -> 44
C83: 215

Sheet Clinical calcs
A2: Strategy | B2: Stillbirths | C2: Neonatal deaths | D2: Post-Neonatal Deaths | E2: Cerebral Palsy | F2: Intraventricular haemorrhage | G2: Respiratory distress syndrome
A3: No Screen/treatment | B3: ='Markov Transitions'!W6 -> 0 | C3: ='Markov Transitions'!W7 -> 0.002329636513 | D3: ='Markov Transitions'!W9 -> 0.0005199036523 | E3: ='Markov Transitions'!W14 -> 0.001260715957 | F3: ='Markov Transitions'!W13 -> 0.001719653381 | G3: ='Markov Transitions'!W12 -> 0.008886790129
A4: Cervical length ≤ 25mm | B4: ='Markov Transitions'!W164 -> 0 | C4: ='Markov Transitions'!W165 -> 0.001236071456 | D4: ='Markov Transitions'!W136 -> 0.0003661192206 | E4: ='Markov Transitions'!W172 -> 0.0008616002381 | F4: ='Markov Transitions'!W171 -> 0.0008351274948 | G4: ='Markov Transitions'!W170 -> 0.005425975045

Sheet Births by GA
B2: This data is based on the NGA report on Twin Costing but may need to update from original sources
B3: It is then used to break down the Kindinger births down into each week of GA - Kindinger has onlny broad categories | K3: Kato - Table 1
L4: Twin
C5: GA | D5: Cumulative Frequency | E5: % Twin Births | F5: % Kindinger category | K5: GA | L5: Male | M5: Female | N5: Twin Births | O5: Proportion | P5: Cumulative frequency
C6: 24 | D6: =Twin24 -> 0.0022 | E6: =D6 -> 0.0022 | F6: =E6/$B$9 -> 0.1549295775 | K6: 24 | L6: 76 | M6: 64 | N6: =L6+M6 -> 140 | O6: =N6/$N$26 -> 0.002175433144 | P6: =O6 -> 0.002175433144 | R6: 0.0022
C7: 25 | D7: =D6+Twin25 -> 0.0058 | E7: =D7-D6 -> 0.0036 | F7: =E7/$B$9 -> 0.2535211268 | K7: 25 | L7: 121 | M7: 111 | N7: =L7+M7 -> 232 | O7: =N7/$N$26 -> 0.003605003496 | P7: =O7+P6 -> 0.005780436641 | R7: 0.0036
C8: 26 | D8: =D7+Twin26 -> 0.0092 | E8: =D8-D7 -> 0.0034 | F8: =E8/$B$9 -> 0.2394366197 | K8: 26 | L8: 105 | M8: 116 | N8: 221 | O8: 0.003434076606 | P8: =O8+P7 -> 0.009214513247 | R8: 0.0034
B9: =SUM(E6:E9) -> 0.0142 | C9: 27 | D9: =D8+Twin27 -> 0.0142 | E9: =D9-D8 -> 0.005 | F9: =E9/$B$9 -> 0.3521126761 | H9: =SUM(F6:F9) -> 1 | K9: 27 | L9: 176 | M9: 145 | N9: 321 | O9: 0.004987957424 | P9: 0.01420247067 | R9: 0.005
C10: 28 | D10: =D9+Twin28 -> 0.0205 | E10: 0.0063 | F10: =E10/$B$13 -> 0.1869436202 | K10: 28 | L10: 208 | M10: 196 | N10: 404 | O10: 0.006277678502 | P10: 0.02048014917 | R10: 0.0063
C11: 29 | D11: =D10+Twin29 -> 0.0269 | E11: 0.0064 | F11: =E11/$B$13 -> 0.1899109792 | K11: 29 | L11: 211 | M11: 204 | N11: 415 | O11: 0.006448605392 | P11: 0.02692875456 | R11: 0.0064
C12: 30 | D12: =D11+Twin30 -> 0.0362 | E12: 0.0093 | F12: =E12/$B$13 -> 0.2759643917 | K12: 30 | L12: 309 | M12: 287 | N12: 596 | O12: 0.009261129671 | P12: 0.03618988424 | R12: 0.0093
B13: =SUM(E10:E13) -> 0.0337 | C13: 31 | D13: =D12+Twin31 -> 0.0479 | E13: 0.0117 | F13: =E13/$B$13 -> 0.3471810089 | H13: =SUM(F10:F13) -> 1 | K13: 31 | L13: 427 | M13: 325 | N13: 752 | O13: 0.01168518375 | P13: 0.04787506798 | R13: 0.0117
C14: 32 | D14: =D13+Twin32 -> 0.0669 | E14: 0.019 | F14: =E14/$B$18 -> 0.06604101495 | K14: 32 | L14: 673 | M14: 549 | N14: 1222 | O14: 0.01898842359 | P14: 0.06686349157 | R14: 0.019
C15: 33 | D15: =D14+Twin33 -> 0.0941 | E15: 0.0272 | F15: =E15/$B$18 -> 0.09454292666 | K15: 33 | L15: 906 | M15: 844 | N15: 1750 | O15: 0.0271929143 | P15: 0.09405640587 | R15: 0.0272
C16: 34 | D16: =D15+Twin34 -> 0.1364 | E16: 0.0423 | F16: =E16/$B$18 -> 0.1470281543 | K16: 34 | L16: 1366 | M16: 1356 | N16: 2722 | O16: 0.04229663585 | P16: 0.1363530417 | R16: 0.0423
C17: 35 | D17: =D16+Twin35 -> 0.2052 | E17: 0.0688 | F17: =E17/$B$18 -> 0.239137991 | K17: 35 | L17: 2306 | M17: 2122 | N17: 4428 | O17: 0.06880584259 | P17: 0.2051588843 | R17: 0.0688
B18: =SUM(E14:E18) -> 0.2877 | C18: 36 | D18: =D17+Twin36 -> 0.3356 | E18: 0.1304 | F18: =E18/$B$18 -> 0.4532499131 | H18: =SUM(F14:F18) -> 1 | K18: 36 | L18: 4257 | M18: 4132 | N18: 8389 | O18: 0.1303550618 | P18: 0.3355139461 | R18: 0.1304
B19: =SUM(E19) -> 0.6644 | C19: 37 | D19: 1 | E19: =D19-D18 -> 0.6644 | F19: =E19/$B$19 -> 1 | K19: 37 | L19: 7276 | M19: 7128 | N19: 14404 | O19: 0.2238209929 | P19: 0.559334939 | R19: 0.2238
K20: 38 | L20: 6963 | M20: 7343 | N20: 14306 | O20: 0.2222981897 | P20: 0.7816331287 | R20: 0.2223
B21: =SUM(B19,B18,B13,B9) -> 1 | E21: =SUM(E6:E19) -> 1 | F21: =SUM(F6:F19) -> 4 | K21: 39 | L21: 4358 | M21: 4632 | N21: 8990 | O21: 0.1396938855 | P21: 0.9213270142 | R21: 0.1397
K22: 40 | L22: 1924 | M22: 2135 | N22: 4059 | O22: 0.06307202238 | P22: 0.9843990366 | R22: 0.0631
K23: 41 | L23: 456 | M23: 470 | N23: 926 | O23: 0.01438893637 | P23: 0.998787973 | R23: 0.0144
H24: =SUM(F19:F24) -> 5 | K24: 42 | L24: 39 | M24: 39 | N24: 78 | O24: 0.001212027038 | P24: 1 | R24: 0.0012
N26: =SUM(N6:N25) -> 64355 | O26: =SUM(O6:O25) -> 1 | R26: =SUM(R6:R25) -> 1.0001 | S26: =SUM(R20:R24,R19) -> 0.6645 | T26: =1-SUM(R6:R18) -> 0.6644
C32: 24 | D32: 0.0022 | E32: =D32+E31 -> 0.0022
C33: 25 | D33: 0.0036 | E33: =D33+E32 -> 0.0058
C34: 26 | D34: 0.0034 | E34: 0.0092
C35: 27 | D35: 0.005 | E35: 0.0142
C36: 28 | D36: 0.0063 | E36: 0.0205
C37: 29 | D37: 0.0064 | E37: 0.0269
C38: 30 | D38: 0.0093 | E38: 0.0362
C39: 31 | D39: 0.0117 | E39: 0.0479
C40: 32 | D40: 0.019 | E40: 0.0669
C41: 33 | D41: 0.0272 | E41: 0.0941
C42: 34 | D42: 0.0423 | E42: 0.1364
C43: 35 | D43: 0.0688 | E43: 0.2052
C44: 36 | D44: 0.1304 | E44: 0.3356
C45: 37 | D45: 0.6644 | E45: 1

Sheet Survival GA
I3: 24 | J3: 25 | K3: 26 | L3: 27 | M3: 28 | N3: 29 | O3: 30 | P3: 31 | Q3: 32 | R3: 33 | S3: 34 | T3: 35 | U3: 36
H4: Births | I4: 0.0023 | J4: 0.0036 | K4: 0.0034 | L4: 0.005 | M4: 0.0063 | N4: 0.0064 | O4: 0.0093 | P4: 0.0117 | Q4: 0.019 | R4: 0.0272 | S4: 0.0423 | T4: 0.0688 | U4: 0.1303
H5: Survive birth | I5: =I4*(1-Stillbirth24) -> 0.0023 | J5: =J4*(1-Stillbirth25) -> 0.0036 | K5: =K4*(1-Stillbirth26) -> 0.0034 | L5: =L4*(1-Stillbirth27) -> 0.005 | M5: =M4*(1-Stillbirth28) -> 0.0063 | N5: =N4*(1-Stillbirth29) -> 0.0064 | O5: =O4*(1-Stillbirth30) -> 0.0093 | P5: =P4*(1-Stillbirth31) -> 0.0117 | Q5: =Q4*(1-Stillbirth32) -> 0.019 | R5: =R4*(1-Stillbirth33) -> 0.0272 | S5: =S4*(1-Stillbirth34) -> 0.0423 | T5: =T4*(1-Stillbirth35) -> 0.0688 | U5: =U4*(1-Stillbirth36) -> 0.1303
H6: Survive neonatal | I6: =I5*(1-NND_24) -> 0.001321678473 | J6: =J5*(1-NND_25) -> 0.002671228172 | K6: =K5*(1-NND_26) -> 0.002867967443 | L6: =L5*(1-NND_27) -> 0.004525449915 | M6: =M5*(1-NND_28) -> 0.005937335238 | N6: =N5*(1-NND_29) -> 0.006176541159 | O6: =O5*(1-NND_30) -> 0.009103051228 | P6: =P5*(1-NND_31) -> 0.01154971731 | Q6: =Q5*(1-NND_32) -> 0.01885197692 | R6: =R5*(1-NND_33) -> 0.02707147207 | S6: =S5*(1-NND_34) -> 0.04217876675 | T6: =T5*(1-NND_35) -> 0.06868040237 | U6: =U5*(1-NND_36) -> 0.1301626175
H7: Survive post neonatal | I7: =I6*(1-PND_24) -> 0.001224307174 | J7: =J6*(1-PND_25) -> 0.002531154662 | K7: =K6*(1-PND_26) -> 0.002760924235 | L7: =L6*(1-PND_27) -> 0.004405227198 | M7: =M6*(1-PND_28) -> 0.005825067176 | N7: =N6*(1-PND_29) -> 0.006093412673 | O7: =O6*(1-PND_30) -> 0.009015848235 | P7: =P6*(1-PND_31) -> 0.01147096639 | Q7: =Q6*(1-PND_32) -> 0.01876048535 | R7: =R6*(1-PND_33) -> 0.02697795823 | S7: =S6*(1-PND_34) -> 0.04207506221 | T7: =T6*(1-PND_35) -> 0.06856021008 | U7: =U6*(1-PND_36) -> 0.1300004851

Sheet ANC appt
D5: Resource Use
E7: Assume 2 specialist midwife for twin | J7: Assume 2 specialist midwife for twin
E8: Dichorionic twins | J8: Monochorionic twins
E9: Midwife | F9: Consultant | G9: Scan | J9: Midwife | K9: Consultant | L9: Scan
D10: Week | I10: Week
D11: 24 | E11: 1 | F11: 1 | G11: 1 | I11: 24 | J11: 1 | K11: 1 | L11: 1
D12: 25 | I12: 25
D13: 26 | I13: 26 | J13: 1 | L13: 1
D14: 27 | I14: 27
D15: 28 | E15: 1 | G15: 1 | I15: 28 | J15: 1 | L15: 1
D16: 29 | I16: 29
D17: 30 | I17: 30 | J17: 1 | L17: 1
D18: 31 | I18: 31
D19: 32 | E19: 1 | F19: 1 | G19: 1 | I19: 32 | J19: 1 | K19: 1 | L19: 1
D20: 33 | I20: 33
D21: 34 | E21: 1 | I21: 34 | J21: 1 | L21: 1
D22: 35 | I22: 35
D23: 36 | E23: 1 | G23: 1 | I23: 36
D24: 37 | I24: 37
O31: 1054.935232

Sheet Det CE plane
B2: Strategy | C2: Cost | D2: QALY
B3: Baseline | C3: ='Cost calcs'!N3 -> 1693.658408 | D3: ='QALY calcs'!J3 -> 0.3967578667
B4: Cervical length ≤ 25 mm | C4: ='Cost calcs'!N4 -> 1229.970098 | D4: ='QALY calcs'!J4 -> 0.4419999056
B5: =IF('Format control'!$D5=1,'Format control'!B5,"") ->  | C5: =IF('Format control'!$D5=1,'Cost calcs'!#REF!,"") ->  | D5: =IF('Format control'!$D5=1,'QALY calcs'!#REF!,"") -> 
B6: =IF('Format control'!$D6=1,'Format control'!B6,"") ->  | C6: =IF('Format control'!$D6=1,'Cost calcs'!#REF!,"") ->  | D6: =IF('Format control'!$D6=1,'QALY calcs'!#REF!,"") -> 
B7: =IF('Format control'!$D7=1,'Format control'!B7,"") ->  | C7: =IF('Format control'!$D7=1,'Cost calcs'!#REF!,"") ->  | D7: =IF('Format control'!$D7=1,'QALY calcs'!#REF!,"") -> 
B8: =IF('Format control'!$D8=1,'Format control'!B4,"") ->  | C8: =IF('Format control'!$D8=1,'Cost calcs'!N4,"") ->  | D8: =IF('Format control'!$D8=1,'QALY calcs'!J4,"") -> 
B10: Incremental to Baseline
B11: =B3 -> Baseline | C11: =C3-$C$3 -> 0 | D11: =D3-$D$3 -> 0
B12: Cervical length ≤ 25 mm | C12: =C4-$C$3 -> -463.6883101 | D12: =D4-$D$3 -> 0.04524203891

Sheet Clinical Charts
C4: Strategy | D4: Stillbirths | E4: Neonatal Deaths | F4: Post neonatal deaths | G4: CP | H4: IVH | I4: RDS | J4: NICU admissions
C5: =IF('Clinical Results'!C11="","",'Clinical Results'!C11) -> Cervical length ≤ 25 mm | D5: =IF($C5="","",'Clinical Results'!E11) -> 0 | E5: =IF($C5="","",'Clinical Results'!G11) -> 0.001236071456 | F5: =IF($C5="","",'Clinical Results'!I11) -> 0.0002993408635 | G5: =IF($C5="","",'Clinical Results'!K11) -> 0.0008616002381 | H5: =IF($C5="","",'Clinical Results'!M11) -> 0.0008351274948 | I5: =IF($C5="","",'Clinical Results'!O11) -> 0.005425975045 | J5: =IF($C5="","",'Clinical Results'!Q11) -> 0.01627973444
C6: =IF('Clinical Results'!C13="","",'Clinical Results'!C13) -> No Screen/treatment | D6: =IF($C6="","",'Clinical Results'!E13) -> 0 | E6: =IF($C6="","",'Clinical Results'!G13) -> 0.002329636513 | F6: =IF($C6="","",'Clinical Results'!I13) -> 0.0005199036523 | G6: =IF($C6="","",'Clinical Results'!K13) -> 0.001260715957 | H6: =IF($C6="","",'Clinical Results'!M13) -> 0.001719653381 | I6: =IF($C6="","",'Clinical Results'!O13) -> 0.008886790129 | J6: =IF($C6="","",'Clinical Results'!Q13) -> 0.01789447416
C12: Strategy | D12: Stillbirths | E12: Neonatal Deaths | F12: Post neonatal deaths | G12: CP | H12: IVH | I12: RDS | J12: NICU admissions
C13: Cervical length ≤ 25 mm | D13: =D5*1000 -> 0 | E13: =E5*1000 -> 1.236071456 | F13: 0.2993408635 | G13: 0.8616002381 | H13: 0.8351274948 | I13: 5.425975045 | J13: 16.27973444
C14: =C6 -> No Screen/treatment | D14: =D6*1000 -> 0 | E14: =E6*1000 -> 2.329636513 | F14: 0.5199036523 | G14: 1.260715957 | H14: 1.719653381 | I14: 8.886790129 | J14: 17.89447416

Sheet Probabilistic inputs
C4: Input | D4: Distribution
C5: Relative risks of pre-term birth | D5: Log-normal
C6: Distribution of cervical length | D6: Dirichlet
C7: Unit costs | D7: Normal
C8: Neonatal care costs | D8: Normal
C9: Baseline births by gestational age (Kato) | D9: Dirichlet
C13: Distribution of cervical length
D14: Study
C15: CL | D15: Observed Count
C16: 5 | D16: =VLOOKUP(C16,'Published distributions'!$I$4:$M$12,'Format control'!$H$3+1,FALSE) -> 1
C17: 10 | D17: =VLOOKUP(C17,'Published distributions'!$I$4:$M$12,'Format control'!$H$3+1,FALSE) -> 1
C18: 15 | D18: =VLOOKUP(C18,'Published distributions'!$I$4:$M$12,'Format control'!$H$3+1,FALSE) -> 1
C19: 20 | D19: =VLOOKUP(C19,'Published distributions'!$I$4:$M$12,'Format control'!$H$3+1,FALSE) -> 1
C20: 25 | D20: =VLOOKUP(C20,'Published distributions'!$I$4:$M$12,'Format control'!$H$3+1,FALSE) -> 3
C21: 30+ | D21: =VLOOKUP(C21,'Published distributions'!$I$4:$M$12,'Format control'!$H$3+1,FALSE) -> 697
C25: Sampling Treatment effectiveness
D27: Sample RR | F27: Births by gestational age and cervical length (Kindinger)
C28: <28 weeks | D28: 0.4610465942 | G28: <28 weeks | H28: 28-32 weeks | I28: 32-36 weeks | J28: 37 weeks
C29: 28 to <32 weeks | D29: 0.5766542144 | F29: 5mm | G29: 0.475 | H29: 0.382 | I29: 0.119 | J29: =1-SUM(G29:I29) -> 0.024 | L29: =SUM(G29:J29) -> 1
C30: 32 to <36 weeks | D30: 0.9319892762 | F30: 10mm | G30: 0.461 | H30: 0.385 | I30: 0.119 | J30: =1-SUM(G30:I30) -> 0.035 | L30: =SUM(G30:J30) -> 1
F31: 15mm | G31: 0.386 | H31: 0.392 | I31: 0.16 | J31: =1-SUM(G31:I31) -> 0.062 | L31: =SUM(G31:J31) -> 1
F32: 20mm | G32: 0.308 | H32: 0.381 | I32: 0.206 | J32: =1-SUM(G32:I32) -> 0.105 | L32: =SUM(G32:J32) -> 1
F33: 25mm | G33: 0.23 | H33: 0.348 | I33: 0.258 | J33: =1-SUM(G33:I33) -> 0.164 | L33: =SUM(G33:J33) -> 1
F35: Probability of birth by gestational age and cervical length|on-going pregnancy
G36: <28 weeks | H36: 28-32 weeks | I36: 32-36 weeks | J36: 37 weeks
F37: 5mm | G37: =G29 -> 0.475 | H37: =H29/(1-G37) -> 0.7276190476 | I37: =I29/(1-G29-H29) -> 0.8321678322 | J37: =J29/(1-G29-H29-I29) -> 1
F38: 10mm | G38: =G30 -> 0.461 | H38: =H30/(1-G38) -> 0.7142857143 | I38: =I30/(1-G30-H30) -> 0.7727272727 | J38: =J30/(1-G30-H30-I30) -> 1
F39: 15mm | G39: =G31 -> 0.386 | H39: =H31/(1-G39) -> 0.6384364821 | I39: =I31/(1-G31-H31) -> 0.7207207207 | J39: =J31/(1-G31-H31-I31) -> 1
F40: 20mm | G40: =G32 -> 0.308 | H40: =H32/(1-G40) -> 0.5505780347 | I40: =I32/(1-G32-H32) -> 0.6623794212 | J40: =J32/(1-G32-H32-I32) -> 1
F41: 25mm | G41: =G33 -> 0.23 | H41: =H33/(1-G41) -> 0.4519480519 | I41: =I33/(1-G33-H33) -> 0.6113744076 | J41: =J33/(1-G33-H33-I33) -> 1
B43: GA (wks) | C43: 5mm | D43: 10mm | E43: 15mm | F43: 20mm | G43: 25mm
B44: 23 | C44: 0 | D44: 0 | E44: 0 | F44: 0 | G44: 0
B45: 26 | C45: =IF(D28*$G$37>=1,1,(D28*$G$37)) -> 0.2189971323 | D45: =IF(D28*$G$38>=1,1,(D28*$G$38)) -> 0.2125424799 | E45: =IF(D28*$G$39>=1,1,(D28*$G$39)) -> 0.1779639854 | F45: =IF(D28*$G$40>=1,1,(D28*$G$40)) -> 0.142002351 | G45: =IF(D28*$G$41>=1,1,(D28*$G$41)) -> 0.1060407167
B46: 30 | C46: =IF(D29*$H$37*(1-C45)+C45>=1,1,(D29*$H$37)*(1-C45)+C45) -> 0.5466939006 | D46: =IF(D29*$H$38*(1-D45)+D45>=1,1,(D29*$H$38)*(1-D45)+D45) -> 0.5368929782 | E46: =IF(D29*$H$39*(1-E45)+E45>=1,1,(D29*$H$39)*(1-E45)+E45) -> 0.4806023708 | F46: =IF(D29*$H$40*(1-F45)+F45>=1,1,(D29*$H$40)*(1-F45)+F45) -> 0.4144107222 | G46: =IF(D29*$H$41*(1-G45)+G45>=1,1,(D29*$H$41)*(1-G45)+G45) -> 0.3390223727
B47: 34 | C47: =IF(D30*$I$37*(1-C46)+C46>=1,1,(D30*$I$37)*(1-C46)+C46) -> 0.8982651901 | D47: =IF(D30*$I$37*(1-D46)+D46>=1,1,(D30*$I$37)*(1-D46)+D46) -> 0.8960655837 | E47: =IF(D30*$I$39*(1-E46)+E46>=1,1,(D30*$I$39)*(1-E46)+E46) -> 0.829483827 | F47: =IF(D30*$I$40*(1-F46)+F46>=1,1,(D30*$I$40)*(1-F46)+F46) -> 0.775912854 | G47: =IF(D30*$I$41*(1-G46)+G46>=1,1,(D30*$I$41)*(1-G46)+G46) -> 0.7156437177
B48: 37 | C48: 1 | D48: 1 | E48: 1 | F48: 1 | G48: 1
C50: Coefficients
C51: x1 | D51: x2 | E51: x3 | F51: x4 | G51: x5
B52: 5mm | C52: =LINEST(C44:C48,$B$44:$B$48^{1,2,3,4}) -> -5.148531921e-05 | D52: 0.005769755402 | E52: -0.2396874186 | F52: 4.454764236 | G52: -31.45784378
B53: 10mm | C53: =LINEST(D44:D48,$B$44:$B$48^{1,2,3,4}) -> -5.579117492e-05 | D53: 0.006270340489 | E53: -0.2610774498 | F53: 4.852408555 | G53: -34.17400037
B54: 15mm | C54: =LINEST(E44:E48,$B$44:$B$48^{1,2,3,4}) -> -3.179472663e-05 | D54: 0.003511991173 | E54: -0.1424338701 | F54: 2.583780514 | G54: -17.91236304
B55: 20mm | C55: =LINEST(F44:F48,$B$44:$B$48^{1,2,3,4}) -> -3.143818378e-05 | D55: 0.003535908071 | E55: -0.145178343 | F55: 2.642098233 | G55: -18.19261663
B56: 25mm | C56: =LINEST(G44:G48,$B$44:$B$48^{1,2,3,4}) -> -3.646916914e-05 | D56: 0.004231700185 | E56: -0.1788472563 | F56: 3.322429123 | G56: -23.08719863
C59: 5 | D59: 10 | E59: 15 | F59: 20 | G59: 25
B60: 24 | C60: =IF(($C$52*$B60^4)+($D$52*$B60^3)+($E$52*$B60^2)+($F$52*$B60)+$G$52>1,1,($C$52*$B60^4)+($D$52*$B60^3)+($E$52*$B60^2)+($F$52*$B60)+$G$52) -> 0.07605021209 | D60: =IF(($C$53*$B60^4)+($D$53*$B60^3)+($E$53*$B60^2)+($F$53*$B60)+$G$53>1,1,($C$53*$B60^4)+($D$53*$B60^3)+($E$53*$B60^2)+($F$53*$B60)+$G$53) -> 0.07420793519 | E60: =IF(($C$54*$B60^4)+($D$54*$B60^3)+($E$54*$B60^2)+($F$54*$B60)+$G$54>1,1,($C$54*$B60^4)+($D$54*$B60^3)+($E$54*$B60^2)+($F$54*$B60)+$G$54) -> 0.05749886387 | F60: =IF(($C$55*$B60^4)+($D$55*$B60^3)+($E$55*$B60^2)+($F$55*$B60)+$G$55>1,1,($C$55*$B60^4)+($D$55*$B60^3)+($E$55*$B60^2)+($F$55*$B60)+$G$55) -> 0.04497371133 | G60: =IF(($C$56*$B60^4)+($D$56*$B60^3)+($E$56*$B60^2)+($F$56*$B60)+$G$56>1,1,($C$56*$B60^4)+($D$56*$B60^3)+($E$56*$B60^2)+($F$56*$B60)+$G$56) -> 0.03450898374
B61: 25 | C61: =IF(($C$52*$B61^4)+($D$52*$B61^3)+($E$52*$B61^2)+($F$52*$B61)+$G$52>1,1,($C$52*$B61^4)+($D$52*$B61^3)+($E$52*$B61^2)+($F$52*$B61)+$G$52) -> 0.1476008679 | D61: =IF(($C$53*$B61^4)+($D$53*$B61^3)+($E$53*$B61^2)+($F$53*$B61)+$G$53>1,1,($C$53*$B61^4)+($D$53*$B61^3)+($E$53*$B61^2)+($F$53*$B61)+$G$53) -> 0.1434498178 | E61: =IF(($C$54*$B61^4)+($D$54*$B61^3)+($E$54*$B61^2)+($F$54*$B61)+$G$54>1,1,($C$54*$B61^4)+($D$54*$B61^3)+($E$54*$B61^2)+($F$54*$B61)+$G$54) -> 0.1160279764 | F61: =IF(($C$55*$B61^4)+($D$55*$B61^3)+($E$55*$B61^2)+($F$55*$B61)+$G$55>1,1,($C$55*$B61^4)+($D$55*$B61^3)+($E$55*$B61^2)+($F$55*$B61)+$G$55) -> 0.09139789622 | G61: =IF(($C$56*$B61^4)+($D$56*$B61^3)+($E$56*$B61^2)+($F$56*$B61)+$G$56>1,1,($C$56*$B61^4)+($D$56*$B61^3)+($E$56*$B61^2)+($F$56*$B61)+$G$56) -> 0.06854044608
B62: 26 | C62: 0.2189971323 | D62: 0.2125424799 | E62: 0.1779639854 | F62: 0.142002351 | G62: 0.1060407167
B63: 27 | C63: =IF(($C$52*$B63^4)+($D$52*$B63^3)+($E$52*$B63^2)+($F$52*$B63)+$G$52>1,1,($C$52*$B63^4)+($D$52*$B63^3)+($E$52*$B63^2)+($F$52*$B63)+$G$52) -> 0.2933485221 | D63: 0.2849637655 | E63: 0.2449204651 | F63: 0.1987623557 | G63: 0.1500808651
B64: 28 | C64: 0.3725289069 | D64: 0.3628525301 | E64: 0.3177479165 | F64: 0.2628986738 | G64: 0.202856701
B65: 29 | C65: 0.4571765084 | D65: 0.4470086412 | E65: 0.3965337671 | F65: 0.3348775524 | G65: 0.2656887737
B66: 30 | C66: 0.5466939006 | D66: 0.5368929782 | E66: 0.4806023708 | F66: 0.4144107222 | G66: 0.3390223727
B67: 31 | C67: 0.6392480099 | D67: 0.6306274322 | E67: 0.5685150082 | F67: 0.5004553976 | G67: 0.4224275273
B68: 32 | C68: 0.7317701151 | D68: 0.724994906 | E68: 0.6580698865 | F68: 0.5912142765 | G68: 0.5145990069
B69: 33 | C69: 0.8199558474 | D69: 0.8154393144 | E69: 0.7463021393 | F69: 0.6841355402 | G69: 0.6133563206
B70: 34 | C70: 0.8982651901 | D70: 0.8960655837 | E70: 0.829483827 | F70: 0.775912854 | G70: 0.7156437177
B71: 35 | C71: 0.9599224789 | D71: 0.9596396524 | E71: 0.9031239363 | F71: 0.8624853665 | G71: 0.8175301873
B72: 36 | C72: 0.9969164021 | D72: 0.9975884705 | E72: 0.9619683807 | F72: 0.9390377099 | G72: 0.9142094584
B73: 37 | C73: =IF(($C$52*$B73^4)+($D$52*$B73^3)+($E$52*$B73^2)+($F$52*$B73)+$G$52>1,1,($C$52*$B73^4)+($D$52*$B73^3)+($E$52*$B73^2)+($F$52*$B73)+$G$52) -> 1 | D73: =IF(($C$53*$B73^4)+($D$53*$B73^3)+($E$53*$B73^2)+($F$53*$B73)+$G$53>1,1,($C$53*$B73^4)+($D$53*$B73^3)+($E$53*$B73^2)+($F$53*$B73)+$G$53) -> 1 | E73: 1 | F73: 1 | G73: 1
B75: To determine which data to use depending on which cervical length chosen
C77: 5 | D77: 10 | E77: 15 | F77: 20 | G77: 25
B78: 24 | C78: =IF(C60<0,0,C60) -> 0.07605021209 | D78: =IF(D60<0,0,D60) -> 0.07420793519 | E78: 0.05749886387 | F78: 0.04497371133 | G78: 0.03450898374
B79: 25 | C79: =IF(C61<0,0,IF(C61<C78,C78,C61)) -> 0.1476008679 | D79: =IF(D61<0,0,IF(D61<D78,D78,D61)) -> 0.1434498178 | E79: 0.1160279764 | F79: 0.09139789622 | G79: 0.06854044608
B80: 26 | C80: =IF(C62<0,0,IF(C62<C79,C79,C62)) -> 0.2189971323 | D80: 0.2125424799 | E80: 0.1779639854 | F80: 0.142002351 | G80: 0.1060407167
B81: 27 | C81: 0.2933485221 | D81: 0.2849637655 | E81: 0.2449204651 | F81: 0.1987623557 | G81: 0.1500808651
B82: 28 | C82: 0.3725289069 | D82: 0.3628525301 | E82: 0.3177479165 | F82: 0.2628986738 | G82: 0.202856701
B83: 29 | C83: 0.4571765084 | D83: 0.4470086412 | E83: 0.3965337671 | F83: 0.3348775524 | G83: 0.2656887737
B84: 30 | C84: 0.5466939006 | D84: 0.5368929782 | E84: 0.4806023708 | F84: 0.4144107222 | G84: 0.3390223727
B85: 31 | C85: 0.6392480099 | D85: 0.6306274322 | E85: 0.5685150082 | F85: 0.5004553976 | G85: 0.4224275273
B86: 32 | C86: 0.7317701151 | D86: 0.724994906 | E86: 0.6580698865 | F86: 0.5912142765 | G86: 0.5145990069
B87: 33 | C87: 0.8199558474 | D87: 0.8154393144 | E87: 0.7463021393 | F87: 0.6841355402 | G87: 0.6133563206
B88: 34 | C88: 0.8982651901 | D88: 0.8960655837 | E88: 0.829483827 | F88: 0.775912854 | G88: 0.7156437177
B89: 35 | C89: 0.9599224789 | D89: 0.9596396524 | E89: 0.9031239363 | F89: 0.8624853665 | G89: 0.8175301873
B90: 36 | C90: 0.9969164021 | D90: 0.9975884705 | E90: 0.9619683807 | F90: 0.9390377099 | G90: 0.9142094584
B91: 37 | C91: 1 | D91: 1 | E91: 1 | F91: 1 | G91: 1

Sheet Kindinger Smoothing and Tx
C1: Baseline
B2: Baseline
C3: Birth probabilities by CL and gestational age
C4: 5 | D4: 10 | E4: 15 | F4: 20 | G4: 25
B5: 23 | C5: ='Format control'!D247 -> 0 | D5: ='Format control'!E247 -> 0 | E5: ='Format control'!F247 -> 0 | F5: ='Format control'!G247 -> 0 | G5: ='Format control'!H247 -> 0
B6: 26 | C6: ='Format control'!D248 -> 0.532 | D6: ='Format control'!E248 -> 0.461 | E6: ='Format control'!F248 -> 0.386 | F6: ='Format control'!G248 -> 0.308 | G6: ='Format control'!H248 -> 0.232 | L6: <28 weeks
B7: 28 | C7: ='Format control'!D249 -> 0.364 | D7: ='Format control'!E249 -> 0.385 | E7: ='Format control'!F249 -> 0.392 | F7: ='Format control'!G249 -> 0.381 | G7: ='Format control'!H249 -> 0.35 | L7: 28 to <32 weeks
B8: 34 | C8: ='Format control'!D250 -> 0.085 | D8: ='Format control'!E250 -> 0.119 | E8: ='Format control'!F250 -> 0.16 | F8: ='Format control'!G250 -> 0.206 | G8: ='Format control'!H250 -> 0.25 | L8: 32 to <36 weeks
B9: 37 | C9: ='Format control'!D251 -> 0.019 | D9: ='Format control'!E251 -> 0.035 | E9: ='Format control'!F251 -> 0.062 | F9: ='Format control'!G251 -> 0.105 | G9: ='Format control'!H251 -> 0.168
C11: Cumulative Birth probabilities by CL and gestational age
C12: 5 | D12: 10 | E12: 15 | F12: 20 | G12: 25
B13: 23 | C13: 0 | D13: 0 | E13: 0 | F13: 0 | G13: 0
B14: 26 | C14: =C6+C13 -> 0.532 | D14: =D6+D13 -> 0.461 | E14: 0.386 | F14: 0.308 | G14: 0.232
B15: 30 | C15: =C7+C14 -> 0.896 | D15: 0.846 | E15: 0.778 | F15: 0.689 | G15: 0.582
B16: 34 | C16: =C8+C15 -> 0.981 | D16: 0.965 | E16: 0.938 | F16: 0.895 | G16: 0.832
B17: 37 | C17: =IF(C9+C16<>1,1,1) -> 1 | D17: =IF(D9+D16<>1,1,1) -> 1 | E17: =IF(E9+E16<>1,1,1) -> 1 | F17: =IF(F9+F16<>1,1,1) -> 1 | G17: =IF(G9+G16<>1,1,1) -> 1
C19: x1 | D19: x2 | E19: x3 | F19: x4 | G19: x5
B20: 5 | C20: =LINEST(C13:C17,B13:B17^{1,2,3,4}) -> 1.930658627e-05 | D20: -0.001853045764 | E20: 0.0534908975 | F20: -0.2426365182 | G20: -5.572811456
B21: 10 | C21: =LINEST(D13:D17,B13:B17^{1,2,3,4}) -> 3.79174397e-05 | D21: -0.004294681509 | E21: 0.1728479824 | F21: -2.811408936 | G21: 14.86835853
B22: 15 | C22: =LINEST(E13:E17,B13:B17^{1,2,3,4}) -> 4.777365492e-05 | D22: -0.005659245516 | E22: 0.2433399814 | F22: -4.412168213 | G22: 28.24003154
B23: 20 | C23: =LINEST(F13:F17,B13:B17^{1,2,3,4}) -> 4.883658009e-05 | D23: -0.005919372294 | E23: 0.2627758387 | F23: -4.984277056 | G23: 33.9844789
B24: 25 | C24: =LINEST(G13:G17,B13:B17^{1,2,3,4}) -> 4.398577613e-05 | D24: -0.005386518244 | E24: 0.2434346784 | F24: -4.736213667 | G24: 33.38471336
L27: Table 2 - BASELINE
B28: Table 1 - BASELINE
C29: Cumulative Birth probabilities by CL and gestational age | M29: Birth probabilities by CL and gestational age - weighted by CL distribution
C30: 5 | D30: 10 | E30: 15 | F30: 20 | G30: 25 | M30: 5 | N30: 10 | O30: 15 | P30: 20 | Q30: 25 | V30: Total (cum) | W30: Births week | Y30: Total (cum) <=25mm | Z30: Births week
B31: 24 | C31: =IF((Baseline_x1_5CL*$B31^4)+(Baseline_x2_5CL*$B31^3)+(Baseline_x3_5CL*$B31^2)+(Baseline_x4_5CL*$B31)+Baseline_x5_5CL>1,1,(Baseline_x1_5CL*$B31^4)+(Baseline_x2_5CL*$B31^3)+(Baseline_x3_5CL*$B31^2)+(Baseline_x4_5CL*$B31)+Baseline_x5_5CL) -> 0.2036263915 | D31: =IF((Baseline_x1_10CL*$B31^4)+(Baseline_x2_10CL*$B31^3)+(Baseline_x3_10CL*$B31^2)+(Baseline_x4_10CL*$B31)+Baseline_x5_10CL>1,1,(Baseline_x1_10CL*$B31^4)+(Baseline_x2_10CL*$B31^3)+(Baseline_x3_10CL*$B31^2)+(Baseline_x4_10CL*$B31)+Baseline_x5_10CL) -> 0.1654012059 | E31: =IF((Baseline_x1_15CL*$B31^4)+(Baseline_x2_15CL*$B31^3)+(Baseline_x3_15CL*$B31^2)+(Baseline_x4_15CL*$B31)+Baseline_x5_15CL>1,1,(Baseline_x1_15CL*$B31^4)+(Baseline_x2_15CL*$B31^3)+(Baseline_x3_15CL*$B31^2)+(Baseline_x4_15CL*$B31)+Baseline_x5_15CL) -> 0.1285658627 | F31: =IF((Baseline_x1_20CL*$B31^4)+(Baseline_x2_20CL*$B31^3)+(Baseline_x3_20CL*$B31^2)+(Baseline_x4_20CL*$B31)+Baseline_x5_20CL>1,1,(Baseline_x1_20CL*$B31^4)+(Baseline_x2_20CL*$B31^3)+(Baseline_x3_20CL*$B31^2)+(Baseline_x4_20CL*$B31)+Baseline_x5_20CL) -> 0.09411525974 | G31: =IF((Baseline_x1_25CL*$B31^4)+(Baseline_x2_25CL*$B31^3)+(Baseline_x3_25CL*$B31^2)+(Baseline_x4_25CL*$B31)+Baseline_x5_25CL>1,1,(Baseline_x1_25CL*$B31^4)+(Baseline_x2_25CL*$B31^3)+(Baseline_x3_25CL*$B31^2)+(Baseline_x4_25CL*$B31)+Baseline_x5_25CL) -> 0.0641567718 | L31: 24 | M31: =IF(C31<0,0,CL5_weight*C31) -> 0.0002892420333 | N31: =IF(D31<0,0,CL10_weight*D31) -> 0.0002349448948 | O31: =IF(E31<0,0,CL15_weight*E31) -> 0.0001826219641 | P31: =IF(F31<0,0,CL20_weight*F31) -> 0.0001336864485 | Q31: =IF(G31<0,0,CL25_weight*G31) -> 0.0002733953344 | V31: =SUM(M31:Q31) -> 0.001113890675 | W31: =V31 -> 0.001113890675 | Y31: =SUM(M31:Q31) -> 0.001113890675 | Z31: =Y31 -> 0.001113890675
B32: 25 | C32: =IF((Baseline_x1_5CL*$B32^4)+(Baseline_x2_5CL*$B32^3)+(Baseline_x3_5CL*$B32^2)+(Baseline_x4_5CL*$B32)+Baseline_x5_5CL>1,1,(Baseline_x1_5CL*$B32^4)+(Baseline_x2_5CL*$B32^3)+(Baseline_x3_5CL*$B32^2)+(Baseline_x4_5CL*$B32)+Baseline_x5_5CL) -> 0.3808817254 | D32: 0.3202254174 | E32: 0.259187384 | F32: 0.1990487013 | G32: 0.1436419295 | L32: 25 | M32: 0.0005410251781 | N32: 0.0004548656498 | O32: 0.0003681638978 | P32: 0.0002827396325 | Q32: 0.000612110495 | V32: =SUM(M32:R32) -> 0.002258904853 | W32: =V32-V31 -> 0.001145014178 | Y32: =SUM(M32:Q32) -> 0.002258904853 | Z32: =Y32-Y31 -> 0.001145014178
B33: 26 | C33: 0.532 | D33: 0.461 | E33: 0.386 | F33: 0.308 | G33: 0.232 | L33: 26 | M33: 0.0007556818182 | N33: 0.0006548295455 | O33: 0.0005482954545 | P33: 0.0004375 | Q33: 0.0009886363636 | V33: =SUM(M33:R33) -> 0.003384943182 | W33: =V33-V32 -> 0.001126038329 | Y33: 0.003384943182 | Z33: =Y33-Y32 -> 0.001126038329
B34: 27 | C34: 0.6576785714 | D34: 0.5851623377 | E34: 0.5042857143 | F34: 0.4153409091 | G34: 0.3238311688 | L34: 27 | M34: 0.0009342025162 | N34: 0.0008311965024 | O34: 0.0007163149351 | P34: 0.0005899728822 | Q34: 0.001379962367 | V34: 0.004451649203 | W34: 0.001066706021 | Y34: 0.004451649203 | Z34: 0.001066706021
B35: 28 | C35: 0.759078154 | D35: 0.691059833 | E35: 0.6104730983 | F35: 0.5166152597 | G35: 0.4147912801 | L35: 28 | M35: 0.001078236014 | N35: 0.000981619081 | O35: 0.0008671492874 | P35: 0.0007338284939 | Q35: 0.001767576478 | V35: 0.005428409354 | W35: 0.0009767601514 | Y35: 0.005428409354 | Z35: 0.0009767601514
B36: 29 | C36: 0.83782282 | D36: 0.7779499072 | E36: 0.7021372913 | F36: 0.608538961 | G36: 0.5015918367 | L36: 29 | M36: 0.001190089233 | N36: 0.001105042482 | O36: 0.0009973541069 | P36: 0.0008644019333 | Q36: 0.002137465213 | V36: 0.006294352968 | W36: 0.000865943614 | Y36: 0.006294352968 | Z36: 0.000865943614
B37: 30 | C37: 0.896 | D37: 0.846 | E37: 0.778 | F37: 0.689 | G37: 0.582 | L37: 30 | M37: 0.001272727273 | N37: 0.001201704545 | O37: 0.001105113636 | P37: 0.0009786931818 | Q37: 0.002480113636 | V37: 0.007038352273 | W37: 0.0007439993043 | Y37: 0.007038352273 | Z37: 0.0007439993043
B38: 31 | C38: 0.9361604824 | D38: 0.8962875696 | E38: 0.8379294991 | F38: 0.7570584416 | G38: 0.65483859 | L38: 31 | M38: 0.001329773412 | N38: 0.001273135752 | O38: 0.001190240766 | P38: 0.001075367104 | Q38: 0.002790505355 | V38: 0.00765902239 | W38: 0.0006206701172 | Y38: 0.00765902239 | Z38: 0.0006206701172
B39: 32 | C39: 0.9613184137 | D39: 0.9308000928 | E39: 0.8829406308 | F39: 0.8129464286 | G39: 0.7199860853 | L39: 32 | M39: 0.00136550911 | N39: 0.001322159223 | O39: 0.001254177032 | P39: 0.00115475345 | Q39: 0.003068122523 | V39: 0.008164721338 | W39: 0.000505698948 | Y39: 0.008164721338 | Z39: 0.000505698948
B40: 33 | C40: 0.9749512987 | D40: 0.9524350649 | E40: 0.9151948052 | F40: 0.8580681818 | G40: 0.7783766234 | L40: 33 | M40: 0.001384874004 | N40: 0.001352890717 | O40: 0.001299992621 | P40: 0.001218846849 | Q40: 0.003316945838 | V40: 0.00857355003 | W40: 0.0004088286916 | Y40: 0.00857355003 | Z40: 0.0004088286916
B41: 34 | C41: 0.981 | D41: 0.965 | E41: 0.938 | F41: 0.895 | G41: 0.832 | L41: 34 | M41: 0.001393465909 | N41: 0.001370738636 | O41: 0.001332386364 | P41: 0.001271306818 | Q41: 0.003545454545 | V41: 0.008913352273 | W41: 0.0003398022432 | Y41: 0.008913352273 | Z41: 0.0003398022432
B42: 35 | C42: 0.9838687384 | D42: 0.9732124304 | E42: 0.9558107607 | F42: 0.9274902597 | G42: 0.8839016698 | L42: 35 | M42: 0.001397540822 | N42: 0.00138240402 | O42: 0.00135768574 | P42: 0.001317457755 | Q42: 0.003766626434 | V42: 0.009221714771 | W42: 0.0003083624979 | Y42: 0.009221714771 | Z42: 0.0003083624979
B43: 36 | C43: 0.9884250928 | D43: 0.9826999072 | E43: 0.9742282004 | F43: 0.9604594156 | G43: 0.9381827458 | L43: 36 | M43: 0.001404012916 | N43: 0.00139588055 | O43: 0.001383846876 | P43: 0.001364288943 | Q43: 0.003997937837 | V43: 0.009545967121 | W43: 0.0003242523507 | Y43: 0.009545967121 | Z43: 0.0003242523507
B44: 37 | C44: 1 | D44: 1 | E44: 1 | F44: 1 | G44: 1 | L44: 37 | M44: 0.001420454545 | N44: 0.001420454545 | O44: 0.001420454545 | P44: 0.001420454545 | Q44: 0.004261363636 | V44: =SUM(M44:R44) -> 0.009943181818 | W44: 0.0003972146968 | Y44: 0.009943181818 | Z44: 0.0003972146968
T46: =SUM(T31:T45) -> 0 | W46: =SUM(W31:W45) -> 0.009943181818 | Z46: =SUM(Z31:Z45) -> 0.009943181818
C48: Intervention
B49: Intervention
C50: Cumulative Birth probabilities by CL and gestational age
C51: 5 | D51: 10 | E51: 15 | F51: 20 | G51: 25
B52: 23 | C52: 0 | D52: 0 | E52: 0 | F52: 0 | G52: 0
B53: 26 | C53: =IF('Format control'!$C$6=0,C14*RR_Birth28,C14*RR_Birth28_sample) -> 0.2452767881 | D53: =IF('Format control'!$C$6=0,D14*RR_Birth28,D14*RR_Birth28_sample) -> 0.2125424799 | E53: =IF('Format control'!$C$6=0,E14*RR_Birth28,E14*RR_Birth28_sample) -> 0.1779639854 | F53: =IF('Format control'!$C$6=0,F14*RR_Birth28,F14*RR_Birth28_sample) -> 0.142002351 | G53: =IF('Format control'!$C$6=0,G14*RR_Birth28,G14*RR_Birth28_sample) -> 0.1069628099 | I53: <28 weeks
B54: 30 | C54: =IF('Format control'!$C$6=0,C15*RR_Birth32,C15*RR_Birth32_sample) -> 0.5166821761 | D54: =IF('Format control'!$C$6=0,D15*RR_Birth32,D15*RR_Birth32_sample) -> 0.4878494654 | E54: =IF('Format control'!$C$6=0,E15*RR_Birth32,E15*RR_Birth32_sample) -> 0.4486369788 | F54: =IF('Format control'!$C$6=0,F15*RR_Birth32,F15*RR_Birth32_sample) -> 0.3973147537 | G54: =IF('Format control'!$C$6=0,G15*RR_Birth32,G15*RR_Birth32_sample) -> 0.3356127528 | I54: 28 to <32 weeks
B55: 34 | C55: =IF('Format control'!$C$6=0,C16*RR_Birth36,C16*RR_Birth36_sample) -> 0.9142814799 | D55: =IF('Format control'!$C$6=0,D16*RR_Birth36,D16*RR_Birth36_sample) -> 0.8993696515 | E55: =IF('Format control'!$C$6=0,E16*RR_Birth36,E16*RR_Birth36_sample) -> 0.8742059411 | F55: =IF('Format control'!$C$6=0,F16*RR_Birth36,F16*RR_Birth36_sample) -> 0.8341304022 | G55: =IF('Format control'!$C$6=0,G16*RR_Birth36,G16*RR_Birth36_sample) -> 0.7754150778 | I55: 32 to <36 weeks
B56: 37 | C56: 1 | D56: 1 | E56: 1 | F56: 1 | G56: 1
C58: x1 | D58: x2 | E58: x3 | F58: x4 | G58: x5
B59: 5 | C59: =LINEST(C52:C56,B52:B56^{1,2,3,4}) -> -0.0001298185589 | D59: 0.01520862055 | E59: -0.6617349747 | F59: 12.75076665 | G59: -91.92456217
B60: 10 | C60: =LINEST(D52:D56,B52:B56^{1,2,3,4}) -> -0.0001214755281 | D60: 0.01413994746 | E60: -0.6104271488 | F60: 11.65997507 | G60: -83.31037238
B61: 15 | C61: =LINEST(E52:E56,B52:B56^{1,2,3,4}) -> -0.0001149173971 | D61: 0.01331730968 | E61: -0.5713247494 | F61: 10.82842241 | G61: -76.69603055
B62: 20 | C62: =LINEST(F52:F56,B52:B56^{1,2,3,4}) -> -0.00010837452 | D62: 0.0125477474 | E62: -0.5366688891 | F62: 10.11949466 | G62: -71.19134336
B63: 25 | C63: =LINEST(G52:G56,B52:B56^{1,2,3,4}) -> -9.829303514e-05 | D63: 0.01142765022 | E63: -0.4895349291 | F63: 9.222524718 | G63: -64.68788993
C65: Birth probabilities by CL and gestational age | M65: Birth probabilities by CL and gestational age - weighted by CL distribution
C66: 5 | D66: 10 | E66: 15 | F66: 20 | G66: 25 | M66: 5 | N66: 10 | O66: 15 | P66: 20 | Q66: 25 | V66: Total (cum) | W66: Births week
B67: 24 | C67: =IF((Progest_x1_5CL*$B67^4)+(Progest_x2_5CL*$B67^3)+(Progest_x3_5CL*$B67^2)+(Progest_x4_5CL*$B67)+Progest_x5_5CL>1,1,(Progest_x1_5CL*$B67^4)+(Progest_x2_5CL*$B67^3)+(Progest_x3_5CL*$B67^2)+(Progest_x4_5CL*$B67)+Progest_x5_5CL) -> 0.1077802322 | D67: =IF((Progest_x1_10CL*$B67^4)+(Progest_x2_10CL*$B67^3)+(Progest_x3_10CL*$B67^2)+(Progest_x4_10CL*$B67)+Progest_x5_10CL>1,1,(Progest_x1_10CL*$B67^4)+(Progest_x2_10CL*$B67^3)+(Progest_x3_10CL*$B67^2)+(Progest_x4_10CL*$B67)+Progest_x5_10CL) -> 0.0909604664 | E67: =IF((Progest_x1_15CL*$B67^4)+(Progest_x2_15CL*$B67^3)+(Progest_x3_15CL*$B67^2)+(Progest_x4_15CL*$B67)+Progest_x5_15CL>1,1,(Progest_x1_15CL*$B67^4)+(Progest_x2_15CL*$B67^3)+(Progest_x3_15CL*$B67^2)+(Progest_x4_15CL*$B67)+Progest_x5_15CL) -> 0.07470630755 | F67: =IF((Progest_x1_20CL*$B67^4)+(Progest_x2_20CL*$B67^3)+(Progest_x3_20CL*$B67^2)+(Progest_x4_20CL*$B67)+Progest_x5_20CL>1,1,(Progest_x1_20CL*$B67^4)+(Progest_x2_20CL*$B67^3)+(Progest_x3_20CL*$B67^2)+(Progest_x4_20CL*$B67)+Progest_x5_20CL) -> 0.05924361233 | G67: =IF((Progest_x1_25CL*$B67^4)+(Progest_x2_25CL*$B67^3)+(Progest_x3_25CL*$B67^2)+(Progest_x4_25CL*$B67)+Progest_x5_25CL>1,1,(Progest_x1_25CL*$B67^4)+(Progest_x2_25CL*$B67^3)+(Progest_x3_25CL*$B67^2)+(Progest_x4_25CL*$B67)+Progest_x5_25CL) -> 0.04515067659 | L67: 24 | M67: =IF(C67<0,0,CL5_weight*C67) -> 0.0001530969207 | N67: =IF(D67<0,0,CL10_weight*D67) -> 0.000129205208 | O67: =IF(E67<0,0,CL15_weight*E67) -> 0.0001061169141 | P67: =IF(F67<0,0,CL20_weight*F67) -> 8.415285842e-05 | Q67: =IF(G67<0,0,CL25_weight*G67) -> 0.0001924034514 | V67: =SUM(M67:T67) -> 0.0006649753526 | W67: =V67 -> 0.0006649753526
B68: 25 | C68: =IF((Progest_x1_5CL*$B68^4)+(Progest_x2_5CL*$B68^3)+(Progest_x3_5CL*$B68^2)+(Progest_x4_5CL*$B68)+Progest_x5_5CL>1,1,(Progest_x1_5CL*$B68^4)+(Progest_x2_5CL*$B68^3)+(Progest_x3_5CL*$B68^2)+(Progest_x4_5CL*$B68)+Progest_x5_5CL) -> 0.184566358 | D68: 0.1573372683 | E68: 0.1299168265 | F68: 0.1027236405 | G68: 0.077215081 | L68: 25 | M68: =IF(C68<0,0,IF(CL5_weight*C68<M67,M67,CL5_weight*C68)) -> 0.0002621681221 | N68: =IF(D68<0,0,IF(CL10_weight*D68<N67,N67,CL10_weight*D68)) -> 0.0002234904379 | O68: =IF(E68<0,0,IF(CL15_weight*E68<O67,O67,CL15_weight*E68)) -> 0.0001845409467 | P68: =IF(F68<0,0,IF(CL20_weight*F68<P67,P67,CL20_weight*F68)) -> 0.000145914262 | Q68: =IF(G68<0,0,IF(CL25_weight*G68<Q67,Q67,CL25_weight*G68)) -> 0.0003290415384 | V68: =SUM(M68:T68) -> 0.001145155307 | W68: =V68-V67 -> 0.0004801799546
B69: 26 | C69: 0.2452767881 | D69: 0.2125424799 | E69: 0.1779639854 | F69: 0.142002351 | G69: 0.1069628099 | L69: 26 | M69: 0.0003484045286 | N69: 0.0003019069317 | O69: 0.000252789752 | P69: 0.000201707885 | Q69: 0.0004558074284 | V69: 0.001560616526 | W69: =V69-V68 -> 0.0004154612185
B70: 27 | C70: 0.3017142879 | D70: 0.2670727629 | E70: 0.2284221953 | F70: 0.1860410222 | G70: 0.142804427 | L70: 27 | M70: 0.0004285714317 | N70: 0.0003793647201 | O70: 0.0003244633456 | P70: 0.0002642628156 | Q70: 0.0006085415921 | V70: 0.002005203905 | W70: 0.0004445873794
B71: 28 | C71: 0.3625659771 | D71: 0.3285093661 | E71: 0.2881078498 | F71: 0.2411999436 | G71: 0.1907914632 | L71: 28 | M71: 0.0005150084902 | N71: 0.0004666326223 | O71: 0.0004092441048 | P71: 0.0003426135563 | Q71: 0.0008130318035 | V71: 0.002546530577 | W71: 0.000541326672
B72: 29 | C72: =IF((Progest_x1_5CL*$B72^4)+(Progest_x2_5CL*$B72^3)+(Progest_x3_5CL*$B72^2)+(Progest_x4_5CL*$B72)+Progest_x5_5CL>1,1,(Progest_x1_5CL*$B72^4)+(Progest_x2_5CL*$B72^3)+(Progest_x3_5CL*$B72^2)+(Progest_x4_5CL*$B72)+Progest_x5_5CL) -> 0.4334033302 | D72: 0.4015181258 | E72: 0.3610793248 | F72: 0.3112384166 | G72: 0.2546164167 | L72: 29 | M72: 0.0006156297303 | N72: 0.0005703382468 | O72: 0.0005128967682 | P72: 0.0004421000236 | Q72: 0.00108501314 | V72: 0.003225977908 | W72: 0.0006794473314
B73: 30 | C73: 0.5166821761 | D73: 0.4878494654 | E73: 0.4486369788 | F73: 0.3973147537 | G73: 0.3356127528 | L73: 30 | M73: 0.0007339235456 | N73: 0.0006929679906 | O73: 0.0006372684358 | P73: 0.0005643675479 | Q73: 0.001430167981 | V73: 0.004058695501 | W73: 0.0008327175923
B74: 31 | C74: 0.6117426986 | D74: 0.5863383959 | E74: 0.5493231528 | F74: 0.4979862794 | G74: 0.4327549038 | L74: 31 | M74: 0.0008689526969 | N74: 0.0008328670397 | O74: 0.0007802885694 | P74: 0.0007073668741 | Q74: 0.00184412601 | V74: 0.00503360119 | W74: 0.0009749056897
B75: 32 | C75: 0.7148094358 | D75: 0.6929045156 | E75: 0.6589221702 | F75: 0.6092093292 | G75: 0.5426582693 | L75: 32 | M75: 0.001015354312 | N75: 0.0009842393687 | O75: 0.0009359689918 | P75: 0.0008653541608 | Q75: 0.002312464216 | V75: 0.006113381049 | W75: 0.001079779859
B76: 33 | C76: 0.8189912804 | D76: 0.8005520098 | E76: 0.7704603368 | F76: 0.7243392505 | G76: 0.659579216 | L76: 33 | M76: 0.001163339887 | N76: 0.001137147741 | O76: 0.001094403888 | P76: 0.001028890981 | Q76: 0.002810706886 | V76: 0.007234489383 | W76: 0.001121108334
B77: 34 | C77: 0.9142814799 | D77: 0.8993696515 | E77: 0.8742059411 | F77: 0.8341304022 | G77: 0.7754150778 | L77: 34 | M77: 0.001298695284 | N77: 0.00127751371 | O77: 0.001241769803 | P77: 0.001184844321 | Q77: 0.003304325616 | V77: =SUM(M77:T77) -> 0.008307148733 | W77: 0.00107265935
B78: 35 | C78: 0.9875576362 | D78: 0.9765308009 | E78: 0.9576692537 | F78: 0.9267361545 | G78: 0.8797041557 | L78: 35 | M78: 0.001402780733 | N78: 0.001387117615 | O78: 0.001360325645 | P78: 0.001316386583 | Q78: 0.0037487393 | V78: 0.009215349876 | W78: 0.0009082011428
B79: 36 | C79: 1 | D79: 1 | E79: 1 | F79: 0.9877088893 | G79: 0.959625718 | L79: 36 | M79: 0.001420454545 | N79: 0.001420454545 | O79: 0.001420454545 | P79: 0.001402995581 | Q79: 0.004089314139 | V79: 0.009753673357 | W79: 0.0005383234812
B80: 37 | C80: 1 | D80: 1 | E80: 1 | F80: 1 | G80: 1 | J80: =SUM(M80:Q80) -> 0.009943181818 | L80: 37 | M80: 0.001420454545 | N80: 0.001420454545 | O80: 0.001420454545 | P80: 0.001420454545 | Q80: 0.004261363636 | V80: 0.009943181818 | W80: 0.0001895084611
W82: =SUM(W67:W81) -> 0.009943181818
I84: =CL10_weight*D67 -> 0.000129205208

Sheet Markov Transitions 1.7
C1: Cumulative Births
B3: Weeks | C3: Baseline overall | D3: CL 5mm not treated | E3: CL 5 mm treated | F3: Reduction in births | G3: Treated Cohort | I3: CL 10mm not treated | J3: CL 10mm treated | K3: Reduction in births | L3: Treated Cohort | N3: CL 15mm not treated | O3: CL 15mm treated | P3: Reduction in births | Q3: Treated Cohort
B4: 24 | C4: ='Kindinger Smoothing and Tx'!V31 -> 0.001113890675 | D4: ='Kindinger Smoothing and Tx'!M31 -> 0.0002892420333 | E4: ='Kindinger Smoothing and Tx'!M67 -> 0.0001530969207 | F4: =D4-E4 -> 0.0001361451127 | G4: =C4-F4 -> 0.0009777455624 | I4: ='Kindinger Smoothing and Tx'!N31 -> 0.0002349448948 | J4: ='Kindinger Smoothing and Tx'!N67 -> 0.000129205208 | K4: =I4-J4 -> 0.0001057396868 | L4: =C4-(F4+K4) -> 0.0008720058756 | N4: ='Kindinger Smoothing and Tx'!O31 -> 0.0001826219641 | O4: ='Kindinger Smoothing and Tx'!O67 -> 0.0001061169141 | P4: =N4-O4 -> 7.650504994e-05 | Q4: =C4-(F4+K4+P4) -> 0.0007955008256
